Workbook

Sheet Results_summary_Qtrly (hidden)
B2: GOLDFIELDS GAS PIPELINE | I2: =#REF! ->  | J2: =#REF! ->  | K2: =#REF! ->  | L2: =#REF! ->  | M2: =#REF! ->  | N2: =#REF! ->  | O2: =#REF! ->  | P2: =#REF! ->  | Q2: =#REF! ->  | R2: =#REF! ->  | S2: =#REF! ->  | T2: =#REF! ->  | U2: =#REF! ->  | V2: =#REF! ->  | W2: =#REF! ->  | X2: =#REF! ->  | Y2: =#REF! ->  | Z2: =#REF! ->  | AA2: =#REF! ->  | AB2: =#REF! ->  | AC2: =#REF! ->  | AD2: =#REF! ->  | AE2: =#REF! ->  | AF2: =#REF! ->  | AG2: =#REF! ->  | AH2: =#REF! ->  | AI2: =#REF! ->  | AJ2: =#REF! ->  | AK2: =#REF! ->  | AL2: =#REF! ->  | AM2: =#REF! ->  | AN2: =#REF! -> 
B3: REFERENCE TARIFF MODEL FOR 2013 -2017 AA PERIOD | G3: =IF(ROUND(#REF!,8)=0,"","RESET TARIFF") ->  | I3: =#REF! ->  | J3: =#REF! ->  | K3: =#REF! ->  | L3: =#REF! ->  | M3: =#REF! ->  | N3: =#REF! ->  | O3: =#REF! ->  | P3: =#REF! ->  | Q3: =#REF! ->  | R3: =#REF! ->  | S3: =#REF! ->  | T3: =#REF! ->  | U3: =#REF! ->  | V3: =#REF! ->  | W3: =#REF! ->  | X3: =#REF! ->  | Y3: =#REF! ->  | Z3: =#REF! ->  | AA3: =#REF! ->  | AB3: =#REF! ->  | AC3: =#REF! ->  | AD3: =#REF! ->  | AE3: =#REF! ->  | AF3: =#REF! ->  | AG3: =#REF! ->  | AH3: =#REF! ->  | AI3: =#REF! ->  | AJ3: =#REF! ->  | AK3: =#REF! ->  | AL3: =#REF! ->  | AM3: =#REF! ->  | AN3: =#REF! -> 
I4: =#REF! ->  | J4: =#REF! ->  | K4: =#REF! ->  | L4: =#REF! ->  | M4: =#REF! ->  | N4: =#REF! ->  | O4: =#REF! ->  | P4: =#REF! ->  | Q4: =#REF! ->  | R4: =#REF! ->  | S4: =#REF! ->  | T4: =#REF! ->  | U4: =#REF! ->  | V4: =#REF! ->  | W4: =#REF! ->  | X4: =#REF! ->  | Y4: =#REF! ->  | Z4: =#REF! ->  | AA4: =#REF! ->  | AB4: =#REF! ->  | AC4: =#REF! ->  | AD4: =#REF! ->  | AE4: =#REF! ->  | AF4: =#REF! ->  | AG4: =#REF! ->  | AH4: =#REF! ->  | AI4: =#REF! ->  | AJ4: =#REF! ->  | AK4: =#REF! ->  | AL4: =#REF! ->  | AM4: =#REF! ->  | AN4: =#REF! -> 
B7: General
B8: A series of assumptions have been made about business relationships in the preparation of this model.
B9: In developing the input data for rolling forward the opening capital base, actual opex and capex expenditures have been used for the period from 2010 to 2011;
B13: Model
B15: This model determines the Roll forward capital base, total revenue and reference tariff for the Goldfields Gas Pipeline.
B17: Worksheets
B18: Results_summary | G18: Quarterly tariff forecasts and key assumptions
B19: Reference_tariff calc._annual | G19: Annual allowable reference revenue calculation for the period 1 January 2010 to 31 December 2014
B20: Reference_tariff calc._qtrly | G20: Reference tariff calculation on a quarterly basis for the periods 1 January 2010 to 31 December 2014
B21: Diagnostics | G21: Provides check on the Reference Service revenue and tariff calculation
B22: Diagnostics_COS | G22: Provides check on the COS calculation
B23: Cost of Service_revenue | G23: Provides COS revenue calculation for the covered pipeline
B24: Opex_allocation | G24: Provides share of Reference service opex
B25: Capacity and throughput | G25: Annual capacity and throughput forecasts for 1 January 2010 to 31 December 2014
B26: Capacity and throughput_qtly | G26: Capacity and throughput forecasts on quarterly basis for 1 January 2010 to 31 December 2014
B27: WACC_estimate | G27: Provides a range of assumptions on the underlying WACC parameters and point estimate of pretax nominal WACC adopted in the calculation
B28: IAB Rollfwd 2000-2014 | G28: IAB roll forward and depreciation calculation for 2000 to 2014
B29: Capex Rollfwd 2000-2014 | G29: Existing Capex roll forward and depreciation calculation for the period 2000 to 2014
B30: Capex Rollfwd 2010-2014 | G30: New Capex roll forward and depreciation calculation for the period 2010 to 2014
B31: Asset base_2000-2009 | G31: Capital base roll forward summary for the period from 1 January 2000 to 31 December 2009
B32: Asset base_2010-2014 | G32: Capital base roll forward summary for the period from 1 January 2010 to 31 December 2014
B36: Inputs
B37: All model inputs are shown in blue colour fonts as shown here | J37: 123
B38: All monetary inputs are expressed in $m rounded to 3 decimal places
B39: All monetary inputs for Opex and Capex are in nominal $ of the day; IAB and depreciations are in historical dollar i.e. $2000 as per the previous AA
B40: Pipe capacity forecasts are shown in TJ/d rounded to 2 decimal places
B41: Pipe throughput forecasts are expressed in TJ/d rounded to 2 decimal places
B42: Changes to the model inputs and rows are coloured in green
B44: Model outputs | I44: =I2 ->  | J44: =J2 ->  | AC44: =AC2 -> 
B48: Opening capital base (1 January 2013) $2000 | H48: $m | U48: =#REF! -> 
B49: Nominal-pre tax WACC | U49: =#REF! -> 
B50: Inflation forecasts | U50: =#REF! -> 
B52: Reference service capacity | H52: TJ/d
B54: Qtly Reference tariff 2013 to 2017
B56: Toll charge | H56: $/GJ | U56: =#REF! ->  | V56: =#REF! ->  | W56: =#REF! ->  | X56: =#REF! ->  | Y56: =#REF! ->  | Z56: =#REF! ->  | AA56: =#REF! ->  | AB56: =#REF! ->  | AC56: =#REF! ->  | AD56: =#REF! ->  | AE56: =#REF! ->  | AF56: =#REF! ->  | AG56: =#REF! ->  | AH56: =#REF! ->  | AI56: =#REF! ->  | AJ56: =#REF! ->  | AK56: =#REF! ->  | AL56: =#REF! ->  | AM56: =#REF! ->  | AN56: =#REF! -> 
B57: Reservation charge | H57: $/GJ km | U57: =#REF! ->  | V57: =#REF! ->  | W57: =#REF! ->  | X57: =#REF! ->  | Y57: =#REF! ->  | Z57: =#REF! ->  | AA57: =#REF! ->  | AB57: =#REF! ->  | AC57: =#REF! ->  | AD57: =#REF! ->  | AE57: =#REF! ->  | AF57: =#REF! ->  | AG57: =#REF! ->  | AH57: =#REF! ->  | AI57: =#REF! ->  | AJ57: =#REF! ->  | AK57: =#REF! ->  | AL57: =#REF! ->  | AM57: =#REF! ->  | AN57: =#REF! -> 
B58: Throughput charge | H58: $/GJ km | U58: =#REF! ->  | V58: =#REF! ->  | W58: =#REF! ->  | X58: =#REF! ->  | Y58: =#REF! ->  | Z58: =#REF! ->  | AA58: =#REF! ->  | AB58: =#REF! ->  | AC58: =#REF! ->  | AD58: =#REF! ->  | AE58: =#REF! ->  | AF58: =#REF! ->  | AG58: =#REF! ->  | AH58: =#REF! ->  | AI58: =#REF! ->  | AJ58: =#REF! ->  | AK58: =#REF! ->  | AL58: =#REF! ->  | AM58: =#REF! ->  | AN58: =#REF! -> 
B60: Revenue from reference tariff | H60: $m | U60: =#REF! ->  | V60: =#REF! ->  | W60: =#REF! ->  | X60: =#REF! ->  | Y60: =#REF! ->  | Z60: =#REF! ->  | AA60: =#REF! ->  | AB60: =#REF! ->  | AC60: =#REF! ->  | AD60: =#REF! ->  | AE60: =#REF! ->  | AF60: =#REF! ->  | AG60: =#REF! ->  | AH60: =#REF! ->  | AI60: =#REF! ->  | AJ60: =#REF! ->  | AK60: =#REF! ->  | AL60: =#REF! ->  | AM60: =#REF! ->  | AN60: =#REF! -> 

Sheet Diagnostics_2010 (hidden)
B2: GOLDFIELDS GAS PIPELINE | I2: =#REF! ->  | J2: =#REF! ->  | K2: =#REF! ->  | L2: =#REF! ->  | M2: =#REF! -> 
B3: COS Diagnostics on Covered Pipeline Asset | G3: =IF(ROUND(H9,8)=0,"","RESET TARIFF") ->  | I3: =#REF! ->  | J3: =#REF! ->  | K3: =#REF! ->  | L3: =#REF! ->  | M3: =#REF! -> 
B4: =#REF! ->  | E4: =#REF! ->  | I4: =#REF! ->  | J4: =#REF! ->  | K4: =#REF! ->  | L4: =#REF! ->  | M4: =#REF! -> 
B7: Diagnostics on COS analysis
B9: Revenue requirement | H9: =I20-I26 -> 
B11: Revenue requirement
B12: Capital base | G12: $m | I12: =#REF! -> 
B13: Non-capital costs | G13: $m | I13: =#REF! ->  | J13: =#REF! ->  | K13: =#REF! ->  | L13: =#REF! ->  | M13: =#REF! -> 
B14: Capital expenditure | G14: $m | I14: =#REF! ->  | J14: =#REF! ->  | K14: =#REF! ->  | L14: =#REF! ->  | M14: =#REF! -> 
B15: Over depreciation AA1 | G15: $m | I15: =#REF! -> 
B16: Increase in line pack | G16: $m | I16: =#REF! ->  | J16: =#REF! ->  | K16: =#REF! ->  | L16: =#REF! ->  | M16: =#REF! -> 
B17: Increase in working capital | G17: $m | I17: =#REF! ->  | J17: =#REF! ->  | K17: =#REF! ->  | L17: =#REF! ->  | M17: =#REF! -> 
B18: Residual value | G18: $m | I18: 0 | J18: 0 | K18: 0 | L18: 0 | M18: =-#REF! -> 
I19: =SUM(I13:I18) ->  | J19: =SUM(J13:J18) ->  | K19: =SUM(K13:K18) ->  | L19: =SUM(L13:L18) ->  | M19: =SUM(M13:M18) -> 
B20: NPV revenue requirement | G20: $m | I20: =I12+NPV(#REF!,I19:M19) -> 
B22: Return | G22: $m | I22: =#REF! ->  | J22: =#REF! ->  | K22: =#REF! ->  | L22: =#REF! ->  | M22: =#REF! -> 
B23: Net Depreciation | G23: $m | I23: =#REF!+#REF! ->  | J23: =#REF!+#REF! ->  | K23: =#REF!+#REF! ->  | L23: =#REF!+#REF! ->  | M23: =#REF!+#REF! -> 
B24: Non capital costs | G24: $m | I24: =#REF! ->  | J24: =#REF! ->  | K24: =#REF! ->  | L24: =#REF! ->  | M24: =#REF! -> 
G25: $m | I25: =SUM(I22:I24) ->  | J25: =SUM(J22:J24) ->  | K25: =SUM(K22:K24) ->  | L25: =SUM(L22:L24) ->  | M25: =SUM(M22:M24) -> 
B26: NPV revenue requirement | G26: $m | I26: =NPV(#REF!,I25:M25) -> 

Sheet Notes
B2: ='AA 2020-2024 inputs'!B2 -> GOLDFIELDS GAS PIPELINE
B3: Access Arrangement revision 2020-2024
B4: 1 January 2019
B6: Tariff calculation check | E6: ='Total revenue and tariff'!M85 -> OK
B9: General
B11: A series of assumptions have been made about business relationships in the preparation of this model.
B13: Model
B15: This model determines the capital base, total revenue and reference tariffs for the Goldfields Gas Pipeline (covered pipeline only).
B17: Worksheets
B18: Notes | E18: Notes on the model, and summaries of checks and results
B19: Total revenue and tariff | E19: Calculates after-tax total revenue for each year of the access arrangement period (2020-2024), calculates reference tariffs from total revenues and forecast revenues
B20: AA 2020-2024 inputs | E20: Sets out model inputs, excluding capacity and throughput forecasts (in Capacity and revenue) and historical asset costs (in Tax asset base_1994-2009)
B21: Capacity and revenue | E21: Sets out capacity and throughput forecasts and distances from receipt to delivery points; calculates forecast revenue.
B22: Capital base 2015-2024 | E22: Determines capital base for period 2015 to 2024; uses closing asset values at 31 December 2014 from ERA Final Decision (amended) tariff model
B23: Tax asset base 1994-2009 | E23: Calculates tax depreciation and rolls forward tax asset base from commencement of operation at the beginning of Q4 1996
B24: Tax asset base 2010-2024 | E24: Calculates tax depreciation and rolls forward tax asset base for additions to Covered Pipeline 2010 to 2024
B26: Macros
B28: The model includes two calculation macros.
B29: One macro calculates tax payable: in worksheet Total revenue and tariff - button "Solve for tax payable"
B30: The second macro calculates the reference tariff compoenents: in worksheet Total revenue and tariff - button "Reset reference tariff"
B32: Model inputs
B34: All model inputs are shown in blue: | H34: 123
B35: Results from goal seeking macros are shown in bold: | H35: 123
B37: All monetary inputs are expressed in $ million rounded to 4 decimal places
B38: All monetary inputs for CAPEX and OPEX are historical costs ("dollars of the day").
B39: Capacity forecasts are shown in TJ/d rounded to 2 decimal places.
B40: Throughput forecasts are expressed in TJ/d rounded to 2 decimal places
B41: All other inputs are rounded to 2 decimal places.
B43: Model outputs
G45: 2020 | H45: =G45+1 -> 2021 | I45: 2022 | J45: 2023 | K45: 2024
B47: Capital base (beginning of year) | F47: $m | G47: ='Capital base'!O21 -> 380.5212006 | H47: ='Capital base'!P21 -> 383.4571059 | I47: ='Capital base'!Q21 -> 380.4673123 | J47: ='Capital base'!R21 -> 376.611235 | K47: ='Capital base'!S21 -> 371.9953193
B49: Rate of return (nominal vanilla WACC) 2020-2024 | D49: ='Total revenue and tariff'!N70 -> 0.05564885
B51: Total revenue | G51: =G53+G54 -> 21.17556721 | H51: =H53+H54 -> 21.33894697 | I51: 21.17256839 | J51: 20.95798212 | K51: 20.70111173
B53: Return on equity | F53: $m | G53: ='Total revenue and tariff'!N22 -> 11.04462785 | H53: ='Total revenue and tariff'!O22 -> 11.1298425 | I53: ='Total revenue and tariff'!P22 -> 11.04306374 | J53: ='Total revenue and tariff'!Q22 -> 10.93114109 | K53: ='Total revenue and tariff'!R22 -> 10.79716414
B54: Return on debt | F54: $m | G54: ='Total revenue and tariff'!N23 -> 10.13093937 | H54: ='Total revenue and tariff'!O23 -> 10.20910447 | I54: ='Total revenue and tariff'!P23 -> 10.12950465 | J54: ='Total revenue and tariff'!Q23 -> 10.02684103 | K54: ='Total revenue and tariff'!R23 -> 9.903947582
B56: Return | F56: $m | G56: =SUM(G53:G54) -> 21.17556721 | H56: =SUM(H53:H54) -> 21.33894697 | I56: 21.17256839 | J56: 20.95798212 | K56: 20.70111173
B57: Depreciation | F57: $m | G57: ='Total revenue and tariff'!N24 -> 4.452872418 | H57: ='Total revenue and tariff'!O24 -> 5.548110244 | I57: ='Total revenue and tariff'!P24 -> 6.043310806 | J57: ='Total revenue and tariff'!Q24 -> 6.473243134 | K57: ='Total revenue and tariff'!R24 -> 5.770381119
B58: Operating expenditure | F58: $m | G58: ='Total revenue and tariff'!N25 -> 19.60598764 | H58: ='Total revenue and tariff'!O25 -> 20.02767851 | I58: ='Total revenue and tariff'!P25 -> 20.61939521 | J58: ='Total revenue and tariff'!Q25 -> 21.21868269 | K58: ='Total revenue and tariff'!R25 -> 21.8519782
B59: Cost of tax | F59: $m | G59: ='Total revenue and tariff'!N26 -> 5.261468946 | H59: ='Total revenue and tariff'!O26 -> 5.053356091 | I59: ='Total revenue and tariff'!P26 -> 4.963741785 | J59: ='Total revenue and tariff'!Q26 -> 4.79296152 | K59: ='Total revenue and tariff'!R26 -> 4.803456296
B60: Value of imputation credits | F60: $m | G60: ='Total revenue and tariff'!N27 -> -2.630734473 | H60: ='Total revenue and tariff'!O27 -> -2.526678045 | I60: ='Total revenue and tariff'!P27 -> -2.481870893 | J60: ='Total revenue and tariff'!Q27 -> -2.39648076 | K60: ='Total revenue and tariff'!R27 -> -2.401728148
F62: $m | G62: =SUM(G56:G61) -> 47.86516175 | H62: =SUM(H56:H61) -> 49.44141377 | I62: 50.3171453 | J62: 51.0463887 | K62: 50.72519919
B64: Reference tariff
B66: Toll tariff | F66: $/GJ MDQ | G66: ='Total revenue and tariff'!N66 -> 0.1396463263
B67: Capacity reservation tariff | F67: $/GJ MDQ km | G67: ='Total revenue and tariff'!N67 -> 0.0008457798521
B68: Throughput tariff | F68: $/GJ km | G68: ='Total revenue and tariff'!N68 -> 0.0002312986806
B70: Forecast revenue | F70: $m | G70: ='Total revenue and tariff'!N62 -> 49.88028365 | H70: ='Total revenue and tariff'!O62 -> 49.74399872 | I70: ='Total revenue and tariff'!P62 -> 49.74399872 | J70: ='Total revenue and tariff'!Q62 -> 49.74399872 | K70: ='Total revenue and tariff'!R62 -> 49.88028365
B72: Kalgoorlie tariff (1,378 km, 100% load factor) | F72: $/GJ | G72: =G66+1378*(G67+G68) -> 1.623860544

Sheet Total revenue and tariff
B2: GOLDFIELDS GAS PIPELINE | N2: 2020 | O2: =N2+1 -> 2021 | P2: 2022 | Q2: 2023 | R2: 2024
B3: Access Arrangement revision 2020-2024
B4: Total revenue and reference tariff
B6: Tariff calculation check | K6: Tax payable | L6: Tariff
K7: =M42 -> OK | L7: =M85 -> OK
B10: Capital base | H10: $m | N10: ='Capital base'!O21 -> 380.5212006 | O10: ='Capital base'!P21 -> 383.4571059 | P10: ='Capital base'!Q21 -> 380.4673123 | Q10: ='Capital base'!R21 -> 376.611235 | R10: ='Capital base'!S21 -> 371.9953193
B11: CAPEX | H11: $m | N11: ='AA 2020-2024 inputs'!N123 -> 7.388777793 | O11: ='AA 2020-2024 inputs'!O123 -> 2.558316574 | P11: ='AA 2020-2024 inputs'!P123 -> 2.187233495 | Q11: ='AA 2020-2024 inputs'!Q123 -> 1.857327499 | R11: ='AA 2020-2024 inputs'!R123 -> 3.161628111
B13: Rate of return on equity | N13: ='AA 2020-2024 inputs'!$N$44 -> 0.0645 | O13: ='AA 2020-2024 inputs'!$N$44 -> 0.0645 | P13: ='AA 2020-2024 inputs'!$N$44 -> 0.0645 | Q13: ='AA 2020-2024 inputs'!$N$44 -> 0.0645 | R13: ='AA 2020-2024 inputs'!$N$44 -> 0.0645
B14: Rate of return on debt | N14: ='AA 2020-2024 inputs'!$N$68 -> 0.048407 | O14: ='AA 2020-2024 inputs'!$N$68 -> 0.048407 | P14: ='AA 2020-2024 inputs'!$N$68 -> 0.048407 | Q14: ='AA 2020-2024 inputs'!$N$68 -> 0.048407 | R14: ='AA 2020-2024 inputs'!$N$68 -> 0.048407
B15: Gearing | N15: ='AA 2020-2024 inputs'!$N$70 -> 0.55 | O15: ='AA 2020-2024 inputs'!$N$70 -> 0.55 | P15: ='AA 2020-2024 inputs'!$N$70 -> 0.55 | Q15: ='AA 2020-2024 inputs'!$N$70 -> 0.55 | R15: ='AA 2020-2024 inputs'!$N$70 -> 0.55
B17: Corporate tax rate | N17: ='AA 2020-2024 inputs'!$N$74 -> 0.3 | O17: ='AA 2020-2024 inputs'!$N$74 -> 0.3 | P17: ='AA 2020-2024 inputs'!$N$74 -> 0.3 | Q17: ='AA 2020-2024 inputs'!$N$74 -> 0.3 | R17: ='AA 2020-2024 inputs'!$N$74 -> 0.3
B18: Gamma (value of imputation credits) | N18: ='AA 2020-2024 inputs'!$N$75 -> 0.5 | O18: ='AA 2020-2024 inputs'!$N$75 -> 0.5 | P18: ='AA 2020-2024 inputs'!$N$75 -> 0.5 | Q18: ='AA 2020-2024 inputs'!$N$75 -> 0.5 | R18: ='AA 2020-2024 inputs'!$N$75 -> 0.5
B20: Total revenue
B22: Return on equity | H22: $m | N22: =N10*N13*(1-N15) -> 11.04462785 | O22: =O10*O13*(1-O15) -> 11.1298425 | P22: 11.04306374 | Q22: 10.93114109 | R22: 10.79716414
B23: Return on debt | H23: $m | N23: =N10*N14*N15 -> 10.13093937 | O23: =O10*O14*O15 -> 10.20910447 | P23: 10.12950465 | Q23: 10.02684103 | R23: 9.903947582
B24: Regulatory depreciation | H24: $m | N24: ='Capital base'!O48 -> 4.452872418 | O24: ='Capital base'!P48 -> 5.548110244 | P24: ='Capital base'!Q48 -> 6.043310806 | Q24: ='Capital base'!R48 -> 6.473243134 | R24: ='Capital base'!S48 -> 5.770381119
B25: OPEX | H25: $m | N25: ='AA 2020-2024 inputs'!N37*'AA 2020-2024 inputs'!N135 -> 19.60598764 | O25: ='AA 2020-2024 inputs'!O37*'AA 2020-2024 inputs'!O135 -> 20.02767851 | P25: ='AA 2020-2024 inputs'!P37*'AA 2020-2024 inputs'!P135 -> 20.61939521 | Q25: ='AA 2020-2024 inputs'!Q37*'AA 2020-2024 inputs'!Q135 -> 21.21868269 | R25: ='AA 2020-2024 inputs'!R37*'AA 2020-2024 inputs'!R135 -> 21.8519782
B26: Cost of tax | H26: $m | N26: 5.261468946 | O26: 5.053356091 | P26: 4.963741785 | Q26: 4.79296152 | R26: 4.803456296
B27: Value of imputation credits | H27: $m | N27: =-N18*N26 -> -2.630734473 | O27: =-O18*O26 -> -2.526678045 | P27: =-P18*P26 -> -2.481870893 | Q27: =-Q18*Q26 -> -2.39648076 | R27: =-R18*R26 -> -2.401728148
H29: $m | N29: =SUM(N22:N28) -> 47.86516175 | O29: =SUM(O22:O28) -> 49.44141377 | P29: =SUM(P22:P28) -> 50.3171453 | Q29: =SUM(Q22:Q28) -> 51.0463887 | R29: =SUM(R22:R28) -> 50.72519919
B30: Tax
B32: Tax depreciation | H32: $m | N32: ='Tax asset base_2010-2024'!S72 -> 2.605126818 | O32: ='Tax asset base_2010-2024'!T72 -> 2.662695438 | P32: ='Tax asset base_2010-2024'!U72 -> 2.449292911 | Q32: ='Tax asset base_2010-2024'!V72 -> 2.521936604 | R32: ='Tax asset base_2010-2024'!W72 -> 2.112836882
B33: Return on debt | H33: $m | N33: =N23 -> 10.13093937 | O33: =O23 -> 10.20910447 | P33: 10.12950465 | Q33: 10.02684103 | R33: 9.903947582
B34: OPEX | H34: $m | N34: =N25 -> 19.60598764 | O34: =O25 -> 20.02767851 | P34: 20.61939521 | Q34: 21.21868269 | R34: 21.8519782
B36: Tax expenses | H36: $m | N36: =SUM(N32:N35) -> 32.34205383 | O36: =SUM(O32:O35) -> 32.89947842 | P36: 33.19819277 | Q36: 33.76746032 | R36: 33.86876266
B38: Tax loss brought forward | H38: $m | N38: ='AA 2020-2024 inputs'!N76 -> 0 | O38: =N40 -> 0 | P38: =O40 -> 0 | Q38: =P40 -> 0 | R38: =Q40 -> 0
B39: Taxable income | H39: $m | N39: ='Capacity and revenue'!H148-N36 -> 17.53822982 | O39: ='Capacity and revenue'!I148-O36 -> 16.8445203 | P39: ='Capacity and revenue'!J148-P36 -> 16.54580595 | Q39: ='Capacity and revenue'!K148-Q36 -> 15.9765384 | R39: ='Capacity and revenue'!L148-R36 -> 16.01152098
B40: Tax loss carried forward | H40: $m | N40: =IF(N38+N39<0,N38+N39,0) -> 0 | O40: =IF(O38+O39<0,O38+O39,0) -> 0 | P40: 0 | Q40: 0 | R40: 0
B41: Tax payable | H41: $m | N41: =IF(N40<0,0,N17*(N38+N39)) -> 5.261468945 | O41: =IF(O40<0,0,O17*(O38+O39)) -> 5.05335609 | P41: 4.963741785 | Q41: 4.79296152 | R41: 4.803456295
B42: Tax payable difference (set to zero with "Solve for tax payable") | H42: $m | M42: =IF(ROUND(SUM(N42:R42),8)=0,"OK","RECALCULATE TAX") -> OK | N42: =N26-N41 -> 6.412825826e-10 | O42: =O26-O41 -> 6.395355356e-10 | P42: =P26-P41 -> 6.395355356e-10 | Q42: =Q26-Q41 -> 6.39537312e-10 | R42: =R26-R41 -> 6.412861353e-10
B44: Rate of return check
B46: Repayment of debt | H46: $m | N46: =(N10-O10)*N15 -> -1.614747956 | O46: =(O10-P10)*O15 -> 1.644386518 | P46: 2.120842521 | Q46: 2.538753599 | R46: =R10*R15 -> 204.5974256
B47: Pre-tax cash flow to debt | H47: $m | M47: =-N10*N15 -> -209.2866603 | N47: =N23+N46 -> 8.516191409 | O47: =O23+O46 -> 11.85349099 | P47: 12.25034717 | Q47: 12.56559463 | R47: 214.5013732
B48: Rate of return on debt | K48: =IF(ROUND(L48-M48,9)=0,0,"ERROR") -> 0 | L48: =IRR(M47:R47,0.1) -> 0.048407 | M48: ='AA 2020-2024 inputs'!N68 -> 0.048407
B50: Pre-tax cash flow to equity | H50: $m | N50: =N29-N11-N25-N47 -> 12.3542049 | O50: =O29-O11-O25-O47 -> 15.0019277 | P50: =P29-P11-P25-P47 -> 15.26016942 | Q50: =Q29-Q11-Q25-Q47 -> 15.40478389 | R50: =(R29-R11-R25)+(R10+R11-R24)-R47 -> 180.596786
B51: Post-tax cash flow to equity | H51: $m | N51: =N50-N26 -> 7.092735954 | O51: =O50-O26 -> 9.948571606 | P51: 10.29642764 | Q51: 10.61182237 | R51: 175.7933297
B52: Post-tax cash flow to equity + imputation credits | H52: $m | M52: =-N10*(1-N15) -> -171.2345403 | N52: 9.723470427 | O52: 12.47524965 | P52: 12.77829853 | Q52: 13.00830313 | R52: 178.1950578
B53: Rate of return on equity | K53: =IF(ROUND(L53-M53,9)=0,0,"ERROR") -> 0 | L53: =IRR(M52:R52,0.1) -> 0.0645 | M53: ='AA 2020-2024 inputs'!N44 -> 0.0645
B56: Forecast revenue from reference services
B58: Toll charge | H58: $m | N58: ='Capacity and revenue'!H144 -> 5.636472052 | O58: ='Capacity and revenue'!I144 -> 5.621071855 | P58: ='Capacity and revenue'!J144 -> 5.621071855 | Q58: ='Capacity and revenue'!K144 -> 5.621071855 | R58: ='Capacity and revenue'!L144 -> 5.636472052
B59: Capacity reservation charge | H59: $m | N59: ='Capacity and revenue'!H145 -> 36.01356479 | O59: ='Capacity and revenue'!I145 -> 35.91516707 | P59: ='Capacity and revenue'!J145 -> 35.91516707 | Q59: ='Capacity and revenue'!K145 -> 35.91516707 | R59: ='Capacity and revenue'!L145 -> 36.01356479
B60: Throughput charge | H60: $m | N60: ='Capacity and revenue'!H146 -> 8.230246802 | O60: ='Capacity and revenue'!I146 -> 8.207759788 | P60: ='Capacity and revenue'!J146 -> 8.207759788 | Q60: ='Capacity and revenue'!K146 -> 8.207759788 | R60: ='Capacity and revenue'!L146 -> 8.230246802
H62: $m | N62: =SUM(N58:N61) -> 49.88028365 | O62: =SUM(O58:O61) -> 49.74399872 | P62: =SUM(P58:P61) -> 49.74399872 | Q62: =SUM(Q58:Q61) -> 49.74399872 | R62: =SUM(R58:R61) -> 49.88028365
B64: Reference tariff setting 2020 - 2024
N65: 3.273390608e+146
B66: Toll charge | H66: $/GJ | N66: 0.1396463263 | O66: =N66 -> 0.1396463263 | P66: 0.1396463263 | Q66: 0.1396463263 | R66: 0.1396463263
B67: Capacity reservation charge | H67: $/GJ km | N67: 0.0008457798521 | O67: 0.0008457798521 | P67: 0.0008457798521 | Q67: 0.0008457798521 | R67: 0.0008457798521
B68: Throughput charge | H68: $/GJ km | N68: 0.0002312986806 | O68: 0.0002312986806 | P68: 0.0002312986806 | Q68: 0.0002312986806 | R68: 0.0002312986806
B70: Nominal vanilla WACC | N70: =(1-N15)*N13+N15*N14 -> 0.05564885
B71: PV(Total revenue allocated to reference service) | H71: $m | N71: =NPV(N70,N29:R29) -> 212.2766545
B73: Allocation of PV(Total revenue) to toll charge | H73: $m | N73: ='AA 2020-2024 inputs'!G10*N71 -> 23.98726196
B74: PV(Revenue from toll charge) | H74: $m | N74: =NPV('Total revenue and tariff'!N70,N58:R58) -> 23.98726196
B75: Difference | H75: $m | N75: =N73-N74 -> 0
B77: Allocation of PV(cost) to reservation charge | H77: $m | N77: ='AA 2020-2024 inputs'!G11*N71 -> 153.2637446
B78: PV(revenue from capacity reservation charge) | H78: $m | N78: =NPV('Total revenue and tariff'!N70,N59:R59) -> 153.2637446
B79: Difference | H79: $m | N79: =N77-N78 -> 0
B81: Allocation of PV(cost) to throughput charge | H81: $m | N81: ='AA 2020-2024 inputs'!G12*N71 -> 35.02564799
B82: PV(revenue from throughput charge) | H82: $m | N82: =NPV('Total revenue and tariff'!N70,N60:R60) -> 35.02564799
B83: Difference | H83: $m | N83: =N81-N82 -> 0
B85: Tariff calculation check (set to zero with "Reset reference tariff ") | M85: =IF(ROUND('Total revenue and tariff'!N85,6)=0,"OK","RESET") -> OK | N85: =N75+N79+N83 -> 0

Sheet AA 2020-2024 inputs
B2: GOLDFIELDS GAS PIPELINE
B3: Access Arrangement revision 2020-2024
B4: Inputs
B8: Allocation of total revenue to reference tariff
B10: Toll charge | G10: 0.113
B11: Capacity reservation charge | G11: 0.722
B12: Throughput charge | G12: =1-G10-G11 -> 0.165
B15: Asset groups and asset lives | G15: For regulation | J15: For tax
B17: Pipeline and laterals | G17: 70 | H17: years | J17: 20 | K17: years
B18: Main line valve and scraper stations | G18: 50 | H18: years | J18: 20 | K18: years
B19: Compressor stations | G19: 30 | H19: years | J19: 20 | K19: years
B20: Receipt and delivery point facilities | G20: 30 | H20: years | J20: 20 | K20: years
B21: SCADA, communications and electronic equipment | G21: 10 | H21: years | J21: 10 | K21: years
B22: Cathodic protection | G22: 15 | H22: years | J22: 10 | K22: years
B23: Maintenance bases and depots | G23: 50 | H23: years | J23: 20 | K23: years
B24: Other depreciable assets | G24: 10 | H24: years | J24: 10 | K24: years
B25: Non-depreciable assets
H28: 2014 | I28: 2015 | J28: 2016 | K28: 2017 | L28: 2018 | M28: 2019 | N28: 2020 | O28: 2021 | P28: 2022 | Q28: 2023 | R28: 2024
B30: Inflation
B32: CPI December quarter (All groups, Australia) | H32: 106.6 | I32: 108.4 | J32: 110 | K32: 112.1
B33: Inflation (as measured by CPI change) | I33: =I32/H32-1 -> 0.01688555347 | J33: =J32/I32-1 -> 0.0147601476 | K33: =K32/J32-1 -> 0.01909090909
B35: Expected (2016) | I35: 0.0146 | J35: 0.0146 | K35: 0.0146 | L35: 0.0146 | M35: 0.0146
B36: Expected (2018) | L36: 0.0187 | M36: 0.0187 | N36: 0.0187 | O36: 0.0187 | P36: 0.0187 | Q36: 0.0187 | R36: 0.0187
B37: Cumulative inflation factor (base Sep-2018) | M37: =(1+M36) -> 1.0187 | N37: =M37*(1+N36) -> 1.03774969 | O37: =N37*(1+O36) -> 1.057155609 | P37: 1.076924419 | Q37: 1.097062906 | R37: 1.117577982
B39: Rate of return
B41: Nominal risk free rate | N41: 0.0225
B42: Market risk premium | N42: 0.06
B43: Equity beta | N43: 0.7
B44: Return on equity | N44: =N41+N43*N42 -> 0.0645
B46: Debt risk premium
C47: 2020 | N47: 0.01619
C48: 2019 | M48: 0.01619 | N48: =M48 -> 0.01619
C49: =C48-1 -> 2018 | L49: 0.01862 | M49: =L49 -> 0.01862 | N49: =M49 -> 0.01862
C50: 2017 | K50: 0.02553 | L50: =K50 -> 0.02553 | M50: =L50 -> 0.02553 | N50: 0.02553
C51: 2016 | J51: 0.02582 | K51: =J51 -> 0.02582 | L51: =K51 -> 0.02582 | M51: 0.02582 | N51: 0.02582
C52: 2015 | I52: 0.0207 | J52: =I52 -> 0.0207 | K52: =J52 -> 0.0207 | L52: 0.0207 | M52: 0.0207 | N52: 0.0207
C53: 2014 | I53: 0.02251 | J53: =I53 -> 0.02251 | K53: 0.02251 | L53: 0.02251 | M53: 0.02251 | N53: 0.02251
C54: 2013 | I54: 0.03043 | J54: 0.03043 | K54: 0.03043 | L54: 0.03043 | M54: 0.03043 | N54: 0.03043
C55: 2012 | I55: 0.03168 | J55: 0.03168 | K55: 0.03168 | L55: 0.03168 | M55: 0.03168 | N55: 0.03168
C56: 2011 | I56: 0.02379 | J56: 0.02379 | K56: 0.02379 | L56: 0.02379 | M56: 0.02379 | N56: 0.02379
C57: 2010 | I57: 0.02125 | J57: 0.02125 | K57: 0.02125 | L57: 0.02125 | M57: 0.02125
C58: 2009 | I58: 0.04624 | J58: 0.04624 | K58: 0.04624 | L58: 0.04624
C59: 2008 | I59: 0.03756 | J59: 0.03756 | K59: 0.03756
C60: 2007 | I60: 0.0113 | J60: 0.0113
C61: 2006 | I61: 0.00713
B63: Trailing average debt risk premium | I63: =ROUND(AVERAGE(I52:I61),5) -> 0.02526 | J63: =ROUND(AVERAGE(J51:J60),5) -> 0.02713 | K63: =ROUND(AVERAGE(K50:K59),5) -> 0.02855 | L63: =ROUND(AVERAGE(L49:L58),5) -> 0.02666 | M63: =ROUND(AVERAGE(M48:M57),5) -> 0.02365 | N63: =ROUND(AVERAGE(N47:N56),5) -> 0.02315
B64: 5 years swap rate | I64: 0.02116 | J64: =I64 -> 0.02116 | K64: =J64 -> 0.02116 | L64: 0.02116 | M64: 0.02116 | N64: 0.023117
B65: Debt raising costs | I65: 0.00125 | J65: =I65 -> 0.00125 | K65: 0.00125 | L65: 0.00125 | M65: 0.00125 | N65: 0.001
B66: Hedging costs | I66: 0.00114 | J66: =I66 -> 0.00114 | K66: 0.00114 | L66: 0.00114 | M66: 0.00114 | N66: 0.00114
B68: Return on debt | I68: =I63+I64+I65+I66 -> 0.04881 | J68: 0.05068 | K68: 0.0521 | L68: 0.05021 | M68: 0.0472 | N68: 0.048407
B70: Gearing | N70: 0.55
B72: Tax
B74: Corporate tax rate | N74: 0.3
B75: Gamma (value of imputation credits) | N75: 0.5
B76: Tax loss brought forward to 1 January 2020 | N76: 0
H79: 2014 | I79: 2015 | J79: 2016 | K79: 2017 | L79: 2018 | M79: 2019 | N79: 2020 | O79: 2021 | P79: 2022 | Q79: 2023 | R79: 2024
B81: CAPEX: 2015-2019: ERA approved forecast (July 2016) (nominal)
B83: =B17 -> Pipeline and laterals | G83: $m | I83: 2.597570147 | J83: 1.280969688 | K83: 0.1520825613 | L83: 0 | M83: 0.08690432076
B84: Main line valve and scraper stations | G84: $m | I84: 0 | J84: 0.5214259246 | K84: 0 | L84: 0 | M84: 0
B85: Compressor stations | G85: $m | I85: 0.8422944527 | J85: 0.7336205996 | K85: 0 | L85: 0.183965584 | M85: 0.2647866023
B86: Receipt and delivery point facilities | G86: $m | I86: 0.2656013303 | J86: 0 | K86: 0.4236585637 | L86: 0.3041651227 | M86: 0
B87: SCADA, communications and electronic equipment | G87: $m | I87: 0.2162488574 | J87: 0.1498049491 | K87: 0.09167491802 | L87: 0.02116126064 | M87: 0.02267244953
B88: Cathodic protection | G88: $m | I88: 0.1036028872 | J88: 0.03668941496 | K88: 0.03473770257 | L88: 0.02940885082 | M88: 0.03027778443
B89: Maintenance bases and depots | G89: $m | I89: 0.1645663571 | J89: 0 | K89: 0 | L89: 0 | M89: 0
B90: Other depreciable assets | G90: $m | I90: 0.457063042 | J90: 0.06789924033 | K90: 0.03420336804 | L90: 0.02443097717 | M90: 0.02443097717
B91: Non-depreciable assets | G91: $m | I91: 0 | J91: 0 | K91: 0 | L91: 0 | M91: 0
G93: $m | I93: =SUM(I83:I92) -> 4.646947074 | J93: =SUM(J83:J92) -> 2.790409817 | K93: =SUM(K83:K92) -> 0.7363571137 | L93: =SUM(L83:L92) -> 0.5631317953 | M93: =SUM(M83:M92) -> 0.4290721342
B95: CAPEX 2020-2024: forecast (real, Dec-2018)
B97: =B17 -> Pipeline and laterals | G97: $m | N97: 0.385 | O97: 0 | P97: 0 | Q97: 0 | R97: 0.2
B98: Main line valve and scraper stations | G98: $m | N98: 0 | O98: 0 | P98: 0 | Q98: 0 | R98: 0
B99: Compressor stations | G99: $m | N99: 1.7 | O99: 0.325 | P99: 1.1 | Q99: 0.21 | R99: 1.815
B100: Receipt and delivery point facilities | G100: $m | N100: 0 | O100: 0 | P100: 0 | Q100: 0 | R100: 0
B101: SCADA, communications and electronic equipment | G101: $m | N101: 0.954 | O101: 1.599 | P101: 0.606 | Q101: 1.043 | R101: 0.759
B102: Cathodic protection | G102: $m | N102: 0.231 | O102: 0.176 | P102: 0.325 | Q102: 0.44 | R102: 0.055
B103: Maintenance bases and depots | G103: $m | N103: 3.85 | O103: 0.32 | P103: 0 | Q103: 0 | R103: 0
B104: Other depreciable assets | G104: $m | N104: 0 | O104: 0 | P104: 0 | Q104: 0 | R104: 0
B105: Non-depreciable assets | G105: $m | N105: 0 | O105: 0 | P105: 0 | Q105: 0 | R105: 0
G107: $m | N107: =SUM(N97:N106) -> 7.12 | O107: =SUM(O97:O106) -> 2.42 | P107: 2.031 | Q107: 1.693 | R107: 2.829
B109: CAPEX: 2014-2024: actual and forecast (nominal)
B110: (2014 CAPEX from ERA tariff model, July 2016)
B112: Covered Pipeline
B113: =B17 -> Pipeline and laterals | G113: $m | H113: 0 | I113: 1.766083056 | J113: 0.4919352037 | K113: 0.2760397457 | L113: 0.06515683739 | M113: 0 | N113: =N$37*N97 -> 0.3995336306 | O113: =O$37*O97 -> 0 | P113: 0 | Q113: 0 | R113: 0.2235155964
B114: Main line valve and scraper stations | G114: $m | H114: 0 | I114: 0.1095663195 | J114: 0.001499904716 | K114: 0 | L114: 0 | M114: 0 | N114: =N$37*N98 -> 0 | O114: 0 | P114: 0 | Q114: 0 | R114: 0
B115: Compressor stations | G115: $m | H115: 0.7031027752 | I115: -0.01498228958 | J115: 0 | K115: 0.9655136608 | L115: 0.5212454649 | M115: 1.02392921 | N115: =N$37*N99 -> 1.764174473 | O115: 0.343575573 | P115: 1.184616861 | Q115: 0.2303832102 | R115: 2.028404037
B116: Receipt and delivery point facilities | G116: $m | H116: 0.1877352741 | I116: 0.4116584704 | J116: -0.3952989575 | K116: 0.001284771454 | L116: 0.1877024615 | M116: 0.1257888482 | N116: =N$37*N100 -> 0 | O116: 0 | P116: 0 | Q116: 0 | R116: 0
B117: SCADA, communications and electronic equipment | G117: $m | H117: 1.166620315 | I117: 0.970267486 | J117: 0.9895922112 | K117: 0.06503066834 | L117: 0.1102028193 | M117: 0 | N117: =N$37*N101 -> 0.9900132043 | O117: 1.690391819 | P117: 0.652616198 | Q117: 1.144236611 | R117: 0.8482416884
B118: Cathodic protection | G118: $m | H118: 0 | I118: 0 | J118: 0 | K118: 0 | L118: 0 | M118: 0.07516674985 | N118: =N$37*N102 -> 0.2397201784 | O118: 0.1860593872 | P118: 0.3500004362 | Q118: 0.4827076785 | R118: 0.06146678901
B119: Maintenance bases and depots | G119: $m | H119: 0.01781308687 | I119: 0.0248213406 | J119: 0 | K119: 0 | L119: 0.01909538825 | M119: 0.3127567564 | N119: =N$37*N103 -> 3.995336306 | O119: 0.3382897949 | P119: 0 | Q119: 0 | R119: 0
B120: Other depreciable assets | G120: $m | H120: 0.06094068551 | I120: 0.06686861092 | J120: 0.3211521008 | K120: 0.1242070104 | L120: 0.1220738401 | M120: 0.2239006025 | N120: =N$37*N104 -> 0 | O120: 0 | P120: 0 | Q120: 0 | R120: 0
B121: Non-depreciable assets | G121: $m | H121: 0 | I121: 0 | J121: 0 | K121: 0 | L121: 0 | M121: 0 | N121: =N$37*N105 -> 0 | O121: 0 | P121: 0 | Q121: 0 | R121: 0
G123: $m | H123: =SUM(H113:H122) -> 2.136212137 | I123: =SUM(I113:I122) -> 3.334282993 | J123: 1.408880463 | K123: 1.432075857 | L123: 1.025476811 | M123: 1.761542167 | N123: =SUM(N113:N122) -> 7.388777793 | O123: 2.558316574 | P123: 2.187233495 | Q123: 1.857327499 | R123: 3.161628111
B127: OPEX: 2020-2029: current forecast (real, Dec-2018)
B129: Pipeline operations | G129: $m | N129: 11.74229201 | O129: 11.79188035 | P129: 11.9934292 | Q129: 12.43597121 | R129: 12.54225033
B130: Major expenditure jobs | G130: $m | N130: 0.56 | O130: 0.68 | P130: 0.67 | Q130: 0.4 | R130: 0.5
B131: Commercial operations | N131: 0.5905134973 | O131: 0.5930072681 | P131: 0.6031430506 | Q131: 0.6253982483 | R131: 0.6307429676
B132: Regulatory | G132: $m | N132: 1.211 | O132: 1.091 | P132: 1.091 | Q132: 1.091 | R132: 1.091
B133: Corporate costs | G133: $m | N133: 4.788985149 | O133: 4.788985149 | P133: 4.788985149 | Q133: 4.788985149 | R133: 4.788985149
G135: $m | N135: =SUM(N129:N134) -> 18.89279065 | O135: =SUM(O129:O134) -> 18.94487277 | P135: 19.1465574 | Q135: 19.34135461 | R135: 19.55297845
H138: 2000 | I138: 2000 | J138: 2000 | K138: 2000 | L138: 2000 | M138: =I138+1 -> 2001 | N138: =M138 -> 2001 | O138: =N138 -> 2001 | P138: =O138 -> 2001 | Q138: =M138+1 -> 2002 | R138: =Q138 -> 2002 | S138: =R138 -> 2002 | T138: =S138 -> 2002 | U138: =Q138+1 -> 2003 | V138: =U138 -> 2003 | W138: =V138 -> 2003 | X138: =W138 -> 2003 | Y138: =U138+1 -> 2004 | Z138: =Y138 -> 2004 | AA138: =Z138 -> 2004 | AB138: =AA138 -> 2004 | AC138: =Y138+1 -> 2005 | AD138: =AC138 -> 2005 | AE138: =AD138 -> 2005 | AF138: =AE138 -> 2005 | AG138: =AC138+1 -> 2006 | AH138: =AG138 -> 2006 | AI138: =AH138 -> 2006 | AJ138: =AI138 -> 2006 | AK138: =AG138+1 -> 2007 | AL138: =AK138 -> 2007 | AM138: =AL138 -> 2007 | AN138: =AM138 -> 2007 | AO138: =AK138+1 -> 2008 | AP138: =AO138 -> 2008 | AQ138: =AP138 -> 2008 | AR138: =AQ138 -> 2008 | AS138: =AO138+1 -> 2009 | AT138: =AS138 -> 2009 | AU138: =AT138 -> 2009 | AV138: =AU138 -> 2009 | AW138: 2010 | AX138: 2011 | AY138: 2012 | AZ138: 2013
H139: Initial | I139: Q1 | J139: Q2 | K139: Q3 | L139: Q4 | M139: Q1 | N139: =J139 -> Q2 | O139: Q3 | P139: Q4 | Q139: Q1 | R139: Q2 | S139: Q3 | T139: Q4 | U139: Q1 | V139: Q2 | W139: Q3 | X139: Q4 | Y139: Q1 | Z139: Q2 | AA139: Q3 | AB139: Q4 | AC139: Q1 | AD139: Q2 | AE139: Q3 | AF139: Q4 | AG139: Q1 | AH139: Q2 | AI139: Q3 | AJ139: Q4 | AK139: Q1 | AL139: Q2 | AM139: Q3 | AN139: Q4 | AO139: Q1 | AP139: Q2 | AQ139: Q3 | AR139: Q4 | AS139: Q1 | AT139: Q2 | AU139: Q3 | AV139: Q4 | AW139: Year | AX139: Year | AY139: Year | AZ139: Year
B141: Asset values at 1 January 2015
B142: Initial capital base and additions 2000-2014
B143: (From ERA tariff model, July 2016)
B145: =B17 -> Pipeline and laterals | G145: $m | H145: 336.6426205 | I145: 0 | J145: 0 | K145: 0 | L145: 0 | M145: 0 | N145: 0 | O145: 0 | P145: 0 | Q145: 0 | R145: 0 | S145: 0 | T145: 0 | U145: 0 | V145: 0 | W145: 0 | X145: 0 | Y145: 0 | Z145: 0 | AA145: 0 | AB145: 0 | AC145: 0.2780501396 | AD145: 0.0002354050382 | AE145: 0.0004216188593 | AF145: 0 | AG145: 0 | AH145: 0 | AI145: 0 | AJ145: 0 | AK145: 0 | AL145: 0.2650127407 | AM145: 0 | AN145: 0 | AO145: 0 | AP145: 0.00329188635 | AQ145: 0.009293136545 | AR145: 0.05636514319 | AS145: 0.001340593646 | AT145: 0.001320718705 | AU145: 0.00794903491 | AV145: 0.0006642628571 | AW145: -0.082937 | AX145: 0 | AY145: 0 | AZ145: 0.025633
B146: Main line valve and scraper stations | G146: $m | H146: 6.084140828 | I146: 0 | J146: 0 | K146: 0 | L146: 0 | M146: 0 | N146: 0 | O146: 0 | P146: 0 | Q146: 0 | R146: 0 | S146: 0 | T146: 0 | U146: 0 | V146: 0 | W146: 0 | X146: 0 | Y146: 0 | Z146: 0 | AA146: 0 | AB146: 0 | AC146: 0 | AD146: 0 | AE146: 0 | AF146: 0 | AG146: 0 | AH146: 0 | AI146: 0 | AJ146: 0 | AK146: 0 | AL146: 0 | AM146: 0 | AN146: 0 | AO146: 0 | AP146: 0 | AQ146: 0 | AR146: 0 | AS146: 0.0243617499 | AT146: 0.001029271515 | AU146: 0 | AV146: 0 | AW146: -0.00528 | AX146: 0 | AY146: 0 | AZ146: 0
B147: Compressor stations | G147: $m | H147: 16.12130414 | I147: 0.3693589688 | J147: 0.3754140339 | K147: 0.3814690989 | L147: 0.387524164 | M147: 1.092367327 | N147: 1.109172978 | O147: 1.12597863 | P147: 1.142784281 | Q147: 0.09335887881 | R147: 0.09471190604 | S147: 0.09606493327 | T147: 0.0974179605 | U147: 1.490608165 | V147: 1.511027455 | W147: 1.531446745 | X147: 1.551866035 | Y147: 0.65335715 | Z147: 0.6618423077 | AA147: 0.6703274655 | AB147: 0.6788126233 | AC147: 0.1761697578 | AD147: 0.281632322 | AE147: 0.04134381576 | AF147: 0.01868066288 | AG147: 0 | AH147: 0.1890490533 | AI147: 0.1939848643 | AJ147: 0.09380747232 | AK147: 0.007598204037 | AL147: 0.08708740484 | AM147: 0 | AN147: 0 | AO147: 0 | AP147: 0.1913226444 | AQ147: 0.03384294043 | AR147: 0.1065692028 | AS147: 0.2354548734 | AT147: 0.006519657627 | AU147: 0.00162013916 | AV147: 0 | AW147: -0.08176275452 | AX147: -0.2998727259 | AY147: 0.09662871494 | AZ147: 0.4499560939
B148: Receipt and delivery point facilities | G148: $m | H148: 0.5949497046 | I148: 0.0203633555 | J148: 0.020697181 | K148: 0.0210310065 | L148: 0.021364832 | M148: 0.01315496677 | N148: 0.01335735087 | O148: 0.01355973498 | P148: 0.01376211908 | Q148: 0.008498918312 | R148: 0.008622091042 | S148: 0.008745263771 | T148: 0.0088684365 | U148: 0.01057121669 | V148: 0.01071602788 | W148: 0.01086083906 | X148: 0.01100565025 | Y148: 0.005418714583 | Z148: 0.0054890875 | AA148: 0.005559460417 | AB148: 0.005629833333 | AC148: 0 | AD148: 0 | AE148: 0 | AF148: 0.01417796423 | AG148: 0.01107544333 | AH148: 0.09942367509 | AI148: 0.09627052486 | AJ148: 0.1024723007 | AK148: 0.3233992183 | AL148: 0.06916158818 | AM148: 0.0001054862162 | AN148: 0 | AO148: 0 | AP148: 0 | AQ148: 0 | AR148: 0.002664115862 | AS148: 0 | AT148: 0 | AU148: 0 | AV148: 0 | AW148: -0.01169435103 | AX148: -0.005734802252 | AY148: -0.004025294523 | AZ148: 0.1334834474
B149: SCADA, communications and electronic equipment | G149: $m | H149: 0 | I149: 0 | J149: 0 | K149: 0 | L149: 0 | M149: 0 | N149: 0 | O149: 0 | P149: 0 | Q149: 0 | R149: 0 | S149: 0 | T149: 0 | U149: 0 | V149: 0 | W149: 0 | X149: 0 | Y149: 0 | Z149: 0 | AA149: 0 | AB149: 0 | AC149: 0.0009679350092 | AD149: 0.0001022845143 | AE149: 0 | AF149: 0 | AG149: 0 | AH149: 0.03288266692 | AI149: 0.03147357457 | AJ149: 0 | AK149: 0.001070918276 | AL149: 0.009620571111 | AM149: 0 | AN149: 0.00910704625 | AO149: 0.00286325 | AP149: 0.02359199706 | AQ149: 0.1300187529 | AR149: 0.1498280933 | AS149: 0.1137477214 | AT149: 0.2197007289 | AU149: 0.002082765385 | AV149: 0 | AW149: -0.1113205364 | AX149: -0.3208440374 | AY149: 0.09851961607 | AZ149: 0.3158944411
B150: Cathodic protection | G150: $m | H150: 0 | I150: 0 | J150: 0 | K150: 0 | L150: 0 | M150: 0 | N150: 0 | O150: 0 | P150: 0 | Q150: 0 | R150: 0 | S150: 0 | T150: 0 | U150: 0.0008552375 | V150: 0.000921025 | W150: 0.0009868125 | X150: 0.0010526 | Y150: 0 | Z150: 0 | AA150: 0 | AB150: 0 | AC150: 0.0001521219512 | AD150: 0 | AE150: 0 | AF150: 0 | AG150: 0 | AH150: 0 | AI150: 0.004739361702 | AJ150: 0 | AK150: 0 | AL150: 0 | AM150: 0 | AN150: 0 | AO150: 0 | AP150: 0.04135783296 | AQ150: 0.0011935 | AR150: 0.02967633643 | AS150: 0.07042620895 | AT150: 0.4847506755 | AU150: 0.1066875936 | AV150: 0.3924552133 | AW150: -0.352381496 | AX150: -0.2714598951 | AY150: -0.004830353427 | AZ150: -0.00253986314
B151: Maintenance bases and depots | G151: $m | H151: 5.122819224 | I151: 0.00128517975 | J151: 0.0012942945 | K151: 0.00130340925 | L151: 0.001312524 | M151: 0.000773607625 | N151: 0.00077894285 | O151: 0.000784278075 | P151: 0.0007896133 | Q151: 0.00040975 | R151: 0.0004125 | S151: 0.00041525 | T151: 0.000418 | U151: 0 | V151: 0 | W151: 0 | X151: 0 | Y151: 0 | Z151: 0 | AA151: 0 | AB151: 0 | AC151: 0 | AD151: 0 | AE151: 0 | AF151: 0.002334326087 | AG151: 0 | AH151: 0.03109135376 | AI151: 0 | AJ151: 0 | AK151: 0 | AL151: 0 | AM151: 0.009369958429 | AN151: 0.001487979167 | AO151: 0 | AP151: 0.05496152351 | AQ151: 0.01098737051 | AR151: 0.06395385633 | AS151: 0 | AT151: 0 | AU151: 0 | AV151: 0.016929 | AW151: 0.06653139575 | AX151: -0.00137635254 | AY151: -0.0009660706854 | AZ151: 1.055492027
B152: Other depreciable assets | G152: $m | H152: 0 | I152: 0 | J152: 0 | K152: 0 | L152: 0 | M152: 0 | N152: 0 | O152: 0 | P152: 0 | Q152: 0 | R152: 0 | S152: 0 | T152: 0 | U152: 0 | V152: 0 | W152: 0 | X152: 0 | Y152: 0 | Z152: 0 | AA152: 0 | AB152: 0 | AC152: 0 | AD152: 0.006514091256 | AE152: 0 | AF152: 0 | AG152: 0.01749503821 | AH152: 0.005995290376 | AI152: 0.0004583009483 | AJ152: 0.0005528579506 | AK152: 0.01012369132 | AL152: 0.04264340186 | AM152: 0.05587114962 | AN152: 0 | AO152: 0 | AP152: 0.03152327706 | AQ152: 0.002549305714 | AR152: 0 | AS152: 0.104610713 | AT152: 0.04850786842 | AU152: 0.04131992359 | AV152: 0.061651725 | AW152: -1.326535212 | AX152: -0.6746878002 | AY152: -0.1367455003 | AZ152: 0.4118319322
B153: Non-depreciable assets | G153: $m | H153: 2.581675929 | I153: 0.366693219 | J153: 0 | K153: -0.01981922987 | L153: 0 | M153: 0.7752762321 | N153: -0.0283387489 | O153: -0.02772268914 | P153: 0 | Q153: -0.6273935395 | R153: -0.02082825464 | S153: -0.0203754665 | T153: 0 | U153: 1.459328769 | V153: -0.03641204637 | W153: -0.03562048015 | X153: 0 | Y153: -0.7080215592 | Z153: 0 | AA153: -0.0275374145 | AB153: 0 | AC153: -0.06990471975 | AD153: -0.02676923077 | AE153: -0.02618729097 | AF153: 0 | AG153: 0.3860815217 | AH153: -0.03042994505 | AI153: -0.02976842451 | AJ153: 0 | AK153: 0.06457336957 | AL153: -0.03047802198 | AM153: -0.02981545628 | AN153: 0 | AO153: -0.1822037745 | AP153: 0 | AQ153: -0.02751089943 | AR153: 0 | AS153: 0.2547581522 | AT153: -0.03031043956 | AU153: -0.02965151696 | AV153: 0 | AW153: 0 | AX153: 0 | AY153: 0 | AZ153: 0
G155: $m | H155: =SUM(H145:H154) -> 367.1475103 | I155: =SUM(I145:I154) -> 0.7577007231 | J155: =SUM(J145:J154) -> 0.3974055094 | K155: 0.3839842848 | L155: 0.41020152 | M155: 1.881572134 | N155: 1.094970523 | O155: 1.112599953 | P155: 1.157336013 | Q155: -0.5251259923 | R155: 0.08291824244 | S155: 0.08484998054 | T155: =SUM(T145:T154) -> 0.106704397 | U155: 2.961363388 | V155: 1.486252462 | W155: 1.507673917 | X155: 1.563924285 | Y155: -0.04924569469 | Z155: 0.6673313952 | AA155: 0.6483495115 | AB155: 0.6844424567 | AC155: 0.3854352347 | AD155: 0.261714872 | AE155: 0.01557814364 | AF155: 0.0351929532 | AG155: 0.4146520033 | AH155: 0.3280120944 | AI155: 0.2971582018 | AJ155: 0.196832631 | AK155: 0.4067654015 | AL155: 0.4430476848 | AM155: 0.03553113799 | AN155: 0.01059502542 | AO155: -0.1793405245 | AP155: 0.3460491613 | AQ155: 0.1603741066 | AR155: 0.4090567479 | AS155: 0.8047000124 | AT155: 0.7315184812 | AU155: 0.1300079396 | AV155: 0.4717002012 | AW155: -1.905379954 | AX155: -1.573975613 | AY155: 0.04858111203 | AZ155: 2.389751079

Sheet Capacity and revenue
B2: GOLDFIELDS GAS PIPELINE
B3: Access Arrangement revision 2020-2024 | H3: 2020 | I3: 2021 | J3: 2022 | K3: 2023 | L3: 2024
B4: Capacity, throughput and revenue forecasts | H4: 366 | I4: 365 | J4: 365 | K4: 365 | L4: 366
B9: Goldfields Gas Pipeline
B10: Contracted capacity
G12: TJ/d
G13: TJ/d
G14: TJ/d
G15: TJ/d
G16: TJ/d | H16: Commercially sensitive information pertaining
G17: TJ/d | H17: to individual users of GGP
G18: TJ/d
G19: TJ/d
G20: TJ/d
G21: TJ/d
G22: TJ/d
G23: TJ/d
G25: TJ/d
G26: TJ/d | H26: Commercially sensitive information pertaining
G27: TJ/d | H27: to individual users of GGP
G28: TJ/d
G29: TJ/d
G31: TJ/d | H31: 110.28 | I31: 110.28 | J31: 110.28 | K31: 110.28 | L31: 110.28
B34: Goldfields Gas Pipeline
B35: Load factors
H41: Commercially sensitive information pertaining
H42: to individual users of GGP
H51: Commercially sensitive information pertaining
H52: to individual users of GGP
B57: Goldfields Gas Pipeline
B58: Throughput
G60: TJ/d
G61: TJ/d
G62: TJ/d
G63: TJ/d
G64: TJ/d | H64: Commercially sensitive information pertaining
G65: TJ/d | H65: to individual users of GGP
G66: TJ/d
G67: TJ/d
G68: TJ/d
G69: TJ/d
G70: TJ/d
G71: TJ/d
G73: TJ/d
G74: TJ/d | H74: Commercially sensitive information pertaining
G75: TJ/d | H75: to individual users of GGP
G76: TJ/d
G77: TJ/d
G79: TJ/d | H79: 90.46028058 | I79: 90.46028058 | J79: 90.46028058 | K79: 90.46028058 | L79: 90.46028058
B82: Goldfields Gas Pipeline
B83: Contracted capacity.distance | F83: Distance
F84: (km)
G85: PJ km/d
G86: PJ km/d
G87: PJ km/d
G88: PJ km/d
G89: PJ km/d | H89: Commercially sensitive information pertaining
G90: PJ km/d | H90: to individual users of GGP
G91: PJ km/d
G92: PJ km/d
G93: PJ km/d
G94: PJ km/d
G95: PJ km/d
G96: PJ km/d
G98: PJ km/d
G99: PJ km/d | H99: Commercially sensitive information pertaining
G100: PJ km/d | H100: to individual users of GGP
G101: PJ km/d
G102: PJ km/d
G104: PJ km/d | H104: 116.3396335 | I104: 116.3396335 | J104: 116.3396335 | K104: 116.3396335 | L104: 116.3396335
B107: Goldfields Gas Pipeline
B108: Throughput.distance
G110: PJ km/d
G111: PJ km/d
G112: PJ km/d
G113: PJ km/d
G114: PJ km/d | H114: Commercially sensitive information pertaining
G115: PJ km/d | H115: to individual users of GGP
G116: PJ km/d
G117: PJ km/d
G118: PJ km/d
G119: PJ km/d
G120: PJ km/d
G121: PJ km/d
G123: PJ km/d
G124: PJ km/d | H124: Commercially sensitive information pertaining
G125: PJ km/d | H125: to individual users of GGP
G126: PJ km/d
G127: PJ km/d
G129: PJ km/d | H129: 97.22067183 | I129: 97.22067183 | J129: 97.22067183 | K129: 97.22067183 | L129: 97.22067183
B133: Goldfields Gas Pipeline
B135: Revenue at reference tariff
B137: Reference tariff
B138: Toll charge | G138: $/GJ | H138: ='Total revenue and tariff'!N66 -> 0.1396463263 | I138: =H138 -> 0.1396463263 | J138: =I138 -> 0.1396463263 | K138: =J138 -> 0.1396463263 | L138: =K138 -> 0.1396463263
B139: Capacity reservation charge | G139: $/GJ km | H139: ='Total revenue and tariff'!N67 -> 0.0008457798521 | I139: =H139 -> 0.0008457798521 | J139: 0.0008457798521 | K139: 0.0008457798521 | L139: 0.0008457798521
B140: Throughput charge | G140: $/GJ km | H140: ='Total revenue and tariff'!N68 -> 0.0002312986806 | I140: 0.0002312986806 | J140: 0.0002312986806 | K140: 0.0002312986806 | L140: 0.0002312986806
B142: Revenue
B144: Revenue from toll charge | G144: $m | H144: =H4*H31*H138/1000 -> 5.636472052 | I144: 5.621071855 | J144: 5.621071855 | K144: 5.621071855 | L144: 5.636472052
B145: Revenue from capacity reservation carge | G145: $m | H145: =H4*H104*H139 -> 36.01356479 | I145: 35.91516707 | J145: 35.91516707 | K145: 35.91516707 | L145: 36.01356479
B146: Revenue from throughput charge | G146: $m | H146: =H4*H129*H140 -> 8.230246802 | I146: 8.207759788 | J146: 8.207759788 | K146: 8.207759788 | L146: 8.230246802
B148: Forecast revenue | G148: $m | H148: =SUM(H144:H147) -> 49.88028365 | I148: =SUM(I144:I147) -> 49.74399872 | J148: 49.74399872 | K148: 49.74399872 | L148: 49.88028365

Sheet Capital base
B2: GOLDFIELDS GAS PIPELINE | J2: 2015 | K2: =J2+1 -> 2016 | L2: 2017 | M2: 2018 | N2: 2019 | O2: 2020 | P2: 2021 | Q2: 2022 | R2: 2023 | S2: 2024 | T2: 2025 | U2: 2026 | V2: 2027 | W2: 2028 | X2: 2029 | Y2: 2030 | Z2: 2031 | AA2: 2032 | AB2: 2033 | AC2: 2034 | AD2: 2035 | AE2: 2036 | AF2: 2037 | AG2: 2038 | AH2: 2039 | AI2: 2040 | AJ2: 2041 | AK2: 2042 | AL2: 2043 | AM2: 2044 | AN2: 2045 | AO2: 2046 | AP2: 2047 | AQ2: =AP2+1 -> 2048 | AR2: 2049 | AS2: 2050 | AT2: 2051 | AU2: 2052 | AV2: 2053 | AW2: 2054 | AX2: 2055 | AY2: 2056 | AZ2: 2057 | BA2: 2058 | BB2: 2059 | BC2: 2060 | BD2: 2061 | BE2: 2062 | BF2: 2063 | BG2: 2064 | BH2: 2065 | BI2: 2066 | BJ2: 2067 | BK2: 2068 | BL2: 2069 | BM2: 2070 | BN2: 2071 | BO2: 2072 | BP2: 2073 | BQ2: 2074 | BR2: 2075 | BS2: 2076 | BT2: 2077 | BU2: 2078 | BV2: 2079 | BW2: =BV2+1 -> 2080 | BX2: 2081 | BY2: 2082 | BZ2: 2083 | CA2: 2084 | CB2: 2085 | CC2: 2086 | CD2: 2087 | CE2: 2088 | CF2: 2089 | CG2: 2090 | CH2: 2091 | CI2: 2092 | CJ2: 2093 | CK2: 2094 | CL2: 2095 | CM2: 2096 | CN2: 2097 | CO2: 2098 | CP2: 2099 | CQ2: 2100
B3: Access Arrangement revision 2020-2024
B4: Capital base
B5: Inflation | J5: ='AA 2020-2024 inputs'!I33 -> 0.01688555347 | K5: ='AA 2020-2024 inputs'!J33 -> 0.0147601476 | L5: ='AA 2020-2024 inputs'!K33 -> 0.01909090909 | M5: ='AA 2020-2024 inputs'!L36 -> 0.0187 | N5: ='AA 2020-2024 inputs'!M36 -> 0.0187 | O5: ='AA 2020-2024 inputs'!N36 -> 0.0187 | P5: ='AA 2020-2024 inputs'!O36 -> 0.0187 | Q5: ='AA 2020-2024 inputs'!P36 -> 0.0187 | R5: ='AA 2020-2024 inputs'!Q36 -> 0.0187 | S5: ='AA 2020-2024 inputs'!R36 -> 0.0187 | T5: =S5 -> 0.0187 | U5: =T5 -> 0.0187 | V5: 0.0187 | W5: 0.0187 | X5: 0.0187 | Y5: 0.0187 | Z5: 0.0187 | AA5: 0.0187 | AB5: 0.0187 | AC5: 0.0187 | AD5: 0.0187 | AE5: 0.0187 | AF5: 0.0187 | AG5: 0.0187 | AH5: 0.0187 | AI5: 0.0187 | AJ5: 0.0187 | AK5: 0.0187 | AL5: 0.0187 | AM5: 0.0187 | AN5: 0.0187 | AO5: 0.0187 | AP5: 0.0187 | AQ5: 0.0187 | AR5: 0.0187 | AS5: 0.0187 | AT5: 0.0187 | AU5: 0.0187 | AV5: 0.0187 | AW5: 0.0187 | AX5: 0.0187 | AY5: 0.0187 | AZ5: 0.0187 | BA5: 0.0187 | BB5: 0.0187 | BC5: 0.0187 | BD5: 0.0187 | BE5: 0.0187 | BF5: 0.0187 | BG5: 0.0187 | BH5: 0.0187 | BI5: 0.0187 | BJ5: 0.0187 | BK5: 0.0187 | BL5: 0.0187 | BM5: 0.0187 | BN5: 0.0187 | BO5: 0.0187 | BP5: 0.0187 | BQ5: 0.0187 | BR5: 0.0187 | BS5: 0.0187 | BT5: 0.0187 | BU5: 0.0187 | BV5: 0.0187 | BW5: 0.0187 | BX5: 0.0187 | BY5: 0.0187 | BZ5: 0.0187 | CA5: 0.0187 | CB5: 0.0187 | CC5: 0.0187 | CD5: 0.0187 | CE5: 0.0187 | CF5: 0.0187 | CG5: =CF5 -> 0.0187 | CH5: 0.0187 | CI5: 0.0187 | CJ5: 0.0187 | CK5: 0.0187 | CL5: 0.0187 | CM5: 0.0187 | CN5: 0.0187 | CO5: 0.0187 | CP5: 0.0187 | CQ5: 0.0187
B6: Cumulative inflation factor | J6: =1+J5 -> 1.016885553 | K6: =J6*(1+K5) -> 1.031894934 | L6: =K6*(1+L5) -> 1.051594747 | M6: 1.071259568 | N6: 1.091292122 | O6: 1.111699285 | P6: 1.132488062 | Q6: 1.153665588 | R6: 1.175239135 | S6: 1.197216107 | T6: 1.219604048 | U6: 1.242410644 | V6: 1.265643723 | W6: 1.28931126 | X6: 1.313421381 | Y6: 1.337982361 | Z6: 1.363002631 | AA6: 1.38849078 | AB6: 1.414455558 | AC6: 1.440905877 | AD6: 1.467850817 | AE6: 1.495299627 | AF6: 1.52326173 | AG6: 1.551746724 | AH6: 1.580764388 | AI6: 1.610324682 | AJ6: 1.640437753 | AK6: 1.671113939 | AL6: 1.70236377 | AM6: 1.734197973 | AN6: 1.766627475 | AO6: 1.799663409 | AP6: 1.833317114 | AQ6: 1.867600144 | AR6: 1.902524267 | AS6: 1.938101471 | AT6: 1.974343968 | AU6: 2.0112642 | AV6: 2.048874841 | AW6: 2.087188801 | AX6: 2.126219231 | AY6: 2.165979531 | AZ6: 2.206483348 | BA6: 2.247744587 | BB6: 2.28977741 | BC6: 2.332596248 | BD6: 2.376215798 | BE6: 2.420651033 | BF6: 2.465917208 | BG6: 2.512029859 | BH6: 2.559004818 | BI6: 2.606858208 | BJ6: 2.655606456 | BK6: 2.705266297 | BL6: 2.755854777 | BM6: 2.807389261 | BN6: 2.85988744 | BO6: 2.913367335 | BP6: 2.967847305 | BQ6: 3.023346049 | BR6: 3.07988262 | BS6: 3.137476425 | BT6: 3.196147234 | BU6: 3.255915188 | BV6: 3.316800802 | BW6: 3.378824977 | BX6: =BW6*(1+BX5) -> 3.442009004 | BY6: 3.506374572 | BZ6: 3.571943777 | CA6: 3.638739125 | CB6: 3.706783547 | CC6: 3.776100399 | CD6: 3.846713477 | CE6: 3.918647019 | CF6: 3.991925718 | CG6: 4.066574729 | CH6: 4.142619676 | CI6: 4.220086664 | CJ6: 4.299002285 | CK6: 4.379393628 | CL6: 4.461288288 | CM6: =CL6*(1+CM5) -> 4.544714379 | CN6: =CM6*(1+CN5) -> 4.629700538 | CO6: =CN6*(1+CO5) -> 4.716275938 | CP6: =CO6*(1+CP5) -> 4.804470298 | CQ6: =CP6*(1+CQ5) -> 4.894313893
B9: Capital base (beginning of year)
B11: ='AA 2020-2024 inputs'!B17 -> Pipeline and laterals | I11: $m | J11: =J53+J84 -> 337.2092612 | K11: =J11+J25-J39 -> 337.8272821 | L11: =K11+K25-K39 -> 336.2516161 | M11: =L11+L25-L39 -> 335.7581374 | N11: =M11+M25-M39 -> 334.7729288 | O11: =N11+N25-N39 -> 333.5653452 | P11: =O11+O25-O39 -> 332.5878214 | Q11: =P11+P25-P39 -> 331.0442745 | R11: =Q11+Q25-Q39 -> 329.3266963 | S11: =R11+R25-R39 -> 327.4291178 | T11: =S11+S25-S39 -> 325.5689232 | U11: =T11+T25-T39 -> 323.2937105 | V11: =U11+U25-U39 -> 320.8195566 | W11: =V11+V25-V39 -> 318.1398169 | X11: =W11+W25-W39 -> 315.2476674 | Y11: =X11+X25-X39 -> 312.1361013 | Z11: =Y11+Y25-Y39 -> 308.7979237 | AA11: =Z11+Z25-Z39 -> 305.2257473 | AB11: =AA11+AA25-AA39 -> 301.411988 | AC11: =AB11+AB25-AB39 -> 297.3488597 | AD11: =AC11+AC25-AC39 -> 293.0283696 | AE11: =AD11+AD25-AD39 -> 288.4423133 | AF11: =AE11+AE25-AE39 -> 283.5822694 | AG11: =AF11+AF25-AF39 -> 278.4395944 | AH11: =AG11+AG25-AG39 -> 273.0054175 | AI11: =AH11+AH25-AH39 -> 267.2706349 | AJ11: =AI11+AI25-AI39 -> 261.2259041 | AK11: =AJ11+AJ25-AJ39 -> 254.8616386 | AL11: =AK11+AK25-AK39 -> 248.1680014 | AM11: =AL11+AL25-AL39 -> 241.1348996 | AN11: =AM11+AM25-AM39 -> 233.751978 | AO11: =AN11+AN25-AN39 -> 226.0086126 | AP11: =AO11+AO25-AO39 -> 217.8939046 | AQ11: =AP11+AP25-AP39 -> 209.3966736 | AR11: =AQ11+AQ25-AQ39 -> 200.5054508 | AS11: =AR11+AR25-AR39 -> 191.2084724 | AT11: =AS11+AS25-AS39 -> 181.4936722 | AU11: =AT11+AT25-AT39 -> 171.3486748 | AV11: =AU11+AU25-AU39 -> 160.760788 | AW11: =AV11+AV25-AV39 -> 149.7169953 | AX11: =AW11+AW25-AW39 -> 138.2039483 | AY11: =AX11+AX25-AX39 -> 126.2079589 | AZ11: =AY11+AY25-AY39 -> 113.7149908 | BA11: =AZ11+AZ25-AZ39 -> 100.7106521 | BB11: =BA11+BA25-BA39 -> 87.18018619 | BC11: =BB11+BB25-BB39 -> 73.1084633 | BD11: =BC11+BC25-BC39 -> 58.47997194 | BE11: =BD11+BD25-BD39 -> 43.27880971 | BF11: =BE11+BE25-BE39 -> 27.48867414 | BG11: =BF11+BF25-BF39 -> 11.09285334 | BH11: =BG11+BG25-BG39 -> 2.616199305 | BI11: =BH11+BH25-BH39 -> 2.520357403 | BJ11: =BI11+BI25-BI39 -> 2.420016156 | BK11: =BJ11+BJ25-BJ39 -> 2.315040801 | BL11: =BK11+BK25-BK39 -> 2.205293113 | BM11: =BL11+BL25-BL39 -> 2.090631315 | BN11: =BM11+BM25-BM39 -> 1.970909997 | BO11: =BN11+BN25-BN39 -> 1.845980029 | BP11: =BO11+BO25-BO39 -> 1.715688472 | BQ11: =BP11+BP25-BP39 -> 1.57987849 | BR11: =BQ11+BQ25-BQ39 -> 1.438389256 | BS11: =BR11+BR25-BR39 -> 1.301727297 | BT11: =BS11+BS25-BS39 -> 1.163093443 | BU11: =BT11+BT25-BT39 -> 1.025595639 | BV11: =BU11+BU25-BU39 -> 0.7627428465 | BW11: =BV11+BV25-BV39 -> 0.6465009792 | BX11: =BW11+BW25-BW39 -> 0.3863087929 | BY11: =BX11+BX25-BX39 -> 0.3490811114 | BZ11: =BY11+BY25-BY39 -> 0.3103260264 | CA11: =BZ11+BZ25-BZ39 -> 0.269999431 | CB11: =CA11+CA25-CA39 -> 0.2294078682 | CC11: =CB11+CB25-CB39 -> 0.1872037649 | CD11: =CC11+CC25-CC39 -> 0.1605588146 | CE11: =CD11+CD25-CD39 -> 0.1301613357 | CF11: =CE11+CE25-CE39 -> 0.1029460333 | CG11: =CF11+CF25-CF39 -> 0.07372919135 | CH11: =CG11+CG25-CG39 -> 0.04338364028 | CI11: =CH11+CH25-CH39 -> 0.03314618576 | CJ11: =CI11+CI25-CI39 -> 0.02251067962 | CK11: =CJ11+CJ25-CJ39 -> 0.01146581467 | CL11: =CK11+CK25-CK39 -> 1.780948652e-12 | CM11: =CL11+CL25-CL39 -> 1.81759108e-12 | CN11: =CM11+CM25-CM39 -> 1.85491872e-12 | CO11: =CN11+CN25-CN39 -> 1.892944388e-12 | CP11: =CO11+CO25-CO39 -> 1.931681135e-12 | CQ11: =CP11+CP25-CP39 -> 1.97114226e-12
B12: ='AA 2020-2024 inputs'!B18 -> Main line valve and scraper stations | I12: $m | J12: =J54+J85 -> 6.10425185 | K12: =J12+J26-J40 -> 6.111953058 | L12: =K12+K26-K40 -> 5.988636963 | M12: 5.882685672 | N12: 5.767985936 | O12: 5.646795815 | P12: 5.521471978 | Q12: 5.387854493 | R12: 5.24730891 | S12: 5.099622844 | T12: 4.944578387 | U12: 4.78195198 | V12: 4.611514276 | W12: 4.433030002 | X12: 4.246257815 | Y12: 4.050950162 | Z12: 3.846853128 | AA12: 3.633706289 | AB12: 3.411242552 | AC12: 3.179188001 | AD12: 2.937261732 | AE12: 2.68517569 | AF12: 2.4226345 | AG12: 2.149335289 | AH12: 1.864967517 | AI12: 1.56921279 | AJ12: 1.261744675 | AK12: 0.9422285143 | AL12: 0.61032123 | AM12: 0.2656711254 | AN12: 0.08674996644 | AO12: 0.08322070019 | AP12: 0.0795291038 | AQ12: 0.07567034025 | AR12: 0.07163944841 | AS12: 0.06743134006 | AT12: 0.06304079685 | AU12: 0.05846246727 | AV12: 0.05369086342 | AW12: 0.04872035785 | AX12: 0.04354518021 | AY12: 0.03815941391 | AZ12: 0.03255699263 | BA12: 0.02673169683 | BB12: 0.02067715011 | BC12: 0.01535877078 | BD12: 0.01018228116 | BE12: 0.004806820019 | BF12: -0.0007732440134 | BG12: -0.006563683337 | BH12: -0.0125704147 | BI12: 6.251943407e-15 | BJ12: 6.375466853e-15 | BK12: 6.501300186e-15 | BL12: 6.629486603e-15 | BM12: 6.760070106e-15 | BN12: 6.893095521e-15 | BO12: 7.028608511e-15 | BP12: 7.166655593e-15 | BQ12: 7.307284156e-15 | BR12: 7.450542474e-15 | BS12: 7.596479721e-15 | BT12: 7.745145996e-15 | BU12: 7.896592329e-15 | BV12: 8.050870709e-15 | BW12: 8.208034095e-15 | BX12: 8.368136436e-15 | BY12: 8.531232691e-15 | BZ12: 8.697378846e-15 | CA12: 8.866631934e-15 | CB12: 9.039050055e-15 | CC12: 9.214692394e-15 | CD12: 9.393619245e-15 | CE12: 9.575892029e-15 | CF12: 9.761573313e-15 | CG12: 9.950726838e-15 | CH12: 1.014341753e-14 | CI12: 1.033971154e-14 | CJ12: 1.053967625e-14 | CK12: 1.07433803e-14 | CL12: 1.095089362e-14 | CM12: 1.116228743e-14 | CN12: 1.137763431e-14 | CO12: 1.159700818e-14 | CP12: 1.182048433e-14 | CQ12: 1.204813949e-14
B13: ='AA 2020-2024 inputs'!B19 -> Compressor stations | I13: $m | J13: 33.76895037 | K13: 32.00242846 | L13: 29.70912759 | M13: 28.41591078 | N13: 26.57053968 | O13: 25.12637872 | P13: 24.41932574 | Q13: 22.05019371 | R13: 20.4068667 | S13: 17.6777569 | T13: 17.64115746 | U13: 16.49661589 | V13: 15.30309953 | W13: 14.05917696 | X13: 12.76338035 | Y13: 11.41420458 | Z13: 10.05871584 | AA13: 8.868507962 | AB13: 7.87488579 | AC13: 7.033431957 | AD13: 6.525334614 | AE13: 6.140715758 | AF13: 5.766426642 | AG13: 5.402711291 | AH13: 5.033381542 | AI13: 4.675240494 | AJ13: 4.30614702 | AK13: 3.921614565 | AL13: 3.52119478 | AM13: 3.110302847 | AN13: 2.709719572 | AO13: 2.334470863 | AP13: 1.94424029 | AQ13: 1.599829334 | AR13: 1.262206507 | AS13: 0.9214321498 | AT13: 0.6280870174 | AU13: 0.4278858938 | AV13: 0.2403169365 | AW13: 0.1157113846 | AX13: 5.719036356e-14 | AY13: 5.791309769e-14 | AZ13: 5.864934695e-14 | BA13: 5.939936407e-14 | BB13: 6.016340651e-14 | BC13: 6.094173655e-14 | BD13: 6.173462136e-14 | BE13: 6.254233311e-14 | BF13: 6.336514907e-14 | BG13: 6.42033517e-14 | BH13: 6.505722871e-14 | BI13: 6.592707322e-14 | BJ13: 6.681318382e-14 | BK13: 6.771586469e-14 | BL13: 6.86354257e-14 | BM13: 6.957218249e-14 | BN13: 7.052645664e-14 | BO13: 7.149857571e-14 | BP13: 7.248887341e-14 | BQ13: 7.349768968e-14 | BR13: 7.452537081e-14 | BS13: 7.557226958e-14 | BT13: 7.663874535e-14 | BU13: 7.772516423e-14 | BV13: 7.883189913e-14 | BW13: 7.995932998e-14 | BX13: 8.110784378e-14 | BY13: 8.22778348e-14 | BZ13: 8.346970464e-14 | CA13: 8.468386245e-14 | CB13: 8.592072501e-14 | CC13: 8.718071691e-14 | CD13: 8.846427065e-14 | CE13: 8.977182684e-14 | CF13: 9.110383434e-14 | CG13: 9.246075037e-14 | CH13: 9.384304074e-14 | CI13: 9.525117994e-14 | CJ13: 9.668565133e-14 | CK13: 9.814694735e-14 | CL13: 9.96355696e-14 | CM13: 1.011520291e-13 | CN13: 1.026968464e-13 | CO13: 1.042705517e-13 | CP13: 1.058736854e-13 | CQ13: 1.075067976e-13
B14: ='AA 2020-2024 inputs'!B20 -> Receipt and delivery point facilities | I14: $m | J14: 1.850740381 | K14: 2.193329124 | L14: 1.695324164 | M14: 1.598270788 | N14: 1.676039279 | O14: 1.682348323 | P14: 1.966933946 | Q14: 1.83886683 | R14: 1.705322188 | S14: 1.566139942 | T14: 1.458644544 | U14: 1.384770791 | V14: 1.307624085 | W14: 1.227107853 | X14: 1.14312305 | Y14: 1.055568108 | Z14: 0.9670187881 | AA14: 0.8809937531 | AB14: 0.7952494547 | AC14: 0.7089614424 | AD14: 0.621863165 | AE14: 0.5322924647 | AF14: 0.4458604439 | AG14: 0.3908302172 | AH14: 0.3416148411 | AI14: 0.290597613 | AJ14: 0.2375528813 | AK14: 0.1824226575 | AL14: 0.1251474935 | AM14: 0.08861152685 | AN14: 0.06227515025 | AO14: 0.04597808303 | AP14: 0.0290497285 | AQ14: 0.01408793872 | AR14: 0.007175691588 | AS14: 2.203098814e-15 | AT14: 2.24169704e-15 | AU14: 2.281017051e-15 | AV14: 2.321072348e-15 | AW14: 2.361876678e-15 | AX14: 2.403444049e-15 | AY14: 2.44578873e-15 | AZ14: 2.488925256e-15 | BA14: 2.532868436e-15 | BB14: 2.577633353e-15 | BC14: 2.623235374e-15 | BD14: 2.669690153e-15 | BE14: 2.717013636e-15 | BF14: 2.765222068e-15 | BG14: 2.814331998e-15 | BH14: 2.864360284e-15 | BI14: 2.915324098e-15 | BJ14: 2.967240936e-15 | BK14: 3.020128619e-15 | BL14: 3.074005301e-15 | BM14: 3.128889478e-15 | BN14: 3.184799988e-15 | BO14: 3.241756025e-15 | BP14: 3.29977714e-15 | BQ14: 3.35888325e-15 | BR14: 3.419094644e-15 | BS14: 3.480431991e-15 | BT14: 3.542916346e-15 | BU14: 3.606569159e-15 | BV14: 3.67141228e-15 | BW14: 3.737467967e-15 | BX14: 3.804758895e-15 | BY14: 3.873308164e-15 | BZ14: 3.943139304e-15 | CA14: 4.014276286e-15 | CB14: 4.08674353e-15 | CC14: 4.160565911e-15 | CD14: 4.235768771e-15 | CE14: 4.312377924e-15 | CF14: 4.390419668e-15 | CG14: 4.469920793e-15 | CH14: 4.55090859e-15 | CI14: 4.633410857e-15 | CJ14: 4.717455918e-15 | CK14: 4.803072621e-15 | CL14: 4.890290356e-15 | CM14: 4.979139063e-15 | CN14: 5.069649241e-15 | CO14: 5.161851959e-15 | CP14: 5.255778868e-15 | CQ14: 5.35146221e-15
B15: ='AA 2020-2024 inputs'!B21 -> SCADA, communications and electronic equipment | I15: $m | J15: =J57+J88 -> 1.875928104 | K15: 2.942928091 | L15: 3.580007553 | M15: 3.303631977 | N15: 3.06959443 | O15: 2.831949846 | P15: 3.316739907 | Q15: 4.399683534 | R15: 4.28038326 | S15: 4.582490121 | T15: 4.502464987 | U15: 3.883439208 | V15: 3.366498451 | W15: 2.828866109 | X15: 2.274463157 | Y15: 1.708750552 | Z15: 1.121084938 | AA15: 0.632223998 | AB15: 0.3319386816 | AC15: 0.1002158394 | AD15: 2.414735079e-15 | AE15: 2.465843811e-15 | AF15: 2.517908277e-15 | AG15: 2.570946348e-15 | AH15: 2.624976232e-15 | AI15: 2.680016474e-15 | AJ15: 2.736085968e-15 | AK15: 2.793203963e-15 | AL15: 2.851390063e-15 | AM15: 2.910664244e-15 | AN15: 2.971046852e-15 | AO15: 3.032558615e-15 | AP15: 3.095220647e-15 | AQ15: 3.15905446e-15 | AR15: 3.224081965e-15 | AS15: 3.290325484e-15 | AT15: 3.357807758e-15 | AU15: 3.426551949e-15 | AV15: 3.496581657e-15 | AW15: 3.567920921e-15 | AX15: 3.640594229e-15 | AY15: 3.714626527e-15 | AZ15: 3.79004323e-15 | BA15: 3.866870225e-15 | BB15: 3.945133885e-15 | BC15: 4.024861075e-15 | BD15: 4.106079164e-15 | BE15: 4.188816031e-15 | BF15: 4.273100077e-15 | BG15: 4.358960235e-15 | BH15: 4.446425978e-15 | BI15: 4.53552733e-15 | BJ15: 4.626294878e-15 | BK15: 4.718759779e-15 | BL15: 4.812953773e-15 | BM15: 4.908909196e-15 | BN15: 5.006658984e-15 | BO15: 5.106236694e-15 | BP15: 5.207676506e-15 | BQ15: 5.311013244e-15 | BR15: 5.416282378e-15 | BS15: 5.523520045e-15 | BT15: 5.632763056e-15 | BU15: 5.744048912e-15 | BV15: 5.857415813e-15 | BW15: 5.972902676e-15 | BX15: 6.090549142e-15 | BY15: 6.210395598e-15 | BZ15: 6.332483182e-15 | CA15: 6.456853804e-15 | CB15: 6.583550157e-15 | CC15: 6.712615732e-15 | CD15: 6.844094832e-15 | CE15: 6.978032592e-15 | CF15: 7.114474988e-15 | CG15: 7.253468857e-15 | CH15: 7.395061911e-15 | CI15: 7.539302756e-15 | CJ15: 7.686240904e-15 | CK15: 7.835926795e-15 | CL15: 7.988411813e-15 | CM15: 8.143748301e-15 | CN15: 8.30198958e-15 | CO15: 8.463189972e-15 | CP15: 8.627404811e-15 | CQ15: 8.794690468e-15
B16: ='AA 2020-2024 inputs'!B22 -> Cathodic protection | I16: $m | J16: =J58+J89 -> 0.5040429118 | K16: 1.033505072 | L16: 0.9205765188 | M16: 0.8061480499 | N16: 0.6853598177 | O16: 0.6341483736 | P16: 0.782893234 | Q16: 0.8288706476 | R16: 1.024727187 | S16: 1.332910665 | T16: 1.236851071 | U16: 1.161252479 | V16: 1.082393985 | W16: 1.000180105 | X16: 0.9145129242 | Y16: 0.8252920375 | Z16: 0.7324144935 | AA16: 0.6357747331 | AB16: 0.5352645276 | AC16: 0.4307729163 | AD16: 0.3221861422 | AE16: 0.2161278265 | AF16: 0.1274860951 | AG16: 0.0521376254 | AH16: 0.0053112599 | AI16: 1.174407793e-15 | AJ16: 1.193923355e-15 | AK16: 1.213803858e-15 | AL16: 1.234056126e-15 | AM16: 1.254687112e-15 | AN16: 1.275703897e-15 | AO16: 1.297113696e-15 | AP16: 1.318923858e-15 | AQ16: 1.34114187e-15 | AR16: 1.363775359e-15 | AS16: 1.386832095e-15 | AT16: 1.410319991e-15 | AU16: 1.434247111e-15 | AV16: 1.458621668e-15 | AW16: 1.483452029e-15 | AX16: 1.508746718e-15 | AY16: 1.534514418e-15 | AZ16: 1.560763973e-15 | BA16: 1.587504396e-15 | BB16: 1.614744864e-15 | BC16: 1.642494729e-15 | BD16: 1.670763517e-15 | BE16: 1.69956093e-15 | BF16: 1.728896856e-15 | BG16: 1.758781363e-15 | BH16: 1.789224711e-15 | BI16: 1.820237349e-15 | BJ16: 1.851829924e-15 | BK16: 1.884013279e-15 | BL16: 1.916798464e-15 | BM16: 1.950196731e-15 | BN16: 1.984219546e-15 | BO16: 2.018878587e-15 | BP16: 2.054185753e-15 | BQ16: 2.090153163e-15 | BR16: 2.126793163e-15 | BS16: 2.164118331e-15 | BT16: 2.20214148e-15 | BU16: 2.240875662e-15 | BV16: 2.280334173e-15 | BW16: 2.320530558e-15 | BX16: 2.361478615e-15 | BY16: 2.403192402e-15 | BZ16: 2.445686236e-15 | CA16: 2.488974704e-15 | CB16: 2.533072667e-15 | CC16: 2.577995262e-15 | CD16: 2.62375791e-15 | CE16: 2.670376319e-15 | CF16: 2.717866492e-15 | CG16: 2.766244732e-15 | CH16: 2.815527644e-15 | CI16: 2.865732147e-15 | CJ16: 2.916875474e-15 | CK16: 2.968975182e-15 | CL16: 3.022049154e-15 | CM16: 3.076115609e-15 | CN16: 3.131193107e-15 | CO16: 3.187300554e-15 | CP16: 3.244457211e-15 | CQ16: 3.302682697e-15
B17: ='AA 2020-2024 inputs'!B23 -> Maintenance bases and depots | I17: $m | J17: 6.461406028 | K17: 6.392630757 | L17: 6.27759962 | M17: 6.184625824 | N17: 6.102470605 | O17: 6.307978413 | P17: 10.18970268 | Q17: 10.40123732 | R17: 10.26561199 | S17: 10.12127706 | T17: 9.967954224 | U17: 9.805357804 | V17: 9.633194583 | W17: 9.451163622 | X17: 9.258956072 | Y17: 9.056254982 | Z17: 8.842735107 | AA17: 8.618062706 | AB17: 8.381895342 | AC17: 8.133881668 | AD17: 7.873661217 | AE17: 7.600864185 | AF17: 7.315111203 | AG17: 7.016013114 | AH17: 6.703170734 | AI17: 6.37617462 | AJ17: 6.03460482 | AK17: 5.66300681 | AL17: 5.291592304 | AM17: 4.904306598 | AN17: 4.651261968 | AO17: 4.540430231 | AP17: 4.423826888 | AQ17: 4.301274836 | AR17: 4.172592369 | AS17: 4.037593065 | AT17: 3.896191666 | AU17: 3.748333106 | AV17: 3.593722668 | AW17: 3.432075389 | AX17: 3.263125812 | AY17: 3.08665736 | AZ17: 2.903382588 | BA17: 2.713121408 | BB17: 2.516737572 | BC17: 2.317266252 | BD17: 2.110332149 | BE17: 1.898285189 | BF17: 1.677569711 | BG17: 1.447935662 | BH17: 1.263237436 | BI17: 1.072036843 | BJ17: 0.8732436065 | BK17: 0.6666406222 | BL17: 0.4528905171 | BM17: 0.2310138142 | BN17: 0.01677211742 | BO17: 1.808969641e-14 | BP17: 1.847772447e-14 | BQ17: 1.887300865e-14 | BR17: 1.927568465e-14 | BS17: 1.968589069e-14 | BT17: 2.010376759e-14 | BU17: 2.052945878e-14 | BV17: 2.09631104e-14 | BW17: 2.14048713e-14 | BX17: 2.185489313e-14 | BY17: 2.231333037e-14 | BZ17: 2.278034039e-14 | CA17: 2.325608349e-14 | CB17: 2.374072299e-14 | CC17: 2.423442525e-14 | CD17: 2.473735974e-14 | CE17: 2.52496991e-14 | CF17: 2.577161921e-14 | CG17: 2.630329923e-14 | CH17: 2.684492166e-14 | CI17: 2.739667244e-14 | CJ17: 2.795874095e-14 | CK17: 2.853132014e-14 | CL17: 2.911460657e-14 | CM17: 2.970880045e-14 | CN17: 3.031410576e-14 | CO17: 3.093073027e-14 | CP17: 3.155888566e-14 | CQ17: 3.219878756e-14
B18: ='AA 2020-2024 inputs'!B24 -> Other depreciable assets | I18: $m | J18: -1.23537926 | K18: =J18+J32-J46 -> 0.7966951705 | L18: 0.9178900436 | M18: 0.8578244535 | N18: 0.8167714323 | O18: 0.9029678756 | P18: 0.8489290447 | Q18: 0.6930432318 | R18: 0.5310304276 | S18: 0.3627159941 | T18: 0.2427044407 | U18: 0.1658767052 | V18: 0.1094141414 | W18: 0.06295537738 | X18: 0.02645282249 | Y18: 4.579669977e-16 | Z18: 4.62146806e-16 | AA18: 4.664047768e-16 | AB18: 4.707423717e-16 | AC18: 4.751610795e-16 | AD18: 4.796624172e-16 | AE18: 4.842479299e-16 | AF18: 4.889191917e-16 | AG18: 4.936778061e-16 | AH18: 4.985254066e-16 | AI18: 5.034636573e-16 | AJ18: 5.084942532e-16 | AK18: 5.136189212e-16 | AL18: 5.188394205e-16 | AM18: 5.241575432e-16 | AN18: 5.295751148e-16 | AO18: 5.35093995e-16 | AP18: 5.407160782e-16 | AQ18: 5.464432944e-16 | AR18: 5.522776095e-16 | AS18: 5.582210263e-16 | AT18: 5.64275585e-16 | AU18: 5.704433639e-16 | AV18: 5.767264804e-16 | AW18: 5.831270911e-16 | AX18: 5.896473932e-16 | AY18: 5.962896249e-16 | AZ18: 6.030560664e-16 | BA18: 6.099490404e-16 | BB18: 6.16970913e-16 | BC18: 6.241240946e-16 | BD18: 6.314110406e-16 | BE18: 6.388342526e-16 | BF18: 6.463962787e-16 | BG18: 6.540997146e-16 | BH18: 6.619472048e-16 | BI18: 6.69941443e-16 | BJ18: 6.780851735e-16 | BK18: 6.863811918e-16 | BL18: 6.948323456e-16 | BM18: 7.034415359e-16 | BN18: 7.122117182e-16 | BO18: 7.211459028e-16 | BP18: 7.302471567e-16 | BQ18: 7.395186041e-16 | BR18: 7.489634275e-16 | BS18: 7.585848691e-16 | BT18: 7.683862316e-16 | BU18: 7.783708797e-16 | BV18: 7.885422407e-16 | BW18: 7.989038061e-16 | BX18: 8.094591328e-16 | BY18: 8.202118441e-16 | BZ18: 8.311656311e-16 | CA18: 8.423242539e-16 | CB18: 8.536915429e-16 | CC18: 8.652714003e-16 | CD18: 8.77067801e-16 | CE18: 8.890847944e-16 | CF18: 9.013265056e-16 | CG18: 9.137971367e-16 | CH18: 9.265009687e-16 | CI18: 9.394423623e-16 | CJ18: 9.5262576e-16 | CK18: 9.660556872e-16 | CL18: 9.797367541e-16 | CM18: 9.936736569e-16 | CN18: 1.00787118e-15 | CO18: 1.022334196e-15 | CP18: 1.037067671e-15 | CQ18: 1.052076662e-15
B19: ='AA 2020-2024 inputs'!B25 -> Non-depreciable assets | I19: $m | J19: =J61+J92 -> 3.823288043 | K19: 3.823288043 | L19: 3.823288043 | M19: 3.823288043 | N19: 3.823288043 | O19: 3.823288043 | P19: 3.823288043 | Q19: 3.823288043 | R19: 3.823288043 | S19: 3.823288043 | T19: 3.823288043 | U19: 3.823288043 | V19: 3.823288043 | W19: 3.823288043 | X19: 3.823288043 | Y19: 3.823288043 | Z19: 3.823288043 | AA19: 3.823288043 | AB19: 3.823288043 | AC19: 3.823288043 | AD19: 3.823288043 | AE19: 3.823288043 | AF19: 3.823288043 | AG19: 3.823288043 | AH19: 3.823288043 | AI19: 3.823288043 | AJ19: 3.823288043 | AK19: 3.823288043 | AL19: 3.823288043 | AM19: 3.823288043 | AN19: 3.823288043 | AO19: 3.823288043 | AP19: 3.823288043 | AQ19: 3.823288043 | AR19: 3.823288043 | AS19: 3.823288043 | AT19: 3.823288043 | AU19: 3.823288043 | AV19: 3.823288043 | AW19: 3.823288043 | AX19: 3.823288043 | AY19: 3.823288043 | AZ19: 3.823288043 | BA19: 3.823288043 | BB19: 3.823288043 | BC19: 3.823288043 | BD19: 3.823288043 | BE19: 3.823288043 | BF19: 3.823288043 | BG19: 3.823288043 | BH19: 3.823288043 | BI19: 3.823288043 | BJ19: 3.823288043 | BK19: 3.823288043 | BL19: 3.823288043 | BM19: 3.823288043 | BN19: 3.823288043 | BO19: 3.823288043 | BP19: 3.823288043 | BQ19: 3.823288043 | BR19: 3.823288043 | BS19: 3.823288043 | BT19: 3.823288043 | BU19: 3.823288043 | BV19: 3.823288043 | BW19: 3.823288043 | BX19: 3.823288043 | BY19: 3.823288043 | BZ19: 3.823288043 | CA19: 3.823288043 | CB19: 3.823288043 | CC19: 3.823288043 | CD19: 3.823288043 | CE19: 3.823288043 | CF19: 3.823288043 | CG19: 3.823288043 | CH19: 3.823288043 | CI19: 3.823288043 | CJ19: 3.823288043 | CK19: 3.823288043 | CL19: 3.823288043 | CM19: 3.823288043 | CN19: 3.823288043 | CO19: 3.823288043 | CP19: 3.823288043 | CQ19: 3.823288043
I21: $m | J21: =SUM(J11:J20) -> 390.3624896 | K21: =SUM(K11:K20) -> 393.1240399 | L21: =SUM(L11:L20) -> 389.1640666 | M21: =SUM(M11:M20) -> 386.630523 | N21: =SUM(N11:N20) -> 383.2849781 | O21: =SUM(O11:O20) -> 380.5212006 | P21: 383.4571059 | Q21: 380.4673123 | R21: 376.611235 | S21: 371.9953193 | T21: 369.3865663 | U21: 364.7962634 | V21: 360.0565837 | W21: 355.0255849 | X21: 349.6981017 | Y21: =SUM(Y11:Y20) -> 344.0704098 | Z21: =SUM(Z11:Z20) -> 338.190034 | AA21: =SUM(AA11:AA20) -> 332.3183048 | AB21: =SUM(AB11:AB20) -> 326.5657524 | AC21: =SUM(AC11:AC20) -> 320.7585995 | AD21: =SUM(AD11:AD20) -> 315.1319645 | AE21: 309.4407772 | AF21: 303.4830763 | AG21: 297.27391 | AH21: 290.7771515 | AI21: 284.0051485 | AJ21: 276.8892416 | AK21: 269.3941992 | AL21: 261.5395453 | AM21: 253.3270798 | AN21: 245.0852727 | AO21: 236.8360005 | AP21: 228.1938386 | AQ21: 219.2108241 | AR21: 209.8423529 | AS21: 200.058217 | AT21: 189.9042797 | AU21: 179.4066443 | AV21: 168.4718065 | AW21: 157.1367905 | AX21: 145.3339074 | AY21: 133.1560637 | AZ21: 120.4742185 | BA21: 107.2737933 | BB21: 93.54088896 | BC21: 79.26437637 | BD21: 64.42377442 | BE21: 49.00518976 | BF21: 32.98875866 | BG21: 16.35751337 | BH21: 7.69015437 | BI21: 7.41568229 | BJ21: 7.116547806 | BK21: 6.804969467 | BL21: 6.481471674 | BM21: 6.144933173 | BN21: 5.810970158 | BO21: 5.669268072 | BP21: 5.538976515 | BQ21: 5.403166533 | BR21: 5.261677299 | BS21: 5.125015341 | BT21: 4.986381487 | BU21: 4.848883683 | BV21: 4.58603089 | BW21: 4.469789023 | BX21: 4.209596836 | BY21: 4.172369155 | BZ21: 4.13361407 | CA21: 4.093287474 | CB21: 4.052695912 | CC21: 4.010491808 | CD21: 3.983846858 | CE21: 3.953449379 | CF21: 3.926234077 | CG21: 3.897017235 | CH21: 3.866671684 | CI21: 3.856434229 | CJ21: 3.845798723 | CK21: 3.834753858 | CL21: 3.823288043 | CM21: =SUM(CM11:CM20) -> 3.823288043 | CN21: =SUM(CN11:CN20) -> 3.823288043 | CO21: =SUM(CO11:CO20) -> 3.823288043 | CP21: =SUM(CP11:CP20) -> 3.823288043 | CQ21: =SUM(CQ11:CQ20) -> 3.823288043
B23: CAPEX
B25: ='AA 2020-2024 inputs'!B17 -> Pipeline and laterals | I25: $m | J25: ='AA 2020-2024 inputs'!I113 -> 1.766083056 | K25: ='AA 2020-2024 inputs'!J113 -> 0.4919352037 | L25: ='AA 2020-2024 inputs'!K113 -> 0.2760397457 | M25: ='AA 2020-2024 inputs'!L113 -> 0.06515683739 | N25: ='AA 2020-2024 inputs'!M113 -> 0 | O25: ='AA 2020-2024 inputs'!N113 -> 0.3995336306 | P25: ='AA 2020-2024 inputs'!O113 -> 0 | Q25: ='AA 2020-2024 inputs'!P113 -> 0 | R25: ='AA 2020-2024 inputs'!Q113 -> 0 | S25: ='AA 2020-2024 inputs'!R113 -> 0.2235155964
B26: ='AA 2020-2024 inputs'!B18 -> Main line valve and scraper stations | I26: $m | J26: ='AA 2020-2024 inputs'!I114 -> 0.1095663195 | K26: ='AA 2020-2024 inputs'!J114 -> 0.001499904716 | L26: ='AA 2020-2024 inputs'!K114 -> 0 | M26: ='AA 2020-2024 inputs'!L114 -> 0 | N26: ='AA 2020-2024 inputs'!M114 -> 0 | O26: ='AA 2020-2024 inputs'!N114 -> 0 | P26: ='AA 2020-2024 inputs'!O114 -> 0 | Q26: ='AA 2020-2024 inputs'!P114 -> 0 | R26: ='AA 2020-2024 inputs'!Q114 -> 0 | S26: ='AA 2020-2024 inputs'!R114 -> 0
B27: ='AA 2020-2024 inputs'!B19 -> Compressor stations | I27: $m | J27: ='AA 2020-2024 inputs'!I115 -> -0.01498228958 | K27: ='AA 2020-2024 inputs'!J115 -> 0 | L27: ='AA 2020-2024 inputs'!K115 -> 0.9655136608 | M27: ='AA 2020-2024 inputs'!L115 -> 0.5212454649 | N27: ='AA 2020-2024 inputs'!M115 -> 1.02392921 | O27: ='AA 2020-2024 inputs'!N115 -> 1.764174473 | P27: ='AA 2020-2024 inputs'!O115 -> 0.343575573 | Q27: ='AA 2020-2024 inputs'!P115 -> 1.184616861 | R27: ='AA 2020-2024 inputs'!Q115 -> 0.2303832102 | S27: ='AA 2020-2024 inputs'!R115 -> 2.028404037
B28: ='AA 2020-2024 inputs'!B20 -> Receipt and delivery point facilities | I28: $m | J28: ='AA 2020-2024 inputs'!I116 -> 0.4116584704 | K28: ='AA 2020-2024 inputs'!J116 -> -0.3952989575 | L28: ='AA 2020-2024 inputs'!K116 -> 0.001284771454 | M28: ='AA 2020-2024 inputs'!L116 -> 0.1877024615 | N28: ='AA 2020-2024 inputs'!M116 -> 0.1257888482 | O28: ='AA 2020-2024 inputs'!N116 -> 0 | P28: ='AA 2020-2024 inputs'!O116 -> 0 | Q28: ='AA 2020-2024 inputs'!P116 -> 0 | R28: ='AA 2020-2024 inputs'!Q116 -> 0 | S28: ='AA 2020-2024 inputs'!R116 -> 0
B29: ='AA 2020-2024 inputs'!B21 -> SCADA, communications and electronic equipment | I29: $m | J29: ='AA 2020-2024 inputs'!I117 -> 0.970267486 | K29: ='AA 2020-2024 inputs'!J117 -> 0.9895922112 | L29: ='AA 2020-2024 inputs'!K117 -> 0.06503066834 | M29: ='AA 2020-2024 inputs'!L117 -> 0.1102028193 | N29: ='AA 2020-2024 inputs'!M117 -> 0 | O29: ='AA 2020-2024 inputs'!N117 -> 0.9900132043 | P29: ='AA 2020-2024 inputs'!O117 -> 1.690391819 | Q29: ='AA 2020-2024 inputs'!P117 -> 0.652616198 | R29: ='AA 2020-2024 inputs'!Q117 -> 1.144236611 | S29: ='AA 2020-2024 inputs'!R117 -> 0.8482416884
B30: ='AA 2020-2024 inputs'!B22 -> Cathodic protection | I30: $m | J30: ='AA 2020-2024 inputs'!I118 -> 0 | K30: ='AA 2020-2024 inputs'!J118 -> 0 | L30: ='AA 2020-2024 inputs'!K118 -> 0 | M30: ='AA 2020-2024 inputs'!L118 -> 0 | N30: ='AA 2020-2024 inputs'!M118 -> 0.07516674985 | O30: ='AA 2020-2024 inputs'!N118 -> 0.2397201784 | P30: ='AA 2020-2024 inputs'!O118 -> 0.1860593872 | Q30: ='AA 2020-2024 inputs'!P118 -> 0.3500004362 | R30: ='AA 2020-2024 inputs'!Q118 -> 0.4827076785 | S30: ='AA 2020-2024 inputs'!R118 -> 0.06146678901
B31: ='AA 2020-2024 inputs'!B23 -> Maintenance bases and depots | I31: $m | J31: ='AA 2020-2024 inputs'!I119 -> 0.0248213406 | K31: ='AA 2020-2024 inputs'!J119 -> 0 | L31: ='AA 2020-2024 inputs'!K119 -> 0 | M31: ='AA 2020-2024 inputs'!L119 -> 0.01909538825 | N31: ='AA 2020-2024 inputs'!M119 -> 0.3127567564 | O31: ='AA 2020-2024 inputs'!N119 -> 3.995336306 | P31: ='AA 2020-2024 inputs'!O119 -> 0.3382897949 | Q31: ='AA 2020-2024 inputs'!P119 -> 0 | R31: ='AA 2020-2024 inputs'!Q119 -> 0 | S31: ='AA 2020-2024 inputs'!R119 -> 0
B32: ='AA 2020-2024 inputs'!B24 -> Other depreciable assets | I32: $m | J32: ='AA 2020-2024 inputs'!I120 -> 0.06686861092 | K32: ='AA 2020-2024 inputs'!J120 -> 0.3211521008 | L32: ='AA 2020-2024 inputs'!K120 -> 0.1242070104 | M32: ='AA 2020-2024 inputs'!L120 -> 0.1220738401 | N32: ='AA 2020-2024 inputs'!M120 -> 0.2239006025 | O32: ='AA 2020-2024 inputs'!N120 -> 0 | P32: ='AA 2020-2024 inputs'!O120 -> 0 | Q32: ='AA 2020-2024 inputs'!P120 -> 0 | R32: ='AA 2020-2024 inputs'!Q120 -> 0 | S32: ='AA 2020-2024 inputs'!R120 -> 0
B33: ='AA 2020-2024 inputs'!B25 -> Non-depreciable assets | I33: $m | J33: ='AA 2020-2024 inputs'!I121 -> 0 | K33: ='AA 2020-2024 inputs'!J121 -> 0 | L33: ='AA 2020-2024 inputs'!K121 -> 0 | M33: ='AA 2020-2024 inputs'!L121 -> 0 | N33: ='AA 2020-2024 inputs'!M121 -> 0 | O33: ='AA 2020-2024 inputs'!N121 -> 0 | P33: ='AA 2020-2024 inputs'!O121 -> 0 | Q33: ='AA 2020-2024 inputs'!P121 -> 0 | R33: ='AA 2020-2024 inputs'!Q121 -> 0 | S33: ='AA 2020-2024 inputs'!R121 -> 0
I35: $m | J35: =SUM(J25:J34) -> 3.334282993 | K35: =SUM(K25:K34) -> 1.408880463 | L35: =SUM(L25:L34) -> 1.432075857 | M35: =SUM(M25:M34) -> 1.025476811 | N35: =SUM(N25:N34) -> 1.761542167 | O35: =SUM(O25:O34) -> 7.388777793 | P35: 2.558316574 | Q35: 2.187233495 | R35: 1.857327499 | S35: 3.161628111 | T35: 0 | U35: 0 | V35: 0 | W35: 0 | X35: 0 | Y35: 0 | Z35: 0 | AA35: 0 | AB35: 0 | AC35: 0 | AD35: =SUM(AD25:AD34) -> 0 | AE35: 0 | AF35: 0 | AG35: 0 | AH35: 0 | AI35: 0 | AJ35: 0 | AK35: 0 | AL35: 0 | AM35: 0 | AN35: 0 | AO35: 0 | AP35: 0 | AQ35: 0 | AR35: 0 | AS35: 0 | AT35: 0 | AU35: 0 | AV35: 0 | AW35: 0 | AX35: 0 | AY35: 0 | AZ35: 0 | BA35: 0 | BB35: 0 | BC35: 0 | BD35: 0 | BE35: 0 | BF35: 0 | BG35: 0 | BH35: 0 | BI35: 0 | BJ35: 0 | BK35: 0 | BL35: 0 | BM35: 0 | BN35: 0 | BO35: 0 | BP35: 0 | BQ35: 0 | BR35: 0 | BS35: 0 | BT35: 0 | BU35: 0 | BV35: 0 | BW35: 0 | BX35: 0 | BY35: 0 | BZ35: 0 | CA35: 0 | CB35: 0 | CC35: 0 | CD35: 0 | CE35: 0 | CF35: 0 | CG35: 0 | CH35: 0 | CI35: 0 | CJ35: 0 | CK35: 0 | CL35: 0 | CM35: =SUM(CM25:CM34) -> 0 | CN35: =SUM(CN25:CN34) -> 0 | CO35: =SUM(CO25:CO34) -> 0 | CP35: =SUM(CP25:CP34) -> 0 | CQ35: =SUM(CQ25:CQ34) -> 0
B37: Regulatory depreciation
B39: ='AA 2020-2024 inputs'!B17 -> Pipeline and laterals | I39: $m | J39: =J67+J98+J143 -> 1.148062121 | K39: =K67+K98+K143 -> 2.067601179 | L39: 0.7695184797 | M39: 1.050365406 | N39: 1.207583669 | O39: =O67+O98+O143 -> 1.377057423 | P39: =P67+P98+P143 -> 1.543546913 | Q39: =Q67+Q98+Q143 -> 1.717578202 | R39: 1.8975785 | S39: 2.083710188 | T39: 2.275212686 | U39: 2.474153837 | V39: 2.679739768 | W39: 2.892149426 | X39: 3.111566127 | Y39: 3.338177657 | Z39: 3.572176375 | AA39: 3.813759317 | AB39: 4.063128308 | AC39: 4.320490064 | AD39: 4.586056315 | AE39: 4.860043912 | AF39: 5.142674947 | AG39: 5.434176874 | AH39: 5.734782631 | AI39: 6.044730766 | AJ39: 6.364265564 | AK39: 6.693637183 | AL39: 7.03310178 | AM39: 7.382921655 | AN39: 7.743365388 | AO39: 8.114707983 | AP39: 8.497231013 | AQ39: 8.891222772 | AR39: 9.296978427 | AS39: 9.714800171 | AT39: 10.14499739 | AU39: 10.58788681 | AV39: 11.0437927 | AW39: 11.51304698 | AX39: 11.99598948 | AY39: 12.49296802 | AZ39: 13.00433869 | BA39: 13.53046595 | BB39: 14.07172288 | BC39: 14.62849136 | BD39: 15.20116224 | BE39: 15.79013556 | BF39: 16.3958208 | BG39: 8.476654038 | BH39: 0.09584190193 | BI39: 0.1003412478 | BJ39: 0.1049753542 | BK39: 0.1097476879 | BL39: 0.1146617981 | BM39: 0.1197213183 | BN39: 0.1249299685 | BO39: 0.1302915568 | BP39: 0.1358099818 | BQ39: 0.1414892342 | BR39: 0.1366619583 | BS39: 0.1386338544 | BT39: 0.1374978037 | BU39: 0.2628527929 | BV39: 0.1162418673 | BW39: 0.2601921864 | BX39: 0.03722768144 | BY39: 0.03875508505 | BZ39: 0.0403265954 | CA39: 0.04059156276 | CB39: 0.04220410331 | CC39: =CC67+CC98+CC143 -> 0.02664495034 | CD39: 0.03039747891 | CE39: 0.02721530235 | CF39: 0.02921684198 | CG39: 0.03034555107 | CH39: 0.01023745451 | CI39: 0.01063550614 | CJ39: 0.01104486496 | CK39: 0.01146581467 | CL39: -3.664242716e-14 | CM39: -3.732764055e-14 | CN39: -3.802566742e-14 | CO39: -3.87367474e-14 | CP39: -3.946112458e-14 | CQ39: -4.019904761e-14
B40: ='AA 2020-2024 inputs'!B18 -> Main line valve and scraper stations | I40: $m | J40: =J68+J99+J144 -> 0.1018651112 | K40: 0.1248159999 | L40: 0.1059512902 | M40: 0.1146997362 | N40: 0.1211901214 | O40: 0.1253238365 | P40: =P68+P99+P144 -> 0.1336174853 | Q40: 0.1405455828 | R40: =R68+R99+R144 -> 0.1476860665 | S40: 0.1550444568 | T40: 0.1626264066 | U40: 0.1704377038 | V40: 0.1784842747 | W40: 0.186772187 | X40: 0.1953076531 | Y40: 0.2040970332 | Z40: 0.213146839 | AA40: 0.2224637369 | AB40: 0.2320545514 | AC40: 0.241926269 | AD40: 0.2520860417 | AE40: 0.2625411907 | AF40: 0.2732992104 | AG40: 0.2843677719 | AH40: 0.2957547276 | AI40: 0.3074681149 | AJ40: 0.3195161604 | AK40: 0.3319072843 | AL40: 0.3446501047 | AM40: 0.1789211589 | AN40: 0.003529266243 | AO40: 0.003691596396 | AP40: 0.003858763548 | AQ40: 0.004030891837 | AR40: 0.004208108353 | AS40: 0.004390543204 | AT40: 0.004578329585 | AU40: 0.004771603848 | AV40: 0.004970505572 | AW40: 0.005175177639 | AX40: 0.005385766304 | AY40: 0.005602421278 | AZ40: 0.005825295799 | BA40: 0.006054546717 | BB40: 0.005318379327 | BC40: 0.005176489623 | BD40: 0.005375461143 | BE40: 0.005580064032 | BF40: 0.005790439324 | BG40: 0.006006731359 | BH40: -0.0125704147 | BI40: -1.235234452e-16 | BJ40: -1.258333337e-16 | BK40: -1.28186417e-16 | BL40: -1.30583503e-16 | BM40: -1.330254145e-16 | BN40: -1.355129898e-16 | BO40: -1.380470827e-16 | BP40: -1.406285631e-16 | BQ40: -1.432583172e-16 | BR40: -1.459372478e-16 | BS40: -1.486662743e-16 | BT40: -1.514463336e-16 | BU40: -1.542783801e-16 | BV40: -1.571633858e-16 | BW40: -1.601023411e-16 | BX40: -1.630962549e-16 | BY40: -1.661461548e-16 | BZ40: -1.692530879e-16 | CA40: -1.724181207e-16 | CB40: -1.756423395e-16 | CC40: -1.789268513e-16 | CD40: =CD68+CD99+CD144 -> -1.822727834e-16 | CE40: -1.856812845e-16 | CF40: -1.891535245e-16 | CG40: -1.926906954e-16 | CH40: -1.962940114e-16 | CI40: -1.999647094e-16 | CJ40: -2.037040495e-16 | CK40: -2.075133152e-16 | CL40: -2.113938142e-16 | CM40: -2.153468785e-16 | CN40: -2.193738651e-16 | CO40: -2.234761564e-16 | CP40: -2.276551605e-16 | CQ40: -2.31912312e-16
B41: ='AA 2020-2024 inputs'!B19 -> Compressor stations | I41: $m | J41: 1.751539613 | K41: 2.293300874 | L41: 2.25873047 | M41: 2.366616563 | N41: 2.468090175 | O41: 2.471227453 | P41: =P69+P100+P145 -> 2.712707596 | Q41: 2.827943872 | R41: =R69+R100+R145 -> 2.95949301 | S41: 2.06500348 | T41: 1.144541567 | U41: 1.193516358 | V41: 1.243922572 | W41: 1.295796617 | X41: 1.349175764 | Y41: 1.355488742 | Z41: 1.190207878 | AA41: 0.9936221723 | AB41: 0.8414538324 | AC41: 0.5080973435 | AD41: 0.384618856 | AE41: 0.3742891158 | AF41: 0.3637153511 | AG41: 0.3693297484 | AH41: 0.3581410486 | AI41: 0.3690934738 | AJ41: 0.3845324546 | AK41: 0.4004197849 | AL41: 0.4108919334 | AM41: 0.4005832754 | AN41: 0.375248709 | AO41: 0.3902305726 | AP41: 0.3444109555 | AQ41: 0.3376228277 | AR41: 0.340774357 | AS41: 0.2933451324 | AT41: 0.2002011236 | AU41: 0.1875689573 | AV41: 0.1246055519 | AW41: 0.1157113846 | AX41: -7.227341326e-16 | AY41: -7.362492609e-16 | AZ41: -7.500171221e-16 | BA41: -7.640424423e-16 | BB41: -7.78330036e-16 | BC41: -7.928848076e-16 | BD41: -8.077117535e-16 | BE41: -8.228159633e-16 | BF41: -8.382026218e-16 | BG41: -8.538770109e-16 | BH41: -8.69844511e-16 | BI41: -8.861106033e-16 | BJ41: -9.026808716e-16 | BK41: -9.195610039e-16 | BL41: -9.367567947e-16 | BM41: -9.542741467e-16 | BN41: -9.721190733e-16 | BO41: -9.902977e-16 | BP41: -1.008816267e-15 | BQ41: -1.027681131e-15 | BR41: -1.046898768e-15 | BS41: -1.066475775e-15 | BT41: -1.086418872e-15 | BU41: -1.106734905e-15 | BV41: -1.127430848e-15 | BW41: -1.148513805e-15 | BX41: -1.169991013e-15 | BY41: -1.191869845e-15 | BZ41: -1.214157811e-15 | CA41: -1.236862562e-15 | CB41: -1.259991892e-15 | CC41: -1.28355374e-15 | CD41: =CD69+CD100+CD145 -> -1.307556195e-15 | CE41: -1.332007496e-15 | CF41: -1.356916036e-15 | CG41: -1.382290366e-15 | CH41: -1.408139196e-15 | CI41: -1.434471399e-15 | CJ41: -1.461296014e-15 | CK41: -1.48862225e-15 | CL41: -1.516459486e-15 | CM41: -1.544817278e-15 | CN41: -1.573705361e-15 | CO41: -1.603133651e-15 | CP41: -1.633112251e-15 | CQ41: -1.66365145e-15
B42: ='AA 2020-2024 inputs'!B20 -> Receipt and delivery point facilities | I42: $m | J42: 0.06906972743 | K42: 0.1027060027 | L42: 0.09833814776 | M42: 0.1099339705 | N42: 0.1194798035 | O42: -0.2845856227 | P42: =P70+P101+P146 -> 0.1280671155 | Q42: 0.1335446428 | R42: =R70+R101+R146 -> 0.1391822458 | S42: 0.1074953975 | T42: 0.07387375366 | U42: 0.07714670546 | V42: 0.08051623274 | W42: 0.08398480291 | X42: 0.08755494189 | Y42: 0.08854931963 | Z42: 0.08602503505 | AA42: 0.08574429834 | AB42: 0.08628801236 | AC42: 0.0870982774 | AD42: 0.08957070027 | AE42: 0.0864320208 | AF42: 0.0550302267 | AG42: 0.0492153761 | AH42: 0.0510172281 | AI42: 0.05304473173 | AJ42: 0.05513022377 | AK42: 0.05727516401 | AL42: 0.03653596665 | AM42: 0.02633637661 | AN42: 0.01629706722 | AO42: 0.01692835453 | AP42: 0.01496178978 | AQ42: 0.006912247134 | AR42: 0.007175691588 | AS42: -3.859822509e-17 | AT42: -3.93200119e-17 | AU42: -4.005529612e-17 | AV42: -4.080433016e-17 | AW42: -4.156737113e-17 | AX42: -4.234468097e-17 | AY42: -4.313652651e-17 | AZ42: -4.394317955e-17 | BA42: -4.476491701e-17 | BB42: -4.560202096e-17 | BC42: -4.645477875e-17 | BD42: -4.732348311e-17 | BE42: -4.820843225e-17 | BF42: -4.910992993e-17 | BG42: -5.002828562e-17 | BH42: -5.096381456e-17 | BI42: -5.191683789e-17 | BJ42: -5.288768276e-17 | BK42: -5.387668243e-17 | BL42: -5.488417639e-17 | BM42: -5.591051049e-17 | BN42: -5.695603704e-17 | BO42: -5.802111493e-17 | BP42: -5.910610978e-17 | BQ42: -6.021139403e-17 | BR42: -6.13373471e-17 | BS42: -6.248435549e-17 | BT42: -6.365281294e-17 | BU42: -6.484312054e-17 | BV42: -6.605568689e-17 | BW42: -6.729092824e-17 | BX42: -6.85492686e-17 | BY42: -6.983113992e-17 | BZ42: -7.113698224e-17 | CA42: -7.24672438e-17 | CB42: -7.382238126e-17 | CC42: -7.520285979e-17 | CD42: =CD70+CD101+CD146 -> -7.660915327e-17 | CE42: -7.804174444e-17 | CF42: -7.950112506e-17 | CG42: -8.09877961e-17 | CH42: -8.250226788e-17 | CI42: -8.404506029e-17 | CJ42: -8.561670292e-17 | CK42: -8.721773527e-17 | CL42: -8.884870692e-17 | CM42: -9.051017773e-17 | CN42: -9.220271806e-17 | CO42: -9.392690889e-17 | CP42: -9.568334208e-17 | CQ42: -9.747262058e-17
B43: ='AA 2020-2024 inputs'!B21 -> SCADA, communications and electronic equipment | I43: $m | J43: -0.09673250124 | K43: 0.3525127491 | L43: 0.3414062447 | M43: 0.344240366 | N43: 0.2376445846 | O43: 0.5052231433 | P43: =P71+P102+P147 -> 0.6074481916 | Q43: 0.7719164724 | R43: =R71+R102+R147 -> 0.8421297494 | S43: 0.9282668223 | T43: 0.6190257796 | U43: 0.516940757 | V43: 0.5376323412 | W43: 0.5544029526 | X43: 0.5657126051 | Y43: 0.5876656136 | Z43: 0.4888609401 | AA43: 0.3002853164 | AB43: 0.2317228422 | AC43: 0.1002158394 | AD43: -5.110873256e-17 | AE43: -5.206446586e-17 | AF43: -5.303807137e-17 | AG43: -5.40298833e-17 | AH43: -5.504024212e-17 | AI43: -5.606949465e-17 | AJ43: -5.71179942e-17 | AK43: -5.818610069e-17 | AL43: -5.927418077e-17 | AM43: -6.038260795e-17 | AN43: -6.151176272e-17 | AO43: -6.266203269e-17 | AP43: -6.38338127e-17 | AQ43: -6.502750499e-17 | AR43: -6.624351934e-17 | AS43: -6.748227315e-17 | AT43: -6.874419166e-17 | AU43: -7.002970804e-17 | AV43: -7.133926358e-17 | AW43: -7.267330781e-17 | AX43: -7.403229867e-17 | AY43: -7.541670265e-17 | AZ43: -7.682699499e-17 | BA43: -7.82636598e-17 | BB43: -7.972719024e-17 | BC43: -8.121808869e-17 | BD43: -8.273686695e-17 | BE43: -8.428404636e-17 | BF43: -8.586015803e-17 | BG43: -8.746574299e-17 | BH43: -8.910135238e-17 | BI43: -9.076754767e-17 | BJ43: -9.246490081e-17 | BK43: -9.419399446e-17 | BL43: -9.595542215e-17 | BM43: -9.774978855e-17 | BN43: -9.957770959e-17 | BO43: -1.014398128e-16 | BP43: -1.033367373e-16 | BQ43: -1.052691342e-16 | BR43: -1.072376671e-16 | BS43: -1.092430114e-16 | BT43: -1.112858557e-16 | BU43: -1.133669012e-16 | BV43: -1.154868623e-16 | BW43: -1.176464666e-16 | BX43: -1.198464556e-16 | BY43: -1.220875843e-16 | BZ43: -1.243706221e-16 | CA43: -1.266963527e-16 | CB43: -1.290655745e-16 | CC43: -1.314791008e-16 | CD43: =CD71+CD102+CD147 -> -1.3393776e-16 | CE43: -1.364423961e-16 | CF43: -1.389938689e-16 | CG43: -1.415930542e-16 | CH43: -1.442408443e-16 | CI43: -1.469381481e-16 | CJ43: -1.496858915e-16 | CK43: -1.524850177e-16 | CL43: -1.553364875e-16 | CM43: -1.582412798e-16 | CN43: -1.612003917e-16 | CO43: -1.642148391e-16 | CP43: -1.672856566e-16 | CQ43: -1.704138983e-16
B44: ='AA 2020-2024 inputs'!B22 -> Cathodic protection | I44: $m | J44: -0.5294621599 | K44: 0.1129285528 | L44: 0.1144284688 | M44: 0.1207882322 | N44: 0.126378194 | O44: 0.09097531797 | P44: =P72+P103+P148 -> 0.1400819736 | Q44: 0.1541438966 | R44: =R72+R103+R148 -> 0.1745242007 | S44: 0.1575263834 | T44: 0.07559859189 | U44: 0.07885849368 | V44: 0.08221387972 | W44: 0.08566718117 | X44: 0.08922088673 | Y44: 0.09287754392 | Z44: 0.09663976043 | AA44: 0.1005102055 | AB44: 0.1044916113 | AC44: 0.1085867742 | AD44: 0.1060583157 | AE44: 0.08864173135 | AF44: 0.07534846972 | AG44: 0.0468263655 | AH44: 0.0053112599 | AI44: -1.951556181e-17 | AJ44: -1.988050282e-17 | AK44: -2.025226822e-17 | AL44: -2.063098564e-17 | AM44: -2.101678507e-17 | AN44: -2.140979895e-17 | AO44: -2.181016219e-17 | AP44: -2.221801222e-17 | AQ44: -2.263348905e-17 | AR44: -2.30567353e-17 | AS44: -2.348789625e-17 | AT44: -2.392711991e-17 | AU44: -2.437455705e-17 | AV44: -2.483036127e-17 | AW44: -2.529468902e-17 | AX44: -2.576769971e-17 | AY44: -2.624955569e-17 | AZ44: -2.674042238e-17 | BA44: -2.724046828e-17 | BB44: -2.774986504e-17 | BC44: -2.826878752e-17 | BD44: -2.879741384e-17 | BE44: -2.933592548e-17 | BF44: -2.988450729e-17 | BG44: -3.044334757e-17 | BH44: -3.101263817e-17 | BI44: -3.159257451e-17 | BJ44: -3.218335565e-17 | BK44: -3.27851844e-17 | BL44: -3.339826735e-17 | BM44: -3.402281495e-17 | BN44: -3.465904159e-17 | BO44: -3.530716567e-17 | BP44: -3.596740966e-17 | BQ44: -3.664000023e-17 | BR44: -3.732516823e-17 | BS44: -3.802314888e-17 | BT44: -3.873418176e-17 | BU44: -3.945851096e-17 | BV44: -4.019638511e-17 | BW44: -4.094805751e-17 | BX44: -4.171378619e-17 | BY44: -4.249383399e-17 | BZ44: -4.328846869e-17 | CA44: -4.409796305e-17 | CB44: -4.492259496e-17 | CC44: -4.576264749e-17 | CD44: =CD72+CD103+CD148 -> -4.6618409e-17 | CE44: -4.749017324e-17 | CF44: -4.837823948e-17 | CG44: -4.928291256e-17 | CH44: -5.020450303e-17 | CI44: -5.114332723e-17 | CJ44: -5.209970745e-17 | CK44: -5.307397198e-17 | CL44: -5.406645526e-17 | CM44: -5.507749797e-17 | CN44: -5.610744718e-17 | CO44: -5.715665645e-17 | CP44: -5.822548592e-17 | CQ44: -5.931430251e-17
B45: ='AA 2020-2024 inputs'!B23 -> Maintenance bases and depots | I45: $m | J45: 0.09359661105 | K45: 0.1150311368 | L45: 0.09297379644 | M45: 0.1012506068 | N45: 0.1072489488 | O45: 0.1136120356 | P45: =P73+P104+P149 -> 0.1267551557 | Q45: 0.1356253328 | R45: =R73+R104+R149 -> 0.1443349289 | S45: 0.1533228371 | T45: 0.1625964206 | U45: 0.1721632206 | V45: 0.1820309606 | W45: 0.1922075504 | X45: 0.2027010902 | Y45: 0.2135198753 | Z45: 0.2246724004 | AA45: 0.2361673643 | AB45: 0.248013674 | AC45: 0.2602204504 | AD45: 0.2727970323 | AE45: 0.2857529819 | AF45: 0.2990980897 | AG45: 0.3128423795 | AH45: 0.3269961141 | AI45: 0.3415698005 | AJ45: 0.3715980091 | AK45: 0.3714145063 | AL45: 0.3872857057 | AM45: 0.2530446299 | AN45: 0.110831737 | AO45: 0.1166033438 | AP45: 0.1225520519 | AQ45: 0.1286824667 | AR45: 0.1349993037 | AS45: 0.1414013997 | AT45: 0.14785856 | AU45: 0.1546104381 | AV45: 0.161647279 | AW45: 0.1689495761 | AX45: 0.1764684527 | AY45: 0.1832747714 | AZ45: 0.1902611799 | BA45: 0.1963838361 | BB45: 0.1994713203 | BC45: 0.206934103 | BD45: 0.2120469599 | BE45: 0.2207154783 | BF45: 0.2296340485 | BG45: 0.1846982262 | BH45: 0.191200593 | BI45: 0.1987932367 | BJ45: 0.2066029843 | BK45: 0.2137501051 | BL45: 0.2218767028 | BM45: 0.2142416968 | BN45: 0.01677211742 | BO45: -3.880280608e-16 | BP45: -3.952841855e-16 | BQ45: -4.026759998e-16 | BR45: -4.10206041e-16 | BS45: -4.17876894e-16 | BT45: -4.256911919e-16 | BU45: -4.336516172e-16 | BV45: -4.417609024e-16 | BW45: -4.500218313e-16 | BX45: -4.584372395e-16 | BY45: -4.670100159e-16 | BZ45: -4.757431032e-16 | CA45: -4.846394992e-16 | CB45: -4.937022579e-16 | CC45: -5.029344901e-16 | CD45: =CD73+CD104+CD149 -> -5.12339365e-16 | CE45: -5.219201112e-16 | CF45: -5.316800173e-16 | CG45: -5.416224336e-16 | CH45: -5.517507731e-16 | CI45: -5.620685125e-16 | CJ45: -5.725791937e-16 | CK45: -5.832864246e-16 | CL45: -5.941938808e-16 | CM45: -6.053053064e-16 | CN45: -6.166245156e-16 | CO45: -6.28155394e-16 | CP45: -6.399018999e-16 | CQ45: -6.518680654e-16
B46: ='AA 2020-2024 inputs'!B24 -> Other depreciable assets | I46: $m | J46: =J74+J105+J150 -> -1.96520582 | K46: 0.1999572277 | L46: 0.1842726005 | M46: 0.1631268614 | N46: 0.1377041592 | O46: 0.05403883091 | P46: =P74+P105+P150 -> 0.1558858129 | Q46: 0.1620128043 | R46: =R74+R105+R150 -> 0.1683144334 | S46: 0.1200115534 | T46: 0.07682773546 | U46: 0.05646256382 | V46: 0.04645876402 | W46: 0.03650255489 | X46: 0.02645282249 | Y46: -4.179808371e-18 | Z46: -4.257970787e-18 | AA46: -4.337594841e-18 | AB46: -4.418707864e-18 | AC46: -4.501337701e-18 | AD46: -4.585512716e-18 | AE46: -4.671261804e-18 | AF46: -4.7586144e-18 | AG46: -4.847600489e-18 | AH46: -4.938250618e-18 | AI46: -5.030595905e-18 | AJ46: -5.124668048e-18 | AK46: -5.220499341e-18 | AL46: -5.318122679e-18 | AM46: -5.417571573e-18 | AN46: -5.518880161e-18 | AO46: -5.62208322e-18 | AP46: -5.727216176e-18 | AQ46: -5.834315119e-18 | AR46: -5.943416812e-18 | AS46: -6.054558706e-18 | AT46: -6.167778954e-18 | AU46: -6.28311642e-18 | AV46: -6.400610697e-18 | AW46: -6.520302117e-18 | AX46: -6.642231767e-18 | AY46: -6.766441501e-18 | AZ46: -6.892973957e-18 | BA46: -7.02187257e-18 | BB46: -7.153181587e-18 | BC46: -7.286946083e-18 | BD46: -7.423211974e-18 | BE46: -7.562026038e-18 | BF46: -7.703435925e-18 | BG46: -7.847490177e-18 | BH46: -7.994238243e-18 | BI46: -8.143730499e-18 | BJ46: -8.296018259e-18 | BK46: -8.4511538e-18 | BL46: -8.609190376e-18 | BM46: -8.770182236e-18 | BN46: -8.934184644e-18 | BO46: -9.101253897e-18 | BP46: -9.271447345e-18 | BQ46: -9.44482341e-18 | BR46: -9.621441608e-18 | BS46: -9.801362566e-18 | BT46: -9.984648046e-18 | BU46: -1.017136096e-17 | BV46: -1.036156541e-17 | BW46: -1.055532669e-17 | BX46: -1.07527113e-17 | BY46: -1.0953787e-17 | BZ46: -1.115862282e-17 | CA46: -1.136728906e-17 | CB46: -1.157985737e-17 | CC46: -1.17964007e-17 | CD46: =CD74+CD105+CD150 -> -1.201699339e-17 | CE46: -1.224171117e-17 | CF46: -1.247063117e-17 | CG46: -1.270383197e-17 | CH46: -1.294139363e-17 | CI46: -1.318339769e-17 | CJ46: -1.342992723e-17 | CK46: -1.368106687e-17 | CL46: -1.393690282e-17 | CM46: -1.41975229e-17 | CN46: -1.446301658e-17 | CO46: -1.473347499e-17 | CP46: -1.500899097e-17 | CQ46: -1.52896591e-17
I48: $m | J48: =SUM(J39:J47) -> 0.572732703 | K48: =SUM(K39:K47) -> 5.368853722 | L48: =SUM(L39:L47) -> 3.965619499 | M48: =SUM(M39:M47) -> 4.371021743 | N48: =SUM(N39:N47) -> 4.525319655 | O48: =SUM(O39:O47) -> 4.452872418 | P48: 5.548110244 | Q48: 6.043310806 | R48: 6.473243134 | S48: 5.770381119 | T48: 4.590302941 | U48: 4.73967964 | V48: 5.030998793 | W48: 5.327483272 | X48: 5.627691891 | Y48: 5.880375785 | Z48: 5.871729228 | AA48: 5.752552411 | AB48: 5.807152831 | AC48: 5.626635018 | AD48: =SUM(AD39:AD47) -> 5.691187261 | AE48: 5.957700953 | AF48: 6.209166295 | AG48: 6.496758515 | AH48: 6.772003009 | AI48: 7.115906887 | AJ48: 7.495042412 | AK48: 7.854653923 | AL48: 8.212465491 | AM48: 8.241807096 | AN48: 8.249272168 | AO48: 8.64216185 | AP48: 8.983014574 | AQ48: 9.368471206 | AR48: 9.784135887 | AS48: 10.15393725 | AT48: 10.4976354 | AU48: 10.93483781 | AV48: 11.33501603 | AW48: 11.80288312 | AX48: 12.1778437 | AY48: 12.68184522 | AZ48: 13.20042516 | BA48: 13.73290433 | BB48: 14.27651258 | BC48: 14.84060195 | BD48: 15.41858466 | BE48: 16.01643111 | BF48: 16.63124529 | BG48: 8.667358996 | BH48: 0.2744720802 | BI48: 0.2991344845 | BJ48: 0.3115783385 | BK48: 0.3234977931 | BL48: 0.3365385009 | BM48: 0.3339630151 | BN48: 0.1417020859 | BO48: 0.1302915568 | BP48: 0.1358099818 | BQ48: 0.1414892342 | BR48: 0.1366619583 | BS48: 0.1386338544 | BT48: 0.1374978037 | BU48: 0.2628527929 | BV48: 0.1162418673 | BW48: 0.2601921864 | BX48: 0.03722768144 | BY48: 0.03875508505 | BZ48: 0.0403265954 | CA48: 0.04059156276 | CB48: 0.04220410331 | CC48: 0.02664495034 | CD48: 0.03039747891 | CE48: 0.02721530235 | CF48: 0.02921684198 | CG48: 0.03034555107 | CH48: 0.01023745451 | CI48: 0.01063550614 | CJ48: 0.01104486496 | CK48: 0.01146581467 | CL48: -3.927666289e-14 | CM48: =SUM(CM39:CM47) -> -4.001113649e-14 | CN48: =SUM(CN39:CN47) -> -4.075934474e-14 | CO48: =SUM(CO39:CO47) -> -4.152154449e-14 | CP48: =SUM(CP39:CP47) -> -4.229799737e-14 | CQ48: =SUM(CQ39:CQ47) -> -4.308896992e-14
B51: Initial capital base (beginning of year)
B53: ='AA 2020-2024 inputs'!B17 -> Pipeline and laterals | I53: $m | J53: ='AA 2020-2024 inputs'!H145 -> 336.6426205 | K53: =J53-J67 -> 335.4113201 | L53: =K53-K67 -> 333.3442667 | M53: =L53-L67 -> 332.5563621 | N53: =M53-M67 -> 331.4896786 | O53: =N53-N67 -> 330.2668095 | P53: =O53-O67 -> 328.8822865 | Q53: =P53-P67 -> 327.3304914 | R53: =Q53-Q67 -> 325.6056522 | S53: =R53-R67 -> 323.7018399 | T53: =S53-S67 -> 321.612964 | U53: =T53-T67 -> 319.3327688 | V53: =U53-U67 -> 316.8548294 | W53: =V53-V67 -> 314.1725477 | X53: =W53-W67 -> 311.2791476 | Y53: =X53-X67 -> 308.1676714 | Z53: =Y53-Y67 -> 304.8309748 | AA53: =Z53-Z67 -> 301.2617225 | AB53: =AA53-AA67 -> 297.4523839 | AC53: =AB53-AB67 -> 293.3952278 | AD53: =AC53-AC67 -> 289.082318 | AE53: =AD53-AD67 -> 284.5055079 | AF53: =AE53-AE67 -> 279.656436 | AG53: =AF53-AF67 -> 274.52652 | AH53: =AG53-AG67 -> 269.1069521 | AI53: =AH53-AH67 -> 263.3886932 | AJ53: =AI53-AI67 -> 257.3624674 | AK53: =AJ53-AJ67 -> 251.0187564 | AL53: =AK53-AK67 -> 244.3477935 | AM53: =AL53-AL67 -> 237.3395578 | AN53: =AM53-AM67 -> 229.9837682 | AO53: =AN53-AN67 -> 222.2698767 | AP53: =AO53-AO67 -> 214.1870627 | AQ53: =AP53-AP67 -> 205.7242258 | AR53: =AQ53-AQ67 -> 196.8699798 | AS53: =AR53-AR67 -> 187.6126453 | AT53: =AS53-AS67 -> 177.9402431 | AU53: =AT53-AT67 -> 167.8404867 | AV53: =AU53-AU67 -> 157.3007755 | AW53: =AV53-AV67 -> 146.3081869 | AX53: =AW53-AW67 -> 134.8494691 | AY53: =AX53-AX67 -> 122.9110327 | AZ53: =AY53-AY67 -> 110.4789432 | BA53: =AZ53-AZ67 -> 97.53891285 | BB53: =BA53-BA67 -> 84.07629198 | BC53: =BB53-BB67 -> 70.07606071 | BD53: =BC53-BC67 -> 55.52282014 | BE53: =BD53-BD67 -> 40.40078349 | BF53: =BE53-BE67 -> 24.69376688 | BG53: =BF53-BF67 -> 8.385180108 | BH53: =BG53-BG67 -> 1.117328452e-12 | BI53: =BH53-BH67 -> 1.138222494e-12 | BJ53: =BI53-BI67 -> 1.159507255e-12 | BK53: =BJ53-BJ67 -> 1.18119004e-12 | BL53: =BK53-BK67 -> 1.203278294e-12 | BM53: =BL53-BL67 -> 1.225779598e-12 | BN53: =BM53-BM67 -> 1.248701677e-12 | BO53: =BN53-BN67 -> 1.272052398e-12 | BP53: =BO53-BO67 -> 1.295839778e-12 | BQ53: =BP53-BP67 -> 1.320071982e-12 | BR53: =BQ53-BQ67 -> 1.344757328e-12 | BS53: =BR53-BR67 -> 1.36990429e-12 | BT53: =BS53-BS67 -> 1.3955215e-12 | BU53: =BT53-BT67 -> 1.421617752e-12 | BV53: =BU53-BU67 -> 1.448202004e-12 | BW53: =BV53-BV67 -> 1.475283382e-12 | BX53: =BW53-BW67 -> 1.502871181e-12 | BY53: =BX53-BX67 -> 1.530974872e-12 | BZ53: =BY53-BY67 -> 1.559604102e-12 | CA53: =BZ53-BZ67 -> 1.588768699e-12 | CB53: =CA53-CA67 -> 1.618478673e-12 | CC53: =CB53-CB67 -> 1.648744224e-12 | CD53: =CC53-CC67 -> 1.679575741e-12 | CE53: =CD53-CD67 -> 1.710983808e-12 | CF53: =CE53-CE67 -> 1.742979205e-12 | CG53: =CF53-CF67 -> 1.775572916e-12 | CH53: =CG53-CG67 -> 1.80877613e-12 | CI53: =CH53-CH67 -> 1.842600243e-12 | CJ53: =CI53-CI67 -> 1.877056868e-12 | CK53: =CJ53-CJ67 -> 1.912157831e-12 | CL53: =CK53-CK67 -> 1.947915183e-12 | CM53: =CL53-CL67 -> 1.984341197e-12 | CN53: =CM53-CM67 -> 2.021448377e-12 | CO53: =CN53-CN67 -> 2.059249462e-12 | CP53: =CO53-CO67 -> 2.097757427e-12 | CQ53: =CP53-CP67 -> 2.136985491e-12
B54: ='AA 2020-2024 inputs'!B18 -> Main line valve and scraper stations | I54: $m | J54: ='AA 2020-2024 inputs'!H146 -> 6.084140828 | K54: =J54-J68 -> 5.97715034 | L54: 5.852553822 | M54: 5.747401326 | N54: 5.633938949 | O54: 5.51422327 | P54: 5.388060092 | Q54: 5.255250143 | R54: 5.115588951 | S54: 4.968866721 | T54: 4.814868211 | U54: 4.653372592 | V54: 4.484153327 | W54: 4.306978023 | X54: 4.121608299 | Y54: 3.927799641 | Z54: 3.725301253 | AA54: 3.513855913 | AB54: 3.293199817 | AC54: 3.063062423 | AD54: 2.823166291 | AE54: 2.573226922 | AF54: 2.312952587 | AG54: 2.04204416 | AH54: 1.760194942 | AI54: 1.467090481 | AJ54: 1.16240839 | AK54: 0.845818162 | AL54: 0.516980977 | AM54: 0.1755495071 | AN54: 4.413136523e-15 | AO54: 4.495662176e-15 | AP54: 4.579731059e-15 | AQ54: 4.665372029e-15 | AR54: 4.752614486e-15 | AS54: 4.841488377e-15 | AT54: 4.93202421e-15 | AU54: 5.024253063e-15 | AV54: 5.118206595e-15 | AW54: 5.213917058e-15 | AX54: 5.311417307e-15 | AY54: 5.410740811e-15 | AZ54: 5.511921664e-15 | BA54: 5.614994599e-15 | BB54: 5.719994998e-15 | BC54: 5.826958905e-15 | BD54: 5.935923036e-15 | BE54: 6.046924797e-15 | BF54: 6.160002291e-15 | BG54: 6.275194333e-15 | BH54: 6.392540467e-15 | BI54: 6.512080974e-15 | BJ54: 6.633856888e-15 | BK54: 6.757910012e-15 | BL54: 6.884282929e-15 | BM54: 7.01301902e-15 | BN54: 7.144162476e-15 | BO54: 7.277758314e-15 | BP54: 7.413852395e-15 | BQ54: 7.552491434e-15 | BR54: 7.693723024e-15 | BS54: 7.837595645e-15 | BT54: 7.984158683e-15 | BU54: 8.133462451e-15 | BV54: 8.285558199e-15 | BW54: 8.440498137e-15 | BX54: 8.598335452e-15 | BY54: 8.759124325e-15 | BZ54: 8.92291995e-15 | CA54: 9.089778553e-15 | CB54: 9.259757412e-15 | CC54: 9.432914875e-15 | CD54: 9.609310384e-15 | CE54: 9.789004488e-15 | CF54: 9.972058872e-15 | CG54: 1.015853637e-14 | CH54: 1.0348501e-14 | CI54: 1.054201797e-14 | CJ54: 1.073915371e-14 | CK54: 1.093997588e-14 | CL54: 1.114455343e-14 | CM54: 1.135295658e-14 | CN54: 1.156525687e-14 | CO54: 1.178152717e-14 | CP54: 1.200184173e-14 | CQ54: 1.222627617e-14
B55: ='AA 2020-2024 inputs'!B19 -> Compressor stations | I55: $m | J55: ='AA 2020-2024 inputs'!H147 -> 16.12130414 | K55: 14.66788746 | L55: 13.13328322 | M55: 11.59947493 | N55: 9.998479709 | O55: 8.333551047 | P55: 6.602857685 | Q55: 4.804522231 | R55: 2.936620078 | S55: 0.9971782911 | T55: 5.551115123e-15 | U55: 5.654920976e-15 | V55: 5.760667998e-15 | W55: 5.86839249e-15 | X55: 5.978131429e-15 | Y55: 6.089922487e-15 | Z55: 6.203804038e-15 | AA55: 6.319815173e-15 | AB55: 6.437995717e-15 | AC55: 6.558386237e-15 | AD55: 6.681028059e-15 | AE55: 6.805963284e-15 | AF55: 6.933234797e-15 | AG55: 7.062886288e-15 | AH55: 7.194962262e-15 | AI55: 7.329508056e-15 | AJ55: 7.466569857e-15 | AK55: 7.606194713e-15 | AL55: 7.748430554e-15 | AM55: 7.893326205e-15 | AN55: 8.040931406e-15 | AO55: 8.191296823e-15 | AP55: 8.344474073e-15 | AQ55: 8.500515739e-15 | AR55: 8.659475383e-15 | AS55: 8.821407573e-15 | AT55: 8.986367894e-15 | AU55: 9.154412974e-15 | AV55: 9.325600496e-15 | AW55: 9.499989226e-15 | AX55: 9.677639024e-15 | AY55: 9.858610874e-15 | AZ55: 1.00429669e-14 | BA55: 1.023077038e-14 | BB55: 1.042208578e-14 | BC55: 1.061697879e-14 | BD55: 1.081551629e-14 | BE55: 1.101776645e-14 | BF55: 1.122379868e-14 | BG55: 1.143368371e-14 | BH55: 1.16474936e-14 | BI55: 1.186530173e-14 | BJ55: 1.208718287e-14 | BK55: 1.231321319e-14 | BL55: 1.254347028e-14 | BM55: 1.277803317e-14 | BN55: 1.301698239e-14 | BO55: 1.326039996e-14 | BP55: 1.350836944e-14 | BQ55: 1.376097595e-14 | BR55: 1.40183062e-14 | BS55: 1.428044853e-14 | BT55: 1.454749292e-14 | BU55: 1.481953103e-14 | BV55: 1.509665626e-14 | BW55: 1.537896374e-14 | BX55: 1.566655036e-14 | BY55: 1.595951485e-14 | BZ55: 1.625795778e-14 | CA55: 1.656198159e-14 | CB55: 1.687169064e-14 | CC55: 1.718719126e-14 | CD55: 1.750859173e-14 | CE55: 1.78360024e-14 | CF55: 1.816953565e-14 | CG55: 1.850930596e-14 | CH55: 1.885542998e-14 | CI55: 1.920802652e-14 | CJ55: 1.956721662e-14 | CK55: 1.993312357e-14 | CL55: 2.030587298e-14 | CM55: 2.068559281e-14 | CN55: 2.107241339e-14 | CO55: 2.146646752e-14 | CP55: 2.186789046e-14 | CQ55: 2.227682002e-14
B56: ='AA 2020-2024 inputs'!B20 -> Receipt and delivery point facilities | I56: $m | J56: ='AA 2020-2024 inputs'!H148 -> 0.5949497046 | K56: 0.5413119955 | L56: 0.4846780945 | M56: 0.428073568 | N56: 0.368989537 | O56: 0.3075460702 | P56: 0.2436755858 | Q56: 0.1773087994 | R56: 0.1083746844 | S56: 0.03680043033 | T56: 1.804112415e-16 | U56: 1.837849317e-16 | V56: 1.872217099e-16 | W56: 1.907227559e-16 | X56: 1.942892715e-16 | Y56: 1.979224808e-16 | Z56: 2.016236312e-16 | AA56: 2.053939931e-16 | AB56: 2.092348608e-16 | AC56: 2.131475527e-16 | AD56: 2.171334119e-16 | AE56: 2.211938067e-16 | AF56: 2.253301309e-16 | AG56: 2.295438044e-16 | AH56: 2.338362735e-16 | AI56: 2.382090118e-16 | AJ56: 2.426635203e-16 | AK56: 2.472013282e-16 | AL56: 2.51823993e-16 | AM56: 2.565331017e-16 | AN56: 2.613302707e-16 | AO56: 2.662171467e-16 | AP56: 2.711954074e-16 | AQ56: 2.762667615e-16 | AR56: 2.814329499e-16 | AS56: 2.866957461e-16 | AT56: 2.920569566e-16 | AU56: 2.975184216e-16 | AV56: 3.030820161e-16 | AW56: 3.087496498e-16 | AX56: 3.145232683e-16 | AY56: 3.204048534e-16 | AZ56: 3.263964242e-16 | BA56: 3.325000373e-16 | BB56: 3.38717788e-16 | BC56: 3.450518106e-16 | BD56: 3.515042795e-16 | BE56: 3.580774095e-16 | BF56: 3.647734571e-16 | BG56: 3.715947207e-16 | BH56: 3.78543542e-16 | BI56: 3.856223062e-16 | BJ56: 3.928334434e-16 | BK56: 4.001794287e-16 | BL56: 4.076627841e-16 | BM56: 4.152860781e-16 | BN56: 4.230519278e-16 | BO56: 4.309629988e-16 | BP56: 4.390220069e-16 | BQ56: 4.472317184e-16 | BR56: 4.555949516e-16 | BS56: 4.641145772e-16 | BT56: 4.727935198e-16 | BU56: 4.816347586e-16 | BV56: 4.906413286e-16 | BW56: 4.998163214e-16 | BX56: 5.091628866e-16 | BY56: 5.186842326e-16 | BZ56: 5.283836278e-16 | CA56: 5.382644016e-16 | CB56: 5.483299459e-16 | CC56: 5.585837159e-16 | CD56: 5.690292314e-16 | CE56: 5.79670078e-16 | CF56: 5.905099085e-16 | CG56: 6.015524438e-16 | CH56: 6.128014745e-16 | CI56: 6.24260862e-16 | CJ56: 6.359345401e-16 | CK56: 6.47826516e-16 | CL56: 6.599408719e-16 | CM56: 6.722817662e-16 | CN56: 6.848534352e-16 | CO56: 6.976601945e-16 | CP56: 7.107064401e-16 | CQ56: 7.239966505e-16
B57: ='AA 2020-2024 inputs'!B21 -> SCADA, communications and electronic equipment | I57: $m | J57: ='AA 2020-2024 inputs'!H149 -> 0 | K57: 0 | L57: 0 | M57: 0 | N57: 0 | O57: 0 | P57: 0 | Q57: 0 | R57: 0 | S57: 0 | T57: 0 | U57: 0 | V57: 0 | W57: 0 | X57: 0 | Y57: 0 | Z57: 0 | AA57: 0 | AB57: 0 | AC57: 0 | AD57: 0 | AE57: 0 | AF57: 0 | AG57: 0 | AH57: 0 | AI57: 0 | AJ57: 0 | AK57: 0 | AL57: 0 | AM57: 0 | AN57: 0 | AO57: 0 | AP57: 0 | AQ57: 0 | AR57: 0 | AS57: 0 | AT57: 0 | AU57: 0 | AV57: 0 | AW57: 0 | AX57: 0 | AY57: 0 | AZ57: 0 | BA57: 0 | BB57: 0 | BC57: 0 | BD57: 0 | BE57: 0 | BF57: 0 | BG57: 0 | BH57: 0 | BI57: 0 | BJ57: 0 | BK57: 0 | BL57: 0 | BM57: 0 | BN57: 0 | BO57: 0 | BP57: 0 | BQ57: 0 | BR57: 0 | BS57: 0 | BT57: 0 | BU57: 0 | BV57: 0 | BW57: 0 | BX57: 0 | BY57: 0 | BZ57: 0 | CA57: 0 | CB57: 0 | CC57: 0 | CD57: 0 | CE57: 0 | CF57: 0 | CG57: 0 | CH57: 0 | CI57: 0 | CJ57: 0 | CK57: 0 | CL57: 0 | CM57: 0 | CN57: 0 | CO57: 0 | CP57: 0 | CQ57: 0
B58: ='AA 2020-2024 inputs'!B22 -> Cathodic protection | I58: $m | J58: ='AA 2020-2024 inputs'!H150 -> 0 | K58: 0 | L58: 0 | M58: 0 | N58: 0 | O58: 0 | P58: 0 | Q58: 0 | R58: 0 | S58: 0 | T58: 0 | U58: 0 | V58: 0 | W58: 0 | X58: 0 | Y58: 0 | Z58: 0 | AA58: 0 | AB58: 0 | AC58: 0 | AD58: 0 | AE58: 0 | AF58: 0 | AG58: 0 | AH58: 0 | AI58: 0 | AJ58: 0 | AK58: 0 | AL58: 0 | AM58: 0 | AN58: 0 | AO58: 0 | AP58: 0 | AQ58: 0 | AR58: 0 | AS58: 0 | AT58: 0 | AU58: 0 | AV58: 0 | AW58: 0 | AX58: 0 | AY58: 0 | AZ58: 0 | BA58: 0 | BB58: 0 | BC58: 0 | BD58: 0 | BE58: 0 | BF58: 0 | BG58: 0 | BH58: 0 | BI58: 0 | BJ58: 0 | BK58: 0 | BL58: 0 | BM58: 0 | BN58: 0 | BO58: 0 | BP58: 0 | BQ58: 0 | BR58: 0 | BS58: 0 | BT58: 0 | BU58: 0 | BV58: 0 | BW58: 0 | BX58: 0 | BY58: 0 | BZ58: 0 | CA58: 0 | CB58: 0 | CC58: 0 | CD58: 0 | CE58: 0 | CF58: 0 | CG58: 0 | CH58: 0 | CI58: 0 | CJ58: 0 | CK58: 0 | CL58: 0 | CM58: 0 | CN58: 0 | CO58: 0 | CP58: 0 | CQ58: 0
B59: ='AA 2020-2024 inputs'!B23 -> Maintenance bases and depots | I59: $m | J59: ='AA 2020-2024 inputs'!H151 -> 5.122819224 | K59: 5.032733714 | L59: 4.927824006 | M59: 4.839286077 | N59: 4.743751265 | O59: 4.642951202 | P59: 4.536722373 | Q59: 4.424896993 | R59: 4.307302897 | S59: 4.18376344 | T59: 4.054097386 | U59: 3.918118802 | V59: 3.775636941 | W59: 3.626456132 | X59: 3.470375658 | Y59: 3.307189638 | Z59: 3.136686906 | AA59: 2.958650881 | AB59: 2.77285944 | AC59: 2.579084789 | AD59: 2.377093325 | AE59: 2.166645499 | AF59: 1.94749568 | AG59: 1.719392002 | AH59: 1.482076228 | AI59: 1.235283589 | AJ59: 0.9787426383 | AK59: 0.7121750897 | AL59: 0.4352956583 | AM59: 0.1478118957 | AN59: 1.804112415e-15 | AO59: 1.837849317e-15 | AP59: 1.872217099e-15 | AQ59: 1.907227559e-15 | AR59: 1.942892715e-15 | AS59: 1.979224808e-15 | AT59: 2.016236312e-15 | AU59: 2.053939931e-15 | AV59: 2.092348608e-15 | AW59: 2.131475527e-15 | AX59: 2.171334119e-15 | AY59: 2.211938067e-15 | AZ59: 2.253301309e-15 | BA59: 2.295438044e-15 | BB59: 2.338362735e-15 | BC59: 2.382090118e-15 | BD59: 2.426635203e-15 | BE59: 2.472013282e-15 | BF59: 2.51823993e-15 | BG59: 2.565331017e-15 | BH59: 2.613302707e-15 | BI59: 2.662171467e-15 | BJ59: 2.711954074e-15 | BK59: 2.762667615e-15 | BL59: 2.814329499e-15 | BM59: 2.866957461e-15 | BN59: 2.920569566e-15 | BO59: 2.975184216e-15 | BP59: 3.030820161e-15 | BQ59: 3.087496498e-15 | BR59: 3.145232683e-15 | BS59: 3.204048534e-15 | BT59: 3.263964242e-15 | BU59: 3.325000373e-15 | BV59: 3.38717788e-15 | BW59: 3.450518106e-15 | BX59: 3.515042795e-15 | BY59: 3.580774095e-15 | BZ59: 3.647734571e-15 | CA59: 3.715947207e-15 | CB59: 3.78543542e-15 | CC59: 3.856223062e-15 | CD59: 3.928334434e-15 | CE59: 4.001794287e-15 | CF59: 4.076627841e-15 | CG59: 4.152860781e-15 | CH59: 4.230519278e-15 | CI59: 4.309629988e-15 | CJ59: 4.390220069e-15 | CK59: 4.472317184e-15 | CL59: 4.555949516e-15 | CM59: 4.641145772e-15 | CN59: 4.727935198e-15 | CO59: 4.816347586e-15 | CP59: 4.906413286e-15 | CQ59: 4.998163214e-15
B60: ='AA 2020-2024 inputs'!B24 -> Other depreciable assets | I60: $m | J60: ='AA 2020-2024 inputs'!H152 -> 0 | K60: 0 | L60: 0 | M60: 0 | N60: 0 | O60: 0 | P60: 0 | Q60: 0 | R60: 0 | S60: 0 | T60: 0 | U60: 0 | V60: 0 | W60: 0 | X60: 0 | Y60: 0 | Z60: 0 | AA60: 0 | AB60: 0 | AC60: 0 | AD60: 0 | AE60: 0 | AF60: 0 | AG60: 0 | AH60: 0 | AI60: 0 | AJ60: 0 | AK60: 0 | AL60: 0 | AM60: 0 | AN60: 0 | AO60: 0 | AP60: 0 | AQ60: 0 | AR60: 0 | AS60: 0 | AT60: 0 | AU60: 0 | AV60: 0 | AW60: 0 | AX60: 0 | AY60: 0 | AZ60: 0 | BA60: 0 | BB60: 0 | BC60: 0 | BD60: 0 | BE60: 0 | BF60: 0 | BG60: 0 | BH60: 0 | BI60: 0 | BJ60: 0 | BK60: 0 | BL60: 0 | BM60: 0 | BN60: 0 | BO60: 0 | BP60: 0 | BQ60: 0 | BR60: 0 | BS60: 0 | BT60: 0 | BU60: 0 | BV60: 0 | BW60: 0 | BX60: 0 | BY60: 0 | BZ60: 0 | CA60: 0 | CB60: 0 | CC60: 0 | CD60: 0 | CE60: 0 | CF60: 0 | CG60: 0 | CH60: 0 | CI60: 0 | CJ60: 0 | CK60: 0 | CL60: 0 | CM60: 0 | CN60: 0 | CO60: 0 | CP60: 0 | CQ60: 0
B61: ='AA 2020-2024 inputs'!B25 -> Non-depreciable assets | I61: $m | J61: ='AA 2020-2024 inputs'!H153 -> 2.581675929 | K61: =J61 -> 2.581675929 | L61: 2.581675929 | M61: 2.581675929 | N61: 2.581675929 | O61: 2.581675929 | P61: 2.581675929 | Q61: 2.581675929 | R61: 2.581675929 | S61: 2.581675929 | T61: 2.581675929 | U61: 2.581675929 | V61: 2.581675929 | W61: 2.581675929 | X61: 2.581675929 | Y61: 2.581675929 | Z61: 2.581675929 | AA61: 2.581675929 | AB61: 2.581675929 | AC61: 2.581675929 | AD61: 2.581675929 | AE61: 2.581675929 | AF61: 2.581675929 | AG61: 2.581675929 | AH61: 2.581675929 | AI61: 2.581675929 | AJ61: 2.581675929 | AK61: 2.581675929 | AL61: 2.581675929 | AM61: 2.581675929 | AN61: 2.581675929 | AO61: 2.581675929 | AP61: 2.581675929 | AQ61: =AP61 -> 2.581675929 | AR61: 2.581675929 | AS61: 2.581675929 | AT61: 2.581675929 | AU61: 2.581675929 | AV61: 2.581675929 | AW61: 2.581675929 | AX61: 2.581675929 | AY61: 2.581675929 | AZ61: 2.581675929 | BA61: 2.581675929 | BB61: 2.581675929 | BC61: 2.581675929 | BD61: 2.581675929 | BE61: 2.581675929 | BF61: 2.581675929 | BG61: 2.581675929 | BH61: 2.581675929 | BI61: 2.581675929 | BJ61: 2.581675929 | BK61: 2.581675929 | BL61: 2.581675929 | BM61: 2.581675929 | BN61: 2.581675929 | BO61: 2.581675929 | BP61: 2.581675929 | BQ61: 2.581675929 | BR61: 2.581675929 | BS61: 2.581675929 | BT61: 2.581675929 | BU61: 2.581675929 | BV61: 2.581675929 | BW61: =BV61 -> 2.581675929 | BX61: 2.581675929 | BY61: 2.581675929 | BZ61: 2.581675929 | CA61: 2.581675929 | CB61: 2.581675929 | CC61: 2.581675929 | CD61: 2.581675929 | CE61: 2.581675929 | CF61: 2.581675929 | CG61: 2.581675929 | CH61: 2.581675929 | CI61: 2.581675929 | CJ61: 2.581675929 | CK61: 2.581675929 | CL61: 2.581675929 | CM61: 2.581675929 | CN61: 2.581675929 | CO61: 2.581675929 | CP61: 2.581675929 | CQ61: 2.581675929
I63: $m | J63: =SUM(J53:J62) -> 367.1475103 | K63: =SUM(K53:K62) -> 364.2120796 | L63: =SUM(L53:L62) -> 360.3242818 | M63: =SUM(M53:M62) -> 357.7522739 | N63: =SUM(N53:N62) -> 354.816514 | O63: =SUM(O53:O62) -> 351.646757 | P63: 348.2352782 | Q63: 344.5741455 | R63: 340.6552148 | S63: 336.4701247 | T63: 333.0636055 | U63: 330.4859361 | V63: 327.6962956 | W63: 324.6876577 | X63: 321.4528075 | Y63: 317.9843366 | Z63: 314.2746389 | AA63: 310.3159053 | AB63: 306.1001191 | AC63: 301.619051 | AD63: =SUM(AD53:AD62) -> 296.8642535 | AE63: 291.8270563 | AF63: 286.4985602 | AG63: 280.8696321 | AH63: 274.9308992 | AI63: 268.6727432 | AJ63: 262.0852944 | AK63: 255.1584256 | AL63: 247.8817461 | AM63: 240.2445952 | AN63: 232.5654441 | AO63: 224.8515526 | AP63: 216.7687386 | AQ63: 208.3059018 | AR63: 199.4516558 | AS63: 190.1943213 | AT63: 180.521919 | AU63: 170.4221626 | AV63: 159.8824514 | AW63: 148.8898629 | AX63: 137.431145 | AY63: 125.4927086 | AZ63: 113.0606191 | BA63: 100.1205888 | BB63: 86.65796791 | BC63: 72.65773663 | BD63: 58.10449607 | BE63: 42.98245941 | BF63: 27.27544281 | BG63: 10.96685604 | BH63: 2.581675929 | BI63: 2.581675929 | BJ63: 2.581675929 | BK63: 2.581675929 | BL63: 2.581675929 | BM63: 2.581675929 | BN63: 2.581675929 | BO63: 2.581675929 | BP63: 2.581675929 | BQ63: 2.581675929 | BR63: 2.581675929 | BS63: 2.581675929 | BT63: 2.581675929 | BU63: 2.581675929 | BV63: 2.581675929 | BW63: 2.581675929 | BX63: 2.581675929 | BY63: 2.581675929 | BZ63: 2.581675929 | CA63: 2.581675929 | CB63: 2.581675929 | CC63: 2.581675929 | CD63: 2.581675929 | CE63: 2.581675929 | CF63: 2.581675929 | CG63: 2.581675929 | CH63: 2.581675929 | CI63: 2.581675929 | CJ63: 2.581675929 | CK63: 2.581675929 | CL63: 2.581675929 | CM63: =SUM(CM53:CM62) -> 2.581675929 | CN63: =SUM(CN53:CN62) -> 2.581675929 | CO63: =SUM(CO53:CO62) -> 2.581675929 | CP63: =SUM(CP53:CP62) -> 2.581675929 | CQ63: =SUM(CQ53:CQ62) -> 2.581675929
B65: Regulatory depreciation
B67: ='AA 2020-2024 inputs'!B17 -> Pipeline and laterals | I67: $m | J67: =SUMIF($C$159:$C$239,"Pipeline: regulatory depreciation",J$159:J$239) -> 1.231300354 | K67: =SUMIF($C$159:$C$239,"Pipeline: regulatory depreciation",K$159:K$239) -> 2.067053443 | L67: 0.7879046304 | M67: 1.066683471 | N67: 1.222869067 | O67: 1.384522996 | P67: 1.551795157 | Q67: 1.724839142 | R67: 1.903812326 | S67: 2.088875947 | T67: 2.280195204 | U67: 2.477939342 | V67: 2.682281749 | W67: 2.893400052 | X67: 3.111476212 | Y67: 3.336696628 | Z67: 3.569252234 | AA67: 3.809338612 | AB67: 4.057156087 | AC67: 4.312909849 | AD67: 4.576810055 | AE67: 4.849071947 | AF67: 5.129915968 | AG67: 5.419567885 | AH67: 5.718258902 | AI67: 6.026225796 | AJ67: 6.343711032 | AK67: 6.670962906 | AL67: 7.008235668 | AM67: 7.355789662 | AN67: 7.713891465 | AO67: 8.08281403 | AP67: 8.462836828 | AQ67: 8.854245999 | AR67: 9.257334504 | AS67: 9.672402278 | AT67: 10.09975639 | AU67: 10.5397112 | AV67: 10.99258854 | AW67: 11.45871786 | AX67: 11.93843642 | AY67: 12.43208945 | AZ67: 12.94003035 | BA67: 13.46262087 | BB67: 14.00023127 | BC67: 14.55324056 | BD67: 15.12203666 | BE67: 15.7070166 | BF67: 16.30858677 | BG67: 8.385180108 | BH67: -2.089404205e-14 | BI67: -2.128476064e-14 | BJ67: -2.168278566e-14 | BK67: -2.208825375e-14 | BL67: -2.25013041e-14 | BM67: -2.292207849e-14 | BN67: -2.335072135e-14 | BO67: -2.378737984e-14 | BP67: -2.423220385e-14 | BQ67: -2.468534606e-14 | BR67: -2.514696203e-14 | BS67: -2.561721022e-14 | BT67: -2.609625205e-14 | BU67: -2.658425196e-14 | BV67: -2.708137748e-14 | BW67: =SUMIF($C$159:$C$239,"Pipeline: regulatory depreciation",BW$159:BW$239) -> -2.758779923e-14 | BX67: -2.810369108e-14 | BY67: -2.86292301e-14 | BZ67: -2.916459671e-14 | CA67: -2.970997466e-14 | CB67: -3.026555119e-14 | CC67: -3.0831517e-14 | CD67: -3.140806637e-14 | CE67: -3.199539721e-14 | CF67: -3.259371113e-14 | CG67: -3.320321353e-14 | CH67: -3.382411363e-14 | CI67: -3.445662455e-14 | CJ67: -3.510096343e-14 | CK67: -3.575735145e-14 | CL67: -3.642601392e-14 | CM67: -3.710718038e-14 | CN67: -3.780108465e-14 | CO67: -3.850796493e-14 | CP67: -3.922806388e-14 | CQ67: -3.996162867e-14
B68: ='AA 2020-2024 inputs'!B18 -> Main line valve and scraper stations | I68: $m | J68: =SUMIF($C$159:$C$239,"MLV: regulatory depreciation",J$159:J$239) -> 0.1069904881 | K68: =SUMIF($C$159:$C$239,"MLV: regulatory depreciation",K$159:K$239) -> 0.1245965177 | L68: 0.1051524959 | M68: 0.1134623775 | N68: 0.1197156792 | O68: 0.1261631777 | P68: 0.1328099493 | Q68: 0.1396611921 | R68: 0.1467222291 | S68: 0.1539985108 | T68: 0.1614956181 | U68: 0.1692192655 | V68: 0.1771753039 | W68: 0.1853697238 | X68: 0.1938086586 | Y68: 0.2024983877 | Z68: 0.2114453396 | AA68: 0.2206560959 | AB68: 0.2301373942 | AC68: 0.2398961318 | AD68: 0.2499393694 | AE68: 0.2602743348 | AF68: 0.2709084267 | AG68: 0.2818492182 | AH68: 0.2931044614 | AI68: 0.3046820909 | AJ68: 0.3165902279 | AK68: 0.328837185 | AL68: 0.3414314699 | AM68: 0.1755495071 | AN68: -8.252565298e-17 | AO68: -8.406888269e-17 | AP68: -8.564097079e-17 | AQ68: -8.724245695e-17 | AR68: -8.887389089e-17 | AS68: -9.053583265e-17 | AT68: -9.222885272e-17 | AU68: -9.395353227e-17 | AV68: -9.571046332e-17 | AW68: -9.750024899e-17 | AX68: -9.932350364e-17 | AY68: -1.011808532e-16 | AZ68: -1.030729351e-16 | BA68: -1.05000399e-16 | BB68: -1.069639065e-16 | BC68: -1.089641315e-16 | BD68: -1.110017608e-16 | BE68: -1.130774937e-16 | BF68: -1.151920428e-16 | BG68: -1.17346134e-16 | BH68: -1.195405067e-16 | BI68: -1.217759142e-16 | BJ68: -1.240531238e-16 | BK68: -1.263729172e-16 | BL68: -1.287360908e-16 | BM68: -1.311434557e-16 | BN68: -1.335958383e-16 | BO68: -1.360940805e-16 | BP68: -1.386390398e-16 | BQ68: -1.412315898e-16 | BR68: -1.438726206e-16 | BS68: -1.465630386e-16 | BT68: -1.493037674e-16 | BU68: -1.520957478e-16 | BV68: -1.549399383e-16 | BW68: =SUMIF($C$159:$C$239,"MLV: regulatory depreciation",BW$159:BW$239) -> -1.578373152e-16 | BX68: -1.60788873e-16 | BY68: -1.637956249e-16 | BZ68: -1.668586031e-16 | CA68: -1.699788589e-16 | CB68: -1.731574636e-16 | CC68: -1.763955082e-16 | CD68: -1.796941042e-16 | CE68: -1.830543839e-16 | CF68: -1.864775009e-16 | CG68: -1.899646302e-16 | CH68: -1.935169688e-16 | CI68: -1.971357361e-16 | CJ68: -2.008221743e-16 | CK68: -2.04577549e-16 | CL68: -2.084031492e-16 | CM68: -2.12300288e-16 | CN68: -2.162703034e-16 | CO68: -2.203145581e-16 | CP68: -2.244344403e-16 | CQ68: -2.286313644e-16
B69: ='AA 2020-2024 inputs'!B19 -> Compressor stations | I69: $m | J69: =SUMIF($C$159:$C$239,"Compressors: regulatory depreciation",J$159:J$239) -> 1.453416676 | K69: =SUMIF($C$159:$C$239,"Compressors: regulatory depreciation",K$159:K$239) -> 1.534604245 | L69: 1.533808289 | M69: 1.60099522 | N69: 1.664928662 | O69: 1.730693362 | P69: 1.798335454 | Q69: 1.867902153 | R69: 1.939441787 | S69: 0.9971782911 | T69: -1.038058528e-16 | U69: -1.057470222e-16 | V69: -1.077244916e-16 | W69: -1.097389396e-16 | X69: -1.117910577e-16 | Y69: -1.138815505e-16 | Z69: -1.160111355e-16 | AA69: -1.181805437e-16 | AB69: -1.203905199e-16 | AC69: -1.226418226e-16 | AD69: -1.249352247e-16 | AE69: -1.272715134e-16 | AF69: -1.296514907e-16 | AG69: -1.320759736e-16 | AH69: -1.345457943e-16 | AI69: -1.370618006e-16 | AJ69: -1.396248563e-16 | AK69: -1.422358411e-16 | AL69: -1.448956514e-16 | AM69: -1.476052e-16 | AN69: -1.503654173e-16 | AO69: -1.531772506e-16 | AP69: -1.560416652e-16 | AQ69: -1.589596443e-16 | AR69: -1.619321897e-16 | AS69: -1.649603216e-16 | AT69: -1.680450796e-16 | AU69: -1.711875226e-16 | AV69: -1.743887293e-16 | AW69: -1.776497985e-16 | AX69: -1.809718498e-16 | AY69: -1.843560233e-16 | AZ69: -1.87803481e-16 | BA69: -1.913154061e-16 | BB69: -1.948930042e-16 | BC69: -1.985375033e-16 | BD69: -2.022501547e-16 | BE69: -2.060322325e-16 | BF69: -2.098850353e-16 | BG69: -2.138098855e-16 | BH69: -2.178081303e-16 | BI69: -2.218811424e-16 | BJ69: -2.260303197e-16 | BK69: -2.302570867e-16 | BL69: -2.345628942e-16 | BM69: -2.389492203e-16 | BN69: -2.434175708e-16 | BO69: -2.479694793e-16 | BP69: -2.526065086e-16 | BQ69: -2.573302503e-16 | BR69: -2.62142326e-16 | BS69: -2.670443875e-16 | BT69: -2.720381175e-16 | BU69: -2.771252303e-16 | BV69: -2.823074721e-16 | BW69: =SUMIF($C$159:$C$239,"Compressors: regulatory depreciation",BW$159:BW$239) -> -2.875866219e-16 | BX69: -2.929644917e-16 | BY69: -2.984429277e-16 | BZ69: -3.040238104e-16 | CA69: -3.097090557e-16 | CB69: -3.15500615e-16 | CC69: -3.214004765e-16 | CD69: -3.274106654e-16 | CE69: -3.335332449e-16 | CF69: -3.397703166e-16 | CG69: -3.461240215e-16 | CH69: -3.525965407e-16 | CI69: -3.59190096e-16 | CJ69: -3.659069508e-16 | CK69: -3.727494108e-16 | CL69: -3.797198248e-16 | CM69: -3.868205855e-16 | CN69: -3.940541304e-16 | CO69: -4.014229427e-16 | CP69: -4.089295517e-16 | CQ69: -4.165765343e-16
B70: ='AA 2020-2024 inputs'!B20 -> Receipt and delivery point facilities | I70: $m | J70: =SUMIF($C$159:$C$239,"Receipt and delivery: regulatory depreciation",J$159:J$239) -> 0.05363770913 | K70: =SUMIF($C$159:$C$239,"Receipt and delivery: regulatory depreciation",K$159:K$239) -> 0.05663390099 | L70: 0.05660452656 | M70: 0.059084031 | N70: 0.06144346681 | O70: 0.06387048442 | P70: 0.06636678632 | Q70: 0.06893411504 | R70: 0.07157425406 | S70: 0.03680043033 | T70: -3.373690216e-18 | U70: -3.436778223e-18 | V70: -3.501045976e-18 | W70: -3.566515536e-18 | X70: -3.633209376e-18 | Y70: -3.701150391e-18 | Z70: -3.770361904e-18 | AA70: -3.840867671e-18 | AB70: -3.912691897e-18 | AC70: -3.985859235e-18 | AD70: -4.060394803e-18 | AE70: -4.136324186e-18 | AF70: -4.213673448e-18 | AG70: -4.292469142e-18 | AH70: -4.372738315e-18 | AI70: -4.454508521e-18 | AJ70: -4.53780783e-18 | AK70: -4.622664837e-18 | AL70: -4.709108669e-18 | AM70: -4.797169001e-18 | AN70: -4.886876062e-18 | AO70: -4.978260644e-18 | AP70: -5.071354118e-18 | AQ70: -5.16618844e-18 | AR70: -5.262796164e-18 | AS70: -5.361210452e-18 | AT70: -5.461465088e-18 | AU70: -5.563594485e-18 | AV70: -5.667633702e-18 | AW70: -5.773618452e-18 | AX70: -5.881585117e-18 | AY70: -5.991570759e-18 | AZ70: -6.103613132e-18 | BA70: -6.217750697e-18 | BB70: -6.334022635e-18 | BC70: -6.452468859e-18 | BD70: -6.573130026e-18 | BE70: -6.696047558e-18 | BF70: -6.821263647e-18 | BG70: -6.948821277e-18 | BH70: -7.078764235e-18 | BI70: -7.211137126e-18 | BJ70: -7.345985391e-18 | BK70: -7.483355318e-18 | BL70: -7.623294062e-18 | BM70: -7.765849661e-18 | BN70: -7.91107105e-18 | BO70: -8.059008078e-18 | BP70: -8.209711529e-18 | BQ70: -8.363233135e-18 | BR70: -8.519625595e-18 | BS70: -8.678942593e-18 | BT70: -8.84123882e-18 | BU70: -9.006569986e-18 | BV70: -9.174992844e-18 | BW70: =SUMIF($C$159:$C$239,"Receipt and delivery: regulatory depreciation",BW$159:BW$239) -> -9.34656521e-18 | BX70: -9.52134598e-18 | BY70: -9.69939515e-18 | BZ70: -9.880773839e-18 | CA70: -1.006554431e-17 | CB70: -1.025376999e-17 | CC70: -1.044551549e-17 | CD70: -1.064084663e-17 | CE70: -1.083983046e-17 | CF70: -1.104253529e-17 | CG70: -1.12490307e-17 | CH70: -1.145938757e-17 | CI70: -1.167367812e-17 | CJ70: -1.18919759e-17 | CK70: -1.211435585e-17 | CL70: -1.23408943e-17 | CM70: -1.257166903e-17 | CN70: -1.280675924e-17 | CO70: -1.304624564e-17 | CP70: -1.329021043e-17 | CQ70: -1.353873736e-17
B71: ='AA 2020-2024 inputs'!B21 -> SCADA, communications and electronic equipment | I71: $m | J71: =SUMIF($C$159:$C$239,"SCADA: regulatory depreciation",J$159:J$239) -> 0 | K71: =SUMIF($C$159:$C$239,"SCADA: regulatory depreciation",K$159:K$239) -> 0 | L71: 0 | M71: 0 | N71: 0 | O71: 0 | P71: 0 | Q71: 0 | R71: 0 | S71: 0 | T71: 0 | U71: 0 | V71: 0 | W71: 0 | X71: 0 | Y71: 0 | Z71: 0 | AA71: 0 | AB71: 0 | AC71: 0 | AD71: 0 | AE71: 0 | AF71: 0 | AG71: 0 | AH71: 0 | AI71: 0 | AJ71: 0 | AK71: 0 | AL71: 0 | AM71: 0 | AN71: 0 | AO71: 0 | AP71: 0 | AQ71: 0 | AR71: 0 | AS71: 0 | AT71: 0 | AU71: 0 | AV71: 0 | AW71: 0 | AX71: 0 | AY71: 0 | AZ71: 0 | BA71: 0 | BB71: 0 | BC71: 0 | BD71: 0 | BE71: 0 | BF71: 0 | BG71: 0 | BH71: 0 | BI71: 0 | BJ71: 0 | BK71: 0 | BL71: 0 | BM71: 0 | BN71: 0 | BO71: 0 | BP71: 0 | BQ71: 0 | BR71: 0 | BS71: 0 | BT71: 0 | BU71: 0 | BV71: 0 | BW71: =SUMIF($C$159:$C$239,"SCADA: regulatory depreciation",BW$159:BW$239) -> 0 | BX71: 0 | BY71: 0 | BZ71: 0 | CA71: 0 | CB71: 0 | CC71: 0 | CD71: 0 | CE71: 0 | CF71: 0 | CG71: 0 | CH71: 0 | CI71: 0 | CJ71: 0 | CK71: 0 | CL71: 0 | CM71: 0 | CN71: 0 | CO71: 0 | CP71: 0 | CQ71: 0
B72: ='AA 2020-2024 inputs'!B22 -> Cathodic protection | I72: $m | J72: =SUMIF($C$159:$C$239,"CP: regulatory depreciation",J$159:J$239) -> 0 | K72: =SUMIF($C$159:$C$239,"CP: regulatory depreciation",K$159:K$239) -> 0 | L72: 0 | M72: 0 | N72: 0 | O72: 0 | P72: 0 | Q72: 0 | R72: 0 | S72: 0 | T72: 0 | U72: 0 | V72: 0 | W72: 0 | X72: 0 | Y72: 0 | Z72: 0 | AA72: 0 | AB72: 0 | AC72: 0 | AD72: 0 | AE72: 0 | AF72: 0 | AG72: 0 | AH72: 0 | AI72: 0 | AJ72: 0 | AK72: 0 | AL72: 0 | AM72: 0 | AN72: 0 | AO72: 0 | AP72: 0 | AQ72: 0 | AR72: 0 | AS72: 0 | AT72: 0 | AU72: 0 | AV72: 0 | AW72: 0 | AX72: 0 | AY72: 0 | AZ72: 0 | BA72: 0 | BB72: 0 | BC72: 0 | BD72: 0 | BE72: 0 | BF72: 0 | BG72: 0 | BH72: 0 | BI72: 0 | BJ72: 0 | BK72: 0 | BL72: 0 | BM72: 0 | BN72: 0 | BO72: 0 | BP72: 0 | BQ72: 0 | BR72: 0 | BS72: 0 | BT72: 0 | BU72: 0 | BV72: 0 | BW72: =SUMIF($C$159:$C$239,"CP: regulatory depreciation",BW$159:BW$239) -> 0 | BX72: 0 | BY72: 0 | BZ72: 0 | CA72: 0 | CB72: 0 | CC72: 0 | CD72: 0 | CE72: 0 | CF72: 0 | CG72: 0 | CH72: 0 | CI72: 0 | CJ72: 0 | CK72: 0 | CL72: 0 | CM72: 0 | CN72: 0 | CO72: 0 | CP72: 0 | CQ72: 0
B73: ='AA 2020-2024 inputs'!B23 -> Maintenance bases and depots | I73: $m | J73: =SUMIF($C$159:$C$239,"Bases: regulatory depreciation",J$159:J$239) -> 0.09008550993 | K73: =SUMIF($C$159:$C$239,"Bases: regulatory depreciation",K$159:K$239) -> 0.1049097078 | L73: 0.08853792883 | M73: 0.09553481175 | N73: 0.1008000637 | O73: 0.1062288284 | P73: 0.1118253802 | Q73: 0.1175940959 | R73: 0.1235394573 | S73: 0.1296660537 | T73: 0.1359785844 | U73: 0.1424818608 | V73: 0.1491808093 | W73: 0.1560804741 | X73: 0.1631860192 | Y73: 0.170502732 | Z73: 0.1780360253 | AA73: 0.1857914407 | AB73: 0.1937746512 | AC73: 0.2019914644 | AD73: 0.2104478253 | AE73: 0.2191498198 | AF73: 0.2281036773 | AG73: 0.2373157746 | AH73: 0.2467926388 | AI73: 0.2565409507 | AJ73: 0.2665675486 | AK73: 0.2768794314 | AL73: 0.2874837626 | AM73: 0.1478118957 | AN73: -3.373690216e-17 | AO73: -3.436778223e-17 | AP73: -3.501045976e-17 | AQ73: -3.566515536e-17 | AR73: -3.633209376e-17 | AS73: -3.701150391e-17 | AT73: -3.770361904e-17 | AU73: -3.840867671e-17 | AV73: -3.912691897e-17 | AW73: -3.985859235e-17 | AX73: -4.060394803e-17 | AY73: -4.136324186e-17 | AZ73: -4.213673448e-17 | BA73: -4.292469142e-17 | BB73: -4.372738315e-17 | BC73: -4.454508521e-17 | BD73: -4.53780783e-17 | BE73: -4.622664837e-17 | BF73: -4.709108669e-17 | BG73: -4.797169001e-17 | BH73: -4.886876062e-17 | BI73: -4.978260644e-17 | BJ73: -5.071354118e-17 | BK73: -5.16618844e-17 | BL73: -5.262796164e-17 | BM73: -5.361210452e-17 | BN73: -5.461465088e-17 | BO73: -5.563594485e-17 | BP73: -5.667633702e-17 | BQ73: -5.773618452e-17 | BR73: -5.881585117e-17 | BS73: -5.991570759e-17 | BT73: -6.103613132e-17 | BU73: -6.217750697e-17 | BV73: -6.334022635e-17 | BW73: =SUMIF($C$159:$C$239,"Bases: regulatory depreciation",BW$159:BW$239) -> -6.452468859e-17 | BX73: -6.573130026e-17 | BY73: -6.696047558e-17 | BZ73: -6.821263647e-17 | CA73: -6.948821277e-17 | CB73: -7.078764235e-17 | CC73: -7.211137126e-17 | CD73: -7.345985391e-17 | CE73: -7.483355318e-17 | CF73: -7.623294062e-17 | CG73: -7.765849661e-17 | CH73: -7.91107105e-17 | CI73: -8.059008078e-17 | CJ73: -8.209711529e-17 | CK73: -8.363233135e-17 | CL73: -8.519625595e-17 | CM73: -8.678942593e-17 | CN73: -8.84123882e-17 | CO73: -9.006569986e-17 | CP73: -9.174992844e-17 | CQ73: -9.34656521e-17
B74: ='AA 2020-2024 inputs'!B24 -> Other depreciable assets | I74: $m | J74: =SUMIF($C$159:$C$239,"Other: regulatory depreciation",J$159:J$239) -> 0 | K74: =SUMIF($C$159:$C$239,"Other: regulatory depreciation",K$159:K$239) -> 0 | L74: 0 | M74: 0 | N74: 0 | O74: 0 | P74: 0 | Q74: 0 | R74: 0 | S74: 0 | T74: 0 | U74: 0 | V74: 0 | W74: 0 | X74: 0 | Y74: 0 | Z74: 0 | AA74: 0 | AB74: 0 | AC74: 0 | AD74: 0 | AE74: 0 | AF74: 0 | AG74: 0 | AH74: 0 | AI74: 0 | AJ74: 0 | AK74: 0 | AL74: 0 | AM74: 0 | AN74: 0 | AO74: 0 | AP74: 0 | AQ74: 0 | AR74: 0 | AS74: 0 | AT74: 0 | AU74: 0 | AV74: 0 | AW74: 0 | AX74: 0 | AY74: 0 | AZ74: 0 | BA74: 0 | BB74: 0 | BC74: 0 | BD74: 0 | BE74: 0 | BF74: 0 | BG74: 0 | BH74: 0 | BI74: 0 | BJ74: 0 | BK74: 0 | BL74: 0 | BM74: 0 | BN74: 0 | BO74: 0 | BP74: 0 | BQ74: 0 | BR74: 0 | BS74: 0 | BT74: 0 | BU74: 0 | BV74: 0 | BW74: =SUMIF($C$159:$C$239,"Other: regulatory depreciation",BW$159:BW$239) -> 0 | BX74: 0 | BY74: 0 | BZ74: 0 | CA74: 0 | CB74: 0 | CC74: 0 | CD74: 0 | CE74: 0 | CF74: 0 | CG74: 0 | CH74: 0 | CI74: 0 | CJ74: 0 | CK74: 0 | CL74: 0 | CM74: 0 | CN74: 0 | CO74: 0 | CP74: 0 | CQ74: 0
B75: ='AA 2020-2024 inputs'!B25 -> Non-depreciable assets | I75: $m
I77: $m | J77: =SUM(J67:J76) -> 2.935430737 | K77: =SUM(K67:K76) -> 3.887797815 | L77: =SUM(L67:L76) -> 2.57200787 | M77: =SUM(M67:M76) -> 2.935759912 | N77: =SUM(N67:N76) -> 3.169756939 | O77: =SUM(O67:O76) -> 3.411478849 | P77: 3.661132726 | Q77: 3.918930698 | R77: 4.185090053 | S77: 3.406519233 | T77: 2.577669406 | U77: 2.789640468 | V77: 3.008637862 | W77: 3.23485025 | X77: 3.46847089 | Y77: 3.709697747 | Z77: 3.958733599 | AA77: 4.215786148 | AB77: 4.481068133 | AC77: 4.754797445 | AD77: =SUM(AD67:AD76) -> 5.03719725 | AE77: 5.328496101 | AF77: 5.628928072 | AG77: 5.938732878 | AH77: 6.258156003 | AI77: 6.587448837 | AJ77: 6.926868809 | AK77: 7.276679523 | AL77: 7.6371509 | AM77: 7.679151065 | AN77: 7.713891465 | AO77: 8.08281403 | AP77: 8.462836828 | AQ77: 8.854245999 | AR77: 9.257334504 | AS77: 9.672402278 | AT77: 10.09975639 | AU77: 10.5397112 | AV77: 10.99258854 | AW77: 11.45871786 | AX77: 11.93843642 | AY77: 12.43208945 | AZ77: 12.94003035 | BA77: 13.46262087 | BB77: 14.00023127 | BC77: 14.55324056 | BD77: 15.12203666 | BE77: 15.7070166 | BF77: 16.30858677 | BG77: 8.385180108 | BH77: -2.128733821e-14 | BI77: -2.168541144e-14 | BJ77: -2.209092863e-14 | BK77: -2.2504029e-14 | BL77: -2.292485434e-14 | BM77: -2.335354912e-14 | BN77: -2.379026048e-14 | BO77: -2.423513836e-14 | BP77: -2.468833544e-14 | BQ77: -2.515000732e-14 | BR77: -2.562031245e-14 | BS77: -2.60994123e-14 | BT77: -2.658747131e-14 | BU77: -2.708465702e-14 | BV77: -2.759114011e-14 | BW77: -2.810709443e-14 | BX77: -2.863269709e-14 | BY77: -2.916812853e-14 | BZ77: -2.971357253e-14 | CA77: -3.026921634e-14 | CB77: -3.083525068e-14 | CC77: -3.141186987e-14 | CD77: -3.199927184e-14 | CE77: -3.259765822e-14 | CF77: -3.320723443e-14 | CG77: -3.382820971e-14 | CH77: -3.446079723e-14 | CI77: -3.510521414e-14 | CJ77: -3.576168165e-14 | CK77: -3.643042509e-14 | CL77: -3.711167404e-14 | CM77: =SUM(CM67:CM76) -> -3.780566235e-14 | CN77: =SUM(CN67:CN76) -> -3.851262823e-14 | CO77: =SUM(CO67:CO76) -> -3.923281438e-14 | CP77: =SUM(CP67:CP76) -> -3.996646801e-14 | CQ77: =SUM(CQ67:CQ76) -> -4.071384096e-14
B80: CAPEX: 2000-2014
B82: Additions to capital base (beginning of year)
B84: ='AA 2020-2024 inputs'!B17 -> Pipeline and laterals | I84: $m | J84: =SUMIF($C$242:$C$5165,"Pipeline: CAPEX",J$242:J$5165) -> 0.5666406805 | K84: =J84-J98 -> 0.6498789131 | L84: =K84-K98 -> 0.6486465256 | M84: =L84-L98 -> 0.6499984279 | N84: =M84-M98 -> 0.6509157628 | O84: =N84-N98 -> 0.6516401081 | P84: =O84-O98 -> 0.6521639252 | Q84: =P84-P98 -> 0.6524794609 | R84: =Q84-Q98 -> 0.6525787426 | S84: =R84-R98 -> 0.6524535718 | T84: =S84-S98 -> 0.6520955193 | U84: =T84-T98 -> 0.6514959192 | V84: =U84-U98 -> 0.6506458628 | W84: =V84-V98 -> 0.6495361927 | X84: =W84-W98 -> 0.6481574965 | Y84: =X84-X98 -> 0.6465001008 | Z84: =Y84-Y98 -> 0.6445540643 | AA84: =Z84-Z98 -> 0.6423091714 | AB84: =AA84-AA98 -> 0.6397549254 | AC84: =AB84-AB98 -> 0.6368805416 | AD84: =AC84-AC98 -> 0.6336749398 | AE84: =AD84-AD98 -> 0.6301267378 | AF84: =AE84-AE98 -> 0.6262242433 | AG84: =AF84-AF98 -> 0.6219554464 | AH84: =AG84-AG98 -> 0.6173080122 | AI84: =AH84-AH98 -> 0.6122692724 | AJ84: =AI84-AI98 -> 0.6068262172 | AK84: =AJ84-AJ98 -> 0.6009654873 | AL84: =AK84-AK98 -> 0.5946733651 | AM84: =AL84-AL98 -> 0.5879357659 | AN84: =AM84-AM98 -> 0.5807382291 | AO84: =AN84-AN98 -> 0.5730659092 | AP84: =AO84-AO98 -> 0.5649035662 | AQ84: =AP84-AP98 -> 0.5562355562 | AR84: =AQ84-AQ98 -> 0.5470458214 | AS84: =AR84-AR98 -> 0.5373178806 | AT84: =AS84-AS98 -> 0.5270348183 | AU84: =AT84-AT98 -> 0.5161792748 | AV84: =AU84-AU98 -> 0.5047334352 | AW84: =AV84-AV98 -> 0.4926790184 | AX84: =AW84-AW98 -> 0.4799972662 | AY84: =AX84-AX98 -> 0.4666689315 | AZ84: =AY84-AY98 -> 0.4526742669 | BA84: =AZ84-AZ98 -> 0.4379930124 | BB84: =BA84-BA98 -> 0.4226043833 | BC84: =BB84-BB98 -> 0.4064870577 | BD84: =BC84-BC98 -> 0.3896191635 | BE84: =BD84-BD98 -> 0.3719782657 | BF84: =BE84-BE98 -> 0.3535413524 | BG84: =BF84-BF98 -> 0.3342848214 | BH84: =BG84-BG98 -> 0.3141844663 | BI84: =BH84-BH98 -> 0.2932154619 | BJ84: =BI84-BI98 -> 0.2713523495 | BK84: =BJ84-BJ98 -> 0.2485690222 | BL84: =BK84-BK98 -> 0.2248387093 | BM84: =BL84-BL98 -> 0.2001339606 | BN84: =BM84-BM98 -> 0.1744266304 | BO84: =BN84-BN98 -> 0.1476878612 | BP84: =BO84-BO98 -> 0.1198880668 | BQ84: =BP84-BP98 -> 0.09099691512 | BR84: =BQ84-BQ98 -> 0.06098331072 | BS84: =BR84-BR98 -> 0.04048681777 | BT84: =BS84-BS98 -> 0.02284468221 | BU84: =BT84-BT98 -> 0.01130473084 | BV84: =BU84-BU98 -> 0.00643112082 | BW84: =BV84-BV98 -> 0.004928669852 | BX84: =BW84-BW98 -> 0.003765626984 | BY84: =BX84-BX98 -> 0.002557362806 | BZ84: =BY84-BY98 -> 0.001302592745 | CA84: =BZ84-BZ98 -> 4.395572448e-15 | CB84: =CA84-CA98 -> 4.480571172e-15 | CC84: =CB84-CB98 -> 4.567159372e-15 | CD84: =CC84-CC98 -> 4.655366772e-15 | CE84: =CD84-CD98 -> 4.74522365e-15 | CF84: =CE84-CE98 -> 4.836760852e-15 | CG84: =CF84-CF98 -> 4.9300098e-15 | CH84: =CG84-CG98 -> 5.025002502e-15 | CI84: =CH84-CH98 -> 5.121771569e-15 | CJ84: =CI84-CI98 -> 5.220350217e-15 | CK84: =CJ84-CJ98 -> 5.320772285e-15 | CL84: =CK84-CK98 -> 5.423072246e-15 | CM84: =CL84-CL98 -> 5.527285217e-15 | CN84: =CM84-CM98 -> 5.63344697e-15 | CO84: =CN84-CN98 -> 5.741593948e-15 | CP84: =CO84-CO98 -> 5.851763274e-15 | CQ84: =CP84-CP98 -> 5.963992767e-15
B85: ='AA 2020-2024 inputs'!B18 -> Main line valve and scraper stations | I85: $m | J85: =SUMIF($C$242:$C$5165,"MLV: CAPEX",J$242:J$5165) -> 0.02011102141 | K85: =J85-J99 -> 0.02523639828 | L85: 0.02501691611 | M85: 0.02489123531 | N85: 0.02474214367 | O85: 0.02457877178 | P85: 0.0244006377 | Q85: 0.02420724646 | R85: 0.02399808973 | S85: 0.0237726455 | T85: 0.02353037777 | U85: 0.02327073617 | V85: 0.02299315563 | W85: 0.02269705604 | X85: 0.02238184185 | Y85: 0.02204690171 | Z85: 0.02169160811 | AA85: 0.02131531694 | AB85: 0.02091736715 | AC85: 0.02049708028 | AD85: 0.02005376009 | AE85: 0.01958669209 | AF85: 0.01909514316 | AG85: 0.01857836102 | AH85: 0.01803557386 | AI85: 0.01746598978 | AJ85: 0.0168687964 | AK85: 0.01624316031 | AL85: 0.01558822658 | AM85: 0.01490311825 | AN85: 0.01418693583 | AO85: 0.01343875671 | AP85: 0.01265763467 | AQ85: 0.01184259926 | AR85: 0.01099265528 | AS85: 0.01010678215 | AT85: 0.009183933353 | AU85: 0.008223035766 | AV85: 0.007222989079 | AW85: 0.006182665133 | AX85: 0.005100907264 | AY85: 0.003976529635 | AZ85: 0.002808316547 | BA85: 0.001595021736 | BB85: 0.0003353676587 | BC85: 8.521829076e-17 | BD85: 8.678196779e-17 | BE85: 8.837488558e-17 | BF85: 8.999759093e-17 | BG85: 9.165064088e-17 | BH85: 9.333460286e-17 | BI85: 9.505005492e-17 | BJ85: 9.679758594e-17 | BK85: 9.857779579e-17 | BL85: 1.003912956e-16 | BM85: 1.022387078e-16 | BN85: 1.041206666e-16 | BO85: 1.060378181e-16 | BP85: 1.079908203e-16 | BQ85: 1.099803436e-16 | BR85: 1.12007071e-16 | BS85: 1.140716982e-16 | BT85: 1.16174934e-16 | BU85: 1.183175003e-16 | BV85: 1.205001325e-16 | BW85: 1.2272358e-16 | BX85: 1.249886059e-16 | BY85: 1.272959878e-16 | BZ85: 1.296465178e-16 | CA85: 1.320410027e-16 | CB85: 1.344802644e-16 | CC85: 1.369651404e-16 | CD85: 1.394964835e-16 | CE85: 1.420751627e-16 | CF85: 1.447020632e-16 | CG85: 1.473780868e-16 | CH85: 1.50104152e-16 | CI85: 1.528811947e-16 | CJ85: 1.55710168e-16 | CK85: 1.585920431e-16 | CL85: 1.615278093e-16 | CM85: 1.645184744e-16 | CN85: 1.675650648e-16 | CO85: 1.706686265e-16 | CP85: 1.738302249e-16 | CQ85: 1.770509451e-16
B86: ='AA 2020-2024 inputs'!B19 -> Compressor stations | I86: $m | J86: =SUMIF($C$242:$C$5165,"Compressors: CAPEX",J$242:J$5165) -> 17.64764623 | K86: 17.34952329 | L86: 16.60688517 | M86: 15.90613958 | N86: 15.16676568 | O86: 14.39417697 | P86: 13.58738978 | Q86: 12.74539525 | R86: 11.86715875 | S86: 10.95161926 | T86: 9.997688776 | U86: 9.004251616 | V86: 7.970163815 | W86: 6.894252434 | X86: 5.77531488 | Y86: 4.61211821 | Z86: 3.452007837 | AA86: 2.466864101 | AB86: 1.688285768 | AC86: 1.072157007 | AD86: 0.7999752833 | AE86: 0.6621798901 | AF86: 0.5459475354 | AG86: 0.4518560574 | AH86: 0.3640596644 | AI86: 0.2997125833 | AJ86: 0.2370337865 | AK86: 0.1719059962 | AL86: 0.1042595382 | AM86: 0.03989788971 | AN86: 2.377265051e-14 | AO86: 2.406372078e-14 | AP86: 2.436023406e-14 | AQ86: 2.466229214e-14 | AR86: 2.49699987e-14 | AS86: 2.528345938e-14 | AT86: 2.560278177e-14 | AU86: 2.592807549e-14 | AV86: 2.62594522e-14 | AW86: 2.659702566e-14 | AX86: 2.694091174e-14 | AY86: 2.729122849e-14 | AZ86: 2.764809617e-14 | BA86: 2.801163727e-14 | BB86: 2.838197658e-14 | BC86: 2.875924125e-14 | BD86: 2.914356076e-14 | BE86: 2.953506705e-14 | BF86: 2.99338945e-14 | BG86: 3.034018003e-14 | BH86: 3.07540631e-14 | BI86: 3.117568578e-14 | BJ86: 3.160519281e-14 | BK86: 3.204273161e-14 | BL86: 3.248845239e-14 | BM86: 3.294250816e-14 | BN86: 3.340505476e-14 | BO86: 3.387625098e-14 | BP86: 3.435625858e-14 | BQ86: 3.484524232e-14 | BR86: 3.534337005e-14 | BS86: 3.585081277e-14 | BT86: 3.636774467e-14 | BU86: 3.68943432e-14 | BV86: 3.743078911e-14 | BW86: 3.797726657e-14 | BX86: 3.853396316e-14 | BY86: 3.910106997e-14 | BZ86: 3.967878168e-14 | CA86: 4.02672966e-14 | CB86: 4.086681675e-14 | CC86: 4.147754792e-14 | CD86: 4.209969977e-14 | CE86: 4.273348585e-14 | CF86: 4.337912374e-14 | CG86: 4.403683506e-14 | CH86: 4.470684557e-14 | CI86: 4.538938529e-14 | CJ86: 4.608468849e-14 | CK86: 4.679299387e-14 | CL86: 4.751454455e-14 | CM86: 4.824958824e-14 | CN86: 4.899837724e-14 | CO86: 4.97611686e-14 | CP86: 5.053822415e-14 | CQ86: 5.132981064e-14
B87: ='AA 2020-2024 inputs'!B20 -> Receipt and delivery point facilities | I87: $m | J87: =SUMIF($C$242:$C$5165,"Receipt and delivery: CAPEX",J$242:J$5165) -> 1.255790677 | K87: 1.240358658 | L87: 1.199350297 | M87: 1.161798344 | N87: 1.121944944 | O87: 1.080194758 | P87: 1.036490782 | Q87: 0.9907745432 | R87: 0.9429860671 | S87: 0.8930638379 | T87: 0.8409447647 | U87: 0.7865641425 | V87: 0.7298556152 | W87: 0.6707511353 | X87: 0.6091809246 | Y87: 0.5450734331 | Z87: 0.4810352127 | AA87: 0.4206165069 | AB87: 0.3616061581 | AC87: 0.3032129344 | AD87: 0.2452043514 | AE87: 0.1859531863 | AF87: 0.1311063651 | AG87: 0.1089637358 | AH87: 0.09397601969 | AI87: 0.07856513191 | AJ87: 0.06254501445 | AK87: 0.04589827116 | AL87: 0.02860706831 | AM87: 0.0106531243 | AN87: 1.009609063e-15 | AO87: 1.035810083e-15 | AP87: 1.062501063e-15 | AQ87: 1.089691164e-15 | AR87: 1.117389719e-15 | AS87: 1.145606238e-15 | AT87: 1.174350406e-15 | AU87: 1.203632089e-15 | AV87: 1.23346134e-15 | AW87: 1.263848398e-15 | AX87: 1.294803694e-15 | AY87: 1.326337854e-15 | AZ87: 1.358461703e-15 | BA87: 1.391186268e-15 | BB87: 1.424522782e-15 | BC87: 1.458482689e-15 | BD87: 1.493077646e-15 | BE87: 1.528319529e-15 | BF87: 1.564220435e-15 | BG87: 1.600792688e-15 | BH87: 1.638048842e-15 | BI87: 1.676001686e-15 | BJ87: 1.714664249e-15 | BK87: 1.754049801e-15 | BL87: 1.794171863e-15 | BM87: 1.835044208e-15 | BN87: 1.876680866e-15 | BO87: 1.919096129e-15 | BP87: 1.962304557e-15 | BQ87: 2.006320984e-15 | BR87: 2.051160517e-15 | BS87: 2.096838549e-15 | BT87: 2.143370761e-15 | BU87: 2.190773125e-15 | BV87: 2.239061914e-15 | BW87: 2.288253702e-15 | BX87: 2.338365378e-15 | BY87: 2.389414141e-15 | BZ87: 2.441417516e-15 | CA87: 2.494393355e-15 | CB87: 2.548359842e-15 | CC87: 2.603335502e-15 | CD87: 2.659339206e-15 | CE87: 2.71639018e-15 | CF87: 2.774508008e-15 | CG87: 2.833712638e-15 | CH87: 2.894024396e-15 | CI87: 2.955463983e-15 | CJ87: 3.01805249e-15 | CK87: 3.081811403e-15 | CL87: 3.146762607e-15 | CM87: 3.212928399e-15 | CN87: 3.28033149e-15 | CO87: 3.34899502e-15 | CP87: 3.418942558e-15 | CQ87: 3.490198115e-15
B88: ='AA 2020-2024 inputs'!B21 -> SCADA, communications and electronic equipment | I88: $m | J88: =SUMIF($C$242:$C$5165,"SCADA: CAPEX",J$242:J$5165) -> 1.875928104 | K88: 1.972660605 | L88: 1.638900064 | M88: 1.328493006 | N88: 1.02429555 | O88: 0.8300941281 | P88: 0.6632133097 | Q88: 0.489800873 | R88: 0.3096708921 | S88: 0.137105785 | T88: 7.21644966e-16 | U88: 7.303537984e-16 | V88: 7.392254859e-16 | W88: 7.48263074e-16 | X88: 7.57469665e-16 | Y88: 7.668484193e-16 | Z88: 7.764025562e-16 | AA88: 7.861353556e-16 | AB88: 7.960501582e-16 | AC88: 8.061503677e-16 | AD88: 8.164394511e-16 | AE88: 8.269209403e-16 | AF88: 8.375984334e-16 | AG88: 8.484755956e-16 | AH88: 8.595561608e-16 | AI88: 8.708439325e-16 | AJ88: 8.823427856e-16 | AK88: 8.940566672e-16 | AL88: 9.059895984e-16 | AM88: 9.181456754e-16 | AN88: 9.30529071e-16 | AO88: 9.431440362e-16 | AP88: 9.559949012e-16 | AQ88: 9.690860773e-16 | AR88: 9.824220585e-16 | AS88: 9.960074225e-16 | AT88: 1.009846833e-15 | AU88: 1.02394504e-15 | AV88: 1.038306884e-15 | AW88: 1.052937294e-15 | AX88: 1.067841293e-15 | AY88: 1.083023997e-15 | AZ88: 1.098490617e-15 | BA88: 1.114246463e-15 | BB88: 1.130296943e-15 | BC88: 1.146647568e-15 | BD88: 1.163303949e-15 | BE88: 1.180271804e-15 | BF88: 1.197556958e-15 | BG88: 1.215165345e-15 | BH88: 1.233103008e-15 | BI88: 1.251376106e-15 | BJ88: 1.269990911e-15 | BK88: 1.288953813e-15 | BL88: 1.30827132e-15 | BM88: 1.327950066e-15 | BN88: 1.347996803e-15 | BO88: 1.368418415e-15 | BP88: 1.389221911e-15 | BQ88: 1.410414432e-15 | BR88: 1.432003254e-15 | BS88: 1.453995786e-15 | BT88: 1.476399579e-15 | BU88: 1.499222322e-15 | BV88: 1.522471851e-15 | BW88: 1.546156146e-15 | BX88: 1.570283338e-15 | BY88: 1.594861708e-15 | BZ88: 1.619899693e-15 | CA88: 1.645405889e-15 | CB88: 1.671389051e-15 | CC88: 1.697858097e-15 | CD88: 1.724822115e-15 | CE88: 1.75229036e-15 | CF88: 1.780272262e-15 | CG88: 1.808777424e-15 | CH88: 1.837815634e-15 | CI88: 1.867396858e-15 | CJ88: 1.89753125e-15 | CK88: 1.928229156e-15 | CL88: 1.959501113e-15 | CM88: 1.991357855e-15 | CN88: 2.023810319e-15 | CO88: 2.056869643e-15 | CP88: 2.090547177e-15 | CQ88: 2.124854481e-15
B89: ='AA 2020-2024 inputs'!B22 -> Cathodic protection | I89: $m | J89: =SUMIF($C$242:$C$5165,"CP: CAPEX",J$242:J$5165) -> 0.5040429118 | K89: 1.033505072 | L89: 0.9260561303 | M89: 0.8186892311 | N89: 0.7070370571 | O89: 0.5916407381 | P89: 0.4717055121 | Q89: 0.3472848092 | R89: 0.2186533368 | S89: 0.08798881873 | T89: 5.689893001e-16 | U89: 5.734141373e-16 | V89: 5.77921719e-16 | W89: 5.825135924e-16 | X89: 5.871913338e-16 | Y89: 5.919565491e-16 | Z89: 5.968108738e-16 | AA89: 6.017559744e-16 | AB89: 6.067935484e-16 | AC89: 6.11925325e-16 | AD89: 6.171530659e-16 | AE89: 6.224785655e-16 | AF89: 6.27903652e-16 | AG89: 6.334301875e-16 | AH89: 6.390600693e-16 | AI89: 6.447952299e-16 | AJ89: 6.50637638e-16 | AK89: 6.565892991e-16 | AL89: 6.626522562e-16 | AM89: 6.688285907e-16 | AN89: 6.751204226e-16 | AO89: 6.815299118e-16 | AP89: 6.880592585e-16 | AQ89: 6.947107039e-16 | AR89: 7.014865313e-16 | AS89: 7.083890667e-16 | AT89: 7.154206795e-16 | AU89: 7.225837835e-16 | AV89: 7.298808376e-16 | AW89: 7.373143465e-16 | AX89: 7.448868621e-16 | AY89: 7.526009837e-16 | AZ89: 7.604593593e-16 | BA89: 7.684646866e-16 | BB89: 7.766197135e-16 | BC89: 7.849272395e-16 | BD89: 7.933901161e-16 | BE89: 8.020112486e-16 | BF89: 8.107935962e-16 | BG89: 8.197401737e-16 | BH89: 8.288540522e-16 | BI89: 8.381383603e-16 | BJ89: 8.475962849e-16 | BK89: 8.572310727e-16 | BL89: 8.670460311e-16 | BM89: 8.770445291e-16 | BN89: 8.872299991e-16 | BO89: 8.976059373e-16 | BP89: 9.081759057e-16 | BQ89: 9.189435324e-16 | BR89: 9.299125137e-16 | BS89: 9.41086615e-16 | BT89: 9.52469672e-16 | BU89: 9.640655921e-16 | BV89: 9.75878356e-16 | BW89: 9.879120185e-16 | BX89: 1.000170711e-15 | BY89: 1.01265864e-15 | BZ89: 1.025380094e-15 | CA89: 1.038339439e-15 | CB89: 1.051541124e-15 | CC89: 1.06498968e-15 | CD89: 1.078689724e-15 | CE89: 1.092645959e-15 | CF89: 1.106863176e-15 | CG89: 1.121346255e-15 | CH89: 1.136100167e-15 | CI89: 1.151129977e-15 | CJ89: 1.166440845e-15 | CK89: 1.182038026e-15 | CL89: 1.197926875e-15 | CM89: 1.214112845e-15 | CN89: 1.230601492e-15 | CO89: 1.247398477e-15 | CP89: 1.264509566e-15 | CQ89: 1.281940632e-15
B90: ='AA 2020-2024 inputs'!B23 -> Maintenance bases and depots | I90: $m | J90: =SUMIF($C$242:$C$5165,"Bases: CAPEX",J$242:J$5165) -> 1.338586804 | K90: 1.335075703 | L90: 1.325865158 | M90: 1.321708628 | N90: 1.316405017 | O90: 1.310440863 | P90: 1.303793316 | Q90: 1.296438903 | R90: 1.288353511 | S90: 1.279512373 | T90: 1.269890053 | U90: 1.259460426 | V90: 1.248196662 | W90: 1.236071213 | X90: 1.22305579 | Y90: 1.209121349 | Z90: 1.194238069 | AA90: 1.178375337 | AB90: 1.161501726 | AC90: 1.143584975 | AD90: 1.124591973 | AE90: 1.104488732 | AF90: 1.083240371 | AG90: 1.060811093 | AH90: 1.037164161 | AI90: 1.01226188 | AJ90: 0.9860655665 | AK90: 0.9585355335 | AL90: 0.92963106 | AM90: 0.8993103689 | AN90: 0.8675306012 | AO90: 0.8342477905 | AP90: 0.7994168358 | AQ90: 0.7629914753 | AR90: 0.7249242582 | AS90: 0.6851665168 | AT90: 0.6437743289 | AU90: 0.6008376352 | AV90: 0.5562104791 | AW90: 0.5097605044 | AX90: 0.4613787995 | AY90: 0.4110093607 | AZ90: 0.3595294492 | BA90: 0.3069279043 | BB90: 0.2542417336 | BC90: 0.2046837931 | BD90: 0.1540610026 | BE90: 0.1049101472 | BF90: 0.05386717613 | BG90: 0.0008785119488 | BH90: 4.391994581e-15 | BI90: 4.47624265e-15 | BJ90: 4.562066159e-15 | BK90: 4.649494567e-15 | BL90: 4.738557887e-15 | BM90: 4.829286691e-15 | BN90: 4.921712123e-15 | BO90: 5.015865911e-15 | BP90: 5.111780375e-15 | BQ90: 5.209488439e-15 | BR90: 5.309023644e-15 | BS90: 5.410420157e-15 | BT90: 5.513712785e-15 | BU90: 5.618936986e-15 | BV90: 5.726128878e-15 | BW90: 5.83532526e-15 | BX90: 5.946563613e-15 | BY90: 6.059882124e-15 | BZ90: 6.175319691e-15 | CA90: 6.29291594e-15 | CB90: 6.412711239e-15 | CC90: 6.534746711e-15 | CD90: 6.659064245e-15 | CE90: 6.785706518e-15 | CF90: 6.914717001e-15 | CG90: 7.04613998e-15 | CH90: 7.180020569e-15 | CI90: 7.316404725e-15 | CJ90: 7.455339264e-15 | CK90: 7.59687188e-15 | CL90: 7.741051155e-15 | CM90: 7.887926583e-15 | CN90: 8.037548581e-15 | CO90: 8.189968511e-15 | CP90: 8.345238693e-15 | CQ90: 8.503412428e-15
B91: ='AA 2020-2024 inputs'!B24 -> Other depreciable assets | I91: $m | J91: =SUMIF($C$242:$C$5165,"Other: CAPEX",J$242:J$5165) -> -1.23537926 | K91: 0.7298265596 | L91: 0.5695039499 | M91: 0.4301519432 | N91: 0.3168333809 | O91: 0.2329982421 | P91: 0.1797101748 | Q91: 0.1243476567 | R91: 0.06685173752 | S91: 0.007161987852 | T91: 4.657732533e-16 | U91: 4.68163928e-16 | V91: 4.705993084e-16 | W91: 4.730802304e-16 | X91: 4.756075456e-16 | Y91: 4.781821216e-16 | Z91: 4.808048422e-16 | AA91: 4.834766076e-16 | AB91: 4.861983351e-16 | AC91: 4.889709589e-16 | AD91: 4.917954307e-16 | AE91: 4.946727202e-16 | AF91: 4.976038149e-16 | AG91: 5.005897212e-16 | AH91: 5.036314639e-16 | AI91: 5.067300871e-16 | AJ91: 5.098866547e-16 | AK91: 5.1310225e-16 | AL91: 5.16377977e-16 | AM91: 5.197149601e-16 | AN91: 5.231143447e-16 | AO91: 5.265772979e-16 | AP91: 5.301050083e-16 | AQ91: 5.336986868e-16 | AR91: 5.373595672e-16 | AS91: 5.41088906e-16 | AT91: 5.448879834e-16 | AU91: 5.487581036e-16 | AV91: 5.527005951e-16 | AW91: 5.567168111e-16 | AX91: 5.608081304e-16 | AY91: 5.649759573e-16 | AZ91: 5.692217226e-16 | BA91: 5.735468837e-16 | BB91: 5.779529254e-16 | BC91: 5.8244136e-16 | BD91: 5.870137283e-16 | BE91: 5.916715999e-16 | BF91: 5.964165738e-16 | BG91: 6.012502786e-16 | BH91: 6.061743737e-16 | BI91: 6.111905494e-16 | BJ91: 6.163005276e-16 | BK91: 6.215060624e-16 | BL91: 6.268089406e-16 | BM91: 6.322109827e-16 | BN91: 6.37714043e-16 | BO91: 6.433200105e-16 | BP91: 6.490308096e-16 | BQ91: 6.548484007e-16 | BR91: 6.607747807e-16 | BS91: 6.66811984e-16 | BT91: 6.72962083e-16 | BU91: 6.792271888e-16 | BV91: 6.856094522e-16 | BW91: 6.921110638e-16 | BX91: 6.987342556e-16 | BY91: 7.054813011e-16 | BZ91: 7.123545163e-16 | CA91: 7.193562607e-16 | CB91: 7.264889377e-16 | CC91: 7.337549957e-16 | CD91: 7.41156929e-16 | CE91: 7.486972785e-16 | CF91: 7.563786325e-16 | CG91: 7.642036279e-16 | CH91: 7.721749506e-16 | CI91: 7.802953371e-16 | CJ91: 7.885675748e-16 | CK91: 7.969945033e-16 | CL91: 8.055790155e-16 | CM91: 8.14324058e-16 | CN91: 8.232326327e-16 | CO91: 8.323077979e-16 | CP91: 8.415526686e-16 | CQ91: 8.509704184e-16
B92: ='AA 2020-2024 inputs'!B25 -> Non-depreciable assets | I92: $m | J92: =SUM('AA 2020-2024 inputs'!I153:BA153) -> 1.241612115 | K92: =J92 -> 1.241612115 | L92: 1.241612115 | M92: 1.241612115 | N92: 1.241612115 | O92: 1.241612115 | P92: 1.241612115 | Q92: 1.241612115 | R92: 1.241612115 | S92: 1.241612115 | T92: 1.241612115 | U92: 1.241612115 | V92: 1.241612115 | W92: 1.241612115 | X92: 1.241612115 | Y92: 1.241612115 | Z92: 1.241612115 | AA92: 1.241612115 | AB92: 1.241612115 | AC92: 1.241612115 | AD92: 1.241612115 | AE92: 1.241612115 | AF92: 1.241612115 | AG92: 1.241612115 | AH92: 1.241612115 | AI92: 1.241612115 | AJ92: 1.241612115 | AK92: 1.241612115 | AL92: 1.241612115 | AM92: 1.241612115 | AN92: 1.241612115 | AO92: 1.241612115 | AP92: 1.241612115 | AQ92: =AP92 -> 1.241612115 | AR92: 1.241612115 | AS92: 1.241612115 | AT92: 1.241612115 | AU92: 1.241612115 | AV92: 1.241612115 | AW92: 1.241612115 | AX92: 1.241612115 | AY92: 1.241612115 | AZ92: 1.241612115 | BA92: 1.241612115 | BB92: 1.241612115 | BC92: 1.241612115 | BD92: 1.241612115 | BE92: 1.241612115 | BF92: 1.241612115 | BG92: 1.241612115 | BH92: 1.241612115 | BI92: 1.241612115 | BJ92: 1.241612115 | BK92: 1.241612115 | BL92: 1.241612115 | BM92: 1.241612115 | BN92: 1.241612115 | BO92: 1.241612115 | BP92: 1.241612115 | BQ92: 1.241612115 | BR92: 1.241612115 | BS92: 1.241612115 | BT92: 1.241612115 | BU92: 1.241612115 | BV92: 1.241612115 | BW92: =BV92 -> 1.241612115 | BX92: 1.241612115 | BY92: 1.241612115 | BZ92: 1.241612115 | CA92: 1.241612115 | CB92: 1.241612115 | CC92: 1.241612115 | CD92: 1.241612115 | CE92: 1.241612115 | CF92: 1.241612115 | CG92: 1.241612115 | CH92: 1.241612115 | CI92: 1.241612115 | CJ92: 1.241612115 | CK92: 1.241612115 | CL92: 1.241612115 | CM92: 1.241612115 | CN92: 1.241612115 | CO92: 1.241612115 | CP92: 1.241612115 | CQ92: 1.241612115
I94: $m | J94: =SUM(J84:J93) -> 23.21497928 | K94: =SUM(K84:K93) -> 25.57767731 | L94: =SUM(L84:L93) -> 24.18183632 | M94: =SUM(M84:M93) -> 22.88348252 | N94: =SUM(N84:N93) -> 21.57055165 | O94: =SUM(O84:O93) -> 20.3573767 | P94: 19.16047955 | Q94: 17.91234086 | R94: 16.61186324 | S94: 15.2742904 | T94: 14.02576161 | U94: 12.96665495 | V94: 11.86346723 | W94: 10.71492015 | X94: 9.519703048 | Y94: 8.276472109 | Z94: 7.035138906 | AA94: 5.971092548 | AB94: 5.11367806 | AC94: 4.417944653 | AD94: =SUM(AD84:AD93) -> 4.065112422 | AE94: 3.843947353 | AF94: 3.647225772 | AG94: 3.503776808 | AH94: 3.372155546 | AI94: 3.261886972 | AJ94: 3.150951496 | AK94: 3.035160563 | AL94: 2.914371373 | AM94: 2.794312382 | AN94: 2.704067881 | AO94: 2.662364571 | AP94: 2.618590151 | AQ94: 2.572681745 | AR94: 2.52457485 | AS94: 2.474203294 | AT94: 2.421605195 | AU94: 2.36685206 | AV94: 2.309779018 | AW94: 2.250234303 | AX94: 2.188089088 | AY94: 2.123266937 | AZ94: 2.056624147 | BA94: 1.988128053 | BB94: 1.918793599 | BC94: 1.852782965 | BD94: 1.785292281 | BE94: 1.718500528 | BF94: 1.649020643 | BG94: 1.576775448 | BH94: 1.555796581 | BI94: 1.534827577 | BJ94: 1.512964464 | BK94: 1.490181137 | BL94: 1.466450824 | BM94: 1.441746075 | BN94: 1.416038745 | BO94: 1.389299976 | BP94: 1.361500181 | BQ94: 1.33260903 | BR94: 1.302595425 | BS94: 1.282098932 | BT94: 1.264456797 | BU94: 1.252916846 | BV94: 1.248043235 | BW94: 1.246540785 | BX94: 1.245377742 | BY94: 1.244169477 | BZ94: 1.242914707 | CA94: 1.241612115 | CB94: 1.241612115 | CC94: 1.241612115 | CD94: 1.241612115 | CE94: 1.241612115 | CF94: 1.241612115 | CG94: 1.241612115 | CH94: 1.241612115 | CI94: 1.241612115 | CJ94: 1.241612115 | CK94: 1.241612115 | CL94: 1.241612115 | CM94: =SUM(CM84:CM93) -> 1.241612115 | CN94: =SUM(CN84:CN93) -> 1.241612115 | CO94: =SUM(CO84:CO93) -> 1.241612115 | CP94: =SUM(CP84:CP93) -> 1.241612115 | CQ94: =SUM(CQ84:CQ93) -> 1.241612115
B96: Regulatory depreciation
B98: ='AA 2020-2024 inputs'!B17 -> Pipeline and laterals | I98: $m | J98: =SUMIF($C$242:$C$3974,"Pipeline: regulatory depreciation",J$242:J$3974) -> -0.0832382326 | K98: =SUMIF($C$242:$C$3974,"Pipeline: regulatory depreciation",K$242:K$3974) -> 0.0012323875 | L98: -0.001351902381 | M98: -0.0009173348964 | N98: -0.0007243452712 | O98: -0.0005238170513 | P98: -0.0003155357796 | Q98: -9.928161474e-05 | R98: 0.0001251707956 | S98: 0.0003580524438 | T98: 0.0005996000947 | U98: 0.0008500564204 | V98: 0.001109670139 | W98: 0.001378696153 | X98: 0.001657395701 | Y98: 0.001946036495 | Z98: 0.00224489288 | AA98: 0.002554245985 | AB98: 0.002874383879 | AC98: 0.003205601736 | AD98: 0.003548201997 | AE98: 0.003902494541 | AF98: 0.004268796856 | AG98: 0.004647434214 | AH98: 0.005038739854 | AI98: 0.005443055163 | AJ98: 0.005860729868 | AK98: 0.006292122225 | AL98: 0.006737599218 | AM98: 0.007197536757 | AN98: 0.00767231989 | AO98: 0.008162343005 | AP98: 0.008668010052 | AQ98: 0.009189734756 | AR98: 0.009727940847 | AS98: 0.01028306229 | AT98: 0.01085554351 | AU98: 0.01144583964 | AV98: 0.01205441677 | AW98: 0.0126817522 | AX98: 0.01332833465 | AY98: 0.01399466461 | AZ98: 0.01468125453 | BA98: 0.01538862911 | BB98: 0.01611732562 | BC98: 0.01686789412 | BD98: 0.01764089782 | BE98: 0.01843691333 | BF98: 0.01925653096 | BG98: 0.0201003551 | BH98: 0.02096900444 | BI98: 0.02186311237 | BJ98: 0.02278332729 | BK98: 0.02373031293 | BL98: 0.02470474874 | BM98: 0.02570733019 | BN98: 0.02673876918 | BO98: 0.0277997944 | BP98: 0.02889115167 | BQ98: 0.03001360441 | BR98: 0.02049649295 | BS98: 0.01764213556 | BT98: 0.01153995136 | BU98: 0.004873610023 | BV98: 0.001502450968 | BW98: =SUMIF($C$242:$C$3974,"Pipeline: regulatory depreciation",BW$242:BW$3974) -> 0.001163042868 | BX98: 0.001208264178 | BY98: 0.001254770061 | BZ98: 0.001302592745 | CA98: -8.499872429e-17 | CB98: -8.658820044e-17 | CC98: -8.820739979e-17 | CD98: -8.985687816e-17 | CE98: -9.153720178e-17 | CF98: -9.324894746e-17 | CG98: -9.499270277e-17 | CH98: -9.676906632e-17 | CI98: -9.857864786e-17 | CJ98: -1.004220686e-16 | CK98: -1.022999613e-16 | CL98: -1.042129705e-16 | CM98: -1.061617531e-16 | CN98: -1.081469779e-16 | CO98: -1.101693263e-16 | CP98: -1.122294927e-16 | CQ98: -1.143281843e-16
B99: ='AA 2020-2024 inputs'!B18 -> Main line valve and scraper stations | I99: $m | J99: =SUMIF($C$242:$C$3974,"MLV: regulatory depreciation",J$242:J$3974) -> -0.005125376867 | K99: =SUMIF($C$242:$C$3974,"MLV: regulatory depreciation",K$242:K$3974) -> 0.0002194821668 | L99: 0.0001256808025 | M99: 0.0001490916435 | N99: 0.0001633718871 | O99: 0.0001781340759 | P99: 0.000193391241 | Q99: 0.0002091567324 | R99: 0.0002254442262 | S99: 0.0002422677323 | T99: 0.0002596416019 | U99: 0.0002775805356 | V99: 0.0002960995914 | W99: 0.0003152141927 | X99: 0.000334940137 | Y99: 0.0003552936044 | Z99: 0.0003762911663 | AA99: 0.0003979497943 | AB99: 0.0004202868698 | AC99: 0.0004433201929 | AD99: 0.0004670679921 | AE99: 0.0004915489344 | AF99: 0.0005167821349 | AG99: 0.0005427871673 | AH99: 0.0005695840745 | AI99: 0.0005971933787 | AJ99: 0.000625636093 | AK99: 0.0006549337323 | AL99: 0.0006851083246 | AM99: 0.0007161824229 | AN99: 0.0007481791169 | AO99: 0.0007811220455 | AP99: 0.0008150354088 | AQ99: 0.0008499439814 | AR99: 0.0008858731248 | AS99: 0.0009228488013 | AT99: 0.0009608975871 | AU99: 0.001000046687 | AV99: 0.001040323946 | AW99: 0.001081757869 | AX99: 0.001124377629 | AY99: 0.001168213089 | AZ99: 0.001213294811 | BA99: 0.001259654077 | BB99: 0.0003353676587 | BC99: -1.563677031e-18 | BD99: -1.592917791e-18 | BE99: -1.622705354e-18 | BF99: -1.653049944e-18 | BG99: -1.683961978e-18 | BH99: -1.715452067e-18 | BI99: -1.747531021e-18 | BJ99: -1.780209851e-18 | BK99: -1.813499775e-18 | BL99: -1.847412221e-18 | BM99: -1.881958829e-18 | BN99: -1.917151459e-18 | BO99: -1.953002192e-18 | BP99: -1.989523333e-18 | BQ99: -2.026727419e-18 | BR99: -2.064627222e-18 | BS99: -2.103235751e-18 | BT99: -2.142566259e-18 | BU99: -2.182632248e-18 | BV99: -2.223447471e-18 | BW99: =SUMIF($C$242:$C$3974,"MLV: regulatory depreciation",BW$242:BW$3974) -> -2.265025939e-18 | BX99: -2.307381924e-18 | BY99: -2.350529966e-18 | BZ99: -2.394484876e-18 | CA99: -2.439261744e-18 | CB99: -2.484875938e-18 | CC99: -2.531343118e-18 | CD99: -2.578679235e-18 | CE99: -2.626900536e-18 | CF99: -2.676023576e-18 | CG99: -2.726065217e-18 | CH99: -2.777042637e-18 | CI99: -2.828973334e-18 | CJ99: -2.881875135e-18 | CK99: -2.9357662e-18 | CL99: -2.990665028e-18 | CM99: -3.046590464e-18 | CN99: -3.103561706e-18 | CO99: -3.16159831e-18 | CP99: -3.220720198e-18 | CQ99: -3.280947666e-18
B100: ='AA 2020-2024 inputs'!B19 -> Compressor stations | I100: $m | J100: =SUMIF($C$242:$C$3974,"Compressors: regulatory depreciation",J$242:J$3974) -> 0.2981229371 | K100: =SUMIF($C$242:$C$3974,"Compressors: regulatory depreciation",K$242:K$3974) -> 0.7426381245 | L100: 0.7007455802 | M100: 0.7393739052 | N100: 0.7725887073 | O100: 0.8067871912 | P100: 0.8419945319 | Q100: 0.8782365017 | R100: 0.9155394841 | S100: 0.9539304876 | T100: 0.9934371596 | U100: 1.034087801 | V100: 1.075911382 | W100: 1.118937554 | X100: 1.16319667 | Y100: 1.160110373 | Z100: 0.9851437361 | AA100: 0.7785783322 | AB100: 0.6161287619 | AC100: 0.2721817232 | AD100: 0.1377953932 | AE100: 0.1162323547 | AF100: 0.09409147793 | AG100: 0.08779639303 | AH100: 0.06434708111 | AI100: 0.0626787968 | AJ100: 0.06512779029 | AK100: 0.067646458 | AL100: 0.0643616485 | AM100: 0.03989788971 | AN100: -2.910702658e-16 | AO100: -2.965132798e-16 | AP100: -3.020580781e-16 | AQ100: -3.077065642e-16 | AR100: -3.134606769e-16 | AS100: -3.193223916e-16 | AT100: -3.252937203e-16 | AU100: -3.313767129e-16 | AV100: -3.375734574e-16 | AW100: -3.43886081e-16 | AX100: -3.503167507e-16 | AY100: -3.56867674e-16 | AZ100: -3.635410995e-16 | BA100: -3.703393181e-16 | BB100: -3.772646633e-16 | BC100: -3.843195125e-16 | BD100: -3.915062874e-16 | BE100: -3.98827455e-16 | BF100: -4.062855284e-16 | BG100: -4.138830677e-16 | BH100: -4.216226811e-16 | BI100: -4.295070253e-16 | BJ100: -4.375388066e-16 | BK100: -4.457207823e-16 | BL100: -4.540557609e-16 | BM100: -4.625466037e-16 | BN100: -4.711962252e-16 | BO100: -4.800075946e-16 | BP100: -4.889837366e-16 | BQ100: -4.981277325e-16 | BR100: -5.074427211e-16 | BS100: -5.169318999e-16 | BT100: -5.265985265e-16 | BU100: -5.364459189e-16 | BV100: -5.464774576e-16 | BW100: =SUMIF($C$242:$C$3974,"Compressors: regulatory depreciation",BW$242:BW$3974) -> -5.566965861e-16 | BX100: -5.671068122e-16 | BY100: -5.777117096e-16 | BZ100: -5.885149186e-16 | CA100: -5.995201475e-16 | CB100: -6.107311743e-16 | CC100: -6.221518473e-16 | CD100: -6.337860868e-16 | CE100: -6.456378866e-16 | CF100: -6.577113151e-16 | CG100: -6.700105167e-16 | CH100: -6.825397134e-16 | CI100: -6.95303206e-16 | CJ100: -7.08305376e-16 | CK100: -7.215506865e-16 | CL100: -7.350436843e-16 | CM100: -7.487890012e-16 | CN100: -7.627913556e-16 | CO100: -7.770555539e-16 | CP100: -7.915864928e-16 | CQ100: -8.063891602e-16
B101: ='AA 2020-2024 inputs'!B20 -> Receipt and delivery point facilities | I101: $m | J101: =SUMIF($C$242:$C$3974,"Receipt and delivery: regulatory depreciation",J$242:J$3974) -> 0.0154320183 | K101: =SUMIF($C$242:$C$3974,"Receipt and delivery: regulatory depreciation",K$242:K$3974) -> 0.04100836173 | L101: 0.03755195204 | M101: 0.03985340004 | N101: 0.04175018646 | O101: 0.04370397636 | P101: 0.04571623839 | Q101: 0.04778847616 | R101: 0.04992222912 | S101: 0.05211907329 | T101: 0.05438062212 | U101: 0.05670852736 | V101: 0.0591044799 | W101: 0.06157021066 | X101: 0.0641074915 | Y101: 0.06403822038 | Z101: 0.06041870581 | AA101: 0.05901034879 | AB101: 0.05839322377 | AC101: 0.05800858299 | AD101: 0.05925116509 | AE101: 0.05484682119 | AF101: 0.02214262924 | AG101: 0.01498771614 | AH101: 0.01541088778 | AI101: 0.01602011746 | AJ101: 0.01664674329 | AK101: 0.01729120286 | AL101: 0.01795394401 | AM101: 0.0106531243 | AN101: -2.62010204e-17 | AO101: -2.669097948e-17 | AP101: -2.71901008e-17 | AQ101: -2.769855568e-17 | AR101: -2.821651867e-17 | AS101: -2.874416757e-17 | AT101: -2.928168351e-17 | AU101: -2.982925099e-17 | AV101: -3.038705798e-17 | AW101: -3.095529596e-17 | AX101: -3.153416e-17 | AY101: -3.212384879e-17 | AZ101: -3.272456476e-17 | BA101: -3.333651412e-17 | BB101: -3.395990694e-17 | BC101: -3.45949572e-17 | BD101: -3.52418829e-17 | BE101: -3.590090611e-17 | BF101: -3.657225305e-17 | BG101: -3.725615418e-17 | BH101: -3.795284427e-17 | BI101: -3.866256246e-17 | BJ101: -3.938555237e-17 | BK101: -4.01220622e-17 | BL101: -4.087234477e-17 | BM101: -4.163665761e-17 | BN101: -4.241526311e-17 | BO101: -4.320842853e-17 | BP101: -4.401642614e-17 | BQ101: -4.483953331e-17 | BR101: -4.567803259e-17 | BS101: -4.65322118e-17 | BT101: -4.740236416e-17 | BU101: -4.828878837e-17 | BV101: -4.919178871e-17 | BW101: =SUMIF($C$242:$C$3974,"Receipt and delivery: regulatory depreciation",BW$242:BW$3974) -> -5.011167516e-17 | BX101: -5.104876348e-17 | BY101: -5.200337536e-17 | BZ101: -5.297583848e-17 | CA101: -5.396648666e-17 | CB101: -5.497565996e-17 | CC101: -5.60037048e-17 | CD101: -5.705097408e-17 | CE101: -5.811782729e-17 | CF101: -5.920463067e-17 | CG101: -6.031175726e-17 | CH101: -6.143958712e-17 | CI101: -6.25885074e-17 | CJ101: -6.375891249e-17 | CK101: -6.495120415e-17 | CL101: -6.616579167e-17 | CM101: -6.740309197e-17 | CN101: -6.866352979e-17 | CO101: -6.99475378e-17 | CP101: -7.125555676e-17 | CQ101: -7.258803567e-17
B102: ='AA 2020-2024 inputs'!B21 -> SCADA, communications and electronic equipment | I102: $m | J102: =SUMIF($C$242:$C$3974,"SCADA: regulatory depreciation",J$242:J$3974) -> -0.09673250124 | K102: =SUMIF($C$242:$C$3974,"SCADA: regulatory depreciation",K$242:K$3974) -> 0.333760542 | L102: 0.3104070572 | M102: 0.304197456 | N102: 0.1942014221 | O102: 0.1668808185 | P102: 0.1734124367 | Q102: 0.1801299809 | R102: 0.1725651071 | S102: 0.137105785 | T102: -8.708832379e-18 | U102: -8.871687544e-18 | V102: -9.037588102e-18 | W102: -9.206590999e-18 | X102: -9.378754251e-18 | Y102: -9.554136955e-18 | Z102: -9.732799316e-18 | AA102: -9.914802663e-18 | AB102: -1.010020947e-17 | AC102: -1.028908339e-17 | AD102: -1.048148925e-17 | AE102: -1.06774931e-17 | AF102: -1.087716222e-17 | AG102: -1.108056515e-17 | AH102: -1.128777172e-17 | AI102: -1.149885305e-17 | AJ102: -1.17138816e-17 | AK102: -1.193293119e-17 | AL102: -1.2156077e-17 | AM102: -1.238339564e-17 | AN102: -1.261496514e-17 | AO102: -1.285086499e-17 | AP102: -1.309117617e-17 | AQ102: -1.333598116e-17 | AR102: -1.358536401e-17 | AS102: -1.383941032e-17 | AT102: -1.409820729e-17 | AU102: -1.436184376e-17 | AV102: -1.463041024e-17 | AW102: -1.490399891e-17 | AX102: -1.518270369e-17 | AY102: -1.546662025e-17 | AZ102: -1.575584605e-17 | BA102: -1.605048037e-17 | BB102: -1.635062436e-17 | BC102: -1.665638103e-17 | BD102: -1.696785536e-17 | BE102: -1.728515425e-17 | BF102: -1.760838664e-17 | BG102: -1.793766347e-17 | BH102: -1.827309777e-17 | BI102: -1.86148047e-17 | BJ102: -1.896290155e-17 | BK102: -1.931750781e-17 | BL102: -1.96787452e-17 | BM102: -2.004673774e-17 | BN102: -2.042161174e-17 | BO102: -2.080349588e-17 | BP102: -2.119252125e-17 | BQ102: -2.15888214e-17 | BR102: -2.199253236e-17 | BS102: -2.240379271e-17 | BT102: -2.282274363e-17 | BU102: -2.324952894e-17 | BV102: -2.368429513e-17 | BW102: =SUMIF($C$242:$C$3974,"SCADA: regulatory depreciation",BW$242:BW$3974) -> -2.412719145e-17 | BX102: -2.457836993e-17 | BY102: -2.503798545e-17 | BZ102: -2.550619578e-17 | CA102: -2.598316164e-17 | CB102: -2.646904676e-17 | CC102: -2.696401793e-17 | CD102: -2.746824507e-17 | CE102: -2.798190125e-17 | CF102: -2.850516281e-17 | CG102: -2.903820935e-17 | CH102: -2.958122386e-17 | CI102: -3.013439275e-17 | CJ102: -3.06979059e-17 | CK102: -3.127195674e-17 | CL102: -3.185674233e-17 | CM102: -3.245246341e-17 | CN102: -3.305932447e-17 | CO102: -3.367753384e-17 | CP102: -3.430730372e-17 | CQ102: -3.49488503e-17
B103: ='AA 2020-2024 inputs'!B22 -> Cathodic protection | I103: $m | J103: =SUMIF($C$242:$C$3974,"CP: regulatory depreciation",J$242:J$3974) -> -0.5294621599 | K103: =SUMIF($C$242:$C$3974,"CP: regulatory depreciation",K$242:K$3974) -> 0.1074489413 | L103: 0.1073668992 | M103: 0.1116521741 | N103: 0.115396319 | O103: 0.119935226 | P103: 0.1244207029 | Q103: 0.1286314725 | R103: 0.130664518 | S103: 0.08798881873 | T103: -4.42483719e-18 | U103: -4.507581645e-18 | V103: -4.591873422e-18 | W103: -4.677741455e-18 | X103: -4.76521522e-18 | Y103: -4.854324745e-18 | Z103: -4.945100618e-18 | AA103: -5.037573999e-18 | AB103: -5.131776633e-18 | AC103: -5.227740856e-18 | AD103: -5.32549961e-18 | AE103: -5.425086453e-18 | AF103: -5.526535569e-18 | AG103: -5.629881785e-18 | AH103: -5.735160574e-18 | AI103: -5.842408077e-18 | AJ103: -5.951661108e-18 | AK103: -6.06295717e-18 | AL103: -6.17633447e-18 | AM103: -6.291831924e-18 | AN103: -6.409489181e-18 | AO103: -6.529346629e-18 | AP103: -6.651445411e-18 | AQ103: -6.77582744e-18 | AR103: -6.902535413e-18 | AS103: -7.031612825e-18 | AT103: -7.163103985e-18 | AU103: -7.29705403e-18 | AV103: -7.43350894e-18 | AW103: -7.572515557e-18 | AX103: -7.714121598e-18 | AY103: -7.858375672e-18 | AZ103: -8.005327297e-18 | BA103: -8.155026917e-18 | BB103: -8.307525921e-18 | BC103: -8.462876656e-18 | BD103: -8.621132449e-18 | BE103: -8.782347626e-18 | BF103: -8.946577526e-18 | BG103: -9.113878526e-18 | BH103: -9.284308055e-18 | BI103: -9.457924615e-18 | BJ103: -9.634787805e-18 | BK103: -9.814958337e-18 | BL103: -9.998498058e-18 | BM103: -1.018546997e-17 | BN103: -1.037593826e-17 | BO103: -1.056996831e-17 | BP103: -1.076762671e-17 | BQ103: -1.096898133e-17 | BR103: -1.117410128e-17 | BS103: -1.138305698e-17 | BT103: -1.159592014e-17 | BU103: -1.181276385e-17 | BV103: -1.203366253e-17 | BW103: =SUMIF($C$242:$C$3974,"CP: regulatory depreciation",BW$242:BW$3974) -> -1.225869202e-17 | BX103: -1.248792956e-17 | BY103: -1.272145385e-17 | BZ103: -1.295934503e-17 | CA103: -1.320168479e-17 | CB103: -1.344855629e-17 | CC103: -1.370004429e-17 | CD103: -1.395623512e-17 | CE103: -1.421721672e-17 | CF103: -1.448307867e-17 | CG103: -1.475391224e-17 | CH103: -1.50298104e-17 | CI103: -1.531086786e-17 | CJ103: -1.559718109e-17 | CK103: -1.588884837e-17 | CL103: -1.618596984e-17 | CM103: -1.648864747e-17 | CN103: -1.679698518e-17 | CO103: -1.71110888e-17 | CP103: -1.743106616e-17 | CQ103: -1.77570271e-17
B104: ='AA 2020-2024 inputs'!B23 -> Maintenance bases and depots | I104: $m | J104: =SUMIF($C$242:$C$3974,"Bases: regulatory depreciation",J$242:J$3974) -> 0.003511101127 | K104: =SUMIF($C$242:$C$3974,"Bases: regulatory depreciation",K$242:K$3974) -> 0.009210545135 | L104: 0.004156529876 | M104: 0.005303610698 | N104: 0.005964154028 | O104: 0.00664754706 | P104: 0.007354413385 | Q104: 0.00808539193 | R104: 0.008841137308 | S104: 0.009622320183 | T104: 0.01042962764 | U104: 0.01126376357 | V104: 0.01212544904 | W104: 0.01301542272 | X104: 0.01393444128 | Y104: 0.01488327976 | Z104: 0.01586273207 | AA104: 0.01687361136 | AB104: 0.01791675049 | AC104: 0.0189930025 | AD104: 0.02010324102 | AE104: 0.0212483608 | AF104: 0.02242927816 | AG104: 0.02364693149 | AH104: 0.02490228176 | AI104: 0.02619631303 | AJ104: 0.027530033 | AK104: 0.0289044735 | AL104: 0.0303206911 | AM104: 0.03177976763 | AN104: 0.03328281079 | AO104: 0.03483095468 | AP104: 0.0364253605 | AQ104: 0.03806721706 | AR104: 0.03975774146 | AS104: 0.04139218789 | AT104: 0.04293669367 | AU104: 0.04462715613 | AV104: 0.04644997462 | AW104: 0.04838170491 | AX104: 0.05036943883 | AY104: 0.05147991153 | AZ104: 0.05260154486 | BA104: 0.05268617068 | BB104: 0.04955794049 | BC104: 0.05062279054 | BD104: 0.04915085545 | BE104: 0.05104297103 | BF104: 0.05298866418 | BG104: 0.0008785119488 | BH104: -8.424806984e-17 | BI104: -8.582350874e-17 | BJ104: -8.742840836e-17 | BK104: -8.906331959e-17 | BL104: -9.072880367e-17 | BM104: -9.24254323e-17 | BN104: -9.415378788e-17 | BO104: -9.591446372e-17 | BP104: -9.770806419e-17 | BQ104: -9.953520499e-17 | BR104: -1.013965133e-16 | BS104: -1.032926281e-16 | BT104: -1.052242003e-16 | BU104: -1.071918928e-16 | BV104: -1.091963812e-16 | BW104: =SUMIF($C$242:$C$3974,"Bases: regulatory depreciation",BW$242:BW$3974) -> -1.112383535e-16 | BX104: -1.133185107e-16 | BY104: -1.154375669e-16 | BZ104: -1.175962494e-16 | CA104: -1.197952993e-16 | CB104: -1.220354714e-16 | CC104: -1.243175347e-16 | CD104: -1.266422726e-16 | CE104: -1.290104831e-16 | CF104: -1.314229791e-16 | CG104: -1.338805888e-16 | CH104: -1.363841558e-16 | CI104: -1.389345395e-16 | CJ104: -1.415326154e-16 | CK104: -1.441792753e-16 | CL104: -1.468754278e-16 | CM104: -1.496219983e-16 | CN104: -1.524199297e-16 | CO104: -1.552701823e-16 | CP104: -1.581737347e-16 | CQ104: -1.611315836e-16
B105: ='AA 2020-2024 inputs'!B24 -> Other depreciable assets | I105: $m | J105: =SUMIF($C$242:$C$3974,"Other: regulatory depreciation",J$242:J$3974) -> -1.96520582 | K105: =SUMIF($C$242:$C$3974,"Other: regulatory depreciation",K$242:K$3974) -> 0.1603226097 | L105: 0.1393520067 | M105: 0.1133185623 | N105: 0.08383513881 | O105: 0.05328806726 | P105: 0.05536251813 | Q105: 0.05749591916 | R105: 0.05968974967 | S105: 0.007161987852 | T105: -2.390674742e-18 | U105: -2.435380359e-18 | V105: -2.480921972e-18 | W105: -2.527315213e-18 | X105: -2.574576007e-18 | Y105: -2.622720579e-18 | Z105: -2.671765453e-18 | AA105: -2.721727467e-18 | AB105: -2.772623771e-18 | AC105: -2.824471836e-18 | AD105: -2.877289459e-18 | AE105: -2.931094772e-18 | AF105: -2.985906244e-18 | AG105: -3.041742691e-18 | AH105: -3.098623279e-18 | AI105: -3.156567534e-18 | AJ105: -3.215595347e-18 | AK105: -3.27572698e-18 | AL105: -3.336983075e-18 | AM105: -3.399384658e-18 | AN105: -3.462953151e-18 | AO105: -3.527710375e-18 | AP105: -3.593678559e-18 | AQ105: -3.660880348e-18 | AR105: -3.729338811e-18 | AS105: -3.799077447e-18 | AT105: -3.870120195e-18 | AU105: -3.942491443e-18 | AV105: -4.016216033e-18 | AW105: -4.091319272e-18 | AX105: -4.167826943e-18 | AY105: -4.245765307e-18 | AZ105: -4.325161118e-18 | BA105: -4.406041631e-18 | BB105: -4.488434609e-18 | BC105: -4.572368336e-18 | BD105: -4.657871624e-18 | BE105: -4.744973824e-18 | BF105: -4.833704834e-18 | BG105: -4.924095115e-18 | BH105: -5.016175693e-18 | BI105: -5.109978179e-18 | BJ105: -5.205534771e-18 | BK105: -5.302878271e-18 | BL105: -5.402042094e-18 | BM105: -5.503060282e-18 | BN105: -5.605967509e-18 | BO105: -5.710799101e-18 | BP105: -5.817591045e-18 | BQ105: -5.926379997e-18 | BR105: -6.037203303e-18 | BS105: -6.150099005e-18 | BT105: -6.265105856e-18 | BU105: -6.382263336e-18 | BV105: -6.50161166e-18 | BW105: =SUMIF($C$242:$C$3974,"Other: regulatory depreciation",BW$242:BW$3974) -> -6.623191798e-18 | BX105: -6.747045485e-18 | BY105: -6.873215235e-18 | BZ105: -7.00174436e-18 | CA105: -7.13267698e-18 | CB105: -7.266058039e-18 | CC105: -7.401933325e-18 | CD105: -7.540349478e-18 | CE105: -7.681354013e-18 | CF105: -7.824995333e-18 | CG105: -7.971322746e-18 | CH105: -8.120386481e-18 | CI105: -8.272237708e-18 | CJ105: -8.426928553e-18 | CK105: -8.584512117e-18 | CL105: -8.745042494e-18 | CM105: -8.908574789e-18 | CN105: -9.075165137e-18 | CO105: -9.244870725e-18 | CP105: -9.417749808e-18 | CQ105: -9.593861729e-18
B106: ='AA 2020-2024 inputs'!B25 -> Non-depreciable assets | I106: $m
I108: $m | J108: =SUM(J98:J107) -> -2.362698034 | K108: =SUM(K98:K107) -> 1.395840994 | L108: =SUM(L98:L107) -> 1.298353804 | M108: =SUM(M98:M107) -> 1.312930865 | N108: =SUM(N98:N107) -> 1.213174954 | O108: =SUM(O98:O107) -> 1.196897143 | P108: 1.248138697 | Q108: 1.300477617 | R108: 1.33757284 | S108: 1.248528793 | T108: 1.059106651 | U108: 1.103187729 | V108: 1.14854708 | W108: 1.195217098 | X108: 1.243230938 | Y108: 1.241333204 | Z108: 1.064046358 | AA108: 0.8574144881 | AB108: 0.6957334069 | AC108: 0.3528322306 | AD108: 0.2211650694 | AE108: 0.1967215802 | AF108: 0.1434489643 | AG108: 0.1316212621 | AH108: 0.1102685746 | AI108: 0.1109354758 | AJ108: 0.1157909325 | AK108: 0.1207891903 | AL108: 0.1200589911 | AM108: 0.09024450082 | AN108: 0.04170330979 | AO108: 0.04377441974 | AP108: 0.04590840596 | AQ108: 0.04810689579 | AR108: 0.05037155543 | AS108: 0.05259809898 | AT108: 0.05475313476 | AU108: 0.05707304245 | AV108: 0.05954471534 | AW108: 0.06214521498 | AX108: 0.06482215111 | AY108: 0.06664278923 | AZ108: 0.0684960942 | BA108: 0.06933445387 | BB108: 0.06601063376 | BC108: 0.06749068467 | BD108: 0.06679175327 | BE108: 0.06947988436 | BF108: 0.07224519514 | BG108: 0.02097886705 | BH108: 0.02096900444 | BI108: 0.02186311237 | BJ108: 0.02278332729 | BK108: 0.02373031293 | BL108: 0.02470474874 | BM108: 0.02570733019 | BN108: 0.02673876918 | BO108: 0.0277997944 | BP108: 0.02889115167 | BQ108: 0.03001360441 | BR108: 0.02049649295 | BS108: 0.01764213556 | BT108: 0.01153995136 | BU108: 0.004873610023 | BV108: 0.001502450968 | BW108: 0.001163042868 | BX108: 0.001208264178 | BY108: 0.001254770061 | BZ108: 0.001302592745 | CA108: =SUM(CA98:CA107) -> -9.070374429e-16 | CB108: -9.239990431e-16 | CC108: -9.412778252e-16 | CD108: -9.588797205e-16 | CE108: -9.768107713e-16 | CF108: -9.950771327e-16 | CG108: -1.013685075e-15 | CH108: -1.032640986e-15 | CI108: -1.051951372e-15 | CJ108: -1.071622863e-15 | CK108: -1.091662211e-15 | CL108: -1.112076294e-15 | CM108: =SUM(CM98:CM107) -> -1.132872121e-15 | CN108: =SUM(CN98:CN107) -> -1.154056829e-15 | CO108: =SUM(CO98:CO107) -> -1.175637692e-15 | CP108: =SUM(CP98:CP107) -> -1.197622117e-15 | CQ108: =SUM(CQ98:CQ107) -> -1.22001765e-15
B111: CAPEX: 2015-2024
B113: Additions to capital base (beginning of year)
B115: ='AA 2020-2024 inputs'!B17 -> Pipeline and laterals | I115: $m | K115: =J115+J129-J143 -> 1.766083056 | L115: =K115+K129-K143 -> 2.258702911 | M115: =L115+L129-L143 -> 2.551776906 | N115: =M115+M129-M143 -> 2.632334473 | O115: =N115+N129-N143 -> 2.646895526 | P115: =O115+O129-O143 -> 3.053370913 | Q115: =P115+P129-P143 -> 3.061303621 | R115: =Q115+Q129-Q143 -> 3.068465279 | S115: =R115+R129-R143 -> 3.074824276 | T115: =S115+S129-S143 -> 3.303863684 | U115: =T115+T129-T143 -> 3.309445802 | V115: =U115+U129-U143 -> 3.314081363 | W115: =V115+V129-V143 -> 3.317733014 | X115: =W115+W129-W143 -> 3.320362336 | Y115: =X115+X129-X143 -> 3.321929816 | Z115: =Y115+Y129-Y143 -> 3.322394823 | AA115: =Z115+Z129-Z143 -> 3.321715575 | AB115: =AA115+AA129-AA143 -> 3.319849115 | AC115: =AB115+AB129-AB143 -> 3.316751279 | AD115: =AC115+AC129-AC143 -> 3.312376666 | AE115: =AD115+AD129-AD143 -> 3.306678607 | AF115: =AE115+AE129-AE143 -> 3.299609136 | AG115: =AF115+AF129-AF143 -> 3.291118954 | AH115: =AG115+AG129-AG143 -> 3.281157399 | AI115: =AH115+AH129-AH143 -> 3.269672411 | AJ115: =AI115+AI129-AI143 -> 3.256610496 | AK115: =AJ115+AJ129-AJ143 -> 3.241916694 | AL115: =AK115+AK129-AK143 -> 3.225534539 | AM115: =AL115+AL129-AL143 -> 3.207406026 | AN115: =AM115+AM129-AM143 -> 3.18747157 | AO115: =AN115+AN129-AN143 -> 3.165669967 | AP115: =AO115+AO129-AO143 -> 3.141938357 | AQ115: =AP115+AP129-AP143 -> 3.116212182 | AR115: =AQ115+AQ129-AQ143 -> 3.088425143 | AS115: =AR115+AR129-AR143 -> 3.058509161 | AT115: =AS115+AS129-AS143 -> 3.02639433 | AU115: =AT115+AT129-AT143 -> 2.992008874 | AV115: =AU115+AU129-AU143 -> 2.955279102 | AW115: =AV115+AV129-AV143 -> 2.916129361 | AX115: =AW115+AW129-AW143 -> 2.874481988 | AY115: =AX115+AX129-AX143 -> 2.830257262 | AZ115: =AY115+AY129-AY143 -> 2.783373354 | BA115: =AZ115+AZ129-AZ143 -> 2.733746275 | BB115: =BA115+BA129-BA143 -> 2.681289826 | BC115: =BB115+BB129-BB143 -> 2.625915541 | BD115: =BC115+BC129-BC143 -> 2.567532638 | BE115: =BD115+BD129-BD143 -> 2.506047958 | BF115: =BE115+BE129-BE143 -> 2.441365911 | BG115: =BF115+BF129-BF143 -> 2.373388415 | BH115: =BG115+BG129-BG143 -> 2.302014839 | BI115: =BH115+BH129-BH143 -> 2.227141942 | BJ115: =BI115+BI129-BI143 -> 2.148663806 | BK115: =BJ115+BJ129-BJ143 -> 2.066471779 | BL115: =BK115+BK129-BK143 -> 1.980454404 | BM115: =BL115+BL129-BL143 -> 1.890497355 | BN115: =BM115+BM129-BM143 -> 1.796483367 | BO115: =BN115+BN129-BN143 -> 1.698292167 | BP115: =BO115+BO129-BO143 -> 1.595800405 | BQ115: =BP115+BP129-BP143 -> 1.488881575 | BR115: =BQ115+BQ129-BQ143 -> 1.377405945 | BS115: =BR115+BR129-BR143 -> 1.26124048 | BT115: =BS115+BS129-BS143 -> 1.140248761 | BU115: =BT115+BT129-BT143 -> 1.014290909 | BV115: =BU115+BU129-BU143 -> 0.7563117257 | BW115: =BV115+BV129-BV143 -> 0.6415723094 | BX115: =BW115+BW129-BW143 -> 0.3825431659 | BY115: =BX115+BX129-BX143 -> 0.3465237486 | BZ115: =BY115+BY129-BY143 -> 0.3090234336 | CA115: =BZ115+BZ129-BZ143 -> 0.269999431 | CB115: =CA115+CA129-CA143 -> 0.2294078682 | CC115: =CB115+CB129-CB143 -> 0.1872037649 | CD115: =CC115+CC129-CC143 -> 0.1605588146 | CE115: =CD115+CD129-CD143 -> 0.1301613357 | CF115: =CE115+CE129-CE143 -> 0.1029460333 | CG115: =CF115+CF129-CF143 -> 0.07372919135 | CH115: =CG115+CG129-CG143 -> 0.04338364027 | CI115: =CH115+CH129-CH143 -> 0.03314618576 | CJ115: =CI115+CI129-CI143 -> 0.02251067962 | CK115: =CJ115+CJ129-CJ143 -> 0.01146581467 | CL115: =CK115+CK129-CK143 -> 5.542441506e-15 | CM115: =CL115+CL129-CL143 -> 5.654641775e-15 | CN115: =CM115+CM129-CM143 -> 5.768940189e-15 | CO115: =CN115+CN129-CN143 -> 5.885375983e-15 | CP115: =CO115+CO129-CO143 -> 6.003989127e-15 | CQ115: =CP115+CP129-CP143 -> 6.124820336e-15
B116: ='AA 2020-2024 inputs'!B18 -> Main line valve and scraper stations | I116: $m | K116: =J116+J130-J144 -> 0.1095663195 | L116: 0.1110662242 | M116: 0.1103931107 | N116: 0.1093048436 | O116: 0.1079937733 | P116: 0.1090112486 | Q116: 0.1083971038 | R116: 0.1077218698 | S116: 0.1069834767 | T116: 0.1061797984 | U116: 0.1053086515 | V116: 0.1043677937 | W116: 0.1033549225 | X116: 0.1022676734 | Y116: 0.1011036191 | Z116: 0.0998602672 | AA116: 0.09853505898 | AB116: 0.09712536784 | AC116: 0.09562849753 | AD116: 0.09404168049 | AE116: 0.09236207617 | AF116: 0.09058676922 | AG116: 0.08871276769 | AH116: 0.08673700121 | AI116: 0.0846563191 | AJ116: 0.08246748842 | AK116: 0.080167192 | AL116: 0.07775202643 | AM116: 0.07521850002 | AN116: 0.0725630306 | AO116: 0.06978194348 | AP116: 0.06687146913 | AQ116: 0.06382774099 | AR116: 0.06064679313 | AS116: 0.0573245579 | AT116: 0.0538568635 | AU116: 0.0502394315 | AV116: 0.04646787434 | AW116: 0.04253769272 | AX116: 0.03844427295 | AY116: 0.03418288427 | AZ116: 0.02974867608 | BA116: 0.02513667509 | BB116: 0.02034178245 | BC116: 0.01535877078 | BD116: 0.01018228116 | BE116: 0.004806820019 | BF116: -0.0007732440134 | BG116: -0.006563683337 | BH116: -0.0125704147 | BI116: 1.734723476e-17 | BJ116: 1.734723476e-17 | BK116: 1.734723476e-17 | BL116: 1.734723476e-17 | BM116: 1.734723476e-17 | BN116: 1.734723476e-17 | BO116: 1.734723476e-17 | BP116: 1.734723476e-17 | BQ116: 1.734723476e-17 | BR116: 1.734723476e-17 | BS116: 1.734723476e-17 | BT116: 1.734723476e-17 | BU116: 1.734723476e-17 | BV116: 1.734723476e-17 | BW116: 1.734723476e-17 | BX116: 1.734723476e-17 | BY116: 1.734723476e-17 | BZ116: 1.734723476e-17 | CA116: 1.734723476e-17 | CB116: 1.734723476e-17 | CC116: 1.734723476e-17 | CD116: 1.734723476e-17 | CE116: 1.734723476e-17 | CF116: 1.734723476e-17 | CG116: 1.734723476e-17 | CH116: 1.734723476e-17 | CI116: 1.734723476e-17 | CJ116: 1.734723476e-17 | CK116: 1.734723476e-17 | CL116: 1.734723476e-17 | CM116: 1.734723476e-17 | CN116: 1.734723476e-17 | CO116: 1.734723476e-17 | CP116: 1.734723476e-17 | CQ116: 1.734723476e-17
B117: ='AA 2020-2024 inputs'!B19 -> Compressor stations | I117: $m | K117: -0.01498228958 | L117: -0.03104079391 | M117: 0.9102962651 | N117: 1.405294292 | O117: 2.398650697 | P117: 4.22907827 | Q117: 4.500276232 | R117: 5.603087876 | S117: 5.728959347 | T117: 7.643468683 | U117: 7.492364275 | V117: 7.332935718 | W117: 7.164924528 | X117: 6.988065465 | Y117: 6.802086371 | Z117: 6.606708003 | AA117: 6.401643861 | AB117: 6.186600021 | AC117: 5.961274951 | AD117: 5.72535933 | AE117: 5.478535868 | AF117: 5.220479106 | AG117: 4.950855233 | AH117: 4.669321878 | AI117: 4.37552791 | AJ117: 4.069113233 | AK117: 3.749708569 | AL117: 3.416935242 | AM117: 3.070404957 | AN117: 2.709719572 | AO117: 2.334470863 | AP117: 1.94424029 | AQ117: 1.599829334 | AR117: 1.262206507 | AS117: 0.9214321498 | AT117: 0.6280870174 | AU117: 0.4278858938 | AV117: 0.2403169365 | AW117: 0.1157113846 | AX117: 9.742207041e-15 | AY117: 9.933652573e-15 | AZ117: 1.012867814e-14 | BA117: 1.032735068e-14 | BB117: 1.05297384e-14 | BC117: 1.073591077e-14 | BD117: 1.094593856e-14 | BE117: 1.115989387e-14 | BF117: 1.137785014e-14 | BG117: 1.15998822e-14 | BH117: 1.182606626e-14 | BI117: 1.205647996e-14 | BJ117: 1.22912024e-14 | BK117: 1.253031414e-14 | BL117: 1.277389728e-14 | BM117: 1.302203541e-14 | BN117: 1.327481374e-14 | BO117: 1.353231902e-14 | BP117: 1.379463964e-14 | BQ117: 1.406186566e-14 | BR117: 1.433408881e-14 | BS117: 1.461140253e-14 | BT117: 1.489390202e-14 | BU117: 1.518168425e-14 | BV117: 1.5474848e-14 | BW117: 1.577349392e-14 | BX117: 1.607772452e-14 | BY117: 1.638764423e-14 | BZ117: 1.670335944e-14 | CA117: 1.702497852e-14 | CB117: 1.735261188e-14 | CC117: 1.768637198e-14 | CD117: 1.80263734e-14 | CE117: 1.837273284e-14 | CF117: 1.87255692e-14 | CG117: 1.908500361e-14 | CH117: 1.945115944e-14 | CI117: 1.982416238e-14 | CJ117: 2.020414047e-14 | CK117: 2.059122416e-14 | CL117: 2.098554631e-14 | CM117: 2.138724229e-14 | CN117: 2.179644998e-14 | CO117: 2.221330986e-14 | CP117: 2.263796501e-14 | CQ117: 2.307056122e-14
B118: ='AA 2020-2024 inputs'!B20 -> Receipt and delivery point facilities | I118: $m | K118: 0.4116584704 | L118: 0.01129577286 | M118: 0.008398875157 | N118: 0.1851047971 | O118: 0.2946074951 | P118: 0.6867675786 | Q118: 0.6707834878 | R118: 0.6539614362 | S118: 0.6362756736 | T118: 0.6176997798 | U118: 0.5982066482 | V118: 0.5777684701 | W118: 0.5563567173 | X118: 0.533942125 | Y118: 0.5104946747 | Z118: 0.4859835754 | AA118: 0.4603772462 | AB118: 0.4336432966 | AC118: 0.405748508 | AD118: 0.3766588136 | AE118: 0.3463392784 | AF118: 0.3147540788 | AG118: 0.2818664814 | AH118: 0.2476388214 | AI118: 0.2120324811 | AJ118: 0.1750078668 | AK118: 0.1365243864 | AL118: 0.0965404252 | AM118: 0.07795840255 | AN118: 0.06227515025 | AO118: 0.04597808303 | AP118: 0.0290497285 | AQ118: 0.01408793872 | AR118: 0.007175691588 | AS118: 1.639313685e-16 | AT118: 1.684242155e-16 | AU118: 1.730010789e-16 | AV118: 1.776635295e-16 | AW118: 1.82413168e-16 | AX118: 1.872516247e-16 | AY118: 1.921805606e-16 | AZ118: 1.972016675e-16 | BA118: 2.023166692e-16 | BB118: 2.075273214e-16 | BC118: 2.128354127e-16 | BD118: 2.182427654e-16 | BE118: 2.237512356e-16 | BF118: 2.293627142e-16 | BG118: 2.350791274e-16 | BH118: 2.409024376e-16 | BI118: 2.468346437e-16 | BJ118: 2.52877782e-16 | BK118: 2.59033927e-16 | BL118: 2.653051919e-16 | BM118: 2.716937295e-16 | BN118: 2.782017327e-16 | BO118: 2.848314355e-16 | BP118: 2.915851139e-16 | BQ118: 2.98465086e-16 | BR118: 3.054737136e-16 | BS118: 3.126134025e-16 | BT118: 3.198866036e-16 | BU118: 3.272958135e-16 | BV118: 3.348435757e-16 | BW118: 3.425324811e-16 | BX118: 3.503651689e-16 | BY118: 3.583443281e-16 | BZ118: 3.664726975e-16 | CA118: 3.747530674e-16 | CB118: 3.831882802e-16 | CC118: 3.917812316e-16 | CD118: 4.005348711e-16 | CE118: 4.094522036e-16 | CF118: 4.185362903e-16 | CG118: 4.277902494e-16 | CH118: 4.372172576e-16 | CI118: 4.468205508e-16 | CJ118: 4.566034255e-16 | CK118: 4.665692401e-16 | CL118: 4.767214153e-16 | CM118: 4.870634363e-16 | CN118: 4.97598853e-16 | CO118: 5.08331282e-16 | CP118: 5.192644075e-16 | CQ118: 5.304019824e-16
B119: ='AA 2020-2024 inputs'!B21 -> SCADA, communications and electronic equipment | I119: $m | K119: 0.970267486 | L119: 1.94110749 | M119: 1.975138971 | N119: 2.04529888 | O119: 2.001855718 | P119: 2.653526597 | Q119: 3.909882661 | R119: 3.970712368 | S119: 4.445384336 | T119: 4.502464987 | U119: 3.883439208 | V119: 3.366498451 | W119: 2.828866109 | X119: 2.274463157 | Y119: 1.708750552 | Z119: 1.121084938 | AA119: 0.632223998 | AB119: 0.3319386816 | AC119: 0.1002158394 | AD119: 1.512678871e-15 | AE119: 1.553306114e-15 | AF119: 1.594693087e-15 | AG119: 1.636853996e-15 | AH119: 1.679803314e-15 | AI119: 1.723555785e-15 | AJ119: 1.768126426e-15 | AK119: 1.813530539e-15 | AL119: 1.859783709e-15 | AM119: 1.906901812e-15 | AN119: 1.954901025e-15 | AO119: 2.003797822e-15 | AP119: 2.05360899e-15 | AQ119: 2.104351626e-15 | AR119: 2.15604315e-15 | AS119: 2.208701306e-15 | AT119: 2.262344168e-15 | AU119: 2.316990153e-15 | AV119: 2.372658017e-15 | AW119: 2.42936687e-15 | AX119: 2.487136179e-15 | AY119: 2.545985774e-15 | AZ119: 2.605935857e-15 | BA119: 2.667007006e-15 | BB119: 2.729220185e-15 | BC119: 2.792596751e-15 | BD119: 2.857158459e-15 | BE119: 2.92292747e-15 | BF119: 2.989926362e-15 | BG119: 3.058178134e-15 | BH119: 3.127706213e-15 | BI119: 3.198534468e-15 | BJ119: 3.270687211e-15 | BK119: 3.34418921e-15 | BL119: 3.419065697e-15 | BM119: 3.495342374e-15 | BN119: 3.573045424e-15 | BO119: 3.652201522e-15 | BP119: 3.732837839e-15 | BQ119: 3.814982055e-15 | BR119: 3.898662368e-15 | BS119: 3.983907503e-15 | BT119: 4.070746721e-15 | BU119: 4.159209834e-15 | BV119: 4.249327206e-15 | BW119: 4.341129773e-15 | BX119: 4.434649048e-15 | BY119: 4.529917134e-15 | BZ119: 4.626966733e-15 | CA119: 4.725831159e-15 | CB119: 4.82654435e-15 | CC119: 4.929140878e-15 | CD119: 5.033655961e-15 | CE119: 5.140125476e-15 | CF119: 5.24858597e-15 | CG119: 5.359074676e-15 | CH119: 5.471629521e-15 | CI119: 5.586289142e-15 | CJ119: 5.703092897e-15 | CK119: 5.822080883e-15 | CL119: 5.943293944e-15 | CM119: 6.066773689e-15 | CN119: 6.192562505e-15 | CO119: 6.320703572e-15 | CP119: 6.451240878e-15 | CQ119: 6.584219231e-15
B120: ='AA 2020-2024 inputs'!B22 -> Cathodic protection | I120: $m | K120: 0 | L120: -0.005479611502 | M120: -0.01254118117 | N120: -0.02167723932 | O120: 0.04250763551 | P120: 0.3111877219 | Q120: 0.4815858384 | R120: 0.8060738505 | S120: 1.244921846 | T120: 1.236851071 | U120: 1.161252479 | V120: 1.082393985 | W120: 1.000180105 | X120: 0.9145129242 | Y120: 0.8252920375 | Z120: 0.7324144935 | AA120: 0.6357747331 | AB120: 0.5352645276 | AC120: 0.4307729163 | AD120: 0.3221861422 | AE120: 0.2161278265 | AF120: 0.1274860951 | AG120: 0.0521376254 | AH120: 0.0053112599 | AI120: 7.173081573e-16 | AJ120: 7.309813111e-16 | AK120: 7.449101528e-16 | AL120: 7.590994638e-16 | AM120: 7.73554115e-16 | AN120: 7.882790681e-16 | AO120: 8.032793779e-16 | AP120: 8.185601935e-16 | AQ120: 8.341267603e-16 | AR120: 8.499844219e-16 | AS120: 8.661386218e-16 | AT120: 8.825949052e-16 | AU120: 8.993589211e-16 | AV120: 9.164364242e-16 | AW120: 9.338332765e-16 | AX120: 9.515554499e-16 | AY120: 9.696090281e-16 | AZ120: 9.880002081e-16 | BA120: 1.006735303e-15 | BB120: 1.025820745e-15 | BC120: 1.045263084e-15 | BD120: 1.065068995e-15 | BE120: 1.085245276e-15 | BF120: 1.105798854e-15 | BG120: 1.126736784e-15 | BH120: 1.148066253e-15 | BI120: 1.169794583e-15 | BJ120: 1.191929233e-15 | BK120: 1.2144778e-15 | BL120: 1.237448026e-15 | BM120: 1.260847796e-15 | BN120: 1.284685141e-15 | BO120: 1.308968244e-15 | BP120: 1.333705441e-15 | BQ120: 1.358905224e-15 | BR120: 1.384576243e-15 | BS120: 1.41072731e-15 | BT120: 1.437367402e-15 | BU120: 1.464505664e-15 | BV120: 1.492151411e-15 | BW120: 1.520314133e-15 | BX120: 1.549003499e-15 | BY120: 1.578229356e-15 | BZ120: 1.608001736e-15 | CA120: 1.638330859e-15 | CB120: 1.669227138e-15 | CC120: 1.700701176e-15 | CD120: 1.732763779e-15 | CE120: 1.765425953e-15 | CF120: 1.79869891e-15 | CG120: 1.832594071e-15 | CH120: 1.867123071e-15 | CI120: 1.902297764e-15 | CJ120: 1.938130223e-15 | CK120: 1.974632749e-15 | CL120: 2.011817873e-15 | CM120: 2.049698358e-15 | CN120: 2.088287209e-15 | CO120: 2.127597671e-15 | CP120: 2.167643239e-15 | CQ120: 2.208437658e-15
B121: ='AA 2020-2024 inputs'!B23 -> Maintenance bases and depots | I121: $m | K121: 0.0248213406 | L121: 0.0239104567 | M121: 0.02363111897 | N121: 0.04231432285 | O121: 0.3545863482 | P121: 4.349186995 | Q121: 4.679901427 | R121: 4.669955582 | S121: 4.658001248 | T121: 4.643966785 | U121: 4.627778576 | V121: 4.60936098 | W121: 4.588636278 | X121: 4.565524624 | Y121: 4.539943994 | Z121: 4.511810131 | AA121: 4.481036488 | AB121: 4.447534176 | AC121: 4.411211903 | AD121: 4.37197592 | AE121: 4.329729954 | AF121: 4.284375153 | AG121: 4.235810018 | AH121: 4.183930345 | AI121: 4.128629152 | AJ121: 4.069796615 | AK121: 3.992296187 | AL121: 3.926665586 | AM121: 3.857184334 | AN121: 3.783731367 | AO121: 3.706182441 | AP121: 3.624410052 | AQ121: 3.53828336 | AR121: 3.447668111 | AS121: 3.352426549 | AT121: 3.252417337 | AU121: 3.14749547 | AV121: 3.037512188 | AW121: 2.922314884 | AX121: 2.801747013 | AY121: 2.675647999 | AZ121: 2.543853139 | BA121: 2.406193504 | BB121: 2.262495839 | BC121: 2.112582459 | BD121: 1.956271146 | BE121: 1.793375042 | BF121: 1.623702535 | BG121: 1.44705715 | BH121: 1.263237436 | BI121: 1.072036843 | BJ121: 0.8732436065 | BK121: 0.6666406222 | BL121: 0.4528905171 | BM121: 0.2310138142 | BN121: 0.01677211742 | BO121: 1.094610513e-14 | BP121: 1.118258279e-14 | BQ121: 1.142348257e-14 | BR121: 1.166888718e-14 | BS121: 1.191888086e-14 | BT121: 1.217354941e-14 | BU121: 1.243298028e-14 | BV121: 1.269726249e-14 | BW121: 1.296648679e-14 | BX121: 1.324074558e-14 | BY121: 1.352013301e-14 | BZ121: 1.380474498e-14 | CA121: 1.40946792e-14 | CB121: 1.439003518e-14 | CC121: 1.469091433e-14 | CD121: 1.499741991e-14 | CE121: 1.530965715e-14 | CF121: 1.562773322e-14 | CG121: 1.595175732e-14 | CH121: 1.628184067e-14 | CI121: 1.661809658e-14 | CJ121: 1.696064047e-14 | CK121: 1.730958993e-14 | CL121: 1.766506475e-14 | CM121: 1.802718695e-14 | CN121: 1.839608083e-14 | CO121: 1.877187303e-14 | CP121: 1.915469254e-14 | CQ121: 1.954467078e-14
B122: ='AA 2020-2024 inputs'!B24 -> Other depreciable assets | I122: $m | K122: 0.06686861092 | L122: 0.3483860937 | M122: 0.4276725103 | N122: 0.4999380514 | O122: 0.6699696335 | P122: 0.6692188699 | Q122: 0.5686955751 | R122: 0.46417869 | S122: 0.3555540063 | T122: 0.2427044407 | U122: 0.1658767052 | V122: 0.1094141414 | W122: 0.06295537738 | X122: 0.02645282249 | Y122: -4.510281038e-17 | Z122: -4.354572258e-17 | AA122: -4.195951725e-17 | AB122: -4.034364988e-17 | AC122: -3.869756578e-17 | AD122: -3.702069992e-17 | AE122: -3.531247666e-17 | AF122: -3.357230963e-17 | AG122: -3.179960147e-17 | AH122: -2.999374367e-17 | AI122: -2.815411633e-17 | AJ122: -2.628008796e-17 | AK122: -2.437101526e-17 | AL122: -2.24262429e-17 | AM122: -2.04451033e-17 | AN122: -1.842691638e-17 | AO122: -1.637098937e-17 | AP122: -1.427661653e-17 | AQ122: -1.214307891e-17 | AR122: -9.96964414e-18 | AS122: -7.755566139e-18 | AT122: -5.50008488e-18 | AU122: -3.202426121e-18 | AV122: -8.618011438e-19 | AW122: 1.522593521e-18 | AX122: 3.951576366e-18 | AY122: 6.42598119e-18 | AZ122: 8.946657384e-18 | BA122: 1.151447022e-17 | BB122: 1.413030116e-17 | BC122: 1.679504814e-17 | BD122: 1.950962589e-17 | BE122: 2.227496624e-17 | BF122: 2.509201845e-17 | BG122: 2.796174954e-17 | BH122: 3.088514461e-17 | BI122: 3.386320716e-17 | BJ122: 3.689695948e-17 | BK122: 3.998744296e-17 | BL122: 4.313571849e-17 | BM122: 4.634286677e-17 | BN122: 4.960998873e-17 | BO122: 5.293820586e-17 | BP122: 5.632866066e-17 | BQ122: 5.978251696e-17 | BR122: 6.330096037e-17 | BS122: 6.688519868e-17 | BT122: 7.053646224e-17 | BU122: 7.425600443e-17 | BV122: 7.804510206e-17 | BW122: 8.190505581e-17 | BX122: 8.58371907e-17 | BY122: 8.984285652e-17 | BZ122: 9.392342828e-17 | CA122: 9.808030673e-17 | CB122: 1.023149188e-16 | CC122: 1.066287181e-16 | CD122: 1.110231855e-16 | CE122: 1.154998294e-16 | CF122: 1.200601866e-16 | CG122: 1.247058224e-16 | CH122: 1.294383317e-16 | CI122: 1.342593388e-16 | CJ122: 1.391704988e-16 | CK122: 1.441734975e-16 | CL122: 1.492700522e-16 | CM122: 1.544619125e-16 | CN122: 1.597508606e-16 | CO122: 1.651387121e-16 | CP122: 1.706273163e-16 | CQ122: 1.762185575e-16
B123: ='AA 2020-2024 inputs'!B25 -> Non-depreciable assets | I123: $m
I125: $m | K125: =SUM(K115:K124) -> 3.334282993 | L125: =SUM(L115:L124) -> 4.657948543 | M125: =SUM(M115:M124) -> 5.994766575 | N125: =SUM(N115:N124) -> 6.897912421 | O125: =SUM(O115:O124) -> 8.517066826 | P125: 16.06134819 | Q125: 17.98082595 | R125: 19.34415695 | S125: 20.25090421 | T125: 22.29719923 | U125: 21.34367234 | V125: 20.4968209 | W125: 19.62300705 | X125: 18.72559113 | Y125: 17.80960107 | Z125: 16.88025623 | AA125: 16.03130696 | AB125: 15.35195519 | AC125: 14.72160389 | AD125: 14.20259855 | AE125: 13.76977361 | AF125: 13.33729034 | AG125: 12.90050108 | AH125: 12.4740967 | AI125: 12.07051827 | AJ125: 11.6529957 | AK125: 11.20061303 | AL125: 10.74342782 | AM125: 10.28817222 | AN125: 9.815760689 | AO125: 9.322083297 | AP125: 8.806509896 | AQ125: 8.332240556 | AR125: 7.866122245 | AS125: 7.389692417 | AT125: 6.960755547 | AU125: 6.617629669 | AV125: 6.279576101 | AW125: 5.996693322 | AX125: 5.714673274 | AY125: 5.540088146 | AZ125: 5.356975169 | BA125: 5.165076454 | BB125: 4.964127447 | BC125: 4.753856771 | BD125: 4.533986066 | BE125: 4.30422982 | BF125: 4.064295201 | BG125: 3.813881882 | BH125: 3.55268186 | BI125: 3.299178785 | BJ125: 3.021907413 | BK125: 2.733112401 | BL125: 2.433344921 | BM125: 2.121511169 | BN125: 1.813255484 | BO125: 1.698292167 | BP125: 1.595800405 | BQ125: 1.488881575 | BR125: 1.377405945 | BS125: 1.26124048 | BT125: 1.140248761 | BU125: 1.014290909 | BV125: 0.7563117257 | BW125: 0.6415723094 | BX125: 0.3825431659 | BY125: 0.3465237486 | BZ125: 0.3090234336 | CA125: =SUM(CA115:CA124) -> 0.269999431 | CB125: 0.2294078682 | CC125: 0.1872037649 | CD125: 0.1605588146 | CE125: 0.1301613357 | CF125: 0.1029460333 | CG125: 0.07372919135 | CH125: 0.04338364027 | CI125: 0.03314618576 | CJ125: 0.02251067962 | CK125: 0.01146581467 | CL125: 5.279150309e-14 | CM125: =SUM(CM115:CM124) -> 5.384441564e-14 | CN125: =SUM(CN115:CN124) -> 5.491701766e-14 | CO125: =SUM(CO115:CO124) -> 5.600967734e-14 | CP125: =SUM(CP115:CP124) -> 5.712276975e-14 | CQ125: =SUM(CQ115:CQ124) -> 5.825667699e-14
B127: CAPEX
B129: ='AA 2020-2024 inputs'!B17 -> Pipeline and laterals | I129: $m | J129: ='AA 2020-2024 inputs'!I113 -> 1.766083056 | K129: ='AA 2020-2024 inputs'!J113 -> 0.4919352037 | L129: ='AA 2020-2024 inputs'!K113 -> 0.2760397457 | M129: ='AA 2020-2024 inputs'!L113 -> 0.06515683739 | N129: ='AA 2020-2024 inputs'!M113 -> 0 | O129: ='AA 2020-2024 inputs'!N113 -> 0.3995336306 | P129: ='AA 2020-2024 inputs'!O113 -> 0 | Q129: ='AA 2020-2024 inputs'!P113 -> 0 | R129: ='AA 2020-2024 inputs'!Q113 -> 0 | S129: ='AA 2020-2024 inputs'!R113 -> 0.2235155964
B130: ='AA 2020-2024 inputs'!B18 -> Main line valve and scraper stations | I130: $m | J130: ='AA 2020-2024 inputs'!I114 -> 0.1095663195 | K130: ='AA 2020-2024 inputs'!J114 -> 0.001499904716 | L130: ='AA 2020-2024 inputs'!K114 -> 0 | M130: ='AA 2020-2024 inputs'!L114 -> 0 | N130: ='AA 2020-2024 inputs'!M114 -> 0 | O130: ='AA 2020-2024 inputs'!N114 -> 0 | P130: ='AA 2020-2024 inputs'!O114 -> 0 | Q130: ='AA 2020-2024 inputs'!P114 -> 0 | R130: ='AA 2020-2024 inputs'!Q114 -> 0 | S130: ='AA 2020-2024 inputs'!R114 -> 0
B131: ='AA 2020-2024 inputs'!B19 -> Compressor stations | I131: $m | J131: ='AA 2020-2024 inputs'!I115 -> -0.01498228958 | K131: ='AA 2020-2024 inputs'!J115 -> 0 | L131: ='AA 2020-2024 inputs'!K115 -> 0.9655136608 | M131: ='AA 2020-2024 inputs'!L115 -> 0.5212454649 | N131: ='AA 2020-2024 inputs'!M115 -> 1.02392921 | O131: ='AA 2020-2024 inputs'!N115 -> 1.764174473 | P131: ='AA 2020-2024 inputs'!O115 -> 0.343575573 | Q131: ='AA 2020-2024 inputs'!P115 -> 1.184616861 | R131: ='AA 2020-2024 inputs'!Q115 -> 0.2303832102 | S131: ='AA 2020-2024 inputs'!R115 -> 2.028404037
B132: ='AA 2020-2024 inputs'!B20 -> Receipt and delivery point facilities | I132: $m | J132: ='AA 2020-2024 inputs'!I116 -> 0.4116584704 | K132: ='AA 2020-2024 inputs'!J116 -> -0.3952989575 | L132: ='AA 2020-2024 inputs'!K116 -> 0.001284771454 | M132: ='AA 2020-2024 inputs'!L116 -> 0.1877024615 | N132: ='AA 2020-2024 inputs'!M116 -> 0.1257888482 | O132: ='AA 2020-2024 inputs'!N116 -> 0 | P132: ='AA 2020-2024 inputs'!O116 -> 0 | Q132: ='AA 2020-2024 inputs'!P116 -> 0 | R132: ='AA 2020-2024 inputs'!Q116 -> 0 | S132: ='AA 2020-2024 inputs'!R116 -> 0
B133: ='AA 2020-2024 inputs'!B21 -> SCADA, communications and electronic equipment | I133: $m | J133: ='AA 2020-2024 inputs'!I117 -> 0.970267486 | K133: ='AA 2020-2024 inputs'!J117 -> 0.9895922112 | L133: ='AA 2020-2024 inputs'!K117 -> 0.06503066834 | M133: ='AA 2020-2024 inputs'!L117 -> 0.1102028193 | N133: ='AA 2020-2024 inputs'!M117 -> 0 | O133: ='AA 2020-2024 inputs'!N117 -> 0.9900132043 | P133: ='AA 2020-2024 inputs'!O117 -> 1.690391819 | Q133: ='AA 2020-2024 inputs'!P117 -> 0.652616198 | R133: ='AA 2020-2024 inputs'!Q117 -> 1.144236611 | S133: ='AA 2020-2024 inputs'!R117 -> 0.8482416884
B134: ='AA 2020-2024 inputs'!B22 -> Cathodic protection | I134: $m | J134: ='AA 2020-2024 inputs'!I118 -> 0 | K134: ='AA 2020-2024 inputs'!J118 -> 0 | L134: ='AA 2020-2024 inputs'!K118 -> 0 | M134: ='AA 2020-2024 inputs'!L118 -> 0 | N134: ='AA 2020-2024 inputs'!M118 -> 0.07516674985 | O134: ='AA 2020-2024 inputs'!N118 -> 0.2397201784 | P134: ='AA 2020-2024 inputs'!O118 -> 0.1860593872 | Q134: ='AA 2020-2024 inputs'!P118 -> 0.3500004362 | R134: ='AA 2020-2024 inputs'!Q118 -> 0.4827076785 | S134: ='AA 2020-2024 inputs'!R118 -> 0.06146678901
B135: ='AA 2020-2024 inputs'!B23 -> Maintenance bases and depots | I135: $m | J135: ='AA 2020-2024 inputs'!I119 -> 0.0248213406 | K135: ='AA 2020-2024 inputs'!J119 -> 0 | L135: ='AA 2020-2024 inputs'!K119 -> 0 | M135: ='AA 2020-2024 inputs'!L119 -> 0.01909538825 | N135: ='AA 2020-2024 inputs'!M119 -> 0.3127567564 | O135: ='AA 2020-2024 inputs'!N119 -> 3.995336306 | P135: ='AA 2020-2024 inputs'!O119 -> 0.3382897949 | Q135: ='AA 2020-2024 inputs'!P119 -> 0 | R135: ='AA 2020-2024 inputs'!Q119 -> 0 | S135: ='AA 2020-2024 inputs'!R119 -> 0
B136: ='AA 2020-2024 inputs'!B24 -> Other depreciable assets | I136: $m | J136: ='AA 2020-2024 inputs'!I120 -> 0.06686861092 | K136: ='AA 2020-2024 inputs'!J120 -> 0.3211521008 | L136: ='AA 2020-2024 inputs'!K120 -> 0.1242070104 | M136: ='AA 2020-2024 inputs'!L120 -> 0.1220738401 | N136: ='AA 2020-2024 inputs'!M120 -> 0.2239006025 | O136: ='AA 2020-2024 inputs'!N120 -> 0 | P136: ='AA 2020-2024 inputs'!O120 -> 0 | Q136: ='AA 2020-2024 inputs'!P120 -> 0 | R136: ='AA 2020-2024 inputs'!Q120 -> 0 | S136: ='AA 2020-2024 inputs'!R120 -> 0
B137: ='AA 2020-2024 inputs'!B25 -> Non-depreciable assets | I137: $m | J137: ='AA 2020-2024 inputs'!I121 -> 0 | K137: ='AA 2020-2024 inputs'!J121 -> 0 | L137: ='AA 2020-2024 inputs'!K121 -> 0 | M137: ='AA 2020-2024 inputs'!L121 -> 0 | N137: ='AA 2020-2024 inputs'!M121 -> 0 | O137: ='AA 2020-2024 inputs'!N121 -> 0 | P137: ='AA 2020-2024 inputs'!O121 -> 0 | Q137: ='AA 2020-2024 inputs'!P121 -> 0 | R137: ='AA 2020-2024 inputs'!Q121 -> 0 | S137: ='AA 2020-2024 inputs'!R121 -> 0
I139: $m | J139: =SUM(J129:J138) -> 3.334282993 | K139: =SUM(K129:K138) -> 1.408880463 | L139: =SUM(L129:L138) -> 1.432075857 | M139: =SUM(M129:M138) -> 1.025476811 | N139: =SUM(N129:N138) -> 1.761542167 | O139: =SUM(O129:O138) -> 7.388777793 | P139: 2.558316574 | Q139: 2.187233495 | R139: 1.857327499 | S139: 3.161628111 | T139: 0 | U139: 0 | V139: 0 | W139: 0 | X139: 0 | Y139: 0 | Z139: 0 | AA139: 0 | AB139: 0 | AC139: 0 | AD139: 0 | AE139: 0 | AF139: 0 | AG139: 0 | AH139: 0 | AI139: 0 | AJ139: 0 | AK139: 0 | AL139: 0 | AM139: 0 | AN139: 0 | AO139: 0 | AP139: 0 | AQ139: 0 | AR139: 0 | AS139: 0 | AT139: 0 | AU139: 0 | AV139: 0 | AW139: 0 | AX139: 0 | AY139: 0 | AZ139: 0 | BA139: 0 | BB139: 0 | BC139: 0 | BD139: 0 | BE139: 0 | BF139: 0 | BG139: 0 | BH139: 0 | BI139: 0 | BJ139: 0 | BK139: 0 | BL139: 0 | BM139: 0 | BN139: 0 | BO139: 0 | BP139: 0 | BQ139: 0 | BR139: 0 | BS139: 0 | BT139: 0 | BU139: 0 | BV139: 0 | BW139: 0 | BX139: 0 | BY139: 0 | BZ139: 0 | CA139: =SUM(CA129:CA138) -> 0 | CB139: 0 | CC139: 0 | CD139: 0 | CE139: 0 | CF139: 0 | CG139: 0 | CH139: 0 | CI139: 0 | CJ139: 0 | CK139: 0 | CL139: 0 | CM139: =SUM(CM129:CM138) -> 0 | CN139: =SUM(CN129:CN138) -> 0 | CO139: =SUM(CO129:CO138) -> 0 | CP139: =SUM(CP129:CP138) -> 0 | CQ139: =SUM(CQ129:CQ138) -> 0
B141: Regulatory depreciation
B143: ='AA 2020-2024 inputs'!B17 -> Pipeline and laterals | I143: $m | K143: =SUMIF($C$3979:$C$5134,"Pipeline: regulatory depreciation",K$3979:K$5134) -> -0.0006846521211 | L143: -0.01703424831 | M143: -0.01540073004 | N143: -0.01456105288 | O143: -0.006941756272 | P143: -0.007932708103 | Q143: -0.007161658111 | R143: -0.006358996861 | S143: -0.005523811721 | T143: -0.005582118087 | U143: -0.004635561212 | V143: -0.003651651099 | W143: -0.002629321738 | X143: -0.001567480313 | Y143: -0.0004650065715 | Z143: 0.0006792478202 | AA143: 0.001866459934 | AB143: 0.003097836255 | AC143: 0.004374613368 | AD143: 0.005698058663 | AE143: 0.007069471053 | AF143: 0.008490181713 | AG143: 0.009961554828 | AH143: 0.01148498837 | AI143: 0.01306191486 | AJ143: 0.01469380222 | AK143: 0.01638215455 | AL143: 0.01812851298 | AM143: 0.01993445654 | AN143: 0.02180160302 | AO143: 0.02373160991 | AP143: 0.02572617525 | AQ143: =SUMIF($C$3979:$C$5134,"Pipeline: regulatory depreciation",AQ$3979:AQ$5134) -> 0.02778703863 | AR143: 0.02991598211 | AS143: 0.03211483123 | AT143: 0.03438545599 | AU143: 0.03672977188 | AV143: 0.03914974093 | AW143: 0.04164737279 | AX143: 0.04422472581 | AY143: 0.04688390816 | AZ143: 0.04962707898 | BA143: 0.05245644957 | BB143: 0.05537428452 | BC143: 0.058382903 | BD143: 0.06148467997 | BE143: 0.06468204749 | BF143: 0.06797749598 | BG143: 0.07137357557 | BH143: 0.0748728975 | BI143: 0.07847813543 | BJ143: 0.08219202696 | BK143: 0.08601737502 | BL143: 0.08995704936 | BM143: 0.0940139881 | BN143: 0.09819119928 | BO143: 0.1024917624 | BP143: 0.1069188301 | BQ143: 0.1114756298 | BR143: 0.1161654653 | BS143: 0.1209917188 | BT143: 0.1259578523 | BU143: 0.2579791829 | BV143: 0.1147394163 | BW143: =SUMIF($C$3979:$C$5134,"Pipeline: regulatory depreciation",BW$3979:BW$5134) -> 0.2590291435 | BX143: 0.03601941726 | BY143: 0.03750031499 | BZ143: 0.03902400266 | CA143: 0.04059156276 | CB143: 0.04220410331 | CC143: 0.02664495034 | CD143: 0.03039747891 | CE143: 0.02721530235 | CF143: 0.02921684198 | CG143: 0.03034555107 | CH143: 0.01023745451 | CI143: 0.01063550614 | CJ143: 0.01104486496 | CK143: 0.01146581467 | CL143: -1.122002689e-16 | CM143: -1.142984139e-16 | CN143: -1.164357943e-16 | CO143: -1.186131436e-16 | CP143: -1.208312094e-16 | CQ143: -1.23090753e-16
B144: ='AA 2020-2024 inputs'!B18 -> Main line valve and scraper stations | I144: $m | K144: =SUMIF($C$3979:$C$5134,"MLV: regulatory depreciation",K$3979:K$5134) -> 0 | L144: 0.0006731134662 | M144: 0.001088267099 | N144: 0.001311070339 | O144: -0.001017475273 | P144: 0.0006141448139 | Q144: 0.0006752339735 | R144: 0.0007383931073 | S144: 0.0008036782702 | T144: 0.0008711468894 | U144: 0.0009408577968 | V144: 0.001012871261 | W144: 0.00108724902 | X144: 0.001164054316 | Y144: 0.00124335193 | Z144: 0.001325208217 | AA144: 0.001409691141 | AB144: 0.001496870314 | AC144: 0.001586817034 | AD144: 0.00167960432 | AE144: 0.001775306957 | AF144: 0.001874001532 | AG144: 0.001975766476 | AH144: 0.00208068211 | AI144: 0.002188830683 | AJ144: 0.002300296419 | AK144: 0.002415165561 | AL144: 0.002533526418 | AM144: 0.002655469413 | AN144: 0.002781087126 | AO144: 0.002910474351 | AP144: 0.003043728139 | AQ144: =SUMIF($C$3979:$C$5134,"MLV: regulatory depreciation",AQ$3979:AQ$5134) -> 0.003180947856 | AR144: 0.003322235228 | AS144: 0.003467694403 | AT144: 0.003617431998 | AU144: 0.003771557161 | AV144: 0.003930181626 | AW144: 0.00409341977 | AX144: 0.004261388675 | AY144: 0.004434208189 | AZ144: 0.004612000988 | BA144: 0.00479489264 | BB144: 0.004983011669 | BC144: 0.005176489623 | BD144: 0.005375461143 | BE144: 0.005580064032 | BF144: 0.005790439324 | BG144: 0.006006731359 | BH144: -0.0125704147 | BI144: 0 | BJ144: 0 | BK144: 0 | BL144: 0 | BM144: 0 | BN144: 0 | BO144: 0 | BP144: 0 | BQ144: 0 | BR144: 0 | BS144: 0 | BT144: 0 | BU144: 0 | BV144: 0 | BW144: =SUMIF($C$3979:$C$5134,"MLV: regulatory depreciation",BW$3979:BW$5134) -> 0 | BX144: 0 | BY144: 0 | BZ144: 0 | CA144: 0 | CB144: 0 | CC144: 0 | CD144: 0 | CE144: 0 | CF144: 0 | CG144: 0 | CH144: 0 | CI144: 0 | CJ144: 0 | CK144: 0 | CL144: 0 | CM144: 0 | CN144: 0 | CO144: 0 | CP144: 0 | CQ144: 0
B145: ='AA 2020-2024 inputs'!B19 -> Compressor stations | I145: $m | K145: =SUMIF($C$3979:$C$5134,"Compressors: regulatory depreciation",K$3979:K$5134) -> 0.01605850433 | L145: 0.02417660176 | M145: 0.02624743756 | N145: 0.03057280524 | O145: -0.06625310027 | P145: 0.0723776107 | Q145: 0.08180521771 | R145: 0.104511739 | S145: 0.1138947017 | T145: 0.1511044076 | U145: 0.159428557 | V145: 0.1680111899 | W145: 0.1768590627 | X145: 0.1859790941 | Y145: 0.1953783688 | Z145: 0.2050641414 | AA145: 0.21504384 | AB145: 0.2253250705 | AC145: 0.2359156203 | AD145: 0.2468234627 | AE145: 0.2580567611 | AF145: 0.2696238732 | AG145: 0.2815333554 | AH145: 0.2937939675 | AI145: 0.306414677 | AJ145: 0.3194046643 | AK145: 0.3327733269 | AL145: 0.346530285 | AM145: 0.3606853857 | AN145: 0.375248709 | AO145: 0.3902305726 | AP145: 0.3444109555 | AQ145: =SUMIF($C$3979:$C$5134,"Compressors: regulatory depreciation",AQ$3979:AQ$5134) -> 0.3376228277 | AR145: 0.340774357 | AS145: 0.2933451324 | AT145: 0.2002011236 | AU145: 0.1875689573 | AV145: 0.1246055519 | AW145: 0.1157113846 | AX145: -1.914455321e-16 | AY145: -1.950255636e-16 | AZ145: -1.986725416e-16 | BA145: -2.023877182e-16 | BB145: -2.061723685e-16 | BC145: -2.100277918e-16 | BD145: -2.139553115e-16 | BE145: -2.179562758e-16 | BF145: -2.220320582e-16 | BG145: -2.261840577e-16 | BH145: -2.304136995e-16 | BI145: -2.347224357e-16 | BJ145: -2.391117453e-16 | BK145: -2.435831349e-16 | BL145: -2.481381395e-16 | BM145: -2.527783227e-16 | BN145: -2.575052774e-16 | BO145: -2.623206261e-16 | BP145: -2.672260218e-16 | BQ145: -2.722231484e-16 | BR145: -2.773137212e-16 | BS145: -2.824994878e-16 | BT145: -2.877822283e-16 | BU145: -2.931637559e-16 | BV145: -2.986459182e-16 | BW145: =SUMIF($C$3979:$C$5134,"Compressors: regulatory depreciation",BW$3979:BW$5134) -> -3.042305968e-16 | BX145: -3.09919709e-16 | BY145: -3.157152075e-16 | BZ145: -3.216190819e-16 | CA145: -3.276333588e-16 | CB145: -3.337601026e-16 | CC145: -3.400014165e-16 | CD145: -3.46359443e-16 | CE145: -3.528363646e-16 | CF145: -3.594344046e-16 | CG145: -3.661558279e-16 | CH145: -3.730029419e-16 | CI145: -3.799780969e-16 | CJ145: -3.870836874e-16 | CK145: -3.943221523e-16 | CL145: -4.016959766e-16 | CM145: -4.092076913e-16 | CN145: -4.168598751e-16 | CO145: -4.246551548e-16 | CP145: -4.325962062e-16 | CQ145: -4.406857553e-16
B146: ='AA 2020-2024 inputs'!B20 -> Receipt and delivery point facilities | I146: $m | K146: =SUMIF($C$3979:$C$5134,"Receipt and delivery: regulatory depreciation",K$3979:K$5134) -> 0.00506374 | L146: 0.004181669161 | M146: 0.01099653951 | N146: 0.01628615024 | O146: -0.3921600835 | P146: 0.01598409082 | Q146: 0.01682205157 | R146: 0.01768576257 | S146: 0.01857589387 | T146: 0.01949313154 | U146: 0.0204381781 | V146: 0.02141175284 | W146: 0.02241459225 | X146: 0.02344745038 | Y146: 0.02451109925 | Z146: 0.02560632924 | AA146: 0.02673394955 | AB146: 0.02789478859 | AC146: 0.0290896944 | AD146: 0.03031953517 | AE146: 0.03158519961 | AF146: 0.03288759745 | AG146: 0.03422765995 | AH146: 0.03560634032 | AI146: 0.03702461427 | AJ146: 0.03848348048 | AK146: 0.03998396116 | AL146: 0.01858202265 | AM146: 0.01568325231 | AN146: 0.01629706722 | AO146: 0.01692835453 | AP146: 0.01496178978 | AQ146: =SUMIF($C$3979:$C$5134,"Receipt and delivery: regulatory depreciation",AQ$3979:AQ$5134) -> 0.006912247134 | AR146: 0.007175691588 | AS146: -4.492847067e-18 | AT146: -4.576863307e-18 | AU146: -4.662450651e-18 | AV146: -4.749638478e-18 | AW146: -4.838456717e-18 | AX146: -4.928935858e-18 | AY146: -5.021106958e-18 | AZ146: -5.115001659e-18 | BA146: -5.21065219e-18 | BB146: -5.308091386e-18 | BC146: -5.407352694e-18 | BD146: -5.50847019e-18 | BE146: -5.611478582e-18 | BF146: -5.716413232e-18 | BG146: -5.823310159e-18 | BH146: -5.932206059e-18 | BI146: -6.043138313e-18 | BJ146: -6.156144999e-18 | BK146: -6.271264911e-18 | BL146: -6.388537564e-18 | BM146: -6.508003217e-18 | BN146: -6.629702877e-18 | BO146: -6.753678321e-18 | BP146: -6.879972105e-18 | BQ146: -7.008627584e-18 | BR146: -7.13968892e-18 | BS146: -7.273201102e-18 | BT146: -7.409209963e-18 | BU146: -7.547762189e-18 | BV146: -7.688905342e-18 | BW146: =SUMIF($C$3979:$C$5134,"Receipt and delivery: regulatory depreciation",BW$3979:BW$5134) -> -7.832687872e-18 | BX146: -7.979159135e-18 | BY146: -8.128369411e-18 | BZ146: -8.280369919e-18 | CA146: -8.435212837e-18 | CB146: -8.592951317e-18 | CC146: -8.753639506e-18 | CD146: -8.917332565e-18 | CE146: -9.084086684e-18 | CF146: -9.253959105e-18 | CG146: -9.42700814e-18 | CH146: -9.603293192e-18 | CI146: -9.782874775e-18 | CJ146: -9.965814533e-18 | CK146: -1.015217527e-17 | CL146: -1.034202094e-17 | CM146: -1.053541673e-17 | CN146: -1.073242903e-17 | CO146: -1.093312545e-17 | CP146: -1.11375749e-17 | CQ146: -1.134584755e-17
B147: ='AA 2020-2024 inputs'!B21 -> SCADA, communications and electronic equipment | I147: $m | K147: =SUMIF($C$3979:$C$5134,"SCADA: regulatory depreciation",K$3979:K$5134) -> 0.01875220719 | L147: 0.03099918745 | M147: 0.04004291002 | N147: 0.04344316249 | O147: 0.3383423249 | P147: 0.434035755 | Q147: 0.5917864915 | R147: 0.6695646423 | S147: 0.7911610373 | T147: 0.6190257796 | U147: 0.516940757 | V147: 0.5376323412 | W147: 0.5544029526 | X147: 0.5657126051 | Y147: 0.5876656136 | Z147: 0.4888609401 | AA147: 0.3002853164 | AB147: 0.2317228422 | AC147: 0.1002158394 | AD147: -4.062724331e-17 | AE147: -4.138697276e-17 | AF147: -4.216090915e-17 | AG147: -4.294931815e-17 | AH147: -4.37524704e-17 | AI147: -4.45706416e-17 | AJ147: -4.540411259e-17 | AK147: -4.62531695e-17 | AL147: -4.711810377e-17 | AM147: -4.799921231e-17 | AN147: -4.889679758e-17 | AO147: -4.981116769e-17 | AP147: -5.074263653e-17 | AQ147: =SUMIF($C$3979:$C$5134,"SCADA: regulatory depreciation",AQ$3979:AQ$5134) -> -5.169152383e-17 | AR147: -5.265815533e-17 | AS147: -5.364286283e-17 | AT147: -5.464598437e-17 | AU147: -5.566786428e-17 | AV147: -5.670885334e-17 | AW147: -5.77693089e-17 | AX147: -5.884959497e-17 | AY147: -5.99500824e-17 | AZ147: -6.107114894e-17 | BA147: -6.221317942e-17 | BB147: -6.337656588e-17 | BC147: -6.456170766e-17 | BD147: -6.576901159e-17 | BE147: -6.699889211e-17 | BF147: -6.825177139e-17 | BG147: -6.952807952e-17 | BH147: -7.082825461e-17 | BI147: -7.215274297e-17 | BJ147: -7.350199926e-17 | BK147: -7.487648665e-17 | BL147: -7.627667695e-17 | BM147: -7.770305081e-17 | BN147: -7.915609786e-17 | BO147: -8.063631689e-17 | BP147: -8.214421601e-17 | BQ147: -8.368031285e-17 | BR147: -8.52451347e-17 | BS147: -8.683921872e-17 | BT147: -8.846311211e-17 | BU147: -9.011737231e-17 | BV147: -9.180256717e-17 | BW147: =SUMIF($C$3979:$C$5134,"SCADA: regulatory depreciation",BW$3979:BW$5134) -> -9.351927518e-17 | BX147: -9.526808562e-17 | BY147: -9.704959882e-17 | BZ147: -9.886442632e-17 | CA147: -1.007131911e-16 | CB147: -1.025965278e-16 | CC147: -1.045150828e-16 | CD147: -1.064695149e-16 | CE147: -1.084604948e-16 | CF147: -1.104887061e-16 | CG147: -1.125548449e-16 | CH147: -1.146596205e-16 | CI147: -1.168037554e-16 | CJ147: -1.189879856e-16 | CK147: -1.212130609e-16 | CL147: -1.234797452e-16 | CM147: -1.257888164e-16 | CN147: -1.281410673e-16 | CO147: -1.305373052e-16 | CP147: -1.329783528e-16 | CQ147: -1.35465048e-16
B148: ='AA 2020-2024 inputs'!B22 -> Cathodic protection | I148: $m | K148: =SUMIF($C$3979:$C$5134,"CP: regulatory depreciation",K$3979:K$5134) -> 0.005479611502 | L148: 0.007061569671 | M148: 0.009136058149 | N148: 0.01098187502 | O148: -0.02895990802 | P148: 0.01566127074 | Q148: 0.02551242414 | R148: 0.04385968269 | S148: 0.06953756467 | T148: 0.07559859189 | U148: 0.07885849368 | V148: 0.08221387972 | W148: 0.08566718117 | X148: 0.08922088673 | Y148: 0.09287754392 | Z148: 0.09663976043 | AA148: 0.1005102055 | AB148: 0.1044916113 | AC148: 0.1085867742 | AD148: 0.1060583157 | AE148: 0.08864173135 | AF148: 0.07534846972 | AG148: 0.0468263655 | AH148: 0.0053112599 | AI148: -1.367315374e-17 | AJ148: -1.392884171e-17 | AK148: -1.418931105e-17 | AL148: -1.445465117e-17 | AM148: -1.472495315e-17 | AN148: -1.500030977e-17 | AO148: -1.528081556e-17 | AP148: -1.556656681e-17 | AQ148: =SUMIF($C$3979:$C$5134,"CP: regulatory depreciation",AQ$3979:AQ$5134) -> -1.585766161e-17 | AR148: -1.615419989e-17 | AS148: -1.645628342e-17 | AT148: -1.676401592e-17 | AU148: -1.707750302e-17 | AV148: -1.739685233e-17 | AW148: -1.772217347e-17 | AX148: -1.805357811e-17 | AY148: -1.839118002e-17 | AZ148: -1.873509509e-17 | BA148: -1.908544137e-17 | BB148: -1.944233912e-17 | BC148: -1.980591086e-17 | BD148: -2.017628139e-17 | BE148: -2.055357786e-17 | BF148: -2.093792976e-17 | BG148: -2.132946905e-17 | BH148: -2.172833012e-17 | BI148: -2.213464989e-17 | BJ148: -2.254856785e-17 | BK148: -2.297022606e-17 | BL148: -2.339976929e-17 | BM148: -2.383734498e-17 | BN148: -2.428310333e-17 | BO148: -2.473719736e-17 | BP148: -2.519978295e-17 | BQ148: -2.567101889e-17 | BR148: -2.615106695e-17 | BS148: -2.66400919e-17 | BT148: -2.713826162e-17 | BU148: -2.764574711e-17 | BV148: -2.816272258e-17 | BW148: =SUMIF($C$3979:$C$5134,"CP: regulatory depreciation",BW$3979:BW$5134) -> -2.868936549e-17 | BX148: -2.922585663e-17 | BY148: -2.977238015e-17 | BZ148: -3.032912365e-17 | CA148: -3.089627827e-17 | CB148: -3.147403867e-17 | CC148: -3.206260319e-17 | CD148: -3.266217387e-17 | CE148: -3.327295652e-17 | CF148: -3.389516081e-17 | CG148: -3.452900032e-17 | CH148: -3.517469262e-17 | CI148: -3.583245938e-17 | CJ148: -3.650252637e-17 | CK148: -3.718512361e-17 | CL148: -3.788048542e-17 | CM148: -3.85888505e-17 | CN148: -3.9310462e-17 | CO148: -4.004556764e-17 | CP148: -4.079441976e-17 | CQ148: -4.155727541e-17
B149: ='AA 2020-2024 inputs'!B23 -> Maintenance bases and depots | I149: $m | K149: =SUMIF($C$3979:$C$5134,"Bases: regulatory depreciation",K$3979:K$5134) -> 0.0009108838956 | L149: 0.000279337728 | M149: 0.0004121843752 | N149: 0.0004847310717 | O149: 0.0007356601467 | P149: 0.007575362113 | Q149: 0.009945844973 | R149: 0.01195433431 | S149: 0.01403446318 | T149: 0.01618820856 | U149: 0.0184175963 | V149: 0.02072470229 | W149: 0.0231116536 | X149: 0.02558062966 | Y149: 0.02813386352 | Z149: 0.03077364303 | AA149: 0.03350231216 | AB149: 0.03632227229 | AC149: 0.0392359835 | AD149: 0.04224596597 | AE149: 0.04535480136 | AF149: 0.0485651342 | AG149: 0.05187967336 | AH149: 0.05530119355 | AI149: 0.05883253679 | AJ149: 0.07750042752 | AK149: 0.06563060146 | AL149: 0.06948125201 | AM149: 0.07345296653 | AN149: 0.07754892626 | AO149: 0.08177238913 | AP149: 0.08612669142 | AQ149: =SUMIF($C$3979:$C$5134,"Bases: regulatory depreciation",AQ$3979:AQ$5134) -> 0.09061524963 | AR149: 0.09524156227 | AS149: 0.1000092118 | AT149: 0.1049218663 | AU149: 0.1099832819 | AV149: 0.1151973044 | AW149: 0.1205678712 | AX149: 0.1260990139 | AY149: 0.1317948599 | AZ149: 0.137659635 | BA149: 0.1436976654 | BB149: 0.1499133799 | BC149: 0.1563113124 | BD149: 0.1628961045 | BE149: 0.1696725072 | BF149: 0.1766453843 | BG149: 0.1838197143 | BH149: 0.191200593 | BI149: 0.1987932367 | BJ149: 0.2066029843 | BK149: 0.2137501051 | BL149: 0.2218767028 | BM149: 0.2142416968 | BN149: 0.01677211742 | BO149: -2.364776522e-16 | BP149: -2.408997843e-16 | BQ149: -2.454046103e-16 | BR149: -2.499936765e-16 | BS149: -2.546685582e-16 | BT149: -2.594308603e-16 | BU149: -2.642822174e-16 | BV149: -2.692242948e-16 | BW149: =SUMIF($C$3979:$C$5134,"Bases: regulatory depreciation",BW$3979:BW$5134) -> -2.742587891e-16 | BX149: -2.793874285e-16 | BY149: -2.846119734e-16 | BZ149: -2.899342173e-16 | CA149: -2.953559872e-16 | CB149: -3.008791441e-16 | CC149: -3.065055841e-16 | CD149: -3.122372386e-16 | CE149: -3.180760749e-16 | CF149: -3.240240975e-16 | CG149: -3.300833482e-16 | CH149: -3.362559068e-16 | CI149: -3.425438922e-16 | CJ149: -3.48949463e-16 | CK149: -3.55474818e-16 | CL149: -3.621221971e-16 | CM149: -3.688938821e-16 | CN149: -3.757921977e-16 | CO149: -3.828195118e-16 | CP149: -3.899782367e-16 | CQ149: -3.972708297e-16
B150: ='AA 2020-2024 inputs'!B24 -> Other depreciable assets | I150: $m | K150: =SUMIF($C$3979:$C$5134,"Other: regulatory depreciation",K$3979:K$5134) -> 0.03963461803 | L150: 0.04492059376 | M150: 0.04980829906 | N150: 0.05386902034 | O150: 0.0007507636455 | P150: 0.1005232947 | Q150: 0.1045168851 | R150: 0.1086246838 | S150: 0.1128495656 | T150: 0.07682773546 | U150: 0.05646256382 | V150: 0.04645876402 | W150: 0.03650255489 | X150: 0.02645282249 | Y150: -1.557087792e-18 | Z150: -1.586205334e-18 | AA150: -1.615867373e-18 | AB150: -1.646084093e-18 | AC150: -1.676865866e-18 | AD150: -1.708223258e-18 | AE150: -1.740167033e-18 | AF150: -1.772708156e-18 | AG150: -1.805857799e-18 | AH150: -1.839627339e-18 | AI150: -1.874028371e-18 | AJ150: -1.909072701e-18 | AK150: -1.944772361e-18 | AL150: -1.981139604e-18 | AM150: -2.018186914e-18 | AN150: -2.05592701e-18 | AO150: -2.094372845e-18 | AP150: -2.133537617e-18 | AQ150: =SUMIF($C$3979:$C$5134,"Other: regulatory depreciation",AQ$3979:AQ$5134) -> -2.17343477e-18 | AR150: -2.214078001e-18 | AS150: -2.255481259e-18 | AT150: -2.297658759e-18 | AU150: -2.340624978e-18 | AV150: -2.384394665e-18 | AW150: -2.428982845e-18 | AX150: -2.474404824e-18 | AY150: -2.520676194e-18 | AZ150: -2.567812839e-18 | BA150: -2.615830939e-18 | BB150: -2.664746978e-18 | BC150: -2.714577746e-18 | BD150: -2.76534035e-18 | BE150: -2.817052215e-18 | BF150: -2.869731091e-18 | BG150: -2.923395063e-18 | BH150: -2.97806255e-18 | BI150: -3.03375232e-18 | BJ150: -3.090483488e-18 | BK150: -3.148275529e-18 | BL150: -3.207148282e-18 | BM150: -3.267121955e-18 | BN150: -3.328217135e-18 | BO150: -3.390454796e-18 | BP150: -3.4538563e-18 | BQ150: -3.518443413e-18 | BR150: -3.584238305e-18 | BS150: -3.651263561e-18 | BT150: -3.71954219e-18 | BU150: -3.789097629e-18 | BV150: -3.859953755e-18 | BW150: =SUMIF($C$3979:$C$5134,"Other: regulatory depreciation",BW$3979:BW$5134) -> -3.93213489e-18 | BX150: -4.005665812e-18 | BY150: -4.080571763e-18 | BZ150: -4.156878455e-18 | CA150: -4.234612082e-18 | CB150: -4.313799328e-18 | CC150: -4.394467375e-18 | CD150: -4.476643915e-18 | CE150: -4.560357156e-18 | CF150: -4.645635835e-18 | CG150: -4.732509225e-18 | CH150: -4.821007148e-18 | CI150: -4.911159982e-18 | CJ150: -5.002998673e-18 | CK150: -5.096554748e-18 | CL150: -5.191860322e-18 | CM150: -5.28894811e-18 | CN150: -5.38785144e-18 | CO150: -5.488604262e-18 | CP150: -5.591241162e-18 | CQ150: -5.695797371e-18
B151: ='AA 2020-2024 inputs'!B25 -> Non-depreciable assets | I151: $m
I153: $m | K153: =SUM(K143:K152) -> 0.08521491282 | L153: =SUM(L143:L152) -> 0.09525782469 | M153: =SUM(M143:M152) -> 0.1223309657 | N153: =SUM(N143:N152) -> 0.1423877619 | O153: =SUM(O143:O152) -> -0.1555035747 | P153: 0.6388388208 | Q153: 0.8239024909 | R153: 0.9505802409 | S153: 1.115333093 | T153: 0.9535268834 | U153: 0.8468514425 | V153: 0.8738138501 | W153: 0.8974159245 | X153: 0.9159900625 | Y153: 0.9293448344 | Z153: 0.8489492702 | AA153: 0.6793517748 | AB153: 0.6303512914 | AC153: 0.5190053421 | AD153: 0.4328249426 | AE153: 0.4324832715 | AF153: 0.4367892578 | AG153: 0.4264043755 | AH153: 0.4035784317 | AI153: 0.4175225736 | AJ153: 0.4523826709 | AK153: 0.4571852097 | AL153: 0.455255599 | AM153: 0.4724115305 | AN153: 0.4936773927 | AO153: 0.5155734005 | AP153: 0.4742693401 | AQ153: 0.4661183109 | AR153: 0.4764298282 | AS153: 0.4289368698 | AT153: 0.3431258779 | AU153: 0.3380535683 | AV153: 0.2828827789 | AW153: 0.2820200483 | AX153: 0.1745851284 | AY153: 0.1831129763 | AZ153: 0.191898715 | BA153: 0.2009490076 | BB153: 0.210270676 | BC153: 0.2198707051 | BD153: 0.2297562456 | BE153: 0.2399346188 | BF153: 0.2504133196 | BG153: 0.2612000212 | BH153: 0.2535030758 | BI153: 0.2772713721 | BJ153: 0.2887950112 | BK153: 0.2997674802 | BL153: 0.3118337522 | BM153: 0.3082556849 | BN153: 0.1149633167 | BO153: 0.1024917624 | BP153: 0.1069188301 | BQ153: 0.1114756298 | BR153: 0.1161654653 | BS153: 0.1209917188 | BT153: 0.1259578523 | BU153: 0.2579791829 | BV153: 0.1147394163 | BW153: 0.2590291435 | BX153: 0.03601941726 | BY153: 0.03750031499 | BZ153: 0.03902400266 | CA153: =SUM(CA143:CA152) -> 0.04059156276 | CB153: 0.04220410331 | CC153: 0.02664495034 | CD153: 0.03039747891 | CE153: 0.02721530235 | CF153: 0.02921684198 | CG153: 0.03034555107 | CH153: 0.01023745451 | CI153: 0.01063550614 | CJ153: 0.01104486496 | CK153: 0.01146581467 | CL153: -1.052912554e-15 | CM153: =SUM(CM143:CM152) -> -1.072602019e-15 | CN153: =SUM(CN143:CN152) -> -1.092659677e-15 | CO153: =SUM(CO143:CO152) -> -1.113092413e-15 | CP153: =SUM(CP143:CP152) -> -1.133907241e-15 | CQ153: =SUM(CQ143:CQ152) -> -1.155111306e-15
B157: Depreciation: regulatory depreciation (indexed straight line)
B159: Initial capital base | G159: Asset life
B161: ='AA 2020-2024 inputs'!B17 -> Pipeline and laterals | G161: =MAX('AA 2020-2024 inputs'!G17-20.5,0) -> 49.5 | H161: years
C162: Pipeline: CAPEX | I162: $m | J162: ='AA 2020-2024 inputs'!H145 -> 336.6426205
C163: Pipeline: straight line depreciation | I163: $m | J163: =IF(G161<1,J162,J162/G161) -> 6.80086102 | K163: =IF(SUM($J163:J163)+J163<$J162,J163,$J162-SUM($J163:J163)) -> 6.80086102 | L163: =IF(SUM($J163:K163)+K163<$J162,K163,$J162-SUM($J163:K163)) -> 6.80086102 | M163: =IF(SUM($J163:L163)+L163<$J162,L163,$J162-SUM($J163:L163)) -> 6.80086102 | N163: =IF(SUM($J163:M163)+M163<$J162,M163,$J162-SUM($J163:M163)) -> 6.80086102 | O163: =IF(SUM($J163:N163)+N163<$J162,N163,$J162-SUM($J163:N163)) -> 6.80086102 | P163: =IF(SUM($J163:O163)+O163<$J162,O163,$J162-SUM($J163:O163)) -> 6.80086102 | Q163: =IF(SUM($J163:P163)+P163<$J162,P163,$J162-SUM($J163:P163)) -> 6.80086102 | R163: =IF(SUM($J163:Q163)+Q163<$J162,Q163,$J162-SUM($J163:Q163)) -> 6.80086102 | S163: =IF(SUM($J163:R163)+R163<$J162,R163,$J162-SUM($J163:R163)) -> 6.80086102 | T163: =IF(SUM($J163:S163)+S163<$J162,S163,$J162-SUM($J163:S163)) -> 6.80086102 | U163: =IF(SUM($J163:T163)+T163<$J162,T163,$J162-SUM($J163:T163)) -> 6.80086102 | V163: =IF(SUM($J163:U163)+U163<$J162,U163,$J162-SUM($J163:U163)) -> 6.80086102 | W163: =IF(SUM($J163:V163)+V163<$J162,V163,$J162-SUM($J163:V163)) -> 6.80086102 | X163: =IF(SUM($J163:W163)+W163<$J162,W163,$J162-SUM($J163:W163)) -> 6.80086102 | Y163: =IF(SUM($J163:X163)+X163<$J162,X163,$J162-SUM($J163:X163)) -> 6.80086102 | Z163: =IF(SUM($J163:Y163)+Y163<$J162,Y163,$J162-SUM($J163:Y163)) -> 6.80086102 | AA163: =IF(SUM($J163:Z163)+Z163<$J162,Z163,$J162-SUM($J163:Z163)) -> 6.80086102 | AB163: =IF(SUM($J163:AA163)+AA163<$J162,AA163,$J162-SUM($J163:AA163)) -> 6.80086102 | AC163: =IF(SUM($J163:AB163)+AB163<$J162,AB163,$J162-SUM($J163:AB163)) -> 6.80086102 | AD163: =IF(SUM($J163:AC163)+AC163<$J162,AC163,$J162-SUM($J163:AC163)) -> 6.80086102 | AE163: =IF(SUM($J163:AD163)+AD163<$J162,AD163,$J162-SUM($J163:AD163)) -> 6.80086102 | AF163: =IF(SUM($J163:AE163)+AE163<$J162,AE163,$J162-SUM($J163:AE163)) -> 6.80086102 | AG163: =IF(SUM($J163:AF163)+AF163<$J162,AF163,$J162-SUM($J163:AF163)) -> 6.80086102 | AH163: =IF(SUM($J163:AG163)+AG163<$J162,AG163,$J162-SUM($J163:AG163)) -> 6.80086102 | AI163: =IF(SUM($J163:AH163)+AH163<$J162,AH163,$J162-SUM($J163:AH163)) -> 6.80086102 | AJ163: =IF(SUM($J163:AI163)+AI163<$J162,AI163,$J162-SUM($J163:AI163)) -> 6.80086102 | AK163: =IF(SUM($J163:AJ163)+AJ163<$J162,AJ163,$J162-SUM($J163:AJ163)) -> 6.80086102 | AL163: =IF(SUM($J163:AK163)+AK163<$J162,AK163,$J162-SUM($J163:AK163)) -> 6.80086102 | AM163: =IF(SUM($J163:AL163)+AL163<$J162,AL163,$J162-SUM($J163:AL163)) -> 6.80086102 | AN163: =IF(SUM($J163:AM163)+AM163<$J162,AM163,$J162-SUM($J163:AM163)) -> 6.80086102 | AO163: =IF(SUM($J163:AN163)+AN163<$J162,AN163,$J162-SUM($J163:AN163)) -> 6.80086102 | AP163: =IF(SUM($J163:AO163)+AO163<$J162,AO163,$J162-SUM($J163:AO163)) -> 6.80086102 | AQ163: =IF(SUM($J163:AP163)+AP163<$J162,AP163,$J162-SUM($J163:AP163)) -> 6.80086102 | AR163: =IF(SUM($J163:AQ163)+AQ163<$J162,AQ163,$J162-SUM($J163:AQ163)) -> 6.80086102 | AS163: =IF(SUM($J163:AR163)+AR163<$J162,AR163,$J162-SUM($J163:AR163)) -> 6.80086102 | AT163: =IF(SUM($J163:AS163)+AS163<$J162,AS163,$J162-SUM($J163:AS163)) -> 6.80086102 | AU163: =IF(SUM($J163:AT163)+AT163<$J162,AT163,$J162-SUM($J163:AT163)) -> 6.80086102 | AV163: =IF(SUM($J163:AU163)+AU163<$J162,AU163,$J162-SUM($J163:AU163)) -> 6.80086102 | AW163: =IF(SUM($J163:AV163)+AV163<$J162,AV163,$J162-SUM($J163:AV163)) -> 6.80086102 | AX163: =IF(SUM($J163:AW163)+AW163<$J162,AW163,$J162-SUM($J163:AW163)) -> 6.80086102 | AY163: =IF(SUM($J163:AX163)+AX163<$J162,AX163,$J162-SUM($J163:AX163)) -> 6.80086102 | AZ163: =IF(SUM($J163:AY163)+AY163<$J162,AY163,$J162-SUM($J163:AY163)) -> 6.80086102 | BA163: =IF(SUM($J163:AZ163)+AZ163<$J162,AZ163,$J162-SUM($J163:AZ163)) -> 6.80086102 | BB163: =IF(SUM($J163:BA163)+BA163<$J162,BA163,$J162-SUM($J163:BA163)) -> 6.80086102 | BC163: =IF(SUM($J163:BB163)+BB163<$J162,BB163,$J162-SUM($J163:BB163)) -> 6.80086102 | BD163: =IF(SUM($J163:BC163)+BC163<$J162,BC163,$J162-SUM($J163:BC163)) -> 6.80086102 | BE163: =IF(SUM($J163:BD163)+BD163<$J162,BD163,$J162-SUM($J163:BD163)) -> 6.80086102 | BF163: =IF(SUM($J163:BE163)+BE163<$J162,BE163,$J162-SUM($J163:BE163)) -> 6.80086102 | BG163: =IF(SUM($J163:BF163)+BF163<$J162,BF163,$J162-SUM($J163:BF163)) -> 3.40043051 | BH163: =IF(SUM($J163:BG163)+BG163<$J162,BG163,$J162-SUM($J163:BG163)) -> 0 | BI163: =IF(SUM($J163:BH163)+BH163<$J162,BH163,$J162-SUM($J163:BH163)) -> 0 | BJ163: =IF(SUM($J163:BI163)+BI163<$J162,BI163,$J162-SUM($J163:BI163)) -> 0 | BK163: =IF(SUM($J163:BJ163)+BJ163<$J162,BJ163,$J162-SUM($J163:BJ163)) -> 0 | BL163: =IF(SUM($J163:BK163)+BK163<$J162,BK163,$J162-SUM($J163:BK163)) -> 0 | BM163: =IF(SUM($J163:BL163)+BL163<$J162,BL163,$J162-SUM($J163:BL163)) -> 0 | BN163: =IF(SUM($J163:BM163)+BM163<$J162,BM163,$J162-SUM($J163:BM163)) -> 0 | BO163: =IF(SUM($J163:BN163)+BN163<$J162,BN163,$J162-SUM($J163:BN163)) -> 0 | BP163: =IF(SUM($J163:BO163)+BO163<$J162,BO163,$J162-SUM($J163:BO163)) -> 0 | BQ163: =IF(SUM($J163:BP163)+BP163<$J162,BP163,$J162-SUM($J163:BP163)) -> 0 | BR163: =IF(SUM($J163:BQ163)+BQ163<$J162,BQ163,$J162-SUM($J163:BQ163)) -> 0 | BS163: =IF(SUM($J163:BR163)+BR163<$J162,BR163,$J162-SUM($J163:BR163)) -> 0 | BT163: =IF(SUM($J163:BS163)+BS163<$J162,BS163,$J162-SUM($J163:BS163)) -> 0 | BU163: =IF(SUM($J163:BT163)+BT163<$J162,BT163,$J162-SUM($J163:BT163)) -> 0 | BV163: =IF(SUM($J163:BU163)+BU163<$J162,BU163,$J162-SUM($J163:BU163)) -> 0 | BW163: =IF(SUM($J163:BV163)+BV163<$J162,BV163,$J162-SUM($J163:BV163)) -> 0 | BX163: =IF(SUM($J163:BW163)+BW163<$J162,BW163,$J162-SUM($J163:BW163)) -> 0 | BY163: =IF(SUM($J163:BX163)+BX163<$J162,BX163,$J162-SUM($J163:BX163)) -> 0 | BZ163: =IF(SUM($J163:BY163)+BY163<$J162,BY163,$J162-SUM($J163:BY163)) -> 0 | CA163: =IF(SUM($J163:BZ163)+BZ163<$J162,BZ163,$J162-SUM($J163:BZ163)) -> 0 | CB163: =IF(SUM($J163:CA163)+CA163<$J162,CA163,$J162-SUM($J163:CA163)) -> 0 | CC163: =IF(SUM($J163:CB163)+CB163<$J162,CB163,$J162-SUM($J163:CB163)) -> 0 | CD163: =IF(SUM($J163:CC163)+CC163<$J162,CC163,$J162-SUM($J163:CC163)) -> 0 | CE163: =IF(SUM($J163:CD163)+CD163<$J162,CD163,$J162-SUM($J163:CD163)) -> 0 | CF163: =IF(SUM($J163:CE163)+CE163<$J162,CE163,$J162-SUM($J163:CE163)) -> 0 | CG163: =IF(SUM($J163:CF163)+CF163<$J162,CF163,$J162-SUM($J163:CF163)) -> 0 | CH163: =IF(SUM($J163:CG163)+CG163<$J162,CG163,$J162-SUM($J163:CG163)) -> 0 | CI163: =IF(SUM($J163:CH163)+CH163<$J162,CH163,$J162-SUM($J163:CH163)) -> 0 | CJ163: =IF(SUM($J163:CI163)+CI163<$J162,CI163,$J162-SUM($J163:CI163)) -> 0 | CK163: =IF(SUM($J163:CJ163)+CJ163<$J162,CJ163,$J162-SUM($J163:CJ163)) -> 0 | CL163: =IF(SUM($J163:CK163)+CK163<$J162,CK163,$J162-SUM($J163:CK163)) -> 0 | CM163: =IF(SUM($J163:CL163)+CL163<$J162,CL163,$J162-SUM($J163:CL163)) -> 0 | CN163: =IF(SUM($J163:CM163)+CM163<$J162,CM163,$J162-SUM($J163:CM163)) -> 0 | CO163: =IF(SUM($J163:CN163)+CN163<$J162,CN163,$J162-SUM($J163:CN163)) -> 0 | CP163: =IF(SUM($J163:CO163)+CO163<$J162,CO163,$J162-SUM($J163:CO163)) -> 0 | CQ163: =IF(SUM($J163:CP163)+CP163<$J162,CP163,$J162-SUM($J163:CP163)) -> 0
C165: Pipeline: asset base (start of year) | I165: $m | J165: =J162 -> 336.6426205 | K165: =J169 -> 335.4113201 | L165: 333.3442667 | M165: 332.5563621 | N165: 331.4896786 | O165: 330.2668095 | P165: 328.8822865 | Q165: 327.3304914 | R165: 325.6056522 | S165: 323.7018399 | T165: 321.612964 | U165: 319.3327688 | V165: 316.8548294 | W165: 314.1725477 | X165: 311.2791476 | Y165: 308.1676714 | Z165: 304.8309748 | AA165: 301.2617225 | AB165: 297.4523839 | AC165: 293.3952278 | AD165: 289.082318 | AE165: 284.5055079 | AF165: 279.656436 | AG165: 274.52652 | AH165: 269.1069521 | AI165: 263.3886932 | AJ165: 257.3624674 | AK165: 251.0187564 | AL165: 244.3477935 | AM165: 237.3395578 | AN165: 229.9837682 | AO165: 222.2698767 | AP165: 214.1870627 | AQ165: =AP169 -> 205.7242258 | AR165: 196.8699798 | AS165: 187.6126453 | AT165: 177.9402431 | AU165: 167.8404867 | AV165: 157.3007755 | AW165: 146.3081869 | AX165: 134.8494691 | AY165: 122.9110327 | AZ165: 110.4789432 | BA165: 97.53891285 | BB165: 84.07629198 | BC165: 70.07606071 | BD165: 55.52282014 | BE165: 40.40078349 | BF165: 24.69376688 | BG165: 8.385180108 | BH165: 1.117328452e-12 | BI165: 1.138222494e-12 | BJ165: 1.159507255e-12 | BK165: 1.18119004e-12 | BL165: 1.203278294e-12 | BM165: 1.225779598e-12 | BN165: 1.248701677e-12 | BO165: 1.272052398e-12 | BP165: 1.295839778e-12 | BQ165: 1.320071982e-12 | BR165: 1.344757328e-12 | BS165: 1.36990429e-12 | BT165: 1.3955215e-12 | BU165: 1.421617752e-12 | BV165: 1.448202004e-12 | BW165: =BV169 -> 1.475283382e-12 | BX165: 1.502871181e-12 | BY165: 1.530974872e-12 | BZ165: 1.559604102e-12 | CA165: 1.588768699e-12 | CB165: 1.618478673e-12 | CC165: 1.648744224e-12 | CD165: 1.679575741e-12 | CE165: 1.710983808e-12 | CF165: 1.742979205e-12 | CG165: 1.775572916e-12 | CH165: 1.80877613e-12 | CI165: 1.842600243e-12 | CJ165: 1.877056868e-12 | CK165: 1.912157831e-12 | CL165: 1.947915183e-12 | CM165: 1.984341197e-12 | CN165: 2.021448377e-12 | CO165: 2.059249462e-12 | CP165: 2.097757427e-12 | CQ165: 2.136985491e-12
C166: Pipeline: indexation of asset base | I166: $m | J166: =J$5*J165 -> 5.684396969 | K166: =K5*K165 -> 4.950720592 | L166: 6.363845091 | M166: 6.218803971 | N166: 6.19885699 | O166: 6.175989338 | P166: 6.150098758 | Q166: 6.121080189 | R166: 6.088825697 | S166: 6.053224406 | T166: 6.014162426 | U166: 5.971522776 | V166: 5.92518531 | W166: 5.875026641 | X166: 5.82092006 | Y166: 5.762735455 | Z166: 5.700339228 | AA166: 5.633594211 | AB166: 5.562359579 | AC166: 5.486490761 | AD166: 5.405839346 | AE166: 5.320252998 | AF166: 5.229575353 | AG166: 5.133645924 | AH166: 5.032300005 | AI166: 4.925368563 | AJ166: 4.812678141 | AK166: 4.694050745 | AL166: 4.569303738 | AM166: 4.438249731 | AN166: 4.300696465 | AO166: 4.156446694 | AP166: 4.005298072 | AQ166: =AQ5*AQ165 -> 3.847043023 | AR166: 3.681468623 | AS166: 3.508356468 | AT166: 3.327482545 | AU166: 3.138617101 | AV166: 2.941524501 | AW166: 2.735963096 | AX166: 2.521685072 | AY166: 2.298436311 | AZ166: 2.065956238 | BA166: 1.82397767 | BB166: 1.57222666 | BC166: 1.310422335 | BD166: 1.038276737 | BE166: 0.7554946512 | BF166: 0.4617734407 | BG166: 0.156802868 | BH166: 2.089404205e-14 | BI166: 2.128476064e-14 | BJ166: 2.168278566e-14 | BK166: 2.208825375e-14 | BL166: 2.25013041e-14 | BM166: 2.292207849e-14 | BN166: 2.335072135e-14 | BO166: 2.378737984e-14 | BP166: 2.423220385e-14 | BQ166: 2.468534606e-14 | BR166: 2.514696203e-14 | BS166: 2.561721022e-14 | BT166: 2.609625205e-14 | BU166: 2.658425196e-14 | BV166: 2.708137748e-14 | BW166: =BW5*BW165 -> 2.758779923e-14 | BX166: 2.810369108e-14 | BY166: 2.86292301e-14 | BZ166: 2.916459671e-14 | CA166: 2.970997466e-14 | CB166: 3.026555119e-14 | CC166: 3.0831517e-14 | CD166: 3.140806637e-14 | CE166: 3.199539721e-14 | CF166: 3.259371113e-14 | CG166: 3.320321353e-14 | CH166: 3.382411363e-14 | CI166: 3.445662455e-14 | CJ166: 3.510096343e-14 | CK166: 3.575735145e-14 | CL166: 3.642601392e-14 | CM166: 3.710718038e-14 | CN166: 3.780108465e-14 | CO166: 3.850796493e-14 | CP166: 3.922806388e-14 | CQ166: 3.996162867e-14
C167: Pipeline: inflation adjusted SL depreciation | I167: $m | J167: =J$6*J163 -> 6.915697322 | K167: =K6*K163 -> 7.017774036 | L167: 7.151749722 | M167: 7.285487442 | N167: 7.421726057 | O167: 7.560512334 | P167: 7.701893915 | Q167: 7.845919331 | R167: 7.992638022 | S167: 8.142100353 | T167: 8.29435763 | U167: 8.449462118 | V167: 8.607467059 | W167: 8.768426693 | X167: 8.932396272 | Y167: 9.099432083 | Z167: 9.269591463 | AA167: 9.442932823 | AB167: 9.619515667 | AC167: 9.79940061 | AD167: 9.982649401 | AE167: 10.16932494 | AF167: 10.35949132 | AG167: 10.55321381 | AH167: 10.75055891 | AI167: 10.95159436 | AJ167: 11.15638917 | AK167: 11.36501365 | AL167: 11.57753941 | AM167: 11.79403939 | AN167: 12.01458793 | AO167: 12.23926072 | AP167: 12.4681349 | AQ167: =AQ6*AQ163 -> 12.70128902 | AR167: 12.93880313 | AS167: 13.18075875 | AT167: 13.42723893 | AU167: 13.6783283 | AV167: 13.93411304 | AW167: 14.19468096 | AX167: 14.46012149 | AY167: 14.73052576 | AZ167: 15.00598659 | BA167: 15.28659854 | BB167: 15.57245793 | BC167: 15.8636629 | BD167: 16.16031339 | BE167: 16.46251125 | BF167: 16.77036022 | BG167: 8.541982976 | BH167: 0 | BI167: 0 | BJ167: 0 | BK167: 0 | BL167: 0 | BM167: 0 | BN167: 0 | BO167: 0 | BP167: 0 | BQ167: 0 | BR167: 0 | BS167: 0 | BT167: 0 | BU167: 0 | BV167: 0 | BW167: =BW6*BW163 -> 0 | BX167: 0 | BY167: 0 | BZ167: 0 | CA167: 0 | CB167: 0 | CC167: 0 | CD167: 0 | CE167: 0 | CF167: 0 | CG167: 0 | CH167: 0 | CI167: 0 | CJ167: 0 | CK167: 0 | CL167: 0 | CM167: 0 | CN167: 0 | CO167: 0 | CP167: 0 | CQ167: 0
C168: Pipeline: regulatory depreciation | I168: $m | J168: =J167-J166 -> 1.231300354 | K168: =K167-K166 -> 2.067053443 | L168: =L167-L166 -> 0.7879046304 | M168: =M167-M166 -> 1.066683471 | N168: =N167-N166 -> 1.222869067 | O168: =O167-O166 -> 1.384522996 | P168: 1.551795157 | Q168: 1.724839142 | R168: 1.903812326 | S168: 2.088875947 | T168: 2.280195204 | U168: 2.477939342 | V168: 2.682281749 | W168: 2.893400052 | X168: 3.111476212 | Y168: 3.336696628 | Z168: 3.569252234 | AA168: 3.809338612 | AB168: 4.057156087 | AC168: 4.312909849 | AD168: 4.576810055 | AE168: 4.849071947 | AF168: 5.129915968 | AG168: 5.419567885 | AH168: 5.718258902 | AI168: 6.026225796 | AJ168: 6.343711032 | AK168: 6.670962906 | AL168: 7.008235668 | AM168: 7.355789662 | AN168: 7.713891465 | AO168: 8.08281403 | AP168: 8.462836828 | AQ168: 8.854245999 | AR168: 9.257334504 | AS168: 9.672402278 | AT168: 10.09975639 | AU168: 10.5397112 | AV168: 10.99258854 | AW168: 11.45871786 | AX168: 11.93843642 | AY168: 12.43208945 | AZ168: 12.94003035 | BA168: 13.46262087 | BB168: 14.00023127 | BC168: 14.55324056 | BD168: 15.12203666 | BE168: 15.7070166 | BF168: 16.30858677 | BG168: 8.385180108 | BH168: -2.089404205e-14 | BI168: -2.128476064e-14 | BJ168: -2.168278566e-14 | BK168: -2.208825375e-14 | BL168: -2.25013041e-14 | BM168: -2.292207849e-14 | BN168: -2.335072135e-14 | BO168: -2.378737984e-14 | BP168: -2.423220385e-14 | BQ168: -2.468534606e-14 | BR168: -2.514696203e-14 | BS168: -2.561721022e-14 | BT168: -2.609625205e-14 | BU168: -2.658425196e-14 | BV168: -2.708137748e-14 | BW168: -2.758779923e-14 | BX168: -2.810369108e-14 | BY168: -2.86292301e-14 | BZ168: -2.916459671e-14 | CA168: =CA167-CA166 -> -2.970997466e-14 | CB168: -3.026555119e-14 | CC168: -3.0831517e-14 | CD168: -3.140806637e-14 | CE168: -3.199539721e-14 | CF168: -3.259371113e-14 | CG168: -3.320321353e-14 | CH168: -3.382411363e-14 | CI168: -3.445662455e-14 | CJ168: -3.510096343e-14 | CK168: -3.575735145e-14 | CL168: -3.642601392e-14 | CM168: =CM167-CM166 -> -3.710718038e-14 | CN168: =CN167-CN166 -> -3.780108465e-14 | CO168: =CO167-CO166 -> -3.850796493e-14 | CP168: =CP167-CP166 -> -3.922806388e-14 | CQ168: =CQ167-CQ166 -> -3.996162867e-14 | CS168: =J162 -> 336.6426205 | CT168: =SUM(J168:CQ168) -> 336.6426205 | CU168: =CS168-CT168 -> 2.160049917e-12
C169: Pipeline: asset base (end of year) | I169: $m | J169: =J165-J168 -> 335.4113201 | K169: =K165-K168 -> 333.3442667 | L169: =L165-L168 -> 332.5563621 | M169: =M165-M168 -> 331.4896786 | N169: =N165-N168 -> 330.2668095 | O169: =O165-O168 -> 328.8822865 | P169: 327.3304914 | Q169: 325.6056522 | R169: 323.7018399 | S169: 321.612964 | T169: 319.3327688 | U169: 316.8548294 | V169: 314.1725477 | W169: 311.2791476 | X169: 308.1676714 | Y169: 304.8309748 | Z169: 301.2617225 | AA169: 297.4523839 | AB169: 293.3952278 | AC169: 289.082318 | AD169: 284.5055079 | AE169: 279.656436 | AF169: 274.52652 | AG169: 269.1069521 | AH169: 263.3886932 | AI169: 257.3624674 | AJ169: 251.0187564 | AK169: 244.3477935 | AL169: 237.3395578 | AM169: 229.9837682 | AN169: 222.2698767 | AO169: 214.1870627 | AP169: 205.7242258 | AQ169: 196.8699798 | AR169: 187.6126453 | AS169: 177.9402431 | AT169: 167.8404867 | AU169: 157.3007755 | AV169: 146.3081869 | AW169: 134.8494691 | AX169: 122.9110327 | AY169: 110.4789432 | AZ169: 97.53891285 | BA169: 84.07629198 | BB169: 70.07606071 | BC169: 55.52282014 | BD169: 40.40078349 | BE169: 24.69376688 | BF169: 8.385180108 | BG169: 1.117328452e-12 | BH169: 1.138222494e-12 | BI169: 1.159507255e-12 | BJ169: 1.18119004e-12 | BK169: 1.203278294e-12 | BL169: 1.225779598e-12 | BM169: 1.248701677e-12 | BN169: 1.272052398e-12 | BO169: 1.295839778e-12 | BP169: 1.320071982e-12 | BQ169: 1.344757328e-12 | BR169: 1.36990429e-12 | BS169: 1.3955215e-12 | BT169: 1.421617752e-12 | BU169: 1.448202004e-12 | BV169: 1.475283382e-12 | BW169: 1.502871181e-12 | BX169: 1.530974872e-12 | BY169: 1.559604102e-12 | BZ169: 1.588768699e-12 | CA169: =CA165-CA168 -> 1.618478673e-12 | CB169: 1.648744224e-12 | CC169: 1.679575741e-12 | CD169: 1.710983808e-12 | CE169: 1.742979205e-12 | CF169: 1.775572916e-12 | CG169: 1.80877613e-12 | CH169: 1.842600243e-12 | CI169: 1.877056868e-12 | CJ169: 1.912157831e-12 | CK169: 1.947915183e-12 | CL169: 1.984341197e-12 | CM169: =CM165-CM168 -> 2.021448377e-12 | CN169: =CN165-CN168 -> 2.059249462e-12 | CO169: =CO165-CO168 -> 2.097757427e-12 | CP169: =CP165-CP168 -> 2.136985491e-12 | CQ169: =CQ165-CQ168 -> 2.176947119e-12
B171: ='AA 2020-2024 inputs'!B18 -> Main line valve and scraper stations | G171: =MAX('AA 2020-2024 inputs'!G18-20.5,0) -> 29.5 | H171: years
C172: MLV: CAPEX | I172: $m | J172: ='AA 2020-2024 inputs'!H146 -> 6.084140828
C173: MLV: straight line depreciation | I173: $m | J173: =IF(G171<1,J172,J172/G171) -> 0.206242062 | K173: =IF(SUM($J173:J173)+J173<$J172,J173,$J172-SUM($J173:J173)) -> 0.206242062 | L173: =IF(SUM($J173:K173)+K173<$J172,K173,$J172-SUM($J173:K173)) -> 0.206242062 | M173: =IF(SUM($J173:L173)+L173<$J172,L173,$J172-SUM($J173:L173)) -> 0.206242062 | N173: =IF(SUM($J173:M173)+M173<$J172,M173,$J172-SUM($J173:M173)) -> 0.206242062 | O173: =IF(SUM($J173:N173)+N173<$J172,N173,$J172-SUM($J173:N173)) -> 0.206242062 | P173: =IF(SUM($J173:O173)+O173<$J172,O173,$J172-SUM($J173:O173)) -> 0.206242062 | Q173: =IF(SUM($J173:P173)+P173<$J172,P173,$J172-SUM($J173:P173)) -> 0.206242062 | R173: =IF(SUM($J173:Q173)+Q173<$J172,Q173,$J172-SUM($J173:Q173)) -> 0.206242062 | S173: =IF(SUM($J173:R173)+R173<$J172,R173,$J172-SUM($J173:R173)) -> 0.206242062 | T173: =IF(SUM($J173:S173)+S173<$J172,S173,$J172-SUM($J173:S173)) -> 0.206242062 | U173: =IF(SUM($J173:T173)+T173<$J172,T173,$J172-SUM($J173:T173)) -> 0.206242062 | V173: =IF(SUM($J173:U173)+U173<$J172,U173,$J172-SUM($J173:U173)) -> 0.206242062 | W173: =IF(SUM($J173:V173)+V173<$J172,V173,$J172-SUM($J173:V173)) -> 0.206242062 | X173: =IF(SUM($J173:W173)+W173<$J172,W173,$J172-SUM($J173:W173)) -> 0.206242062 | Y173: =IF(SUM($J173:X173)+X173<$J172,X173,$J172-SUM($J173:X173)) -> 0.206242062 | Z173: =IF(SUM($J173:Y173)+Y173<$J172,Y173,$J172-SUM($J173:Y173)) -> 0.206242062 | AA173: =IF(SUM($J173:Z173)+Z173<$J172,Z173,$J172-SUM($J173:Z173)) -> 0.206242062 | AB173: =IF(SUM($J173:AA173)+AA173<$J172,AA173,$J172-SUM($J173:AA173)) -> 0.206242062 | AC173: =IF(SUM($J173:AB173)+AB173<$J172,AB173,$J172-SUM($J173:AB173)) -> 0.206242062 | AD173: =IF(SUM($J173:AC173)+AC173<$J172,AC173,$J172-SUM($J173:AC173)) -> 0.206242062 | AE173: =IF(SUM($J173:AD173)+AD173<$J172,AD173,$J172-SUM($J173:AD173)) -> 0.206242062 | AF173: =IF(SUM($J173:AE173)+AE173<$J172,AE173,$J172-SUM($J173:AE173)) -> 0.206242062 | AG173: =IF(SUM($J173:AF173)+AF173<$J172,AF173,$J172-SUM($J173:AF173)) -> 0.206242062 | AH173: =IF(SUM($J173:AG173)+AG173<$J172,AG173,$J172-SUM($J173:AG173)) -> 0.206242062 | AI173: =IF(SUM($J173:AH173)+AH173<$J172,AH173,$J172-SUM($J173:AH173)) -> 0.206242062 | AJ173: =IF(SUM($J173:AI173)+AI173<$J172,AI173,$J172-SUM($J173:AI173)) -> 0.206242062 | AK173: =IF(SUM($J173:AJ173)+AJ173<$J172,AJ173,$J172-SUM($J173:AJ173)) -> 0.206242062 | AL173: =IF(SUM($J173:AK173)+AK173<$J172,AK173,$J172-SUM($J173:AK173)) -> 0.206242062 | AM173: =IF(SUM($J173:AL173)+AL173<$J172,AL173,$J172-SUM($J173:AL173)) -> 0.103121031 | AN173: =IF(SUM($J173:AM173)+AM173<$J172,AM173,$J172-SUM($J173:AM173)) -> 0 | AO173: =IF(SUM($J173:AN173)+AN173<$J172,AN173,$J172-SUM($J173:AN173)) -> 0 | AP173: =IF(SUM($J173:AO173)+AO173<$J172,AO173,$J172-SUM($J173:AO173)) -> 0 | AQ173: =IF(SUM($J173:AP173)+AP173<$J172,AP173,$J172-SUM($J173:AP173)) -> 0 | AR173: =IF(SUM($J173:AQ173)+AQ173<$J172,AQ173,$J172-SUM($J173:AQ173)) -> 0 | AS173: =IF(SUM($J173:AR173)+AR173<$J172,AR173,$J172-SUM($J173:AR173)) -> 0 | AT173: =IF(SUM($J173:AS173)+AS173<$J172,AS173,$J172-SUM($J173:AS173)) -> 0 | AU173: =IF(SUM($J173:AT173)+AT173<$J172,AT173,$J172-SUM($J173:AT173)) -> 0 | AV173: =IF(SUM($J173:AU173)+AU173<$J172,AU173,$J172-SUM($J173:AU173)) -> 0 | AW173: =IF(SUM($J173:AV173)+AV173<$J172,AV173,$J172-SUM($J173:AV173)) -> 0 | AX173: =IF(SUM($J173:AW173)+AW173<$J172,AW173,$J172-SUM($J173:AW173)) -> 0 | AY173: =IF(SUM($J173:AX173)+AX173<$J172,AX173,$J172-SUM($J173:AX173)) -> 0 | AZ173: =IF(SUM($J173:AY173)+AY173<$J172,AY173,$J172-SUM($J173:AY173)) -> 0 | BA173: =IF(SUM($J173:AZ173)+AZ173<$J172,AZ173,$J172-SUM($J173:AZ173)) -> 0 | BB173: =IF(SUM($J173:BA173)+BA173<$J172,BA173,$J172-SUM($J173:BA173)) -> 0 | BC173: =IF(SUM($J173:BB173)+BB173<$J172,BB173,$J172-SUM($J173:BB173)) -> 0 | BD173: =IF(SUM($J173:BC173)+BC173<$J172,BC173,$J172-SUM($J173:BC173)) -> 0 | BE173: =IF(SUM($J173:BD173)+BD173<$J172,BD173,$J172-SUM($J173:BD173)) -> 0 | BF173: =IF(SUM($J173:BE173)+BE173<$J172,BE173,$J172-SUM($J173:BE173)) -> 0 | BG173: =IF(SUM($J173:BF173)+BF173<$J172,BF173,$J172-SUM($J173:BF173)) -> 0 | BH173: =IF(SUM($J173:BG173)+BG173<$J172,BG173,$J172-SUM($J173:BG173)) -> 0 | BI173: =IF(SUM($J173:BH173)+BH173<$J172,BH173,$J172-SUM($J173:BH173)) -> 0 | BJ173: =IF(SUM($J173:BI173)+BI173<$J172,BI173,$J172-SUM($J173:BI173)) -> 0 | BK173: =IF(SUM($J173:BJ173)+BJ173<$J172,BJ173,$J172-SUM($J173:BJ173)) -> 0 | BL173: =IF(SUM($J173:BK173)+BK173<$J172,BK173,$J172-SUM($J173:BK173)) -> 0 | BM173: =IF(SUM($J173:BL173)+BL173<$J172,BL173,$J172-SUM($J173:BL173)) -> 0 | BN173: =IF(SUM($J173:BM173)+BM173<$J172,BM173,$J172-SUM($J173:BM173)) -> 0 | BO173: =IF(SUM($J173:BN173)+BN173<$J172,BN173,$J172-SUM($J173:BN173)) -> 0 | BP173: =IF(SUM($J173:BO173)+BO173<$J172,BO173,$J172-SUM($J173:BO173)) -> 0 | BQ173: =IF(SUM($J173:BP173)+BP173<$J172,BP173,$J172-SUM($J173:BP173)) -> 0 | BR173: =IF(SUM($J173:BQ173)+BQ173<$J172,BQ173,$J172-SUM($J173:BQ173)) -> 0 | BS173: =IF(SUM($J173:BR173)+BR173<$J172,BR173,$J172-SUM($J173:BR173)) -> 0 | BT173: =IF(SUM($J173:BS173)+BS173<$J172,BS173,$J172-SUM($J173:BS173)) -> 0 | BU173: =IF(SUM($J173:BT173)+BT173<$J172,BT173,$J172-SUM($J173:BT173)) -> 0 | BV173: =IF(SUM($J173:BU173)+BU173<$J172,BU173,$J172-SUM($J173:BU173)) -> 0 | BW173: =IF(SUM($J173:BV173)+BV173<$J172,BV173,$J172-SUM($J173:BV173)) -> 0 | BX173: =IF(SUM($J173:BW173)+BW173<$J172,BW173,$J172-SUM($J173:BW173)) -> 0 | BY173: =IF(SUM($J173:BX173)+BX173<$J172,BX173,$J172-SUM($J173:BX173)) -> 0 | BZ173: =IF(SUM($J173:BY173)+BY173<$J172,BY173,$J172-SUM($J173:BY173)) -> 0 | CA173: =IF(SUM($J173:BZ173)+BZ173<$J172,BZ173,$J172-SUM($J173:BZ173)) -> 0 | CB173: =IF(SUM($J173:CA173)+CA173<$J172,CA173,$J172-SUM($J173:CA173)) -> 0 | CC173: =IF(SUM($J173:CB173)+CB173<$J172,CB173,$J172-SUM($J173:CB173)) -> 0 | CD173: =IF(SUM($J173:CC173)+CC173<$J172,CC173,$J172-SUM($J173:CC173)) -> 0 | CE173: =IF(SUM($J173:CD173)+CD173<$J172,CD173,$J172-SUM($J173:CD173)) -> 0 | CF173: =IF(SUM($J173:CE173)+CE173<$J172,CE173,$J172-SUM($J173:CE173)) -> 0 | CG173: =IF(SUM($J173:CF173)+CF173<$J172,CF173,$J172-SUM($J173:CF173)) -> 0 | CH173: =IF(SUM($J173:CG173)+CG173<$J172,CG173,$J172-SUM($J173:CG173)) -> 0 | CI173: =IF(SUM($J173:CH173)+CH173<$J172,CH173,$J172-SUM($J173:CH173)) -> 0 | CJ173: =IF(SUM($J173:CI173)+CI173<$J172,CI173,$J172-SUM($J173:CI173)) -> 0 | CK173: =IF(SUM($J173:CJ173)+CJ173<$J172,CJ173,$J172-SUM($J173:CJ173)) -> 0 | CL173: =IF(SUM($J173:CK173)+CK173<$J172,CK173,$J172-SUM($J173:CK173)) -> 0 | CM173: =IF(SUM($J173:CL173)+CL173<$J172,CL173,$J172-SUM($J173:CL173)) -> 0 | CN173: =IF(SUM($J173:CM173)+CM173<$J172,CM173,$J172-SUM($J173:CM173)) -> 0 | CO173: =IF(SUM($J173:CN173)+CN173<$J172,CN173,$J172-SUM($J173:CN173)) -> 0 | CP173: =IF(SUM($J173:CO173)+CO173<$J172,CO173,$J172-SUM($J173:CO173)) -> 0 | CQ173: =IF(SUM($J173:CP173)+CP173<$J172,CP173,$J172-SUM($J173:CP173)) -> 0
C175: MLV: asset base (start of year) | I175: $m | J175: =J172 -> 6.084140828 | K175: =J179 -> 5.97715034 | L175: 5.852553822 | M175: 5.747401326 | N175: 5.633938949 | O175: 5.51422327 | P175: 5.388060092 | Q175: 5.255250143 | R175: 5.115588951 | S175: 4.968866721 | T175: 4.814868211 | U175: 4.653372592 | V175: 4.484153327 | W175: 4.306978023 | X175: 4.121608299 | Y175: 3.927799641 | Z175: 3.725301253 | AA175: 3.513855913 | AB175: 3.293199817 | AC175: 3.063062423 | AD175: 2.823166291 | AE175: 2.573226922 | AF175: 2.312952587 | AG175: 2.04204416 | AH175: 1.760194942 | AI175: 1.467090481 | AJ175: 1.16240839 | AK175: 0.845818162 | AL175: 0.516980977 | AM175: 0.1755495071 | AN175: 4.413136523e-15 | AO175: 4.495662176e-15 | AP175: 4.579731059e-15 | AQ175: =AP179 -> 4.665372029e-15 | AR175: 4.752614486e-15 | AS175: 4.841488377e-15 | AT175: 4.93202421e-15 | AU175: 5.024253063e-15 | AV175: 5.118206595e-15 | AW175: 5.213917058e-15 | AX175: 5.311417307e-15 | AY175: 5.410740811e-15 | AZ175: 5.511921664e-15 | BA175: 5.614994599e-15 | BB175: 5.719994998e-15 | BC175: 5.826958905e-15 | BD175: 5.935923036e-15 | BE175: 6.046924797e-15 | BF175: 6.160002291e-15 | BG175: 6.275194333e-15 | BH175: 6.392540467e-15 | BI175: 6.512080974e-15 | BJ175: 6.633856888e-15 | BK175: 6.757910012e-15 | BL175: 6.884282929e-15 | BM175: 7.01301902e-15 | BN175: 7.144162476e-15 | BO175: 7.277758314e-15 | BP175: 7.413852395e-15 | BQ175: 7.552491434e-15 | BR175: 7.693723024e-15 | BS175: 7.837595645e-15 | BT175: 7.984158683e-15 | BU175: 8.133462451e-15 | BV175: 8.285558199e-15 | BW175: =BV179 -> 8.440498137e-15 | BX175: 8.598335452e-15 | BY175: 8.759124325e-15 | BZ175: 8.92291995e-15 | CA175: 9.089778553e-15 | CB175: 9.259757412e-15 | CC175: 9.432914875e-15 | CD175: 9.609310384e-15 | CE175: 9.789004488e-15 | CF175: 9.972058872e-15 | CG175: 1.015853637e-14 | CH175: 1.0348501e-14 | CI175: 1.054201797e-14 | CJ175: 1.073915371e-14 | CK175: 1.093997588e-14 | CL175: 1.114455343e-14 | CM175: 1.135295658e-14 | CN175: 1.156525687e-14 | CO175: 1.178152717e-14 | CP175: 1.200184173e-14 | CQ175: 1.222627617e-14
C176: MLV: indexation of asset base | I176: $m | J176: =J$5*J175 -> 0.1027340853 | K176: =K$5*K175 -> 0.08822362126 | L176: =L$5*L175 -> 0.111730573 | M176: =M$5*M175 -> 0.1074764048 | N176: =N$5*N175 -> 0.1053546583 | O176: =O$5*O175 -> 0.1031159751 | P176: 0.1007567237 | Q176: 0.09827317767 | R176: 0.09566151338 | S176: 0.09291780769 | T176: 0.09003803554 | U176: 0.08701806748 | V176: 0.08385366722 | W176: 0.08054048903 | X176: 0.0770740752 | Y176: 0.07344985328 | Z176: 0.06966313343 | AA176: 0.06570910558 | AB176: 0.06158283659 | AC176: 0.05727926731 | AD176: 0.05279320965 | AE176: 0.04811934344 | AF176: 0.04325221338 | AG176: 0.0381862258 | AH176: 0.03291564542 | AI176: 0.02743459199 | AJ176: 0.02173703689 | AK176: 0.01581679963 | AL176: 0.00966754427 | AM176: 0.003282775783 | AN176: 8.252565298e-17 | AO176: 8.406888269e-17 | AP176: 8.564097079e-17 | AQ176: 8.724245695e-17 | AR176: 8.887389089e-17 | AS176: 9.053583265e-17 | AT176: 9.222885272e-17 | AU176: 9.395353227e-17 | AV176: 9.571046332e-17 | AW176: 9.750024899e-17 | AX176: 9.932350364e-17 | AY176: 1.011808532e-16 | AZ176: 1.030729351e-16 | BA176: 1.05000399e-16 | BB176: 1.069639065e-16 | BC176: 1.089641315e-16 | BD176: 1.110017608e-16 | BE176: 1.130774937e-16 | BF176: 1.151920428e-16 | BG176: 1.17346134e-16 | BH176: 1.195405067e-16 | BI176: 1.217759142e-16 | BJ176: 1.240531238e-16 | BK176: 1.263729172e-16 | BL176: 1.287360908e-16 | BM176: 1.311434557e-16 | BN176: 1.335958383e-16 | BO176: 1.360940805e-16 | BP176: 1.386390398e-16 | BQ176: 1.412315898e-16 | BR176: 1.438726206e-16 | BS176: 1.465630386e-16 | BT176: 1.493037674e-16 | BU176: 1.520957478e-16 | BV176: 1.549399383e-16 | BW176: 1.578373152e-16 | BX176: 1.60788873e-16 | BY176: 1.637956249e-16 | BZ176: 1.668586031e-16 | CA176: =CA$5*CA175 -> 1.699788589e-16 | CB176: 1.731574636e-16 | CC176: 1.763955082e-16 | CD176: 1.796941042e-16 | CE176: 1.830543839e-16 | CF176: 1.864775009e-16 | CG176: 1.899646302e-16 | CH176: 1.935169688e-16 | CI176: 1.971357361e-16 | CJ176: 2.008221743e-16 | CK176: 2.04577549e-16 | CL176: 2.084031492e-16 | CM176: =CM$5*CM175 -> 2.12300288e-16 | CN176: =CN$5*CN175 -> 2.162703034e-16 | CO176: =CO$5*CO175 -> 2.203145581e-16 | CP176: =CP$5*CP175 -> 2.244344403e-16 | CQ176: =CQ$5*CQ175 -> 2.286313644e-16
C177: MLV: inflation adjusted SL depreciation | I177: $m | J177: =J$6*J173 -> 0.2097245733 | K177: =K$6*K173 -> 0.212820139 | L177: =L$6*L173 -> 0.2168830689 | M177: =M$6*M173 -> 0.2209387823 | N177: =N$6*N173 -> 0.2250703375 | O177: =O$6*O173 -> 0.2292791528 | P177: 0.233566673 | Q177: 0.2379343698 | R177: 0.2423837425 | S177: 0.2469163185 | T177: 0.2515336536 | U177: 0.256237333 | V177: 0.2610289711 | W177: 0.2659102129 | X177: 0.2708827338 | Y177: 0.275948241 | Z177: 0.2811084731 | AA177: 0.2863652015 | AB177: 0.2917202308 | AC177: 0.2971753991 | AD177: 0.3027325791 | AE177: 0.3083936783 | AF177: 0.3141606401 | AG177: 0.320035444 | AH177: 0.3260201068 | AI177: 0.3321166828 | AJ177: 0.3383272648 | AK177: 0.3446539847 | AL177: 0.3510990142 | AM177: 0.1788322829 | AN177: 0 | AO177: 0 | AP177: 0 | AQ177: 0 | AR177: 0 | AS177: 0 | AT177: 0 | AU177: 0 | AV177: 0 | AW177: 0 | AX177: 0 | AY177: 0 | AZ177: 0 | BA177: 0 | BB177: 0 | BC177: 0 | BD177: 0 | BE177: 0 | BF177: 0 | BG177: 0 | BH177: 0 | BI177: 0 | BJ177: 0 | BK177: 0 | BL177: 0 | BM177: 0 | BN177: 0 | BO177: 0 | BP177: 0 | BQ177: 0 | BR177: 0 | BS177: 0 | BT177: 0 | BU177: 0 | BV177: 0 | BW177: 0 | BX177: 0 | BY177: 0 | BZ177: 0 | CA177: =CA$6*CA173 -> 0 | CB177: 0 | CC177: 0 | CD177: 0 | CE177: 0 | CF177: 0 | CG177: 0 | CH177: 0 | CI177: 0 | CJ177: 0 | CK177: 0 | CL177: 0 | CM177: =CM$6*CM173 -> 0 | CN177: =CN$6*CN173 -> 0 | CO177: =CO$6*CO173 -> 0 | CP177: =CP$6*CP173 -> 0 | CQ177: =CQ$6*CQ173 -> 0
C178: MLV: regulatory depreciation | I178: $m | J178: =J177-J176 -> 0.1069904881 | K178: =K177-K176 -> 0.1245965177 | L178: =L177-L176 -> 0.1051524959 | M178: =M177-M176 -> 0.1134623775 | N178: =N177-N176 -> 0.1197156792 | O178: =O177-O176 -> 0.1261631777 | P178: 0.1328099493 | Q178: 0.1396611921 | R178: 0.1467222291 | S178: 0.1539985108 | T178: 0.1614956181 | U178: 0.1692192655 | V178: 0.1771753039 | W178: 0.1853697238 | X178: 0.1938086586 | Y178: 0.2024983877 | Z178: 0.2114453396 | AA178: 0.2206560959 | AB178: 0.2301373942 | AC178: 0.2398961318 | AD178: 0.2499393694 | AE178: 0.2602743348 | AF178: 0.2709084267 | AG178: 0.2818492182 | AH178: 0.2931044614 | AI178: 0.3046820909 | AJ178: 0.3165902279 | AK178: 0.328837185 | AL178: 0.3414314699 | AM178: 0.1755495071 | AN178: -8.252565298e-17 | AO178: -8.406888269e-17 | AP178: -8.564097079e-17 | AQ178: -8.724245695e-17 | AR178: -8.887389089e-17 | AS178: -9.053583265e-17 | AT178: -9.222885272e-17 | AU178: -9.395353227e-17 | AV178: -9.571046332e-17 | AW178: -9.750024899e-17 | AX178: -9.932350364e-17 | AY178: -1.011808532e-16 | AZ178: -1.030729351e-16 | BA178: -1.05000399e-16 | BB178: -1.069639065e-16 | BC178: -1.089641315e-16 | BD178: -1.110017608e-16 | BE178: -1.130774937e-16 | BF178: -1.151920428e-16 | BG178: -1.17346134e-16 | BH178: -1.195405067e-16 | BI178: -1.217759142e-16 | BJ178: -1.240531238e-16 | BK178: -1.263729172e-16 | BL178: -1.287360908e-16 | BM178: -1.311434557e-16 | BN178: -1.335958383e-16 | BO178: -1.360940805e-16 | BP178: -1.386390398e-16 | BQ178: -1.412315898e-16 | BR178: -1.438726206e-16 | BS178: -1.465630386e-16 | BT178: -1.493037674e-16 | BU178: -1.520957478e-16 | BV178: -1.549399383e-16 | BW178: -1.578373152e-16 | BX178: -1.60788873e-16 | BY178: -1.637956249e-16 | BZ178: -1.668586031e-16 | CA178: =CA177-CA176 -> -1.699788589e-16 | CB178: -1.731574636e-16 | CC178: -1.763955082e-16 | CD178: -1.796941042e-16 | CE178: -1.830543839e-16 | CF178: -1.864775009e-16 | CG178: -1.899646302e-16 | CH178: -1.935169688e-16 | CI178: -1.971357361e-16 | CJ178: -2.008221743e-16 | CK178: -2.04577549e-16 | CL178: -2.084031492e-16 | CM178: =CM177-CM176 -> -2.12300288e-16 | CN178: =CN177-CN176 -> -2.162703034e-16 | CO178: =CO177-CO176 -> -2.203145581e-16 | CP178: =CP177-CP176 -> -2.244344403e-16 | CQ178: =CQ177-CQ176 -> -2.286313644e-16 | CS178: =J172 -> 6.084140828 | CT178: =SUM(J178:CQ178) -> 6.084140828 | CU178: =CS178-CT178 -> 0
C179: MLV: asset base (end of year) | I179: $m | J179: =J175-J178 -> 5.97715034 | K179: =K175-K178 -> 5.852553822 | L179: =L175-L178 -> 5.747401326 | M179: =M175-M178 -> 5.633938949 | N179: =N175-N178 -> 5.51422327 | O179: =O175-O178 -> 5.388060092 | P179: 5.255250143 | Q179: 5.115588951 | R179: 4.968866721 | S179: 4.814868211 | T179: 4.653372592 | U179: 4.484153327 | V179: 4.306978023 | W179: 4.121608299 | X179: 3.927799641 | Y179: 3.725301253 | Z179: 3.513855913 | AA179: 3.293199817 | AB179: 3.063062423 | AC179: 2.823166291 | AD179: 2.573226922 | AE179: 2.312952587 | AF179: 2.04204416 | AG179: 1.760194942 | AH179: 1.467090481 | AI179: 1.16240839 | AJ179: 0.845818162 | AK179: 0.516980977 | AL179: 0.1755495071 | AM179: 4.413136523e-15 | AN179: 4.495662176e-15 | AO179: 4.579731059e-15 | AP179: 4.665372029e-15 | AQ179: 4.752614486e-15 | AR179: 4.841488377e-15 | AS179: 4.93202421e-15 | AT179: 5.024253063e-15 | AU179: 5.118206595e-15 | AV179: 5.213917058e-15 | AW179: 5.311417307e-15 | AX179: 5.410740811e-15 | AY179: 5.511921664e-15 | AZ179: 5.614994599e-15 | BA179: 5.719994998e-15 | BB179: 5.826958905e-15 | BC179: 5.935923036e-15 | BD179: 6.046924797e-15 | BE179: 6.160002291e-15 | BF179: 6.275194333e-15 | BG179: 6.392540467e-15 | BH179: 6.512080974e-15 | BI179: 6.633856888e-15 | BJ179: 6.757910012e-15 | BK179: 6.884282929e-15 | BL179: 7.01301902e-15 | BM179: 7.144162476e-15 | BN179: 7.277758314e-15 | BO179: 7.413852395e-15 | BP179: 7.552491434e-15 | BQ179: 7.693723024e-15 | BR179: 7.837595645e-15 | BS179: 7.984158683e-15 | BT179: 8.133462451e-15 | BU179: 8.285558199e-15 | BV179: 8.440498137e-15 | BW179: 8.598335452e-15 | BX179: 8.759124325e-15 | BY179: 8.92291995e-15 | BZ179: 9.089778553e-15 | CA179: =CA175-CA178 -> 9.259757412e-15 | CB179: 9.432914875e-15 | CC179: 9.609310384e-15 | CD179: 9.789004488e-15 | CE179: 9.972058872e-15 | CF179: 1.015853637e-14 | CG179: 1.0348501e-14 | CH179: 1.054201797e-14 | CI179: 1.073915371e-14 | CJ179: 1.093997588e-14 | CK179: 1.114455343e-14 | CL179: 1.135295658e-14 | CM179: =CM175-CM178 -> 1.156525687e-14 | CN179: =CN175-CN178 -> 1.178152717e-14 | CO179: =CO175-CO178 -> 1.200184173e-14 | CP179: =CP175-CP178 -> 1.222627617e-14 | CQ179: =CQ175-CQ178 -> 1.245490753e-14
B181: ='AA 2020-2024 inputs'!B19 -> Compressor stations | G181: =MAX('AA 2020-2024 inputs'!G19-20.5,0) -> 9.5 | H181: years
C182: Compressors: CAPEX | I182: $m | J182: ='AA 2020-2024 inputs'!H147 -> 16.12130414
C183: Compressors: straight line depreciation | I183: $m | J183: =IF(G181<1,J182,J182/G181) -> 1.696979383 | K183: =IF(SUM($J183:J183)+J183<$J182,J183,$J182-SUM($J183:J183)) -> 1.696979383 | L183: =IF(SUM($J183:K183)+K183<$J182,K183,$J182-SUM($J183:K183)) -> 1.696979383 | M183: =IF(SUM($J183:L183)+L183<$J182,L183,$J182-SUM($J183:L183)) -> 1.696979383 | N183: =IF(SUM($J183:M183)+M183<$J182,M183,$J182-SUM($J183:M183)) -> 1.696979383 | O183: =IF(SUM($J183:N183)+N183<$J182,N183,$J182-SUM($J183:N183)) -> 1.696979383 | P183: =IF(SUM($J183:O183)+O183<$J182,O183,$J182-SUM($J183:O183)) -> 1.696979383 | Q183: =IF(SUM($J183:P183)+P183<$J182,P183,$J182-SUM($J183:P183)) -> 1.696979383 | R183: =IF(SUM($J183:Q183)+Q183<$J182,Q183,$J182-SUM($J183:Q183)) -> 1.696979383 | S183: =IF(SUM($J183:R183)+R183<$J182,R183,$J182-SUM($J183:R183)) -> 0.8484896915 | T183: =IF(SUM($J183:S183)+S183<$J182,S183,$J182-SUM($J183:S183)) -> 0 | U183: =IF(SUM($J183:T183)+T183<$J182,T183,$J182-SUM($J183:T183)) -> 0 | V183: =IF(SUM($J183:U183)+U183<$J182,U183,$J182-SUM($J183:U183)) -> 0 | W183: =IF(SUM($J183:V183)+V183<$J182,V183,$J182-SUM($J183:V183)) -> 0 | X183: =IF(SUM($J183:W183)+W183<$J182,W183,$J182-SUM($J183:W183)) -> 0 | Y183: =IF(SUM($J183:X183)+X183<$J182,X183,$J182-SUM($J183:X183)) -> 0 | Z183: =IF(SUM($J183:Y183)+Y183<$J182,Y183,$J182-SUM($J183:Y183)) -> 0 | AA183: =IF(SUM($J183:Z183)+Z183<$J182,Z183,$J182-SUM($J183:Z183)) -> 0 | AB183: =IF(SUM($J183:AA183)+AA183<$J182,AA183,$J182-SUM($J183:AA183)) -> 0 | AC183: =IF(SUM($J183:AB183)+AB183<$J182,AB183,$J182-SUM($J183:AB183)) -> 0 | AD183: =IF(SUM($J183:AC183)+AC183<$J182,AC183,$J182-SUM($J183:AC183)) -> 0 | AE183: =IF(SUM($J183:AD183)+AD183<$J182,AD183,$J182-SUM($J183:AD183)) -> 0 | AF183: =IF(SUM($J183:AE183)+AE183<$J182,AE183,$J182-SUM($J183:AE183)) -> 0 | AG183: =IF(SUM($J183:AF183)+AF183<$J182,AF183,$J182-SUM($J183:AF183)) -> 0 | AH183: =IF(SUM($J183:AG183)+AG183<$J182,AG183,$J182-SUM($J183:AG183)) -> 0 | AI183: =IF(SUM($J183:AH183)+AH183<$J182,AH183,$J182-SUM($J183:AH183)) -> 0 | AJ183: =IF(SUM($J183:AI183)+AI183<$J182,AI183,$J182-SUM($J183:AI183)) -> 0 | AK183: =IF(SUM($J183:AJ183)+AJ183<$J182,AJ183,$J182-SUM($J183:AJ183)) -> 0 | AL183: =IF(SUM($J183:AK183)+AK183<$J182,AK183,$J182-SUM($J183:AK183)) -> 0 | AM183: =IF(SUM($J183:AL183)+AL183<$J182,AL183,$J182-SUM($J183:AL183)) -> 0 | AN183: =IF(SUM($J183:AM183)+AM183<$J182,AM183,$J182-SUM($J183:AM183)) -> 0 | AO183: =IF(SUM($J183:AN183)+AN183<$J182,AN183,$J182-SUM($J183:AN183)) -> 0 | AP183: =IF(SUM($J183:AO183)+AO183<$J182,AO183,$J182-SUM($J183:AO183)) -> 0 | AQ183: =IF(SUM($J183:AP183)+AP183<$J182,AP183,$J182-SUM($J183:AP183)) -> 0 | AR183: =IF(SUM($J183:AQ183)+AQ183<$J182,AQ183,$J182-SUM($J183:AQ183)) -> 0 | AS183: =IF(SUM($J183:AR183)+AR183<$J182,AR183,$J182-SUM($J183:AR183)) -> 0 | AT183: =IF(SUM($J183:AS183)+AS183<$J182,AS183,$J182-SUM($J183:AS183)) -> 0 | AU183: =IF(SUM($J183:AT183)+AT183<$J182,AT183,$J182-SUM($J183:AT183)) -> 0 | AV183: =IF(SUM($J183:AU183)+AU183<$J182,AU183,$J182-SUM($J183:AU183)) -> 0 | AW183: =IF(SUM($J183:AV183)+AV183<$J182,AV183,$J182-SUM($J183:AV183)) -> 0 | AX183: =IF(SUM($J183:AW183)+AW183<$J182,AW183,$J182-SUM($J183:AW183)) -> 0 | AY183: =IF(SUM($J183:AX183)+AX183<$J182,AX183,$J182-SUM($J183:AX183)) -> 0 | AZ183: =IF(SUM($J183:AY183)+AY183<$J182,AY183,$J182-SUM($J183:AY183)) -> 0 | BA183: =IF(SUM($J183:AZ183)+AZ183<$J182,AZ183,$J182-SUM($J183:AZ183)) -> 0 | BB183: =IF(SUM($J183:BA183)+BA183<$J182,BA183,$J182-SUM($J183:BA183)) -> 0 | BC183: =IF(SUM($J183:BB183)+BB183<$J182,BB183,$J182-SUM($J183:BB183)) -> 0 | BD183: =IF(SUM($J183:BC183)+BC183<$J182,BC183,$J182-SUM($J183:BC183)) -> 0 | BE183: =IF(SUM($J183:BD183)+BD183<$J182,BD183,$J182-SUM($J183:BD183)) -> 0 | BF183: =IF(SUM($J183:BE183)+BE183<$J182,BE183,$J182-SUM($J183:BE183)) -> 0 | BG183: =IF(SUM($J183:BF183)+BF183<$J182,BF183,$J182-SUM($J183:BF183)) -> 0 | BH183: =IF(SUM($J183:BG183)+BG183<$J182,BG183,$J182-SUM($J183:BG183)) -> 0 | BI183: =IF(SUM($J183:BH183)+BH183<$J182,BH183,$J182-SUM($J183:BH183)) -> 0 | BJ183: =IF(SUM($J183:BI183)+BI183<$J182,BI183,$J182-SUM($J183:BI183)) -> 0 | BK183: =IF(SUM($J183:BJ183)+BJ183<$J182,BJ183,$J182-SUM($J183:BJ183)) -> 0 | BL183: =IF(SUM($J183:BK183)+BK183<$J182,BK183,$J182-SUM($J183:BK183)) -> 0 | BM183: =IF(SUM($J183:BL183)+BL183<$J182,BL183,$J182-SUM($J183:BL183)) -> 0 | BN183: =IF(SUM($J183:BM183)+BM183<$J182,BM183,$J182-SUM($J183:BM183)) -> 0 | BO183: =IF(SUM($J183:BN183)+BN183<$J182,BN183,$J182-SUM($J183:BN183)) -> 0 | BP183: =IF(SUM($J183:BO183)+BO183<$J182,BO183,$J182-SUM($J183:BO183)) -> 0 | BQ183: =IF(SUM($J183:BP183)+BP183<$J182,BP183,$J182-SUM($J183:BP183)) -> 0 | BR183: =IF(SUM($J183:BQ183)+BQ183<$J182,BQ183,$J182-SUM($J183:BQ183)) -> 0 | BS183: =IF(SUM($J183:BR183)+BR183<$J182,BR183,$J182-SUM($J183:BR183)) -> 0 | BT183: =IF(SUM($J183:BS183)+BS183<$J182,BS183,$J182-SUM($J183:BS183)) -> 0 | BU183: =IF(SUM($J183:BT183)+BT183<$J182,BT183,$J182-SUM($J183:BT183)) -> 0 | BV183: =IF(SUM($J183:BU183)+BU183<$J182,BU183,$J182-SUM($J183:BU183)) -> 0 | BW183: =IF(SUM($J183:BV183)+BV183<$J182,BV183,$J182-SUM($J183:BV183)) -> 0 | BX183: =IF(SUM($J183:BW183)+BW183<$J182,BW183,$J182-SUM($J183:BW183)) -> 0 | BY183: =IF(SUM($J183:BX183)+BX183<$J182,BX183,$J182-SUM($J183:BX183)) -> 0 | BZ183: =IF(SUM($J183:BY183)+BY183<$J182,BY183,$J182-SUM($J183:BY183)) -> 0 | CA183: =IF(SUM($J183:BZ183)+BZ183<$J182,BZ183,$J182-SUM($J183:BZ183)) -> 0 | CB183: =IF(SUM($J183:CA183)+CA183<$J182,CA183,$J182-SUM($J183:CA183)) -> 0 | CC183: =IF(SUM($J183:CB183)+CB183<$J182,CB183,$J182-SUM($J183:CB183)) -> 0 | CD183: =IF(SUM($J183:CC183)+CC183<$J182,CC183,$J182-SUM($J183:CC183)) -> 0 | CE183: =IF(SUM($J183:CD183)+CD183<$J182,CD183,$J182-SUM($J183:CD183)) -> 0 | CF183: =IF(SUM($J183:CE183)+CE183<$J182,CE183,$J182-SUM($J183:CE183)) -> 0 | CG183: =IF(SUM($J183:CF183)+CF183<$J182,CF183,$J182-SUM($J183:CF183)) -> 0 | CH183: =IF(SUM($J183:CG183)+CG183<$J182,CG183,$J182-SUM($J183:CG183)) -> 0 | CI183: =IF(SUM($J183:CH183)+CH183<$J182,CH183,$J182-SUM($J183:CH183)) -> 0 | CJ183: =IF(SUM($J183:CI183)+CI183<$J182,CI183,$J182-SUM($J183:CI183)) -> 0 | CK183: =IF(SUM($J183:CJ183)+CJ183<$J182,CJ183,$J182-SUM($J183:CJ183)) -> 0 | CL183: =IF(SUM($J183:CK183)+CK183<$J182,CK183,$J182-SUM($J183:CK183)) -> 0 | CM183: =IF(SUM($J183:CL183)+CL183<$J182,CL183,$J182-SUM($J183:CL183)) -> 0 | CN183: =IF(SUM($J183:CM183)+CM183<$J182,CM183,$J182-SUM($J183:CM183)) -> 0 | CO183: =IF(SUM($J183:CN183)+CN183<$J182,CN183,$J182-SUM($J183:CN183)) -> 0 | CP183: =IF(SUM($J183:CO183)+CO183<$J182,CO183,$J182-SUM($J183:CO183)) -> 0 | CQ183: =IF(SUM($J183:CP183)+CP183<$J182,CP183,$J182-SUM($J183:CP183)) -> 0
C185: Compressors: asset base (start of year) | I185: $m | J185: =J182 -> 16.12130414 | K185: =J189 -> 14.66788746 | L185: 13.13328322 | M185: 11.59947493 | N185: 9.998479709 | O185: 8.333551047 | P185: 6.602857685 | Q185: 4.804522231 | R185: 2.936620078 | S185: 0.9971782911 | T185: 5.551115123e-15 | U185: 5.654920976e-15 | V185: 5.760667998e-15 | W185: 5.86839249e-15 | X185: 5.978131429e-15 | Y185: 6.089922487e-15 | Z185: 6.203804038e-15 | AA185: 6.319815173e-15 | AB185: 6.437995717e-15 | AC185: 6.558386237e-15 | AD185: 6.681028059e-15 | AE185: 6.805963284e-15 | AF185: 6.933234797e-15 | AG185: 7.062886288e-15 | AH185: 7.194962262e-15 | AI185: 7.329508056e-15 | AJ185: 7.466569857e-15 | AK185: 7.606194713e-15 | AL185: 7.748430554e-15 | AM185: 7.893326205e-15 | AN185: 8.040931406e-15 | AO185: 8.191296823e-15 | AP185: 8.344474073e-15 | AQ185: =AP189 -> 8.500515739e-15 | AR185: 8.659475383e-15 | AS185: 8.821407573e-15 | AT185: 8.986367894e-15 | AU185: 9.154412974e-15 | AV185: 9.325600496e-15 | AW185: 9.499989226e-15 | AX185: 9.677639024e-15 | AY185: 9.858610874e-15 | AZ185: 1.00429669e-14 | BA185: 1.023077038e-14 | BB185: 1.042208578e-14 | BC185: 1.061697879e-14 | BD185: 1.081551629e-14 | BE185: 1.101776645e-14 | BF185: 1.122379868e-14 | BG185: 1.143368371e-14 | BH185: 1.16474936e-14 | BI185: 1.186530173e-14 | BJ185: 1.208718287e-14 | BK185: 1.231321319e-14 | BL185: 1.254347028e-14 | BM185: 1.277803317e-14 | BN185: 1.301698239e-14 | BO185: 1.326039996e-14 | BP185: 1.350836944e-14 | BQ185: 1.376097595e-14 | BR185: 1.40183062e-14 | BS185: 1.428044853e-14 | BT185: 1.454749292e-14 | BU185: 1.481953103e-14 | BV185: 1.509665626e-14 | BW185: =BV189 -> 1.537896374e-14 | BX185: 1.566655036e-14 | BY185: 1.595951485e-14 | BZ185: 1.625795778e-14 | CA185: 1.656198159e-14 | CB185: 1.687169064e-14 | CC185: 1.718719126e-14 | CD185: 1.750859173e-14 | CE185: 1.78360024e-14 | CF185: 1.816953565e-14 | CG185: 1.850930596e-14 | CH185: 1.885542998e-14 | CI185: 1.920802652e-14 | CJ185: 1.956721662e-14 | CK185: 1.993312357e-14 | CL185: 2.030587298e-14 | CM185: 2.068559281e-14 | CN185: 2.107241339e-14 | CO185: 2.146646752e-14 | CP185: 2.186789046e-14 | CQ185: 2.227682002e-14
C186: Compressors: indexation of asset base | I186: $m | J186: =J$5*J185 -> 0.2722171431 | K186: =K$5*K185 -> 0.216500184 | L186: =L$5*L185 -> 0.250726316 | M186: =M$5*M185 -> 0.2169101812 | N186: =N$5*N185 -> 0.1869715706 | O186: =O$5*O185 -> 0.1558374046 | P186: 0.1234734387 | Q186: 0.08984456572 | R186: 0.05491479546 | S186: 0.01864723404 | T186: 1.038058528e-16 | U186: 1.057470222e-16 | V186: 1.077244916e-16 | W186: 1.097389396e-16 | X186: 1.117910577e-16 | Y186: 1.138815505e-16 | Z186: 1.160111355e-16 | AA186: 1.181805437e-16 | AB186: 1.203905199e-16 | AC186: 1.226418226e-16 | AD186: 1.249352247e-16 | AE186: 1.272715134e-16 | AF186: 1.296514907e-16 | AG186: 1.320759736e-16 | AH186: 1.345457943e-16 | AI186: 1.370618006e-16 | AJ186: 1.396248563e-16 | AK186: 1.422358411e-16 | AL186: 1.448956514e-16 | AM186: 1.476052e-16 | AN186: 1.503654173e-16 | AO186: 1.531772506e-16 | AP186: 1.560416652e-16 | AQ186: 1.589596443e-16 | AR186: 1.619321897e-16 | AS186: 1.649603216e-16 | AT186: 1.680450796e-16 | AU186: 1.711875226e-16 | AV186: 1.743887293e-16 | AW186: 1.776497985e-16 | AX186: 1.809718498e-16 | AY186: 1.843560233e-16 | AZ186: 1.87803481e-16 | BA186: 1.913154061e-16 | BB186: 1.948930042e-16 | BC186: 1.985375033e-16 | BD186: 2.022501547e-16 | BE186: 2.060322325e-16 | BF186: 2.098850353e-16 | BG186: 2.138098855e-16 | BH186: 2.178081303e-16 | BI186: 2.218811424e-16 | BJ186: 2.260303197e-16 | BK186: 2.302570867e-16 | BL186: 2.345628942e-16 | BM186: 2.389492203e-16 | BN186: 2.434175708e-16 | BO186: 2.479694793e-16 | BP186: 2.526065086e-16 | BQ186: 2.573302503e-16 | BR186: 2.62142326e-16 | BS186: 2.670443875e-16 | BT186: 2.720381175e-16 | BU186: 2.771252303e-16 | BV186: 2.823074721e-16 | BW186: 2.875866219e-16 | BX186: 2.929644917e-16 | BY186: 2.984429277e-16 | BZ186: 3.040238104e-16 | CA186: =CA$5*CA185 -> 3.097090557e-16 | CB186: 3.15500615e-16 | CC186: 3.214004765e-16 | CD186: 3.274106654e-16 | CE186: 3.335332449e-16 | CF186: 3.397703166e-16 | CG186: 3.461240215e-16 | CH186: 3.525965407e-16 | CI186: 3.59190096e-16 | CJ186: 3.659069508e-16 | CK186: 3.727494108e-16 | CL186: 3.797198248e-16 | CM186: =CM$5*CM185 -> 3.868205855e-16 | CN186: =CN$5*CN185 -> 3.940541304e-16 | CO186: =CO$5*CO185 -> 4.014229427e-16 | CP186: =CP$5*CP185 -> 4.089295517e-16 | CQ186: =CQ$5*CQ185 -> 4.165765343e-16
C187: Compressors: inflation adjusted SL depreciation | I187: $m | J187: =J$6*J183 -> 1.725633819 | K187: =K$6*K183 -> 1.751104429 | L187: =L$6*L183 -> 1.784534605 | M187: =M$6*M183 -> 1.817905402 | N187: =N$6*N183 -> 1.851900233 | O187: =O$6*O183 -> 1.886530767 | P187: 1.921808892 | Q187: 1.957746719 | R187: 1.994356582 | S187: 1.015825525 | T187: 0 | U187: 0 | V187: 0 | W187: 0 | X187: 0 | Y187: 0 | Z187: 0 | AA187: 0 | AB187: 0 | AC187: 0 | AD187: 0 | AE187: 0 | AF187: 0 | AG187: 0 | AH187: 0 | AI187: 0 | AJ187: 0 | AK187: 0 | AL187: 0 | AM187: 0 | AN187: 0 | AO187: 0 | AP187: 0 | AQ187: 0 | AR187: 0 | AS187: 0 | AT187: 0 | AU187: 0 | AV187: 0 | AW187: 0 | AX187: 0 | AY187: 0 | AZ187: 0 | BA187: 0 | BB187: 0 | BC187: 0 | BD187: 0 | BE187: 0 | BF187: 0 | BG187: 0 | BH187: 0 | BI187: 0 | BJ187: 0 | BK187: 0 | BL187: 0 | BM187: 0 | BN187: 0 | BO187: 0 | BP187: 0 | BQ187: 0 | BR187: 0 | BS187: 0 | BT187: 0 | BU187: 0 | BV187: 0 | BW187: 0 | BX187: 0 | BY187: 0 | BZ187: 0 | CA187: =CA$6*CA183 -> 0 | CB187: 0 | CC187: 0 | CD187: 0 | CE187: 0 | CF187: 0 | CG187: 0 | CH187: 0 | CI187: 0 | CJ187: 0 | CK187: 0 | CL187: 0 | CM187: =CM$6*CM183 -> 0 | CN187: =CN$6*CN183 -> 0 | CO187: =CO$6*CO183 -> 0 | CP187: =CP$6*CP183 -> 0 | CQ187: =CQ$6*CQ183 -> 0
C188: Compressors: regulatory depreciation | I188: $m | J188: =J187-J186 -> 1.453416676 | K188: =K187-K186 -> 1.534604245 | L188: =L187-L186 -> 1.533808289 | M188: =M187-M186 -> 1.60099522 | N188: =N187-N186 -> 1.664928662 | O188: =O187-O186 -> 1.730693362 | P188: 1.798335454 | Q188: 1.867902153 | R188: 1.939441787 | S188: 0.9971782911 | T188: -1.038058528e-16 | U188: -1.057470222e-16 | V188: -1.077244916e-16 | W188: -1.097389396e-16 | X188: -1.117910577e-16 | Y188: -1.138815505e-16 | Z188: -1.160111355e-16 | AA188: -1.181805437e-16 | AB188: -1.203905199e-16 | AC188: -1.226418226e-16 | AD188: -1.249352247e-16 | AE188: -1.272715134e-16 | AF188: -1.296514907e-16 | AG188: -1.320759736e-16 | AH188: -1.345457943e-16 | AI188: -1.370618006e-16 | AJ188: -1.396248563e-16 | AK188: -1.422358411e-16 | AL188: -1.448956514e-16 | AM188: -1.476052e-16 | AN188: -1.503654173e-16 | AO188: -1.531772506e-16 | AP188: -1.560416652e-16 | AQ188: -1.589596443e-16 | AR188: -1.619321897e-16 | AS188: -1.649603216e-16 | AT188: -1.680450796e-16 | AU188: -1.711875226e-16 | AV188: -1.743887293e-16 | AW188: -1.776497985e-16 | AX188: -1.809718498e-16 | AY188: -1.843560233e-16 | AZ188: -1.87803481e-16 | BA188: -1.913154061e-16 | BB188: -1.948930042e-16 | BC188: -1.985375033e-16 | BD188: -2.022501547e-16 | BE188: -2.060322325e-16 | BF188: -2.098850353e-16 | BG188: -2.138098855e-16 | BH188: -2.178081303e-16 | BI188: -2.218811424e-16 | BJ188: -2.260303197e-16 | BK188: -2.302570867e-16 | BL188: -2.345628942e-16 | BM188: -2.389492203e-16 | BN188: -2.434175708e-16 | BO188: -2.479694793e-16 | BP188: -2.526065086e-16 | BQ188: -2.573302503e-16 | BR188: -2.62142326e-16 | BS188: -2.670443875e-16 | BT188: -2.720381175e-16 | BU188: -2.771252303e-16 | BV188: -2.823074721e-16 | BW188: -2.875866219e-16 | BX188: -2.929644917e-16 | BY188: -2.984429277e-16 | BZ188: -3.040238104e-16 | CA188: =CA187-CA186 -> -3.097090557e-16 | CB188: -3.15500615e-16 | CC188: -3.214004765e-16 | CD188: -3.274106654e-16 | CE188: -3.335332449e-16 | CF188: -3.397703166e-16 | CG188: -3.461240215e-16 | CH188: -3.525965407e-16 | CI188: -3.59190096e-16 | CJ188: -3.659069508e-16 | CK188: -3.727494108e-16 | CL188: -3.797198248e-16 | CM188: =CM187-CM186 -> -3.868205855e-16 | CN188: =CN187-CN186 -> -3.940541304e-16 | CO188: =CO187-CO186 -> -4.014229427e-16 | CP188: =CP187-CP186 -> -4.089295517e-16 | CQ188: =CQ187-CQ186 -> -4.165765343e-16 | CS188: =J182 -> 16.12130414 | CT188: =SUM(J188:CQ188) -> 16.12130414 | CU188: =CS188-CT188 -> 0
C189: Compressors: asset base (end of year) | I189: $m | J189: =J185-J188 -> 14.66788746 | K189: =K185-K188 -> 13.13328322 | L189: =L185-L188 -> 11.59947493 | M189: =M185-M188 -> 9.998479709 | N189: =N185-N188 -> 8.333551047 | O189: =O185-O188 -> 6.602857685 | P189: 4.804522231 | Q189: 2.936620078 | R189: 0.9971782911 | S189: 5.551115123e-15 | T189: 5.654920976e-15 | U189: 5.760667998e-15 | V189: 5.86839249e-15 | W189: 5.978131429e-15 | X189: 6.089922487e-15 | Y189: 6.203804038e-15 | Z189: 6.319815173e-15 | AA189: 6.437995717e-15 | AB189: 6.558386237e-15 | AC189: 6.681028059e-15 | AD189: 6.805963284e-15 | AE189: 6.933234797e-15 | AF189: 7.062886288e-15 | AG189: 7.194962262e-15 | AH189: 7.329508056e-15 | AI189: 7.466569857e-15 | AJ189: 7.606194713e-15 | AK189: 7.748430554e-15 | AL189: 7.893326205e-15 | AM189: 8.040931406e-15 | AN189: 8.191296823e-15 | AO189: 8.344474073e-15 | AP189: 8.500515739e-15 | AQ189: 8.659475383e-15 | AR189: 8.821407573e-15 | AS189: 8.986367894e-15 | AT189: 9.154412974e-15 | AU189: 9.325600496e-15 | AV189: 9.499989226e-15 | AW189: 9.677639024e-15 | AX189: 9.858610874e-15 | AY189: 1.00429669e-14 | AZ189: 1.023077038e-14 | BA189: 1.042208578e-14 | BB189: 1.061697879e-14 | BC189: 1.081551629e-14 | BD189: 1.101776645e-14 | BE189: 1.122379868e-14 | BF189: 1.143368371e-14 | BG189: 1.16474936e-14 | BH189: 1.186530173e-14 | BI189: 1.208718287e-14 | BJ189: 1.231321319e-14 | BK189: 1.254347028e-14 | BL189: 1.277803317e-14 | BM189: 1.301698239e-14 | BN189: 1.326039996e-14 | BO189: 1.350836944e-14 | BP189: 1.376097595e-14 | BQ189: 1.40183062e-14 | BR189: 1.428044853e-14 | BS189: 1.454749292e-14 | BT189: 1.481953103e-14 | BU189: 1.509665626e-14 | BV189: 1.537896374e-14 | BW189: 1.566655036e-14 | BX189: 1.595951485e-14 | BY189: 1.625795778e-14 | BZ189: 1.656198159e-14 | CA189: =CA185-CA188 -> 1.687169064e-14 | CB189: 1.718719126e-14 | CC189: 1.750859173e-14 | CD189: 1.78360024e-14 | CE189: 1.816953565e-14 | CF189: 1.850930596e-14 | CG189: 1.885542998e-14 | CH189: 1.920802652e-14 | CI189: 1.956721662e-14 | CJ189: 1.993312357e-14 | CK189: 2.030587298e-14 | CL189: 2.068559281e-14 | CM189: =CM185-CM188 -> 2.107241339e-14 | CN189: =CN185-CN188 -> 2.146646752e-14 | CO189: =CO185-CO188 -> 2.186789046e-14 | CP189: =CP185-CP188 -> 2.227682002e-14 | CQ189: =CQ185-CQ188 -> 2.269339655e-14
B191: ='AA 2020-2024 inputs'!B20 -> Receipt and delivery point facilities | G191: =MAX('AA 2020-2024 inputs'!G20-20.5,0) -> 9.5 | H191: years
C192: Receipt and delivery: CAPEX | I192: $m | J192: ='AA 2020-2024 inputs'!H148 -> 0.5949497046
C193: Receipt and delivery: straight line depreciation | I193: $m | J193: =IF(G191<1,J192,J192/G191) -> 0.0626262847 | K193: =IF(SUM($J193:J193)+J193<$J192,J193,$J192-SUM($J193:J193)) -> 0.0626262847 | L193: =IF(SUM($J193:K193)+K193<$J192,K193,$J192-SUM($J193:K193)) -> 0.0626262847 | M193: =IF(SUM($J193:L193)+L193<$J192,L193,$J192-SUM($J193:L193)) -> 0.0626262847 | N193: =IF(SUM($J193:M193)+M193<$J192,M193,$J192-SUM($J193:M193)) -> 0.0626262847 | O193: =IF(SUM($J193:N193)+N193<$J192,N193,$J192-SUM($J193:N193)) -> 0.0626262847 | P193: =IF(SUM($J193:O193)+O193<$J192,O193,$J192-SUM($J193:O193)) -> 0.0626262847 | Q193: =IF(SUM($J193:P193)+P193<$J192,P193,$J192-SUM($J193:P193)) -> 0.0626262847 | R193: =IF(SUM($J193:Q193)+Q193<$J192,Q193,$J192-SUM($J193:Q193)) -> 0.0626262847 | S193: =IF(SUM($J193:R193)+R193<$J192,R193,$J192-SUM($J193:R193)) -> 0.03131314235 | T193: =IF(SUM($J193:S193)+S193<$J192,S193,$J192-SUM($J193:S193)) -> 0 | U193: =IF(SUM($J193:T193)+T193<$J192,T193,$J192-SUM($J193:T193)) -> 0 | V193: =IF(SUM($J193:U193)+U193<$J192,U193,$J192-SUM($J193:U193)) -> 0 | W193: =IF(SUM($J193:V193)+V193<$J192,V193,$J192-SUM($J193:V193)) -> 0 | X193: =IF(SUM($J193:W193)+W193<$J192,W193,$J192-SUM($J193:W193)) -> 0 | Y193: =IF(SUM($J193:X193)+X193<$J192,X193,$J192-SUM($J193:X193)) -> 0 | Z193: =IF(SUM($J193:Y193)+Y193<$J192,Y193,$J192-SUM($J193:Y193)) -> 0 | AA193: =IF(SUM($J193:Z193)+Z193<$J192,Z193,$J192-SUM($J193:Z193)) -> 0 | AB193: =IF(SUM($J193:AA193)+AA193<$J192,AA193,$J192-SUM($J193:AA193)) -> 0 | AC193: =IF(SUM($J193:AB193)+AB193<$J192,AB193,$J192-SUM($J193:AB193)) -> 0 | AD193: =IF(SUM($J193:AC193)+AC193<$J192,AC193,$J192-SUM($J193:AC193)) -> 0 | AE193: =IF(SUM($J193:AD193)+AD193<$J192,AD193,$J192-SUM($J193:AD193)) -> 0 | AF193: =IF(SUM($J193:AE193)+AE193<$J192,AE193,$J192-SUM($J193:AE193)) -> 0 | AG193: =IF(SUM($J193:AF193)+AF193<$J192,AF193,$J192-SUM($J193:AF193)) -> 0 | AH193: =IF(SUM($J193:AG193)+AG193<$J192,AG193,$J192-SUM($J193:AG193)) -> 0 | AI193: =IF(SUM($J193:AH193)+AH193<$J192,AH193,$J192-SUM($J193:AH193)) -> 0 | AJ193: =IF(SUM($J193:AI193)+AI193<$J192,AI193,$J192-SUM($J193:AI193)) -> 0 | AK193: =IF(SUM($J193:AJ193)+AJ193<$J192,AJ193,$J192-SUM($J193:AJ193)) -> 0 | AL193: =IF(SUM($J193:AK193)+AK193<$J192,AK193,$J192-SUM($J193:AK193)) -> 0 | AM193: =IF(SUM($J193:AL193)+AL193<$J192,AL193,$J192-SUM($J193:AL193)) -> 0 | AN193: =IF(SUM($J193:AM193)+AM193<$J192,AM193,$J192-SUM($J193:AM193)) -> 0 | AO193: =IF(SUM($J193:AN193)+AN193<$J192,AN193,$J192-SUM($J193:AN193)) -> 0 | AP193: =IF(SUM($J193:AO193)+AO193<$J192,AO193,$J192-SUM($J193:AO193)) -> 0 | AQ193: =IF(SUM($J193:AP193)+AP193<$J192,AP193,$J192-SUM($J193:AP193)) -> 0 | AR193: =IF(SUM($J193:AQ193)+AQ193<$J192,AQ193,$J192-SUM($J193:AQ193)) -> 0 | AS193: =IF(SUM($J193:AR193)+AR193<$J192,AR193,$J192-SUM($J193:AR193)) -> 0 | AT193: =IF(SUM($J193:AS193)+AS193<$J192,AS193,$J192-SUM($J193:AS193)) -> 0 | AU193: =IF(SUM($J193:AT193)+AT193<$J192,AT193,$J192-SUM($J193:AT193)) -> 0 | AV193: =IF(SUM($J193:AU193)+AU193<$J192,AU193,$J192-SUM($J193:AU193)) -> 0 | AW193: =IF(SUM($J193:AV193)+AV193<$J192,AV193,$J192-SUM($J193:AV193)) -> 0 | AX193: =IF(SUM($J193:AW193)+AW193<$J192,AW193,$J192-SUM($J193:AW193)) -> 0 | AY193: =IF(SUM($J193:AX193)+AX193<$J192,AX193,$J192-SUM($J193:AX193)) -> 0 | AZ193: =IF(SUM($J193:AY193)+AY193<$J192,AY193,$J192-SUM($J193:AY193)) -> 0 | BA193: =IF(SUM($J193:AZ193)+AZ193<$J192,AZ193,$J192-SUM($J193:AZ193)) -> 0 | BB193: =IF(SUM($J193:BA193)+BA193<$J192,BA193,$J192-SUM($J193:BA193)) -> 0 | BC193: =IF(SUM($J193:BB193)+BB193<$J192,BB193,$J192-SUM($J193:BB193)) -> 0 | BD193: =IF(SUM($J193:BC193)+BC193<$J192,BC193,$J192-SUM($J193:BC193)) -> 0 | BE193: =IF(SUM($J193:BD193)+BD193<$J192,BD193,$J192-SUM($J193:BD193)) -> 0 | BF193: =IF(SUM($J193:BE193)+BE193<$J192,BE193,$J192-SUM($J193:BE193)) -> 0 | BG193: =IF(SUM($J193:BF193)+BF193<$J192,BF193,$J192-SUM($J193:BF193)) -> 0 | BH193: =IF(SUM($J193:BG193)+BG193<$J192,BG193,$J192-SUM($J193:BG193)) -> 0 | BI193: =IF(SUM($J193:BH193)+BH193<$J192,BH193,$J192-SUM($J193:BH193)) -> 0 | BJ193: =IF(SUM($J193:BI193)+BI193<$J192,BI193,$J192-SUM($J193:BI193)) -> 0 | BK193: =IF(SUM($J193:BJ193)+BJ193<$J192,BJ193,$J192-SUM($J193:BJ193)) -> 0 | BL193: =IF(SUM($J193:BK193)+BK193<$J192,BK193,$J192-SUM($J193:BK193)) -> 0 | BM193: =IF(SUM($J193:BL193)+BL193<$J192,BL193,$J192-SUM($J193:BL193)) -> 0 | BN193: =IF(SUM($J193:BM193)+BM193<$J192,BM193,$J192-SUM($J193:BM193)) -> 0 | BO193: =IF(SUM($J193:BN193)+BN193<$J192,BN193,$J192-SUM($J193:BN193)) -> 0 | BP193: =IF(SUM($J193:BO193)+BO193<$J192,BO193,$J192-SUM($J193:BO193)) -> 0 | BQ193: =IF(SUM($J193:BP193)+BP193<$J192,BP193,$J192-SUM($J193:BP193)) -> 0 | BR193: =IF(SUM($J193:BQ193)+BQ193<$J192,BQ193,$J192-SUM($J193:BQ193)) -> 0 | BS193: =IF(SUM($J193:BR193)+BR193<$J192,BR193,$J192-SUM($J193:BR193)) -> 0 | BT193: =IF(SUM($J193:BS193)+BS193<$J192,BS193,$J192-SUM($J193:BS193)) -> 0 | BU193: =IF(SUM($J193:BT193)+BT193<$J192,BT193,$J192-SUM($J193:BT193)) -> 0 | BV193: =IF(SUM($J193:BU193)+BU193<$J192,BU193,$J192-SUM($J193:BU193)) -> 0 | BW193: =IF(SUM($J193:BV193)+BV193<$J192,BV193,$J192-SUM($J193:BV193)) -> 0 | BX193: =IF(SUM($J193:BW193)+BW193<$J192,BW193,$J192-SUM($J193:BW193)) -> 0 | BY193: =IF(SUM($J193:BX193)+BX193<$J192,BX193,$J192-SUM($J193:BX193)) -> 0 | BZ193: =IF(SUM($J193:BY193)+BY193<$J192,BY193,$J192-SUM($J193:BY193)) -> 0 | CA193: =IF(SUM($J193:BZ193)+BZ193<$J192,BZ193,$J192-SUM($J193:BZ193)) -> 0 | CB193: =IF(SUM($J193:CA193)+CA193<$J192,CA193,$J192-SUM($J193:CA193)) -> 0 | CC193: =IF(SUM($J193:CB193)+CB193<$J192,CB193,$J192-SUM($J193:CB193)) -> 0 | CD193: =IF(SUM($J193:CC193)+CC193<$J192,CC193,$J192-SUM($J193:CC193)) -> 0 | CE193: =IF(SUM($J193:CD193)+CD193<$J192,CD193,$J192-SUM($J193:CD193)) -> 0 | CF193: =IF(SUM($J193:CE193)+CE193<$J192,CE193,$J192-SUM($J193:CE193)) -> 0 | CG193: =IF(SUM($J193:CF193)+CF193<$J192,CF193,$J192-SUM($J193:CF193)) -> 0 | CH193: =IF(SUM($J193:CG193)+CG193<$J192,CG193,$J192-SUM($J193:CG193)) -> 0 | CI193: =IF(SUM($J193:CH193)+CH193<$J192,CH193,$J192-SUM($J193:CH193)) -> 0 | CJ193: =IF(SUM($J193:CI193)+CI193<$J192,CI193,$J192-SUM($J193:CI193)) -> 0 | CK193: =IF(SUM($J193:CJ193)+CJ193<$J192,CJ193,$J192-SUM($J193:CJ193)) -> 0 | CL193: =IF(SUM($J193:CK193)+CK193<$J192,CK193,$J192-SUM($J193:CK193)) -> 0 | CM193: =IF(SUM($J193:CL193)+CL193<$J192,CL193,$J192-SUM($J193:CL193)) -> 0 | CN193: =IF(SUM($J193:CM193)+CM193<$J192,CM193,$J192-SUM($J193:CM193)) -> 0 | CO193: =IF(SUM($J193:CN193)+CN193<$J192,CN193,$J192-SUM($J193:CN193)) -> 0 | CP193: =IF(SUM($J193:CO193)+CO193<$J192,CO193,$J192-SUM($J193:CO193)) -> 0 | CQ193: =IF(SUM($J193:CP193)+CP193<$J192,CP193,$J192-SUM($J193:CP193)) -> 0
C195: Receipt and delivery: asset base (start of year) | I195: $m | J195: =J192 -> 0.5949497046 | K195: =J199 -> 0.5413119955 | L195: 0.4846780945 | M195: 0.428073568 | N195: 0.368989537 | O195: 0.3075460702 | P195: 0.2436755858 | Q195: 0.1773087994 | R195: 0.1083746844 | S195: 0.03680043033 | T195: 1.804112415e-16 | U195: 1.837849317e-16 | V195: 1.872217099e-16 | W195: 1.907227559e-16 | X195: 1.942892715e-16 | Y195: 1.979224808e-16 | Z195: 2.016236312e-16 | AA195: 2.053939931e-16 | AB195: 2.092348608e-16 | AC195: 2.131475527e-16 | AD195: 2.171334119e-16 | AE195: 2.211938067e-16 | AF195: 2.253301309e-16 | AG195: 2.295438044e-16 | AH195: 2.338362735e-16 | AI195: 2.382090118e-16 | AJ195: 2.426635203e-16 | AK195: 2.472013282e-16 | AL195: 2.51823993e-16 | AM195: 2.565331017e-16 | AN195: 2.613302707e-16 | AO195: 2.662171467e-16 | AP195: 2.711954074e-16 | AQ195: =AP199 -> 2.762667615e-16 | AR195: 2.814329499e-16 | AS195: 2.866957461e-16 | AT195: 2.920569566e-16 | AU195: 2.975184216e-16 | AV195: 3.030820161e-16 | AW195: 3.087496498e-16 | AX195: 3.145232683e-16 | AY195: 3.204048534e-16 | AZ195: 3.263964242e-16 | BA195: 3.325000373e-16 | BB195: 3.38717788e-16 | BC195: 3.450518106e-16 | BD195: 3.515042795e-16 | BE195: 3.580774095e-16 | BF195: 3.647734571e-16 | BG195: 3.715947207e-16 | BH195: 3.78543542e-16 | BI195: 3.856223062e-16 | BJ195: 3.928334434e-16 | BK195: 4.001794287e-16 | BL195: 4.076627841e-16 | BM195: 4.152860781e-16 | BN195: 4.230519278e-16 | BO195: 4.309629988e-16 | BP195: 4.390220069e-16 | BQ195: 4.472317184e-16 | BR195: 4.555949516e-16 | BS195: 4.641145772e-16 | BT195: 4.727935198e-16 | BU195: 4.816347586e-16 | BV195: 4.906413286e-16 | BW195: =BV199 -> 4.998163214e-16 | BX195: 5.091628866e-16 | BY195: 5.186842326e-16 | BZ195: 5.283836278e-16 | CA195: 5.382644016e-16 | CB195: 5.483299459e-16 | CC195: 5.585837159e-16 | CD195: 5.690292314e-16 | CE195: 5.79670078e-16 | CF195: 5.905099085e-16 | CG195: 6.015524438e-16 | CH195: 6.128014745e-16 | CI195: 6.24260862e-16 | CJ195: 6.359345401e-16 | CK195: 6.47826516e-16 | CL195: 6.599408719e-16 | CM195: 6.722817662e-16 | CN195: 6.848534352e-16 | CO195: 6.976601945e-16 | CP195: 7.107064401e-16 | CQ195: 7.239966505e-16
C196: Receipt and delivery: indexation of asset base | I196: $m | J196: =J$5*J195 -> 0.01004605505 | K196: =K$5*K195 -> 0.007989844952 | L196: =L$5*L195 -> 0.009252945441 | M196: =M$5*M195 -> 0.008004975721 | N196: =N$5*N195 -> 0.006900104341 | O196: =O$5*O195 -> 0.005751111512 | P196: 0.004556733454 | Q196: 0.003315674549 | R196: 0.002026606598 | S196: 0.0006881680471 | T196: 3.373690216e-18 | U196: 3.436778223e-18 | V196: 3.501045976e-18 | W196: 3.566515536e-18 | X196: 3.633209376e-18 | Y196: 3.701150391e-18 | Z196: 3.770361904e-18 | AA196: 3.840867671e-18 | AB196: 3.912691897e-18 | AC196: 3.985859235e-18 | AD196: 4.060394803e-18 | AE196: 4.136324186e-18 | AF196: 4.213673448e-18 | AG196: 4.292469142e-18 | AH196: 4.372738315e-18 | AI196: 4.454508521e-18 | AJ196: 4.53780783e-18 | AK196: 4.622664837e-18 | AL196: 4.709108669e-18 | AM196: 4.797169001e-18 | AN196: 4.886876062e-18 | AO196: 4.978260644e-18 | AP196: 5.071354118e-18 | AQ196: 5.16618844e-18 | AR196: 5.262796164e-18 | AS196: 5.361210452e-18 | AT196: 5.461465088e-18 | AU196: 5.563594485e-18 | AV196: 5.667633702e-18 | AW196: 5.773618452e-18 | AX196: 5.881585117e-18 | AY196: 5.991570759e-18 | AZ196: 6.103613132e-18 | BA196: 6.217750697e-18 | BB196: 6.334022635e-18 | BC196: 6.452468859e-18 | BD196: 6.573130026e-18 | BE196: 6.696047558e-18 | BF196: 6.821263647e-18 | BG196: 6.948821277e-18 | BH196: 7.078764235e-18 | BI196: 7.211137126e-18 | BJ196: 7.345985391e-18 | BK196: 7.483355318e-18 | BL196: 7.623294062e-18 | BM196: 7.765849661e-18 | BN196: 7.91107105e-18 | BO196: 8.059008078e-18 | BP196: 8.209711529e-18 | BQ196: 8.363233135e-18 | BR196: 8.519625595e-18 | BS196: 8.678942593e-18 | BT196: 8.84123882e-18 | BU196: 9.006569986e-18 | BV196: 9.174992844e-18 | BW196: 9.34656521e-18 | BX196: 9.52134598e-18 | BY196: 9.69939515e-18 | BZ196: 9.880773839e-18 | CA196: =CA$5*CA195 -> 1.006554431e-17 | CB196: 1.025376999e-17 | CC196: 1.044551549e-17 | CD196: 1.064084663e-17 | CE196: 1.083983046e-17 | CF196: 1.104253529e-17 | CG196: 1.12490307e-17 | CH196: 1.145938757e-17 | CI196: 1.167367812e-17 | CJ196: 1.18919759e-17 | CK196: 1.211435585e-17 | CL196: 1.23408943e-17 | CM196: =CM$5*CM195 -> 1.257166903e-17 | CN196: =CN$5*CN195 -> 1.280675924e-17 | CO196: =CO$5*CO195 -> 1.304624564e-17 | CP196: =CP$5*CP195 -> 1.329021043e-17 | CQ196: =CQ$5*CQ195 -> 1.353873736e-17
C197: Receipt and delivery: inflation adjusted SL depreciation | I197: $m | J197: =J$6*J193 -> 0.06368376418 | K197: =K$6*K193 -> 0.06462374594 | L197: =L$6*L193 -> 0.065857472 | M197: =M$6*M193 -> 0.06708900672 | N197: =N$6*N193 -> 0.06834357115 | O197: =O$6*O193 -> 0.06962159593 | P197: 0.07092351977 | Q197: 0.07224978959 | R197: 0.07360086066 | S197: 0.03748859838 | T197: 0 | U197: 0 | V197: 0 | W197: 0 | X197: 0 | Y197: 0 | Z197: 0 | AA197: 0 | AB197: 0 | AC197: 0 | AD197: 0 | AE197: 0 | AF197: 0 | AG197: 0 | AH197: 0 | AI197: 0 | AJ197: 0 | AK197: 0 | AL197: 0 | AM197: 0 | AN197: 0 | AO197: 0 | AP197: 0 | AQ197: 0 | AR197: 0 | AS197: 0 | AT197: 0 | AU197: 0 | AV197: 0 | AW197: 0 | AX197: 0 | AY197: 0 | AZ197: 0 | BA197: 0 | BB197: 0 | BC197: 0 | BD197: 0 | BE197: 0 | BF197: 0 | BG197: 0 | BH197: 0 | BI197: 0 | BJ197: 0 | BK197: 0 | BL197: 0 | BM197: 0 | BN197: 0 | BO197: 0 | BP197: 0 | BQ197: 0 | BR197: 0 | BS197: 0 | BT197: 0 | BU197: 0 | BV197: 0 | BW197: 0 | BX197: 0 | BY197: 0 | BZ197: 0 | CA197: =CA$6*CA193 -> 0 | CB197: 0 | CC197: 0 | CD197: 0 | CE197: 0 | CF197: 0 | CG197: 0 | CH197: 0 | CI197: 0 | CJ197: 0 | CK197: 0 | CL197: 0 | CM197: =CM$6*CM193 -> 0 | CN197: =CN$6*CN193 -> 0 | CO197: =CO$6*CO193 -> 0 | CP197: =CP$6*CP193 -> 0 | CQ197: =CQ$6*CQ193 -> 0
C198: Receipt and delivery: regulatory depreciation | I198: $m | J198: =J197-J196 -> 0.05363770913 | K198: =K197-K196 -> 0.05663390099 | L198: =L197-L196 -> 0.05660452656 | M198: =M197-M196 -> 0.059084031 | N198: =N197-N196 -> 0.06144346681 | O198: =O197-O196 -> 0.06387048442 | P198: 0.06636678632 | Q198: 0.06893411504 | R198: 0.07157425406 | S198: 0.03680043033 | T198: -3.373690216e-18 | U198: -3.436778223e-18 | V198: -3.501045976e-18 | W198: -3.566515536e-18 | X198: -3.633209376e-18 | Y198: -3.701150391e-18 | Z198: -3.770361904e-18 | AA198: -3.840867671e-18 | AB198: -3.912691897e-18 | AC198: -3.985859235e-18 | AD198: -4.060394803e-18 | AE198: -4.136324186e-18 | AF198: -4.213673448e-18 | AG198: -4.292469142e-18 | AH198: -4.372738315e-18 | AI198: -4.454508521e-18 | AJ198: -4.53780783e-18 | AK198: -4.622664837e-18 | AL198: -4.709108669e-18 | AM198: -4.797169001e-18 | AN198: -4.886876062e-18 | AO198: -4.978260644e-18 | AP198: -5.071354118e-18 | AQ198: -5.16618844e-18 | AR198: -5.262796164e-18 | AS198: -5.361210452e-18 | AT198: -5.461465088e-18 | AU198: -5.563594485e-18 | AV198: -5.667633702e-18 | AW198: -5.773618452e-18 | AX198: -5.881585117e-18 | AY198: -5.991570759e-18 | AZ198: -6.103613132e-18 | BA198: -6.217750697e-18 | BB198: -6.334022635e-18 | BC198: -6.452468859e-18 | BD198: -6.573130026e-18 | BE198: -6.696047558e-18 | BF198: -6.821263647e-18 | BG198: -6.948821277e-18 | BH198: -7.078764235e-18 | BI198: -7.211137126e-18 | BJ198: -7.345985391e-18 | BK198: -7.483355318e-18 | BL198: -7.623294062e-18 | BM198: -7.765849661e-18 | BN198: -7.91107105e-18 | BO198: -8.059008078e-18 | BP198: -8.209711529e-18 | BQ198: -8.363233135e-18 | BR198: -8.519625595e-18 | BS198: -8.678942593e-18 | BT198: -8.84123882e-18 | BU198: -9.006569986e-18 | BV198: -9.174992844e-18 | BW198: -9.34656521e-18 | BX198: -9.52134598e-18 | BY198: -9.69939515e-18 | BZ198: -9.880773839e-18 | CA198: =CA197-CA196 -> -1.006554431e-17 | CB198: -1.025376999e-17 | CC198: -1.044551549e-17 | CD198: -1.064084663e-17 | CE198: -1.083983046e-17 | CF198: -1.104253529e-17 | CG198: -1.12490307e-17 | CH198: -1.145938757e-17 | CI198: -1.167367812e-17 | CJ198: -1.18919759e-17 | CK198: -1.211435585e-17 | CL198: -1.23408943e-17 | CM198: =CM197-CM196 -> -1.257166903e-17 | CN198: =CN197-CN196 -> -1.280675924e-17 | CO198: =CO197-CO196 -> -1.304624564e-17 | CP198: =CP197-CP196 -> -1.329021043e-17 | CQ198: =CQ197-CQ196 -> -1.353873736e-17 | CS198: =J192 -> 0.5949497046 | CT198: =SUM(J198:CQ198) -> 0.5949497046 | CU198: =CS198-CT198 -> 0
C199: Receipt and delivery: asset base (end of year) | I199: $m | J199: =J195-J198 -> 0.5413119955 | K199: =K195-K198 -> 0.4846780945 | L199: =L195-L198 -> 0.428073568 | M199: =M195-M198 -> 0.368989537 | N199: =N195-N198 -> 0.3075460702 | O199: =O195-O198 -> 0.2436755858 | P199: 0.1773087994 | Q199: 0.1083746844 | R199: 0.03680043033 | S199: 1.804112415e-16 | T199: 1.837849317e-16 | U199: 1.872217099e-16 | V199: 1.907227559e-16 | W199: 1.942892715e-16 | X199: 1.979224808e-16 | Y199: 2.016236312e-16 | Z199: 2.053939931e-16 | AA199: 2.092348608e-16 | AB199: 2.131475527e-16 | AC199: 2.171334119e-16 | AD199: 2.211938067e-16 | AE199: 2.253301309e-16 | AF199: 2.295438044e-16 | AG199: 2.338362735e-16 | AH199: 2.382090118e-16 | AI199: 2.426635203e-16 | AJ199: 2.472013282e-16 | AK199: 2.51823993e-16 | AL199: 2.565331017e-16 | AM199: 2.613302707e-16 | AN199: 2.662171467e-16 | AO199: 2.711954074e-16 | AP199: 2.762667615e-16 | AQ199: 2.814329499e-16 | AR199: 2.866957461e-16 | AS199: 2.920569566e-16 | AT199: 2.975184216e-16 | AU199: 3.030820161e-16 | AV199: 3.087496498e-16 | AW199: 3.145232683e-16 | AX199: 3.204048534e-16 | AY199: 3.263964242e-16 | AZ199: 3.325000373e-16 | BA199: 3.38717788e-16 | BB199: 3.450518106e-16 | BC199: 3.515042795e-16 | BD199: 3.580774095e-16 | BE199: 3.647734571e-16 | BF199: 3.715947207e-16 | BG199: 3.78543542e-16 | BH199: 3.856223062e-16 | BI199: 3.928334434e-16 | BJ199: 4.001794287e-16 | BK199: 4.076627841e-16 | BL199: 4.152860781e-16 | BM199: 4.230519278e-16 | BN199: 4.309629988e-16 | BO199: 4.390220069e-16 | BP199: 4.472317184e-16 | BQ199: 4.555949516e-16 | BR199: 4.641145772e-16 | BS199: 4.727935198e-16 | BT199: 4.816347586e-16 | BU199: 4.906413286e-16 | BV199: 4.998163214e-16 | BW199: 5.091628866e-16 | BX199: 5.186842326e-16 | BY199: 5.283836278e-16 | BZ199: 5.382644016e-16 | CA199: =CA195-CA198 -> 5.483299459e-16 | CB199: 5.585837159e-16 | CC199: 5.690292314e-16 | CD199: 5.79670078e-16 | CE199: 5.905099085e-16 | CF199: 6.015524438e-16 | CG199: 6.128014745e-16 | CH199: 6.24260862e-16 | CI199: 6.359345401e-16 | CJ199: 6.47826516e-16 | CK199: 6.599408719e-16 | CL199: 6.722817662e-16 | CM199: =CM195-CM198 -> 6.848534352e-16 | CN199: =CN195-CN198 -> 6.976601945e-16 | CO199: =CO195-CO198 -> 7.107064401e-16 | CP199: =CP195-CP198 -> 7.239966505e-16 | CQ199: =CQ195-CQ198 -> 7.375353879e-16
B201: ='AA 2020-2024 inputs'!B21 -> SCADA, communications and electronic equipment | G201: =MAX('AA 2020-2024 inputs'!F21-20.5,0) -> 0 | H201: years
C202: SCADA: CAPEX | I202: $m | J202: ='AA 2020-2024 inputs'!H149 -> 0
